Workbook

Sheet Data Input Instructions (hidden)
A3: Worksheet ID | B3: Worksheet | C3: Input Data Notes
A4: 1 | B4: Data Current Rates | C4: R2 Service Charge should already be net of RRRP credit
A5: 1 | B5: Data Current Rates | C5: Demand billed RTSR should already be loss adjusted
A6: 2 | B6: Data Proposed Rates | C6: Mapped from Draft Rates file prepared for Claude
A7: 2 | B7: Data Proposed Rates | C7: Row 5 with header name TEXT is precedent to templates; changes to TEXT need to reflected in templates
A8: 2 | B8: Data Proposed Rates | C8: Templates are set up with 2-dimension vlookups so it will accommodate inserted/deleted rows and/or columns
A9: 3 | B9: Data Billing Quantities | C9: Row 4 with header name TEXT is precedent to templates; changes to TEXT need to reflected in templates
A10: 3 | B10: Data Billing Quantities | C10: Templates are set up with 2-dimension vlookups so it will accommodate inserted/deleted rows and/or columns
A11: 4 | B11: Data Pass Through | C11: Changes to Pass Through rates can be manually input on this sheet, which is precedent to the templates
A12: 4 | B12: Data Pass Through | C12: Links to templates from Column A TEXT; any changes in the TEXT of the charge names must be reflected in the templates
A13: 5 | B13: Data BI List | C13: Instruction Sheet for macro to create individual bill impact worksheets
A14: 5 | B14: Data BI List | C14: Need to MANUALLY update Test Year to appear as header on all bill impact worksheets
A15: 6 | B15: Data BI Summary | C15: This replaces the need for cell references in summary sheet, and displays value for totals so rows can be added to templates and worksheets without having to update the summary sheet
B16: Bill Impact Summary | C16: This file has 2 hidden columns needed to link to worksheets; see Col E and F

Sheet Data Current Rates (hidden)
A1: Approved Jul 1 2024 Rates
A3: 1 | B3: 2 | C3: 3 | D3: 4 | E3: 5 | F3: 6 | G3: 7 | I3: 8 | J3: 9 | K3: 10 | L3: 11 | M3: 12 | N3: 13 | O3: 14 | P3: 15 | Q3: 16 | R3: 17 | S3: 18 | T3: 19 | U3: 20 | V3: 21 | W3: 22 | X3: 23 | Y3: 24 | Z3: 25
A4: Rate Class | B4: Proposed Fixed Charge ($/month) | C4: Proposed Volumetric Charge ($/kWh or $/kW) | D4: Proposed Group 1 DVA Rider - Volumetric ($/kWh or $/kW) (2023) | E4: Porposed Group 1 DVA Rider - Volumetric Applicable to Non-WMP Only ($/kWh or $/kW) (2023) | F4: Proposed Rate Rider for Disposition of Global Adjustment (Non WMP, Non-RPP, Non-LDC, and Class B) ($/kWh) (2023) | G4: Proposed Group 1 DVA Rider - Volumetric ($/kWh or $/kW) (2024) | H4: Porposed Rate Rider for Account 1595 - for HONI-DX Only | I4: Porposed Group 1 DVA Rider - Volumetric Applicable to Non-WMP Only ($/kWh or $/kW) (2024) | J4: Proposed Rate Rider for Disposition of Global Adjustment (Non WMP, Non-RPP, Non-LDC, and Class B) ($/kWh) (2024) | K4: Vol CBR-B Rider ($/kWh or $/kW) - Non-WMP, Class B Only (2024) | L4: Vol Group 1 VA Rider - Chapleau (2024) | M4: Vol GA Rider ($/kWh) - Non-RPP, Non-LDC, Class B - Chapleau (2024) | N4: Fixed 1592 VA Rider for Acq ($/month) | O4: Vol 1592 VA Rider for Acq ($/kWh or $/kW) | P4: Proposed Group 2 Rate Rider - Fixed ($/month) | Q4: Proposed Group 2 Rate Rider - Volumetric ($/kWh or $/kW) | R4: Proposed RTSR-NW ($/kWh or $/kW) | S4: Proposed RTSR-CONN ($/kWh or $/kW) | T4: Total DX Rev Related Fixed Rate Riders | U4: Total DX Rev Related Vol Rate Riders | V4: Total DVA Rate Riders | W4: Total CBR-B Rate Riders | X4: Total GA Rate Rider | Y4: Addional Fixed Rate Rider | Z4: Additional Vol Rate Rider
A5: Rate as shown on Bill Impact Sheet | B5: Service Charge | C5: Distribution Volumetric Charge | D5: Group 1 Volumetric DVA Rider (General) (2023) | E5: Group 1 Volumetric Deferral/Variance Account Rider (Sub-Account RSVA Wholesale Market Service Charge & RSVA Power) (2023) | F5: Group 1 Volumetric Deferral/Variance Account Rider (Sub-Account Global Adjustment) (2023) | G5: Group 1 Volumetric DVA Rider (General) (2024) | H5: Group 1 Volumetric DVA Rider (Excl 1595) (2024) | I5: Group 1 Volumetric Deferral/Variance Account Rider (Sub-Account RSVA Wholesale Market Service Charge & RSVA Power) (2024) | J5: Group 1 Volumetric Deferral/Variance Account Rider (Sub-Account Global Adjustment) (2024) | K5: Group 1 Volumetric Deferral/Variance Account Rider (Sub-Account CBR) (2024) | L5: Group 1 Vol VA Rider ($/kWh or $/kW) (2024) - Chapleau | M5: GA Rider ($/kWh) for Non WMP, Non-RPP, Non-LDC, and Class B customers (2024) - Chapleau | N5: Fixed Rider for Account 1592 | O5: Volumetric Rider for Account 1592 | P5: Group 2 Fixed DVA Rider | Q5: Group 2 Volumetric DVA Rider | R5: Retail Transmission Rate – Network Service Rate | S5: Retail Transmission Rate – Line and Transformation Connection Service Rate | T5: Fixed Rate Riders | U5: Volumetric Rate Riders | V5: Total Deferral/Variance Account Rate Riders | W5: CBR Class B Rate Riders | X5: GA Rate Riders | Y5: Additional Fixed Rate Riders | Z5: Additional Volumetric Rate Riders
A6: Rounding Factor | B6: 2 | C6: 4 | D6: 4 | E6: 4 | F6: 4 | G6: 4 | H6: 4 | I6: 4 | J6: 4 | K6: 4 | L6: 4 | M6: 4 | N6: 2 | O6: 4 | P6: 2 | Q6: 4 | R6: 4 | S6: 4
A7: UR | B7: 40 | C7: 0 | D7: -0.0007 | E7: 0 | F7: -0.0009 | G7: 0.0013 | H7: 0.0011 | I7: 0 | J7: -0.0045 | K7: -0.0006 | P7: -0.11 | R7: 0.0126 | S7: 0.0093 | T7: =N7+P7 -> -0.11 | U7: =O7+Q7 -> 0 | V7: =D7+E7+G7+I7+L7 -> 0.0006 | W7: =K7 -> -0.0006 | Y7: 0 | Z7: 0
A8: Seas-UR | B8: 40 | C8: 0 | D8: -0.0007 | E8: 0 | F8: -0.0009 | G8: 0.0013 | H8: 0.0011 | I8: 0 | J8: -0.0045 | K8: -0.0006 | P8: -0.11 | R8: 0.0126 | S8: 0.0093 | T8: =N8+P8 -> -0.11 | U8: 0 | V8: =D8+E8+G8+I8+L8 -> 0.0006 | W8: =K8 -> -0.0006 | Y8: 0 | Z8: 0
A9: R1 | B9: 68.3 | C9: 0 | D9: -0.0007 | E9: 0 | F9: -0.0009 | G9: 0.0013 | H9: 0.0011 | I9: 0 | J9: -0.0045 | K9: -0.0006 | P9: -0.21 | R9: 0.0118 | S9: 0.0087 | T9: -0.21 | U9: 0 | V9: 0.0006 | W9: -0.0006 | Y9: 0 | Z9: 0
A10: Seas-R1 | B10: 68.3 | C10: 0 | D10: -0.0007 | E10: 0 | F10: -0.0009 | G10: 0.0013 | H10: 0.0011 | I10: 0 | J10: -0.0045 | K10: -0.0006 | P10: -0.21 | R10: 0.0118 | S10: 0.0087 | T10: -0.21 | U10: 0 | V10: 0.0006 | W10: -0.0006 | Y10: 0 | Z10: 0
A11: R2 | B11: 138.59 | C11: 0.0126 | D11: -0.0007 | E11: 0 | F11: -0.0009 | G11: 0.0014 | H11: 0.0012 | I11: 0 | J11: -0.0045 | K11: -0.0006 | P11: -0.44 | R11: 0.0109 | S11: 0.0082 | T11: -0.44 | U11: 0 | V11: 0.0007 | W11: -0.0006 | Y11: 0 | Z11: 0
A12: Seas-R2 | B12: 73.88 | C12: 0.0126 | D12: -0.0007 | E12: 0 | F12: -0.0009 | G12: 0.0014 | H12: 0.0012 | I12: 0 | J12: -0.0045 | K12: -0.0006 | P12: -0.44 | R12: 0.0109 | S12: 0.0082 | T12: -0.44 | U12: 0 | V12: 0.0007 | W12: -0.0006 | Y12: 0 | Z12: 0
A13: GSe | B13: 32.78 | C13: 0.0731 | D13: -0.0007 | E13: 0 | F13: -0.0009 | G13: 0.0018 | H13: 0.0014 | I13: 0 | J13: -0.0045 | K13: -0.0006 | Q13: -0.0003 | R13: 0.0093 | S13: 0.0074 | T13: 0 | U13: -0.0003 | V13: 0.0011 | W13: -0.0006 | Y13: 0 | Z13: 0
A14: UGe | B14: 25.51 | C14: 0.0352 | D14: -0.0007 | E14: 0 | F14: -0.0009 | G14: 0.0018 | H14: 0.0014 | I14: 0 | J14: -0.0045 | K14: -0.0006 | Q14: -0.0001 | R14: 0.0099 | S14: 0.0078 | T14: 0 | U14: -0.0001 | V14: 0.0011 | W14: -0.0006 | Y14: 0 | Z14: 0
A15: St Lgt | B15: 3.27 | C15: 0.1186 | D15: -0.0007 | E15: 0 | F15: -0.0009 | G15: 0.0025 | H15: 0.0015 | I15: 0 | J15: -0.0045 | K15: -0.0006 | Q15: -0.0004 | R15: 0.0068 | S15: 0.0054 | T15: 0 | U15: -0.0004 | V15: 0.0018 | W15: -0.0006 | Y15: 0 | Z15: 0
A16: Sen Lgt | B16: 3.29 | C16: 0.1816 | D16: -0.0007 | E16: 0 | F16: -0.0009 | G16: 0.0018 | H16: 0.0015 | I16: 0 | J16: -0.0045 | K16: -0.0006 | Q16: -0.0005 | R16: 0.0068 | S16: 0.0054 | T16: 0 | U16: -0.0005 | V16: 0.0011 | W16: -0.0006 | Y16: 0 | Z16: 0
A17: USL | B17: 38.29 | C17: 0.0292 | D17: -0.0007 | E17: 0 | F17: -0.0009 | G17: 0.0017 | H17: 0.0015 | I17: 0 | J17: -0.0045 | K17: -0.0006 | Q17: -0.0003 | R17: 0.0079 | S17: 0.0059 | T17: 0 | U17: -0.0003 | V17: 0.001 | W17: -0.0006 | Y17: 0 | Z17: 0
A18: GSd | B18: 105.55 | C18: 20.5366 | D18: -0.0855 | E18: -0.1195 | F18: -0.0009 | G18: 0.6503 | H18: 0.2611 | I18: 0.2159 | J18: -0.0045 | K18: -0.1739 | Q18: -0.071 | R18: 3.0151 | S18: 2.3614 | T18: 0 | U18: -0.071 | V18: 0.6612 | W18: -0.1739 | X18: =F18+J18+M18 -> -0.0054 | Y18: 0 | Z18: 0
A19: UGd | B19: 96.47 | C19: 11.931 | D19: -0.1053 | E19: -0.1473 | F19: -0.0009 | G19: 0.6629 | H19: 0.3216 | I19: 0.2661 | J19: -0.0045 | K19: -0.2159 | Q19: -0.0421 | R19: 3.854 | S19: 2.9665 | T19: 0 | U19: -0.0421 | V19: 0.6764 | W19: -0.2159 | X19: =F19+J19+M19 -> -0.0054 | Y19: 0 | Z19: 0
A20: Dgen | B20: 199.26 | C20: 12.8895 | D20: -0.0394 | E20: -0.0565 | F20: -0.0009 | G20: 0.2948 | H20: 0.1204 | I20: 0.102 | J20: -0.0045 | K20: -0.0822 | Q20: -0.093 | R20: 1.6547 | S20: 1.0131 | T20: 0 | U20: -0.093 | V20: 0.3009 | W20: -0.0822 | X20: =F20+J20+M20 -> -0.0054 | Y20: 0 | Z20: 0
A21: ST | B21: 1241.87 | C21: 1.6301 | D21: -0.134 | E21: -0.188 | F21: -0.0009 | G21: 0.3853 | H21: 0.4094 | I21: 0.34 | J21: -0.0045 | K21: -0.2481 | Q21: -0.0072 | R21: 5.0773 | S21: 4.0924 | T21: 0 | U21: -0.0072 | V21: 0.4033 | W21: -0.2481 | X21: =F21+J21+M21 -> -0.0054 | Y21: 0 | Z21: 0
A22: AUR | B22: 33.03 | C22: 0 | D22: -0.0007 | E22: 0 | F22: -0.0009 | G22: 0.0011 | H22: 0.0011 | I22: 0 | J22: -0.0045 | K22: -0.0006 | R22: 0.013 | S22: 0.0096 | T22: 0 | U22: 0 | V22: 0.0004 | W22: -0.0006 | Y22: 0 | Z22: 0
A23: AUGe | B23: 26.36 | C23: 0.0165 | D23: -0.0007 | E23: 0 | F23: -0.0009 | G23: 0.0014 | H23: 0.0014 | I23: 0 | J23: -0.0045 | K23: -0.0006 | R23: 0.01 | S23: 0.0078 | T23: 0 | U23: 0 | V23: 0.0007 | W23: -0.0006 | Y23: 0 | Z23: 0
A24: AUGd | B24: 146.47 | C24: 3.0288 | D24: -0.0972 | E24: -0.1351 | F24: -0.0009 | G24: 0.2969 | H24: 0.2969 | I24: 0.2442 | J24: -0.0045 | K24: -0.1981 | R24: 3.4934 | S24: 2.6804 | T24: 0 | U24: 0 | V24: 0.3088 | W24: -0.1981 | X24: =F24+J24+M24 -> -0.0054 | Y24: 0 | Z24: 0
A25: AR | B25: 40.1 | C25: 0 | D25: -0.0007 | E25: 0 | F25: -0.0009 | G25: 0.0011 | H25: 0.0011 | I25: 0 | J25: -0.0045 | K25: -0.0006 | R25: 0.0124 | S25: 0.0093 | T25: 0 | U25: 0 | V25: 0.0004 | W25: -0.0006 | Y25: 0 | Z25: 0
A26: AGSe | B26: 39.96 | C26: 0.0201 | D26: -0.0007 | E26: 0 | F26: -0.0009 | G26: 0.0014 | H26: 0.0014 | I26: 0 | J26: -0.0045 | K26: -0.0006 | R26: 0.0098 | S26: 0.0076 | T26: 0 | U26: 0 | V26: 0.0007 | W26: -0.0006 | Y26: 0 | Z26: 0
A27: AGSd | B27: 170.26 | C27: 4.908 | D27: -0.098 | E27: -0.1364 | F27: -0.0009 | G27: 0.2995 | H27: 0.2995 | I27: 0.2454 | J27: -0.0045 | K27: -0.1966 | R27: 3.0669 | S27: 2.4123 | T27: 0 | U27: 0 | V27: 0.3105 | W27: -0.1966 | X27: =F27+J27+M27 -> -0.0054 | Y27: 0 | Z27: 0
A28: AUR-WHSI | B28: 33.03 | C28: 0 | D28: -0.0009 | E28: 0 | F28: -0.0009 | G28: 0.0011 | H28: 0.0011 | I28: 0 | J28: -0.0045 | K28: -0.0006 | N28: -0.4 | R28: 0.013 | S28: 0.0096 | T28: -0.4 | U28: 0 | V28: 0.0002 | W28: -0.0006 | Y28: 0 | Z28: 0
A29: AUGe-WHSI | B29: 26.36 | C29: 0.0165 | D29: -0.0009 | E29: 0 | F29: -0.0009 | G29: 0.0014 | H29: 0.0014 | I29: 0 | J29: -0.0045 | K29: -0.0006 | O29: -0.0003 | R29: 0.01 | S29: 0.0078 | T29: 0 | U29: -0.0003 | V29: 0.0005 | W29: -0.0006 | Y29: 0 | Z29: 0
A30: AUGd-WHSI | B30: 146.47 | C30: 3.0288 | D30: -0.0645 | E30: -0.1351 | F30: -0.0009 | G30: 0.2969 | H30: 0.2969 | I30: 0.2442 | J30: -0.0045 | K30: -0.1981 | O30: -0.0392 | R30: =R24 -> 3.4934 | S30: =S24 -> 2.6804 | T30: 0 | U30: -0.0392 | V30: 0.3415 | W30: -0.1981 | X30: =F30+J30+M30 -> -0.0054 | Y30: 0 | Z30: 0
A31: ST-WHSI | B31: 1241.87 | C31: 1.6301 | D31: -0.1063 | E31: -0.188 | F31: -0.0009 | G31: 0.4094 | H31: 0.4094 | I31: 0.34 | J31: -0.0045 | K31: -0.2481 | O31: -0.0438 | R31: =R21 -> 5.0773 | S31: =S21 -> 4.0924 | T31: 0 | U31: -0.0438 | V31: 0.4551 | W31: -0.2481 | X31: =F31+J31+M31 -> -0.0054 | Y31: 0 | Z31: 0
A32: St Lgt-WHSI | B32: 3.27 | C32: 0.1186 | D32: -0.0006 | E32: 0 | F32: -0.0009 | G32: 0.0015 | H32: 0.0015 | I32: 0 | J32: -0.0045 | K32: -0.0006 | O32: -0.0013 | R32: 0.0068 | S32: 0.0054 | T32: 0 | U32: -0.0013 | V32: 0.0009 | W32: -0.0006 | Y32: 0 | Z32: 0
A33: USL-WHSI | B33: 38.29 | C33: 0.0292 | D33: -0.0009 | E33: 0 | F33: -0.0009 | G33: 0.0015 | H33: 0.0015 | I33: 0 | J33: -0.0045 | K33: -0.0006 | O33: -0.0003 | R33: 0.0079 | S33: 0.0059 | T33: 0 | U33: -0.0003 | V33: 0.0006 | W33: -0.0006 | Y33: 0 | Z33: 0
A34: AR-NPDI | B34: 40.1 | C34: 0 | D34: -0.0008 | E34: 0 | F34: -0.0009 | G34: 0.0011 | H34: 0.0011 | I34: 0 | J34: -0.0045 | K34: -0.0006 | N34: -0.43 | R34: 0.0124 | S34: 0.0093 | T34: -0.43 | U34: 0 | V34: 0.0003 | W34: -0.0006 | Y34: 0 | Z34: 0
A35: AGSe-NPDI | B35: 39.96 | C35: 0.0201 | D35: -0.0008 | E35: 0 | F35: -0.0009 | G35: 0.0014 | H35: 0.0014 | I35: 0 | J35: -0.0045 | K35: -0.0006 | O35: -0.0004 | R35: 0.0098 | S35: 0.0076 | T35: 0 | U35: -0.0004 | V35: 0.0006 | W35: -0.0006 | Y35: 0 | Z35: 0
A36: AGSd-NPDI | B36: 170.26 | C36: 4.908 | D36: -0.0653 | E36: -0.1364 | F36: -0.0009 | G36: 0.2995 | H36: 0.2995 | I36: 0.2454 | J36: -0.0045 | K36: -0.1966 | O36: -0.0618 | R36: =R27 -> 3.0669 | S36: =S27 -> 2.4123 | T36: 0 | U36: -0.0618 | V36: 0.3432 | W36: -0.1966 | X36: =F36+J36+M36 -> -0.0054 | Y36: 0 | Z36: 0
A37: St Lgt-NPDI | B37: 3.27 | C37: 0.1186 | D37: -0.0011 | E37: 0 | F37: -0.0009 | G37: 0.0015 | H37: 0.0015 | I37: 0 | J37: -0.0045 | K37: -0.0006 | O37: -0.0011 | R37: 0.0068 | S37: 0.0054 | T37: 0 | U37: -0.0011 | V37: 0.0004 | W37: -0.0006 | Y37: 0 | Z37: 0
A38: Sen Lgt-NPDI | B38: 3.29 | C38: 0.1816 | D38: -0.0012 | E38: 0 | F38: -0.0009 | G38: 0.0015 | H38: 0.0015 | I38: 0 | J38: -0.0045 | K38: -0.0006 | O38: -0.0018 | R38: 0.0068 | S38: 0.0054 | T38: 0 | U38: -0.0018 | V38: 0.0003 | W38: -0.0006 | Y38: 0 | Z38: 0
A39: USL-NPDI | B39: 38.29 | C39: 0.0292 | D39: -0.0014 | E39: 0 | F39: -0.0009 | G39: 0.0015 | H39: 0.0015 | I39: 0 | J39: -0.0045 | K39: -0.0006 | O39: -0.0008 | R39: 0.0079 | S39: 0.0059 | T39: 0 | U39: -0.0008 | V39: 0.0001 | W39: -0.0006 | Y39: 0 | Z39: 0
A40: AR-HCHI | B40: 40.1 | C40: 0 | D40: -0.0007 | E40: 0 | F40: -0.0009 | G40: 0.0011 | H40: 0.0011 | I40: 0 | J40: -0.0045 | K40: -0.0006 | N40: -0.46 | R40: 0.0124 | S40: 0.0093 | T40: -0.46 | U40: 0 | V40: 0.0004 | W40: -0.0006 | Y40: 0 | Z40: 0
A41: AGSe-HCHI | B41: 39.96 | C41: 0.0201 | D41: -0.0007 | E41: 0 | F41: -0.0009 | G41: 0.0014 | H41: 0.0014 | I41: 0 | J41: -0.0045 | K41: -0.0006 | O41: -0.0004 | R41: 0.0098 | S41: 0.0076 | T41: 0 | U41: -0.0004 | V41: 0.0007 | W41: -0.0006 | Y41: 0 | Z41: 0
A42: AGSd-HCHI | B42: 170.26 | C42: 4.908 | D42: -0.098 | E42: -0.1364 | F42: -0.0009 | G42: 0.2995 | H42: 0.2995 | I42: 0.2454 | J42: -0.0045 | K42: -0.1966 | O42: -0.0603 | R42: =R27 -> 3.0669 | S42: =S27 -> 2.4123 | T42: 0 | U42: -0.0603 | V42: 0.3105 | W42: -0.1966 | X42: =F42+J42+M42 -> -0.0054 | Y42: 0 | Z42: 0
A43: St Lgt-HCHI | B43: 3.27 | C43: 0.1186 | D43: -0.0007 | E43: 0 | F43: -0.0009 | G43: 0.0015 | H43: 0.0015 | I43: 0 | J43: -0.0045 | K43: -0.0006 | O43: -0.0028 | R43: 0.0068 | S43: 0.0054 | T43: 0 | U43: -0.0028 | V43: 0.0008 | W43: -0.0006 | Y43: 0 | Z43: 0
A44: Sen Lgt-HCHI | B44: 3.29 | C44: 0.1816 | D44: -0.0007 | E44: 0 | F44: -0.0009 | G44: 0.0015 | H44: 0.0015 | I44: 0 | J44: -0.0045 | K44: -0.0006 | O44: -0.0055 | R44: 0.0068 | S44: 0.0054 | T44: 0 | U44: -0.0055 | V44: 0.0008 | W44: -0.0006 | Y44: 0 | Z44: 0
A45: USL-HCHI | B45: 38.29 | C45: 0.0292 | D45: -0.0007 | E45: 0 | F45: -0.0009 | G45: 0.0015 | H45: 0.0015 | I45: 0 | J45: -0.0045 | K45: -0.0006 | O45: -0.0007 | R45: 0.0079 | S45: 0.0059 | T45: 0 | U45: -0.0007 | V45: 0.0008 | W45: -0.0006 | Y45: 0 | Z45: 0
A46: R1-CPUC | B46: =B9 -> 68.3 | C46: =C9 -> 0 | L46: 0.0023 | M46: 0.0027 | R46: =R9 -> 0.0118 | S46: =S9 -> 0.0087 | T46: 0 | U46: 0 | V46: 0.0023 | W46: 0 | Y46: 0 | Z46: 0
A47: GSe-CPUC | B47: 40.36 | C47: 0.0303 | L47: 0.0024 | M47: 0.0027 | R47: =R13 -> 0.0093 | S47: =S13 -> 0.0074 | T47: =N47+P47 -> 0 | U47: 0 | V47: 0.0024 | W47: 0 | Y47: 0 | Z47: 0
A48: GSd-CPUC | B48: 222.05 | C48: 5.7597 | L48: 0.6919 | M48: 0.0027 | R48: =R18 -> 3.0151 | S48: =S18 -> 2.3614 | T48: 0 | U48: 0 | V48: 0.6919 | W48: 0 | X48: =F48+J48+M48 -> 0.0027 | Y48: 0 | Z48: 0
A49: USL-CPUC | B49: 19.72 | C49: 0.0265 | L49: 0.0025 | M49: 0 | R49: =R17 -> 0.0079 | S49: =S17 -> 0.0059 | T49: 0 | U49: 0 | V49: 0.0025 | W49: 0 | Y49: 0 | Z49: 0
A50: Sen Lgt-CPUC | B50: 12.61 | C50: 21.9352 | L50: 0.0025 | M50: 0.0027 | R50: =R15 -> 0.0068 | S50: 0.0054 | T50: 0 | U50: 0 | V50: 0.0025 | W50: 0 | Y50: 0 | Z50: 0
A51: St Lgt-CPUC | B51: 1.54 | C51: 7.1454 | L51: 0.0025 | M51: 0 | R51: 0.0068 | S51: 0.0054 | T51: 0 | U51: 0 | V51: 0.0025 | W51: 0 | Y51: 0 | Z51: 0
A52: Sen Lgt-HONI | B52: 12.61 | C52: 21.9352 | L52: 0.0025 | M52: 0.0027 | R52: 0.0079 | S52: 0.0059 | T52: =N52+P52 -> 0 | U52: =O52+Q52 -> 0 | V52: =D52+E52+G52+I52+L52 -> 0.0025 | W52: =K52 -> 0 | Y52: 0 | Z52: 0
A53: St Lgt-HONI | B53: 1.54 | C53: 7.1454 | L53: 0.0025 | M53: 0 | R53: 3.0151 | S53: 2.3614 | T53: 0 | U53: 0 | V53: 0.0025 | W53: 0 | Y53: 0 | Z53: 0

Sheet Data Proposed Rates (hidden)
A1: Porposed Jan 1, 2025 Rates
A3: 1 | B3: 2 | C3: 3 | D3: 4 | E3: 5 | F3: 6 | G3: 7 | H3: 8 | I3: 9 | J3: 10 | K3: 11 | L3: 12 | M3: 13 | N3: 14 | O3: 15 | P3: 16 | Q3: 17 | R3: 18 | S3: 19 | T3: 20 | U3: 21 | V3: 22 | W3: 23 | X3: 24 | Y3: 25 | Z3: 26 | AA3: 27 | AB3: 28 | AC3: 29 | AD3: 30 | AE3: 31 | AF3: 32 | AG3: 31
A4: Rate Class | B4: Proposed Fixed Charge ($/month) | C4: Proposed Volumetric Charge ($/kWh or $/kW) | D4: Proposed Group 1 DVA Rider - Volumetric ($/kWh or $/kW) (2023) | E4: Porposed Group 1 DVA Rider - Volumetric Applicable to Non-WMP Only ($/kWh or $/kW) (2023) | F4: Proposed Rate Rider for Disposition of Global Adjustment (Non WMP, Non-RPP, Non-LDC, and Class B) ($/kWh) (2023) | G4: Proposed Group 1 DVA Rider - Volumetric ($/kWh or $/kW) (2024) | H4: Porposed Group 1 DVA Rider - Volumetric Applicable to Non-WMP Only ($/kWh or $/kW) (2024) | I4: Proposed Rate Rider for Disposition of Global Adjustment (Non WMP, Non-RPP, Non-LDC, and Class B) ($/kWh) (2024) | J4: Vol CBR-B Rider ($/kWh or $/kW) - Non-WMP, Class B Only (2024) | K4: Vol Group 1 VA Rider - Chapleau (2024) | L4: Vol GA Rider ($/kWh) - Non-RPP, Non-LDC, Class B - Chapleau (2024) | M4: Proposed Group 1 DVA Rider - Volumetric ($/kWh or $/kW) (2025) | N4: Porposed Group 1 DVA Rider - Volumetric Applicable to Non-WMP Only ($/kWh or $/kW) (2025) | O4: Proposed Rate Rider for Disposition of Global Adjustment (Non WMP, Non-RPP, Non-LDC, and Class B) ($/kWh) (2025) | P4: Vol CBR-B Rider ($/kWh or $/kW) - Non-WMP, Class B Only (2025) | Q4: Fixed 1592 VA Rider for Acq ($/month) | R4: Vol 1592 VA Rider for Acq ($/kWh or $/kW) | S4: Proposed Group 2 Rate Rider - Fixed ($/month) | T4: Proposed Group 2 Rate Rider - Volumetric ($/kWh or $/kW) | U4: Proposed RTSR-NW ($/kWh or $/kW) | V4: Proposed RTSR-CONN ($/kWh or $/kW) | W4: Total DX Rev Related Fixed Rate Riders | X4: Total DX Rev Related Vol Rate Riders | Y4: Total DVA Rate Riders | Z4: Total CBR-B Rate Riders | AA4: Total GA Rate Rider | AB4: Addional Fixed Rate Rider | AC4: Additional Vol Rate Rider
A5: Rate as shown on Bill Impact Sheet | B5: Service Charge | C5: Distribution Volumetric Charge | D5: Group 1 Volumetric DVA Rider (General) (2023) | E5: Group 1 Volumetric Deferral/Variance Account Rider (Sub-Account RSVA Wholesale Market Service Charge & RSVA Power) (2023) | F5: Group 1 Volumetric Deferral/Variance Account Rider (Sub-Account Global Adjustment) (2023) | G5: Group 1 Volumetric DVA Rider (General) (2024) | H5: Group 1 Volumetric Deferral/Variance Account Rider (Sub-Account RSVA Wholesale Market Service Charge & RSVA Power) (2024) | I5: Group 1 Volumetric Deferral/Variance Account Rider (Sub-Account Global Adjustment) (2024) | J5: Group 1 Volumetric Deferral/Variance Account Rider (Sub-Account CBR) (2024) | K5: Group 1 Vol VA Rider ($/kWh or $/kW) (2024) - Chapleau | L5: GA Rider ($/kWh) for Non WMP, Non-RPP, Non-LDC, and Class B customers (2024) - Chapleau | M5: Group 1 Volumetric DVA Rider (General) (2025) | N5: Group 1 Volumetric Deferral/Variance Account Rider (Sub-Account RSVA Wholesale Market Service Charge & RSVA Power) (2025) | O5: Group 1 Volumetric Deferral/Variance Account Rider (Sub-Account Global Adjustment) (2025) | P5: Group 1 Volumetric Deferral/Variance Account Rider (Sub-Account CBR) (2025) | Q5: Fixed Rider for Account 1592 | R5: Volumetric Rider for Account 1592 | S5: Group 2 Fixed DVA Rider | T5: Group 2 Volumetric DVA Rider | U5: Retail Transmission Rate – Network Service Rate | V5: Retail Transmission Rate – Line and Transformation Connection Service Rate | W5: Fixed Rate Riders | X5: Volumetric Rate Riders | Y5: Total Deferral/Variance Account Rate Riders | Z5: CBR Class B Rate Riders | AA5: GA Rate Riders | AB5: Additional Fixed Rate Riders | AC5: Additional Volumetric Rate Riders
A6: Rounding Factor | B6: 2 | C6: 4 | D6: 4 | E6: 4 | F6: 4 | G6: 4 | H6: 4 | I6: 4 | J6: 4 | K6: 4 | L6: 4 | M6: 4 | N6: 4 | O6: 4 | P6: 4 | Q6: 2 | R6: 4 | S6: 2 | T6: 4 | U6: 4 | V6: 4
A7: UR | B7: 41.61 | C7: 0 | D7: -0.0007 | E7: 0 | F7: -0.0009 | G7: 0.0013 | H7: 0 | I7: -0.0045 | J7: -0.0006 | M7: -0.0031 | N7: 0 | O7: 0 | P7: 0.0001 | S7: -0.11 | U7: 0.0137 | V7: 0.0098 | W7: =Q7+S7 -> -0.11 | X7: =R7+T7 -> 0 | Y7: =D7+E7+G7+H7+M7+N7+K7 -> -0.0025 | Z7: =J7+P7 -> -0.0005 | AB7: 0 | AC7: 0
A8: Seas-UR | B8: 41.61 | C8: 0 | D8: -0.0007 | E8: 0 | F8: -0.0009 | G8: 0.0013 | H8: 0 | I8: -0.0045 | J8: -0.0006 | M8: -0.0031 | N8: 0 | O8: 0 | P8: 0.0001 | S8: -0.11 | U8: 0.0137 | V8: 0.0098 | W8: =Q8+S8 -> -0.11 | X8: =R8+T8 -> 0 | Y8: =D8+E8+G8+H8+M8+N8+K8 -> -0.0025 | Z8: =J8+P8 -> -0.0005 | AB8: 0 | AC8: 0
A9: R1 | B9: 71.05 | C9: 0 | D9: -0.0007 | E9: 0 | F9: -0.0009 | G9: 0.0013 | H9: 0 | I9: -0.0045 | J9: -0.0006 | M9: -0.003 | N9: 0 | O9: 0 | P9: 0.0001 | S9: -0.21 | U9: 0.0128 | V9: 0.0092 | W9: -0.21 | X9: 0 | Y9: -0.0024 | Z9: -0.0005 | AB9: 0 | AC9: 0
A10: Seas-R1 | B10: 71.05 | C10: 0 | D10: -0.0007 | E10: 0 | F10: -0.0009 | G10: 0.0013 | H10: 0 | I10: -0.0045 | J10: -0.0006 | M10: -0.003 | N10: 0 | O10: 0 | P10: 0.0001 | S10: -0.21 | U10: 0.0128 | V10: 0.0092 | W10: -0.21 | X10: 0 | Y10: -0.0024 | Z10: -0.0005 | AB10: 0 | AC10: 0
A11: R2 | B11: 143.96 | C11: 0.0121 | D11: -0.0007 | E11: 0 | F11: -0.0009 | G11: 0.0014 | H11: 0 | I11: -0.0045 | J11: -0.0006 | M11: -0.003 | N11: 0 | O11: 0 | P11: 0.0001 | S11: -0.44 | U11: 0.0118 | V11: 0.0086 | W11: -0.44 | X11: 0 | Y11: -0.0023 | Z11: -0.0005 | AB11: 0 | AC11: 0
A12: Seas-R2 | B12: 82.64 | C12: 0.0121 | D12: -0.0007 | E12: 0 | F12: -0.0009 | G12: 0.0014 | H12: 0 | I12: -0.0045 | J12: -0.0006 | M12: -0.003 | N12: 0 | O12: 0 | P12: 0.0001 | S12: -0.44 | U12: 0.0118 | V12: 0.0086 | W12: -0.44 | X12: 0 | Y12: -0.0023 | Z12: -0.0005 | AB12: 0 | AC12: 0
A13: GSe | B13: 32.78 | C13: 0.0768 | D13: -0.0007 | E13: 0 | F13: -0.0009 | G13: 0.0018 | H13: 0 | I13: -0.0045 | J13: -0.0006 | M13: -0.0029 | N13: 0 | O13: 0 | P13: 0.0001 | T13: -0.0003 | U13: 0.0101 | V13: 0.0078 | W13: 0 | X13: -0.0003 | Y13: -0.0018 | Z13: -0.0005 | AB13: 0 | AC13: 0
A14: UGe | B14: 25.51 | C14: 0.037 | D14: -0.0007 | E14: 0 | F14: -0.0009 | G14: 0.0018 | H14: 0 | I14: -0.0045 | J14: -0.0006 | M14: -0.0029 | N14: 0 | O14: 0 | P14: 0.0001 | T14: -0.0001 | U14: 0.0108 | V14: 0.0083 | W14: 0 | X14: -0.0001 | Y14: -0.0018 | Z14: -0.0005 | AB14: 0 | AC14: 0
A15: St Lgt | B15: 3.31 | C15: 0.1235 | D15: -0.0007 | E15: 0 | F15: -0.0009 | G15: 0.0025 | H15: 0 | I15: -0.0045 | J15: -0.0006 | M15: -0.0029 | N15: 0 | O15: 0 | P15: 0.0001 | T15: -0.0004 | U15: 0.0074 | V15: 0.0057 | W15: 0 | X15: -0.0004 | Y15: -0.0011 | Z15: -0.0005 | AB15: 0 | AC15: 0
A16: Sen Lgt | B16: 3.37 | C16: 0.1901 | D16: -0.0007 | E16: 0 | F16: -0.0009 | G16: 0.0018 | H16: 0 | I16: -0.0045 | J16: -0.0006 | M16: -0.0029 | N16: 0 | O16: 0 | P16: 0.0001 | T16: -0.0005 | U16: 0.0074 | V16: 0.0057 | W16: 0 | X16: -0.0005 | Y16: -0.0018 | Z16: -0.0005 | AB16: 0 | AC16: 0
A17: USL | B17: 38.29 | C17: 0.0337 | D17: -0.0007 | E17: 0 | F17: -0.0009 | G17: 0.0017 | H17: 0 | I17: -0.0045 | J17: -0.0006 | M17: -0.0029 | N17: 0 | O17: 0 | P17: 0.0001 | T17: -0.0003 | U17: 0.0085 | V17: 0.0062 | W17: 0 | X17: -0.0003 | Y17: -0.0019 | Z17: -0.0005 | AB17: 0 | AC17: 0
A18: GSd | B18: 105.55 | C18: 21.3987 | D18: -0.0855 | E18: -0.1195 | F18: -0.0009 | G18: 0.6503 | H18: 0.2159 | I18: -0.0045 | J18: -0.1739 | M18: -0.3279 | N18: -0.5624 | O18: 0 | P18: 0.0172 | T18: -0.071 | U18: 3.2717 | V18: 2.492 | W18: 0 | X18: -0.071 | Y18: -0.2291 | Z18: -0.1567 | AA18: =F18+I18+O18+L18 -> -0.0054 | AB18: 0 | AC18: 0
A19: UGd | B19: 96.47 | C19: 12.4416 | D19: -0.1053 | E19: -0.1473 | F19: -0.0009 | G19: 0.6629 | H19: 0.2661 | I19: -0.0045 | J19: -0.2159 | M19: -0.4048 | N19: -0.6949 | O19: 0 | P19: 0.0212 | T19: -0.0421 | U19: 4.1819 | V19: 3.1306 | W19: 0 | X19: -0.0421 | Y19: -0.4233 | Z19: -0.1947 | AA19: =F19+I19+O19+L19 -> -0.0054 | AB19: 0 | AC19: 0
A20: Dgen | B20: 199.26 | C20: 14.1138 | D20: -0.0394 | E20: -0.0565 | F20: -0.0009 | G20: 0.2948 | H20: 0.102 | I20: -0.0045 | J20: -0.0822 | M20: -0.1512 | N20: -0.2668 | O20: 0 | P20: 0.0082 | T20: -0.093 | U20: 1.7955 | V20: 1.0693 | W20: 0 | X20: -0.093 | Y20: -0.1171 | Z20: -0.074 | AA20: -0.0054 | AB20: 0 | AC20: 0
A21: ST | B21: 1241.87 | C21: 1.7096 | D21: -0.134 | E21: -0.188 | F21: -0.0009 | G21: 0.3853 | H21: 0.34 | I21: -0.0045 | J21: -0.2481 | M21: -0.5141 | N21: -0.8857 | O21: 0 | P21: 0.0122 | T21: -0.0072 | U21: 5.5092 | V21: 4.3196 | W21: 0 | X21: -0.0072 | Y21: -0.9965 | Z21: -0.2359 | AA21: -0.0054 | AB21: 0 | AC21: 0
A22: AUR | B22: 34.36 | C22: 0 | D22: -0.0007 | E22: 0 | F22: -0.0009 | G22: 0.0011 | H22: 0 | I22: -0.0045 | J22: -0.0006 | M22: -0.0031 | N22: 0 | O22: 0 | P22: 0.0001 | U22: 0.0141 | V22: 0.0101 | W22: 0 | X22: 0 | Y22: -0.0027 | Z22: -0.0005 | AB22: 0 | AC22: 0
A23: AUGe | B23: 26.36 | C23: 0.0176 | D23: -0.0007 | E23: 0 | F23: -0.0009 | G23: 0.0014 | H23: 0 | I23: -0.0045 | J23: -0.0006 | M23: -0.0029 | N23: 0 | O23: 0 | P23: 0.0001 | U23: 0.0109 | V23: 0.0082 | W23: 0 | X23: 0 | Y23: -0.0022 | Z23: -0.0005 | AB23: 0 | AC23: 0
A24: AUGd | B24: 146.47 | C24: 3.1817 | D24: -0.0972 | E24: -0.1351 | F24: -0.0009 | G24: 0.2969 | H24: 0.2442 | I24: -0.0045 | J24: -0.1981 | M24: -0.3728 | N24: -0.6353 | O24: 0 | P24: 0.0197 | U24: 3.7906 | V24: 2.8288 | W24: 0 | X24: 0 | Y24: -0.6993 | Z24: -0.1784 | AA24: =F24+I24+O24+L24 -> -0.0054 | AB24: 0 | AC24: 0
A25: AR | B25: 41.71 | C25: 0 | D25: -0.0007 | E25: 0 | F25: -0.0009 | G25: 0.0011 | H25: 0 | I25: -0.0045 | J25: -0.0006 | M25: -0.0031 | N25: 0 | O25: 0 | P25: 0.0001 | U25: 0.0135 | V25: 0.0098 | W25: 0 | X25: 0 | Y25: -0.0027 | Z25: -0.0005 | AB25: 0 | AC25: 0
A26: AGSe | B26: 39.96 | C26: 0.0216 | D26: -0.0007 | E26: 0 | F26: -0.0009 | G26: 0.0014 | H26: 0 | I26: -0.0045 | J26: -0.0006 | M26: -0.0029 | N26: 0 | O26: 0 | P26: 0.0001 | U26: 0.0107 | V26: 0.0081 | W26: 0 | X26: 0 | Y26: -0.0022 | Z26: -0.0005 | AB26: 0 | AC26: 0
A27: AGSd | B27: 170.26 | C27: 5.135 | D27: -0.098 | E27: -0.1364 | F27: -0.0009 | G27: 0.2995 | H27: 0.2454 | I27: -0.0045 | J27: -0.1966 | M27: -0.3761 | N27: -0.6393 | O27: 0 | P27: 0.0194 | U27: 3.3278 | V27: 2.5457 | W27: 0 | X27: 0 | Y27: -0.7049 | Z27: -0.1772 | AA27: =F27+I27+O27+L27 -> -0.0054 | AB27: 0 | AC27: 0
A28: AUR-WHSI | B28: 34.36 | C28: 0 | D28: -0.0009 | E28: 0 | F28: -0.0009 | G28: 0.0011 | H28: 0 | I28: -0.0045 | J28: -0.0006 | M28: -0.0031 | N28: 0 | O28: 0 | P28: 0.0001 | Q28: -0.4 | U28: 0.0141 | V28: 0.0101 | W28: -0.4 | X28: 0 | Y28: -0.0029 | Z28: -0.0005 | AB28: 0 | AC28: 0
A29: AUGe-WHSI | B29: 26.36 | C29: 0.0176 | D29: -0.0009 | E29: 0 | F29: -0.0009 | G29: 0.0014 | H29: 0 | I29: -0.0045 | J29: -0.0006 | M29: -0.0029 | N29: 0 | O29: 0 | P29: 0.0001 | R29: -0.0003 | U29: 0.0109 | V29: 0.0082 | W29: 0 | X29: -0.0003 | Y29: -0.0024 | Z29: -0.0005 | AB29: 0 | AC29: 0
A30: AUGd-WHSI | B30: 146.47 | C30: 3.1817 | D30: -0.0645 | E30: -0.1351 | F30: -0.0009 | G30: 0.2969 | H30: 0.2442 | I30: -0.0045 | J30: -0.1981 | M30: -0.3728 | N30: -0.6353 | O30: 0 | P30: 0.0197 | R30: -0.0392 | U30: 3.7906 | V30: 2.8288 | W30: 0 | X30: -0.0392 | Y30: -0.6666 | Z30: -0.1784 | AA30: =F30+I30+O30+L30 -> -0.0054 | AB30: 0 | AC30: 0
A31: ST-WHSI | B31: 1241.87 | C31: 1.7096 | D31: -0.1063 | E31: -0.188 | F31: -0.0009 | G31: 0.4094 | H31: 0.34 | I31: -0.0045 | J31: -0.2481 | M31: -0.5141 | N31: -0.8857 | O31: 0 | P31: 0.0122 | R31: -0.0438 | U31: 5.5092 | V31: 4.3196 | W31: 0 | X31: -0.0438 | Y31: -0.9447 | Z31: -0.2359 | AA31: =F31+I31+O31+L31 -> -0.0054 | AB31: 0 | AC31: 0
A32: St Lgt-WHSI | B32: 3.31 | C32: 0.1235 | D32: -0.0006 | E32: 0 | F32: -0.0009 | G32: 0.0015 | H32: 0 | I32: -0.0045 | J32: -0.0006 | M32: -0.0029 | N32: 0 | O32: 0 | P32: 0.0001 | R32: -0.0013 | U32: 0.0074 | V32: 0.0057 | W32: 0 | X32: -0.0013 | Y32: -0.002 | Z32: -0.0005 | AB32: 0 | AC32: 0
A33: USL-WHSI | B33: 38.29 | C33: 0.0337 | D33: -0.0009 | E33: 0 | F33: -0.0009 | G33: 0.0015 | H33: 0 | I33: -0.0045 | J33: -0.0006 | M33: -0.0029 | N33: 0 | O33: 0 | P33: 0.0001 | R33: -0.0003 | U33: 0.0085 | V33: 0.0062 | W33: 0 | X33: -0.0003 | Y33: -0.0023 | Z33: -0.0005 | AB33: 0 | AC33: 0
A34: AR-NPDI | B34: 41.71 | C34: 0 | D34: -0.0008 | E34: 0 | F34: -0.0009 | G34: 0.0011 | H34: 0 | I34: -0.0045 | J34: -0.0006 | M34: -0.0031 | N34: 0 | O34: 0 | P34: 0.0001 | Q34: -0.43 | U34: 0.0135 | V34: 0.0098 | W34: -0.43 | X34: 0 | Y34: -0.0028 | Z34: -0.0005 | AB34: 0 | AC34: 0
A35: AGSe-NPDI | B35: 39.96 | C35: 0.0216 | D35: -0.0008 | E35: 0 | F35: -0.0009 | G35: 0.0014 | H35: 0 | I35: -0.0045 | J35: -0.0006 | M35: -0.0029 | N35: 0 | O35: 0 | P35: 0.0001 | R35: -0.0004 | U35: 0.0107 | V35: 0.0081 | W35: 0 | X35: -0.0004 | Y35: -0.0023 | Z35: -0.0005 | AB35: 0 | AC35: 0
A36: AGSd-NPDI | B36: 170.26 | C36: 5.135 | D36: -0.0653 | E36: -0.1364 | F36: -0.0009 | G36: 0.2995 | H36: 0.2454 | I36: -0.0045 | J36: -0.1966 | M36: -0.3761 | N36: -0.6393 | O36: 0 | P36: 0.0194 | R36: -0.0618 | U36: 3.3278 | V36: 2.5457 | W36: 0 | X36: -0.0618 | Y36: -0.6722 | Z36: -0.1772 | AA36: =F36+I36+O36+L36 -> -0.0054 | AB36: 0 | AC36: 0
A37: St Lgt-NPDI | B37: 3.31 | C37: 0.1235 | D37: -0.0011 | E37: 0 | F37: -0.0009 | G37: 0.0015 | H37: 0 | I37: -0.0045 | J37: -0.0006 | M37: -0.0029 | N37: 0 | O37: 0 | P37: 0.0001 | R37: -0.0011 | U37: 0.0074 | V37: 0.0057 | W37: 0 | X37: -0.0011 | Y37: -0.0025 | Z37: -0.0005 | AB37: 0 | AC37: 0
A38: Sen Lgt-NPDI | B38: 3.37 | C38: 0.1901 | D38: -0.0012 | E38: 0 | F38: -0.0009 | G38: 0.0015 | H38: 0 | I38: -0.0045 | J38: -0.0006 | M38: -0.0029 | N38: 0 | O38: 0 | P38: 0.0001 | R38: -0.0018 | U38: 0.0074 | V38: 0.0057 | W38: 0 | X38: -0.0018 | Y38: -0.0026 | Z38: -0.0005 | AB38: 0 | AC38: 0
A39: USL-NPDI | B39: 38.29 | C39: 0.0337 | D39: -0.0014 | E39: 0 | F39: -0.0009 | G39: 0.0015 | H39: 0 | I39: -0.0045 | J39: -0.0006 | M39: -0.0029 | N39: 0 | O39: 0 | P39: 0.0001 | R39: -0.0008 | U39: 0.0085 | V39: 0.0062 | W39: 0 | X39: -0.0008 | Y39: -0.0028 | Z39: -0.0005 | AB39: 0 | AC39: 0
A40: AR-HCHI | B40: 41.71 | C40: 0 | D40: -0.0007 | E40: 0 | F40: -0.0009 | G40: 0.0011 | H40: 0 | I40: -0.0045 | J40: -0.0006 | M40: -0.0031 | N40: 0 | O40: 0 | P40: 0.0001 | Q40: -0.46 | U40: 0.0135 | V40: 0.0098 | W40: -0.46 | X40: 0 | Y40: -0.0027 | Z40: -0.0005 | AB40: 0 | AC40: 0
A41: AGSe-HCHI | B41: 39.96 | C41: 0.0216 | D41: -0.0007 | E41: 0 | F41: -0.0009 | G41: 0.0014 | H41: 0 | I41: -0.0045 | J41: -0.0006 | M41: -0.0029 | N41: 0 | O41: 0 | P41: 0.0001 | R41: -0.0004 | U41: 0.0107 | V41: 0.0081 | W41: 0 | X41: -0.0004 | Y41: -0.0022 | Z41: -0.0005 | AB41: 0 | AC41: 0
A42: AGSd-HCHI | B42: 170.26 | C42: 5.135 | D42: -0.098 | E42: -0.1364 | F42: -0.0009 | G42: 0.2995 | H42: 0.2454 | I42: -0.0045 | J42: -0.1966 | M42: -0.3761 | N42: -0.6393 | O42: 0 | P42: 0.0194 | R42: -0.0603 | U42: 3.3278 | V42: 2.5457 | W42: 0 | X42: -0.0603 | Y42: -0.7049 | Z42: -0.1772 | AA42: =F42+I42+O42+L42 -> -0.0054 | AB42: 0 | AC42: 0
A43: St Lgt-HCHI | B43: 3.31 | C43: 0.1235 | D43: -0.0007 | E43: 0 | F43: -0.0009 | G43: 0.0015 | H43: 0 | I43: -0.0045 | J43: -0.0006 | M43: -0.0029 | N43: 0 | O43: 0 | P43: 0.0001 | R43: -0.0028 | U43: 0.0074 | V43: 0.0057 | W43: 0 | X43: -0.0028 | Y43: -0.0021 | Z43: -0.0005 | AB43: 0 | AC43: 0
A44: Sen Lgt-HCHI | B44: 3.37 | C44: 0.1901 | D44: -0.0007 | E44: 0 | F44: -0.0009 | G44: 0.0015 | H44: 0 | I44: -0.0045 | J44: -0.0006 | M44: -0.0029 | N44: 0 | O44: 0 | P44: 0.0001 | R44: -0.0055 | U44: 0.0074 | V44: 0.0057 | W44: 0 | X44: -0.0055 | Y44: -0.0021 | Z44: -0.0005 | AB44: 0 | AC44: 0
A45: USL-HCHI | B45: 38.29 | C45: 0.0337 | D45: -0.0007 | E45: 0 | F45: -0.0009 | G45: 0.0015 | H45: 0 | I45: -0.0045 | J45: -0.0006 | M45: -0.0029 | N45: 0 | O45: 0 | P45: 0.0001 | R45: -0.0007 | U45: 0.0085 | V45: 0.0062 | W45: 0 | X45: -0.0007 | Y45: -0.0021 | Z45: -0.0005 | AB45: 0 | AC45: 0
A46: R1-CPUC | B46: 71.05 | C46: 0 | K46: 0.0023 | L46: 0.0027 | U46: 0.0128 | V46: 0.0092 | W46: =Q46+S46 -> 0 | X46: =R46+T46 -> 0 | Y46: 0.0023 | Z46: =J46+P46 -> 0 | AB46: 0 | AC46: 0
A47: GSe-CPUC | B47: 32.78 | C47: 0.0768 | K47: 0.0024 | L47: 0.0027 | U47: 0.0101 | V47: 0.0078 | W47: 0 | X47: 0 | Y47: 0.0024 | Z47: 0 | AB47: 0 | AC47: 0
A48: GSd-CPUC | B48: 105.55 | C48: 21.3987 | K48: 0.6919 | L48: 0.0027 | U48: 3.2717 | V48: 2.492 | W48: 0 | X48: 0 | Y48: 0.6919 | Z48: 0 | AA48: =F48+I48+O48+L48 -> 0.0027 | AB48: 0 | AC48: 0
A49: USL-CPUC | B49: 38.29 | C49: 0.0337 | K49: 0.0025 | L49: 0 | U49: 0.0085 | V49: 0.0062 | W49: 0 | X49: 0 | Y49: 0.0025 | Z49: 0 | AB49: 0 | AC49: 0
A50: Sen Lgt-CPUC | B50: 3.37 | C50: 0.1901 | K50: 0.0025 | L50: 0.0027 | U50: 0.0074 | V50: 0.0057 | W50: 0 | X50: 0 | Y50: 0.0025 | Z50: 0 | AB50: 0 | AC50: 0
A51: St Lgt-CPUC | B51: 3.31 | C51: 0.1235 | K51: 0.0025 | L51: 0 | U51: 0.0074 | V51: 0.0057 | W51: 0 | X51: 0 | Y51: 0.0025 | Z51: 0 | AB51: 0 | AC51: 0
A52: Sen Lgt-HONI | B52: =B50 -> 3.37 | C52: =C50 -> 0.1901 | K52: =K50 -> 0.0025 | L52: =L50 -> 0.0027 | U52: =U50 -> 0.0074 | V52: =V50 -> 0.0057 | W52: =Q52+S52 -> 0 | X52: =R52+T52 -> 0 | Y52: =D52+E52+G52+H52+M52+N52+K52 -> 0.0025 | Z52: =J52+P52 -> 0 | AB52: 0 | AC52: 0
A53: St Lgt-HONI | B53: =B51 -> 3.31 | C53: =C51 -> 0.1235 | K53: =K51 -> 0.0025 | L53: =L51 -> 0 | U53: =U51 -> 0.0074 | V53: =V51 -> 0.0057 | W53: 0 | X53: 0 | Y53: 0.0025 | Z53: 0 | AB53: 0 | AC53: 0

Sheet Data Billing Quantities (hidden)
A1: Rate Class-Specific Billing Quantities (Applied to Current and Proposed Bill)
E3: Consumption (kWh) | I3: Peak (kW) | M3: TOU Split
A4: Rate Class | B4: Loss Factor | C4: Charge Determinant | D4: Commodity Threshold | E4: Low kWh | F4: Typical kWh | G4: Average kWh | H4: High kWh | I4: Low kW | J4: Typical kW | K4: Average kW | L4: High kW | M4: TOU-Off Peak | N4: TOU-Mid Peak | O4: TOU-On Peak | P4: Acquired Street Light Service Charge
A5: UR | B5: 1.057 | C5: kWh | D5: 600 | E5: 340 | F5: 750 | G5: 690 | H5: 1260 | M5: 0.63 | N5: 0.18 | O5: 0.19
A6: R1 | B6: 1.076 | C6: kWh | D6: 600 | E6: 370 | F6: 750 | G6: 784 | H6: 1650 | M6: =M$5 -> 0.63 | N6: =N$5 -> 0.18 | O6: =O$5 -> 0.19
A7: R2 | B7: 1.105 | C7: kWh | D7: 600 | E7: 440 | F7: 750 | G7: 978 | H7: 2110 | M7: =M$5 -> 0.63 | N7: 0.18 | O7: 0.19
A8: Seasonal | B8: 1.104 | C8: kWh | D8: 600 | E8: 40 | G8: 369 | H8: 1040 | M8: 0.63 | N8: 0.18 | O8: 0.19
A9: Seas-UR | B9: =B5 -> 1.057 | C9: =C5 -> kWh | D9: 600 | E9: =E8 -> 40 | G9: =G8 -> 369 | H9: =H8 -> 1040 | M9: 0.63 | N9: 0.18 | O9: 0.19
A10: Seas-R1 | B10: =B6 -> 1.076 | C10: =C6 -> kWh | D10: 600 | E10: =E8 -> 40 | G10: =G8 -> 369 | H10: =H8 -> 1040 | M10: 0.63 | N10: 0.18 | O10: 0.19
A11: Seas-R2 | B11: =B7 -> 1.105 | C11: =C7 -> kWh | D11: 600 | E11: =E8 -> 40 | G11: =G8 -> 369 | H11: =H8 -> 1040 | M11: 0.63 | N11: 0.18 | O11: 0.19
A12: GSe | B12: 1.096 | C12: kWh | D12: 750 | E12: 60 | F12: 2000 | G12: 1887 | H12: 5570 | M12: 0.63 | N12: 0.18 | O12: 0.19
A13: UGe | B13: 1.067 | C13: kWh | D13: 750 | E13: 180 | F13: 2000 | G13: 2494 | H13: 6930 | M13: 0.63 | N13: 0.18 | O13: 0.19
A14: St Lgt | B14: 1.092 | C14: kWh | D14: 750 | E14: 30 | G14: 1274 | H14: 2310 | M14: 0.63 | N14: 0.18 | O14: 0.19
A15: Sen Lgt | B15: 1.092 | C15: kWh | D15: 750 | E15: 20 | G15: 49 | H15: 80 | M15: 0.63 | N15: 0.18 | O15: 0.19
A16: USL | B16: 1.092 | C16: kWh | D16: 750 | E16: 100 | G16: 477 | H16: 550 | M16: 0.63 | N16: 0.18 | O16: 0.19
A17: GSd | B17: 1.061 | C17: kW | D17: 0 | E17: 9310 | G17: 34334 | H17: 75790 | I17: 55 | K17: 110 | L17: 250
A18: UGd | B18: 1.05 | C18: kW | D18: 0 | E18: 13900 | G18: 42592 | H18: 97610 | I18: 55 | K18: 111 | L18: 280
A19: Dgen | B19: 1.061 | C19: kW | D19: 0 | E19: 10 | G19: 1709 | H19: 8490 | I19: 0.02941666667 | K19: 12 | L19: 45
A20: ST | B20: 1.034 | C20: kW | D20: 0 | E20: 88780 | G20: 1373443 | H20: 2641420 | I20: 500 | K20: 2808 | L20: 13730
A21: WHSI_RES | B21: 1.0431 | C21: kWh | D21: 600 | E21: 310 | F21: 750 | G21: 636 | H21: 1160 | M21: =M$5 -> 0.63 | N21: 0.18 | O21: 0.19
A22: WHSI_GS<50 | B22: 1.0431 | C22: kWh | D22: 750 | E22: 190 | F22: 2000 | G22: 2471 | H22: 7240 | M22: 0.63 | N22: 0.18 | O22: 0.19
A23: WHSI_GS 50-999 | B23: 1.0431 | C23: kW | E23: 9370 | G23: 47636 | H23: 137890 | I23: 50 | K23: 134 | L23: 340
A24: WHSI_GS >1,000kW | B24: 1.0326 | C24: kW | G24: 895853 | K24: 3301 | M24: =M$5 -> 0.63 | N24: 0.18 | O24: 0.19
A25: WHSI_St Lgt | B25: 1.0431 | C25: kW | D25: 750 | G25: 37079 | K25: 104 | M25: 0.63 | N25: 0.18 | O25: 0.19 | P25: 1
A26: WHSI_USL | B26: 1.0431 | C26: kWh | D26: 750 | G26: 1349 | M26: =M$5 -> 0.63 | N26: 0.18 | O26: 0.19
A27: NPDI_RES | B27: 1.0564 | C27: kWh | D27: 600 | E27: 290 | F27: 750 | G27: 692 | H27: 1230 | M27: 0.63 | N27: 0.18 | O27: 0.19
A28: NPDI_GS<50 | B28: 1.0564 | C28: kWh | D28: 750 | E28: 110 | F28: 2000 | G28: 2377 | H28: 6410 | M28: 0.63 | N28: 0.18 | O28: 0.19
A29: NPDI_GS >50 | B29: 1.0464 | C29: kW | E29: 13020 | G29: 70294 | H29: 129420 | I29: 55 | K29: 181 | L29: 300
A30: NPDI_St Lgt | B30: 1.0564 | C30: kW | D30: 750 | G30: 11389 | K30: 39 | M30: =M$5 -> 0.63 | N30: 0.18 | O30: 0.19 | P30: 1
A31: NPDI_Sen Lgt | B31: 1.0564 | C31: kW | D31: 750 | G31: 108 | K31: 0.3368027211 | M31: 0.63 | N31: 0.18 | O31: 0.19
A32: NPDI_USL | B32: 1.0564 | C32: kWh | D32: 750 | G32: 904 | M32: =M$5 -> 0.63 | N32: 0.18 | O32: 0.19
A33: HCHI_RES | B33: 1.0655 | C33: kWh | D33: 600 | E33: 250 | F33: 750 | G33: 742 | H33: 1410 | M33: 0.63 | N33: 0.18 | O33: 0.19
A34: HCHI_GS<50 | B34: 1.0655 | C34: kWh | D34: 750 | E34: 90 | F34: 2000 | G34: 2261 | H34: 5430 | M34: 0.63 | N34: 0.18 | O34: 0.19
A35: HCHI_GS >50 | B35: 1.0548 | C35: kW | E35: 10880 | G35: 57529 | H35: 135160 | I35: 55 | K35: 175 | L35: 375
A36: HCHI_St Lgt | B36: 1.0655 | C36: kW | D36: 750 | G36: 31001 | K36: 85 | M36: 0.63 | N36: 0.18 | O36: 0.19 | P36: 1
A37: HCHI_Sen Lgt | B37: 1.0655 | C37: kW | D37: 750 | G37: 61 | K37: 0.1956473214 | M37: 0.63 | N37: 0.18 | O37: 0.19
A38: HCHI_USL | B38: 1.0655 | C38: kWh | D38: 750 | G38: 471 | M38: =M$5 -> 0.63 | N38: 0.18 | O38: 0.19
A39: AUR | B39: 1.043 | C39: kWh | D39: 600 | E39: 310 | F39: 750 | G39: 636 | H39: 1160 | M39: 0.63 | N39: 0.18 | O39: 0.19
A40: AUGe | B40: =B39 -> 1.043 | C40: kWh | D40: 750 | E40: 190 | F40: 2000 | G40: 2471 | H40: 7240 | M40: 0.63 | N40: 0.18 | O40: 0.19
A41: AUGd | B41: 1.033 | C41: kW | E41: 9370 | G41: 47636 | H41: 137890 | I41: 50 | K41: 134 | L41: 340
A42: AR | B42: 1.064 | C42: kWh | D42: 600 | F42: 750 | M42: =M$5 -> 0.63 | N42: 0.18 | O42: 0.19
A43: AGSe | B43: =B42 -> 1.064 | C43: kWh | D43: 750 | F43: 2000 | M43: 0.63 | N43: 0.18 | O43: 0.19
A44: AGSd | B44: 1.053 | C44: kW
A45: AUR-WHSI | B45: =B39 -> 1.043 | C45: kWh | D45: =D39 -> 600 | E45: 310 | F45: 750 | G45: 636 | H45: 1160 | M45: =M$5 -> 0.63 | N45: 0.18 | O45: 0.19
A46: AUGe-WHSI | B46: =B40 -> 1.043 | C46: kWh | D46: =D40 -> 750 | E46: 190 | F46: 2000 | G46: 2471 | H46: 7240 | M46: 0.63 | N46: 0.18 | O46: 0.19
A47: AUGd-WHSI | B47: =B41 -> 1.033 | C47: kW | E47: 9370 | G47: 47636 | H47: 137890 | I47: 50 | K47: 134 | L47: 340
A48: ST-WHSI | B48: =B20 -> 1.034 | C48: kW | G48: 895853 | K48: 3301
A49: St Lgt-WHSI | B49: =B14 -> 1.092 | C49: kWh | D49: =D14 -> 750 | G49: =G25 -> 37079 | K49: =K25 -> 104 | M49: =M$5 -> 0.63 | N49: 0.18 | O49: 0.19 | P49: =P25 -> 1
A50: USL-WHSI | B50: =B16 -> 1.092 | C50: kWh | D50: =D16 -> 750 | G50: =G26 -> 1349 | M50: =M$5 -> 0.63 | N50: 0.18 | O50: 0.19
A51: AR-NPDI | B51: =B42 -> 1.064 | C51: kWh | D51: =D42 -> 600 | E51: 290 | F51: 750 | G51: 692 | H51: 1230 | M51: 0.63 | N51: 0.18 | O51: 0.19
A52: AGSe-NPDI | B52: =B43 -> 1.064 | C52: kWh | D52: =D43 -> 750 | E52: 110 | F52: 2000 | G52: 2377 | H52: 6410 | M52: 0.63 | N52: 0.18 | O52: 0.19
A53: AGSd-NPDI | B53: =B44 -> 1.053 | C53: kW | D53: =D44 -> 0 | E53: 13020 | G53: 70294 | H53: 129420 | I53: 55 | K53: 181 | L53: 300
A54: St Lgt-NPDI | B54: =B14 -> 1.092 | C54: kWh | D54: =D14 -> 750 | G54: =G30 -> 11389 | K54: =K30 -> 39 | M54: =M$5 -> 0.63 | N54: 0.18 | O54: 0.19 | P54: =P30 -> 1
A55: Sen Lgt-NPDI | B55: =B15 -> 1.092 | C55: kWh | D55: =D15 -> 750 | G55: =G31 -> 108 | K55: =K31 -> 0.3368027211 | M55: =M$5 -> 0.63 | N55: 0.18 | O55: 0.19
A56: USL-NPDI | B56: =B16 -> 1.092 | C56: kWh | D56: =D16 -> 750 | G56: =G32 -> 904 | M56: =M$5 -> 0.63 | N56: 0.18 | O56: 0.19
A57: AR-HCHI | B57: =B51 -> 1.064 | C57: kWh | D57: 600 | E57: 250 | F57: 750 | G57: 742 | H57: 1410 | M57: 0.63 | N57: 0.18 | O57: 0.19
A58: AGSe-HCHI | B58: 1.064 | C58: kWh | D58: 750 | E58: 90 | F58: 2000 | G58: 2261 | H58: 5430 | M58: 0.63 | N58: 0.18 | O58: 0.19
A59: AGSd-HCHI | B59: 1.053 | C59: kW | D59: 0 | E59: 10880 | G59: 57529 | H59: 135160 | I59: 55 | K59: 175 | L59: 375
A60: St Lgt-HCHI | B60: 1.092 | C60: kWh | D60: 750 | G60: =G36 -> 31001 | K60: =K36 -> 85 | M60: =M$5 -> 0.63 | N60: 0.18 | O60: 0.19 | P60: =P36 -> 1
A61: Sen Lgt-HCHI | B61: 1.092 | C61: kWh | D61: 750 | G61: =G37 -> 61 | K61: =K37 -> 0.1956473214 | M61: =M$5 -> 0.63 | N61: 0.18 | O61: 0.19
A62: USL-HCHI | B62: 1.092 | C62: kWh | D62: 750 | G62: =G38 -> 471 | M62: =M$5 -> 0.63 | N62: 0.18 | O62: 0.19
A63: R1-CPUC | B63: =B6 -> 1.076 | C63: kWh | D63: =D57 -> 600 | E63: 370 | F63: 750 | H63: 2100 | M63: 0.63 | N63: 0.18 | O63: 0.19
A64: GSe-CPUC | B64: =B12 -> 1.096 | C64: kWh | D64: =D58 -> 750 | E64: 100 | F64: 2000 | H64: 6600 | M64: 0.63 | N64: 0.18 | O64: 0.19
A65: GSd-CPUC | B65: =B17 -> 1.061 | C65: kW | D65: =D59 -> 0 | E65: 12900 | G65: 29000 | H65: 72900 | I65: 50 | K65: 90 | L65: 240
A66: USL-CPUC | B66: =B16 -> 1.092 | C66: kWh | D66: =D60 -> 750 | G66: 60
A67: Sen Lgt-CPUC | B67: =B15 -> 1.092 | C67: kW | D67: =D61 -> 750 | G67: 220 | K67: 0.6 | P67: 2
A68: St Lgt-CPUC | B68: =B14 -> 1.092 | C68: kW | D68: =D62 -> 750 | G68: 8300 | K68: 21 | P68: 324
A69: Sen Lgt-HONI | B69: =B15 -> 1.092 | C69: kWh | D69: 750 | G69: =G67 -> 220
A70: St Lgt-HONI | B70: =B16 -> 1.092 | C70: kWh | D70: 750 | G70: =G68 -> 8300

Sheet Data Pass Through (hidden)
A1: 3. Pass Through Charges
B2: Current Bill | C2: Proposed Bill
A3: Effective Date | B3: 2024-07-01 | C3: 2025-01-01 | D3: TOU % | E3: Notes
A4: RRRP Adjustment | B4: 60.5 | C4: 60.5
A5: RPP Tier 1 | B5: 0.093 | C5: =B5 -> 0.093 | E5: Effective Nov 1 2024
A6: RPP Tier 2 | B6: 0.11 | C6: =B6 -> 0.11 | E6: Effective Nov 1 2024
A7: Average IESO Wholesale Market Price | B7: 0.1014 | C7: 0.1014 | E7: Avg for July 2023 to June 2024 (source: Commodity prices_SPOTv2.xls file at RAinternal/Niki/Misc
A8: TOU-Off Peak | B8: 0.076 | C8: =B8 -> 0.076 | D8: 0.63 | E8: Effective Nov 1 2024
A9: TOU-Mid Peak | B9: 0.122 | C9: =B9 -> 0.122 | D9: 0.18 | E9: Effective Nov 1 2024
A10: TOU-On Peak | B10: 0.158 | C10: =B10 -> 0.158 | D10: 0.19 | E10: Effective Nov 1 2024
A11: Wholesale Market Service Rate (WMS) – not ot including CBR | B11: 0.0041 | C11: 0.0041 | E11: Effective Jan 1 2025, 0.0045 WMSC broken up between WMSC and CBR
A12: Capacity Based Recovery (CBR) – Applicable for Class B Customers | B12: 0.0004 | C12: 0.0004 | E12: Effective Jan 1 2025, 0.0045 WMSC broken up between WMSC and CBR
A13: Rural Rate Protection Charge | B13: 0.0015 | C13: =B13 -> 0.0015 | E13: RRRP charge increased from $0.0014/kWh to $0.0015/kWh effective Jan 1, 2025.
A14: Ontario Electricity Support Program Charge | B14: 0 | C14: =B14 -> 0 | E14: OESP charge removed for all rate classes effective May 1, 2017. ROW HIDDEN IN BILL IMPACT FILE
A15: Standard Supply Service – Administration Charge (if applicable) | B15: 0.25 | C15: 0.25
A16: DRP limit (applied when selected from Bill Impact Summary) | B16: 41.39 | C16: 41.39 | E16: DRP cap as of Jul 1, 2024
A17: Smart Meter Entity Charge (if applicable) | B17: 0.42 | C17: 0.42 | E17: Change from 0.57 to 0.42 effective Jan 1 2023; only for metered energy-billed (UR, R1, R2, GSE, UGE, AUR, AUGE, AR, AGSE)
A18: Debt Retirement Charge (DRC) | B18: 0 | C18: 0 | E18: DRC removed from all rate classes Apr 1 2018 ROW HIDDEN IN BILL IMPACT FILE
A19: Ontario Electricity Rebate (OER) | B19: -0.131 | C19: =B19 -> -0.131 | E19: OER effective Nov 1 2024
A21: Customer Attributes - Assumptions
A22: ST customers are assumed to be Non-WMP, Class A

Sheet Data BI Summary (hidden)
A1: Summary Column | B1: Sub-Total | E1: Total
B2: A | C2: B | D2: C | E2: Total Bill
A3: BI Template_Energy | B3: Sub-Total A (excluding pass through) | C3: Sub-Total B - Distribution (includes Sub-Total A) | D3: Sub-Total C - Delivery (including Sub-Total B) | E3: Total Bill on TOU
A4: BI Template_Demand | B4: Sub-Total A (excluding pass through) | C4: Sub-Total B - Distribution (includes Sub-Total A) | D4: Sub-Total C - Delivery (including Sub-Total B) | E4: Total Bill on Average IESO Wholesale Market Price
A5: BI Template_Unmtr | B5: Sub-Total A (excluding pass through) | C5: Sub-Total B - Distribution (includes Sub-Total A) | D5: Sub-Total C - Delivery (including Sub-Total B) | E5: Total Bill on Two-Tier RPP
A6: BI Template_CPUCLights | B6: Sub-Total A (excluding pass through) | C6: Sub-Total B - Distribution (includes Sub-Total A) | D6: Sub-Total C - Delivery (including Sub-Total B) | E6: Total Bill on Two-Tier RPP

Sheet Data BI List (hidden)
A1: Template Name | B1: Bill Impact Worksheet Name | C1: Bill Impact Header
A2: BI Template_Energy | B2: BI_UR_Low | C2: 2025 Bill Impacts (Low Consumption Level) - UR
A3: BI Template_Energy | B3: BI_UR_Typical | C3: 2025 Bill Impacts (Typical Consumption Level) - UR
A4: BI Template_Energy | B4: BI_UR_Avg | C4: 2025 Bill Impacts (Average Consumption Level) - UR
A5: BI Template_Energy | B5: BI_UR_High | C5: 2025 Bill Impacts (High Consumption Level) - UR
A6: BI Template_Energy | B6: BI_R1_Low (with DRP) | C6: 2025 Bill Impacts (Low Consumption Level) - R1
A7: BI Template_Energy | B7: BI_R1_Typical (with DRP) | C7: 2025 Bill Impacts (Typical Consumption Level) - R1
A8: BI Template_Energy | B8: BI_R1_Avg (with DRP) | C8: 2025 Bill Impacts (Average Consumption Level) - R1
A9: BI Template_Energy | B9: BI_R1_High (with DRP) | C9: 2025 Bill Impacts (High Consumption Level) - R1
A10: BI Template_Energy | B10: BI_R1_Low (without DRP) | C10: 2025 Bill Impacts (Low Consumption Level) - R1
A11: BI Template_Energy | B11: BI_R1_Typical (without DRP) | C11: 2025 Bill Impacts (Typical Consumption Level) - R1
A12: BI Template_Energy | B12: BI_R1_Avg (without DRP) | C12: 2025 Bill Impacts (Average Consumption Level) - R1
A13: BI Template_Energy | B13: BI_R1_High (without DRP) | C13: 2025 Bill Impacts (High Consumption Level) - R1
A14: BI Template_Energy | B14: BI_R2_Low (with DRP) | C14: 2025 Bill Impacts (Low Consumption Level) - R2
A15: BI Template_Energy | B15: BI_R2_Typical (with DRP) | C15: 2025 Bill Impacts (Typical Consumption Level) - R2
A16: BI Template_Energy | B16: BI_R2_Avg (with DRP) | C16: 2025 Bill Impacts (Average Consumption Level) - R2
A17: BI Template_Energy | B17: BI_R2_High (with DRP) | C17: 2025 Bill Impacts (High Consumption Level) - R2
A18: BI Template_Energy | B18: BI_R2_Low (without DRP) | C18: 2025 Bill Impacts (Low Consumption Level) - R2
A19: BI Template_Energy | B19: BI_R2_Typical (without DRP) | C19: 2025 Bill Impacts (Typical Consumption Level) - R2
A20: BI Template_Energy | B20: BI_R2_Avg (without DRP) | C20: 2025 Bill Impacts (Average Consumption Level) - R2
A21: BI Template_Energy | B21: BI_R2_High (without DRP) | C21: 2025 Bill Impacts (High Consumption Level) - R2
A22: BI Template_Energy | B22: BI_Seas_UR_Low | C22: 2025 Bill Impacts (Low Consumption Level) - Seas-UR
A23: BI Template_Energy | B23: BI_Seas_UR_Avg | C23: 2025 Bill Impacts (Average Consumption Level) - Seas-UR
A24: BI Template_Energy | B24: BI_Seas_UR_High | C24: 2025 Bill Impacts (High Consumption Level) - Seas-UR
A25: BI Template_Energy | B25: BI_Seas_R1_Low | C25: 2025 Bill Impacts (Low Consumption Level) - Seas-R1
A26: BI Template_Energy | B26: BI_Seas_R1_Avg | C26: 2025 Bill Impacts (Average Consumption Level) - Seas-R1
A27: BI Template_Energy | B27: BI_Seas_R1_High | C27: 2025 Bill Impacts (High Consumption Level) - Seas-R1
A28: BI Template_Energy | B28: BI_Seas_R2_Low | C28: 2025 Bill Impacts (Low Consumption Level) - Seas-R2
A29: BI Template_Energy | B29: BI_Seas_R2_Avg | C29: 2025 Bill Impacts (Average Consumption Level) - Seas-R2
A30: BI Template_Energy | B30: BI_Seas_R2_High | C30: 2025 Bill Impacts (High Consumption Level) - Seas-R2
A31: BI Template_Energy | B31: BI_GSe_Low | C31: 2025 Bill Impacts (Low Consumption Level) - GSe
A32: BI Template_Energy | B32: BI_GSe_Typical | C32: 2025 Bill Impacts (Typical Consumption Level) - GSe
A33: BI Template_Energy | B33: BI_GSe_Avg | C33: 2025 Bill Impacts (Average Consumption Level) - GSe
A34: BI Template_Energy | B34: BI_GSe_High | C34: 2025 Bill Impacts (High Consumption Level) - GSe
A35: BI Template_Energy | B35: BI_UGe_Low | C35: 2025 Bill Impacts (Low Consumption Level) - UGe
A36: BI Template_Energy | B36: BI_UGe_Typical | C36: 2025 Bill Impacts (Typical Consumption Level) - UGe
A37: BI Template_Energy | B37: BI_UGe_Avg | C37: 2025 Bill Impacts (Average Consumption Level) - UGe
A38: BI Template_Energy | B38: BI_UGe_High | C38: 2025 Bill Impacts (High Consumption Level) - UGe
A39: BI Template_Demand | B39: BI_GSd_Low | C39: 2025 Bill Impacts (Low Consumption Level) - GSd
A40: BI Template_Demand | B40: BI_GSd_Avg | C40: 2025 Bill Impacts (Average Consumption Level) - GSd
A41: BI Template_Demand | B41: BI_GSd_High | C41: 2025 Bill Impacts (High Consumption Level) - GSd
A42: BI Template_Demand | B42: BI_UGd_Low | C42: 2025 Bill Impacts (Low Consumption Level) - UGd
A43: BI Template_Demand | B43: BI_UGd_Avg | C43: 2025 Bill Impacts (Average Consumption Level) - UGd
A44: BI Template_Demand | B44: BI_UGd_High | C44: 2025 Bill Impacts (High Consumption Level) - UGd
A45: BI Template_Unmtr | B45: BI_StLgt_Low | C45: 2025 Bill Impacts (Low Consumption Level) - St Lgt
A46: BI Template_Unmtr | B46: BI_StLgt_Avg | C46: 2025 Bill Impacts (Average Consumption Level) - St Lgt
A47: BI Template_Unmtr | B47: BI_StLgt_High | C47: 2025 Bill Impacts (High Consumption Level) - St Lgt
A48: BI Template_Unmtr | B48: BI_SenLgt_Low | C48: 2025 Bill Impacts (Low Consumption Level) - Sen Lgt
A49: BI Template_Unmtr | B49: BI_SenLgt_Avg | C49: 2025 Bill Impacts (Average Consumption Level) - Sen Lgt
A50: BI Template_Unmtr | B50: BI_SenLgt_High | C50: 2025 Bill Impacts (High Consumption Level) - Sen Lgt
A51: BI Template_Unmtr | B51: BI_USL_Low | C51: 2025 Bill Impacts (Low Consumption Level) - USL
A52: BI Template_Unmtr | B52: BI_USL_Avg | C52: 2025 Bill Impacts (Average Consumption Level) - USL
A53: BI Template_Unmtr | B53: BI_USL_High | C53: 2025 Bill Impacts (High Consumption Level) - USL
A54: BI Template_Demand | B54: BI_Dgen_Low | C54: 2025 Bill Impacts (Low Consumption Level) - Dgen
A55: BI Template_Demand | B55: BI_Dgen_Avg | C55: 2025 Bill Impacts (Average Consumption Level) - Dgen
A56: BI Template_Demand | B56: BI_Dgen_High | C56: 2025 Bill Impacts (High Consumption Level) - Dgen
A57: BI Template_Demand | B57: BI_ST_Low | C57: 2025 Bill Impacts (Low Consumption Level) - ST
A58: BI Template_Demand | B58: BI_ST_Avg | C58: 2025 Bill Impacts (Average Consumption Level) - ST
A59: BI Template_Demand | B59: BI_ST_High | C59: 2025 Bill Impacts (High Consumption Level) - ST
A60: BI Template_Energy | B60: BI_WHSI_AUR_Low | C60: 2025 Bill Impacts (Low Consumption Level) - AUR-WHSI
A61: BI Template_Energy | B61: BI_WHSI_AUR_Typical | C61: 2025 Bill Impacts (Typical Consumption Level) - AUR-WHSI
A62: BI Template_Energy | B62: BI_WHSI_AUR_High | C62: 2025 Bill Impacts (High Consumption Level) - AUR-WHSI
A63: BI Template_Energy | B63: BI_WHSI_AUGe_Low | C63: 2025 Bill Impacts (Low Consumption Level) - AUGe-WHSI
A64: BI Template_Energy | B64: BI_WHSI_AUGe_Typical | C64: 2025 Bill Impacts (Typical Consumption Level) - AUGe-WHSI
A65: BI Template_Energy | B65: BI_WHSI_AUGe_High | C65: 2025 Bill Impacts (High Consumption Level) - AUGe-WHSI
A66: BI Template_Demand | B66: BI_WHSI_AUGd_Low | C66: 2025 Bill Impacts (Low Consumption Level) - AUGd-WHSI
A67: BI Template_Demand | B67: BI_WHSI_AUGd_Avg | C67: 2025 Bill Impacts (Average Consumption Level) - AUGd-WHSI
A68: BI Template_Demand | B68: BI_WHSI_AUGd_High | C68: 2025 Bill Impacts (High Consumption Level) - AUGd-WHSI
A69: BI Template_Demand | B69: BI_WHSI_ST_Avg | C69: 2025 Bill Impacts (Average Consumption Level) - ST-WHSI
A70: BI Template_Energy | B70: BI_NPDI_AR_Low | C70: 2025 Bill Impacts (Low Consumption Level) - AR-NPDI
A71: BI Template_Energy | B71: BI_NPDI_AR_Typical | C71: 2025 Bill Impacts (Typical Consumption Level) - AR-NPDI
A72: BI Template_Energy | B72: BI_NPDI_AR_High | C72: 2025 Bill Impacts (High Consumption Level) - AR-NPDI
A73: BI Template_Energy | B73: BI_HCHI_AR_Low | C73: 2025 Bill Impacts (Low Consumption Level) - AR-HCHI
A74: BI Template_Energy | B74: BI_HCHI_AR_Typical | C74: 2025 Bill Impacts (Typical Consumption Level) - AR-HCHI
A75: BI Template_Energy | B75: BI_HCHI_AR_High | C75: 2025 Bill Impacts (High Consumption Level) - AR-HCHI
A76: BI Template_Energy | B76: BI_NPDI_AGSe_Low | C76: 2025 Bill Impacts (Low Consumption Level) - AGSe-NPDI
A77: BI Template_Energy | B77: BI_NPDI_AGSe_Typical | C77: 2025 Bill Impacts (Typical Consumption Level) - AGSe-NPDI
A78: BI Template_Energy | B78: BI_NPDI_AGSe_High | C78: 2025 Bill Impacts (High Consumption Level) - AGSe-NPDI
A79: BI Template_Energy | B79: BI_HCHI_AGSe_Low | C79: 2025 Bill Impacts (Low Consumption Level) - AGSe-HCHI
A80: BI Template_Energy | B80: BI_HCHI_AGSe_Typical | C80: 2025 Bill Impacts (Typical Consumption Level) - AGSe-HCHI
A81: BI Template_Energy | B81: BI_HCHI_AGSe_High | C81: 2025 Bill Impacts (High Consumption Level) - AGSe-HCHI
A82: BI Template_Demand | B82: BI_NPDI_AGSd_Low | C82: 2025 Bill Impacts (Low Consumption Level) - AGSd-NPDI
A83: BI Template_Demand | B83: BI_NPDI_AGSd_Avg | C83: 2025 Bill Impacts (Average Consumption Level) - AGSd-NPDI
A84: BI Template_Demand | B84: BI_NPDI_AGSd_High | C84: 2025 Bill Impacts (High Consumption Level) - AGSd-NPDI
A85: BI Template_Demand | B85: BI_HCHI_AGSd_Low | C85: 2025 Bill Impacts (Low Consumption Level) - AGSd-HCHI
A86: BI Template_Demand | B86: BI_HCHI_AGSd_Avg | C86: 2025 Bill Impacts (Average Consumption Level) - AGSd-HCHI
A87: BI Template_Demand | B87: BI_HCHI_AGSd_High | C87: 2025 Bill Impacts (High Consumption Level) - AGSd-HCHI
A88: BI Template_Unmtr | B88: BI_WHSI_USL_Avg | C88: 2025 Bill Impacts (Average Consumption Level) - USL-WHSI
A89: BI Template_Unmtr | B89: BI_NPDI_USL_Avg | C89: 2025 Bill Impacts (Average Consumption Level) - USL-NPDI
A90: BI Template_Unmtr | B90: BI_HCHI_USL_Avg | C90: 2025 Bill Impacts (Average Consumption Level) - USL-HCHI
A91: BI Template_Unmtr | B91: BI_WHSI_StLgt_Avg | C91: 2025 Bill Impacts (Average Consumption Level) - St Lgt-WHSI
A92: BI Template_Unmtr | B92: BI_NPDI_StLgt_Avg | C92: 2025 Bill Impacts (Average Consumption Level) - St Lgt-NPDI
A93: BI Template_Unmtr | B93: BI_HCHI_StLgt_Avg | C93: 2025 Bill Impacts (Average Consumption Level) - St Lgt-HCHI
A94: BI Template_Unmtr | B94: BI_NPDI_SenLgt_Avg | C94: 2025 Bill Impacts (Average Consumption Level) - Sen Lgt-NPDI
A95: BI Template_Unmtr | B95: BI_HCHI_SenLgt_Avg | C95: 2025 Bill Impacts (Average Consumption Level) - Sen Lgt-HCHI
A96: BI Template_Energy | B96: BI_CPUC_R1_Low | C96: 2025 Bill Impacts (Low Consumption Level) - R1-CPUC
A97: BI Template_Energy | B97: BI_CPUC_R1_Typical | C97: 2025 Bill Impacts (Typical Consumption Level) - R1-CPUC
A98: BI Template_Energy | B98: BI_CPUC_R1_High | C98: 2025 Bill Impacts (High Consumption Level) - R1-CPUC
A99: BI Template_Energy | B99: BI_CPUC_GSe_Low | C99: 2025 Bill Impacts (Low Consumption Level) - GSe-CPUC
A100: BI Template_Energy | B100: BI_CPUC_GSe_Typical | C100: 2025 Bill Impacts (Typical Consumption Level) - GSe-CPUC
A101: BI Template_Energy | B101: BI_CPUC_GSe_High | C101: 2025 Bill Impacts (High Consumption Level) - GSe-CPUC
A102: BI Template_Demand | B102: BI_CPUC_GSd_Low | C102: 2025 Bill Impacts (Low Consumption Level) - GSd-CPUC
A103: BI Template_Demand | B103: BI_CPUC_GSd_Avg | C103: 2025 Bill Impacts (Average Consumption Level) - GSd-CPUC
A104: BI Template_Demand | B104: BI_CPUC_GSd_High | C104: 2025 Bill Impacts (High Consumption Level) - GSd-CPUC
A105: BI Template_Unmtr | B105: BI_CPUC_USL_Avg | C105: 2025 Bill Impacts (Average Consumption Level) - USL-CPUC
A106: BI Template_CPUCLights | B106: BI_CPUC_SenLgt_Avg | C106: 2025 Bill Impacts (Average Consumption Level) - Sen Lgt-CPUC
A107: BI Template_CPUCLights | B107: BI_CPUC_StLgt_Avg | C107: 2025 Bill Impacts (Average Consumption Level) - St Lgt-CPUC

Sheet Data BI List CPUCLights (hidden)
A1: Template Name | B1: Bill Impact Worksheet Name | C1: Bill Impact Header | D1: Current Rate Class (Acq) | E1: Proposed Rate Class
A2: BI Template_CPUCLights | B2: BI_CPUC_SenLgt_Avg | C2: 2025 Bill Impacts (Average Consumption Level) - Sen Lgt-CPUC | D2: Sen Lgt-CPUC | E2: Sen Lgt-HONI
A3: BI Template_CPUCLights | B3: BI_CPUC_StLgt_Avg | C3: 2025 Bill Impacts (Average Consumption Level) - St Lgt-CPUC | D3: St Lgt-CPUC | E3: St Lgt-HONI
D68: Case Not Found
D69: Case Not Found
D70: Case Not Found
D71: Case Not Found
D88: Case Not Found
D89: Case Not Found
D90: Case Not Found
D91: Case Not Found
D92: Case Not Found
D93: Case Not Found
D97: Case Not Found
D98: Case Not Found
D99: Case Not Found
D100: Case Not Found
D101: Case Not Found

Sheet Bill Impact Summary (hidden)
A1: Rate Class | B1: Consumption Level | C1: Monthly Consumption (kWh) | D1: Monthly Peak (kW) | E1: BI Worksheet | F1: Template | G1: Sub-Total | M1: Total
G2: A | I2: B | K2: C | M2: Total Bill
G3: $ | H3: % | I3: $ | J3: % | K3: $ | L3: % | M3: $ | N3: %
A4: UR | B4: Low | C4: =VLOOKUP(A$4,'Data Billing Quantities'!A:P,MATCH(B4&" kWh",'Data Billing Quantities'!$4:$4,0),FALSE) -> 340 | E4: BI_UR_Low | F4: BI Template_Energy | G4: =VLOOKUP(VLOOKUP($F4,'Data BI Summary'!$A:$P,MATCH($G$2,'Data BI Summary'!$2:$2,0),FALSE),INDIRECT("'"&$E4&"'!"&"$A:$K"),8,FALSE) -> 1.61 | H4: =VLOOKUP(VLOOKUP($F4,'Data BI Summary'!$A:$P,MATCH($G$2,'Data BI Summary'!$2:$2,0),FALSE),INDIRECT("'"&$E4&"'!"&"$A:$K"),9,FALSE) -> 0.04036099273 | I4: =VLOOKUP(VLOOKUP($F4,'Data BI Summary'!$A:$P,MATCH($I$2,'Data BI Summary'!$2:$2,0),FALSE),INDIRECT("'"&$E4&"'!"&"$A:$K"),8,FALSE) -> 0.59 | J4: =VLOOKUP(VLOOKUP($F4,'Data BI Summary'!$A:$P,MATCH($I$2,'Data BI Summary'!$2:$2,0),FALSE),INDIRECT("'"&$E4&"'!"&"$A:$K"),9,FALSE) -> 0.01396605503 | K4: =VLOOKUP(VLOOKUP($F4,'Data BI Summary'!$A:$P,MATCH($K$2,'Data BI Summary'!$2:$2,0),FALSE),INDIRECT("'"&$E4&"'!"&"$A:$K"),8,FALSE) -> 1.165008 | L4: =VLOOKUP(VLOOKUP($F4,'Data BI Summary'!$A:$P,MATCH($K$2,'Data BI Summary'!$2:$2,0),FALSE),INDIRECT("'"&$E4&"'!"&"$A:$K"),9,FALSE) -> 0.02324636382 | M4: =VLOOKUP(VLOOKUP($F4,'Data BI Summary'!$A:$P,MATCH($M$2,'Data BI Summary'!$2:$2,0),FALSE),INDIRECT("'"&$E4&"'!"&"$A:$K"),8,FALSE) -> 1.163842992 | N4: =VLOOKUP(VLOOKUP($F4,'Data BI Summary'!$A:$P,MATCH($M$2,'Data BI Summary'!$2:$2,0),FALSE),INDIRECT("'"&$E4&"'!"&"$A:$K"),9,FALSE) -> 0.0134722895
B5: Typical | C5: =VLOOKUP(A$4,'Data Billing Quantities'!A:P,MATCH(B5&" kWh",'Data Billing Quantities'!$4:$4,0),FALSE) -> 750 | E5: BI_UR_Typical | F5: BI Template_Energy | G5: =VLOOKUP(VLOOKUP($F5,'Data BI Summary'!$A:$P,MATCH($G$2,'Data BI Summary'!$2:$2,0),FALSE),INDIRECT("'"&$E5&"'!"&"$A:$K"),8,FALSE) -> 1.61 | H5: =VLOOKUP(VLOOKUP($F5,'Data BI Summary'!$A:$P,MATCH($G$2,'Data BI Summary'!$2:$2,0),FALSE),INDIRECT("'"&$E5&"'!"&"$A:$K"),9,FALSE) -> 0.04036099273 | I5: =VLOOKUP(VLOOKUP($F5,'Data BI Summary'!$A:$P,MATCH($I$2,'Data BI Summary'!$2:$2,0),FALSE),INDIRECT("'"&$E5&"'!"&"$A:$K"),8,FALSE) -> -0.64 | J5: =VLOOKUP(VLOOKUP($F5,'Data BI Summary'!$A:$P,MATCH($I$2,'Data BI Summary'!$2:$2,0),FALSE),INDIRECT("'"&$E5&"'!"&"$A:$K"),9,FALSE) -> -0.01435653076 | K5: =VLOOKUP(VLOOKUP($F5,'Data BI Summary'!$A:$P,MATCH($K$2,'Data BI Summary'!$2:$2,0),FALSE),INDIRECT("'"&$E5&"'!"&"$A:$K"),8,FALSE) -> 0.6284 | L5: =VLOOKUP(VLOOKUP($F5,'Data BI Summary'!$A:$P,MATCH($K$2,'Data BI Summary'!$2:$2,0),FALSE),INDIRECT("'"&$E5&"'!"&"$A:$K"),9,FALSE) -> 0.0101452626 | M5: =VLOOKUP(VLOOKUP($F5,'Data BI Summary'!$A:$P,MATCH($M$2,'Data BI Summary'!$2:$2,0),FALSE),INDIRECT("'"&$E5&"'!"&"$A:$K"),8,FALSE) -> 0.6277716 | N5: =VLOOKUP(VLOOKUP($F5,'Data BI Summary'!$A:$P,MATCH($M$2,'Data BI Summary'!$2:$2,0),FALSE),INDIRECT("'"&$E5&"'!"&"$A:$K"),9,FALSE) -> 0.004430289702
B6: Average | C6: =VLOOKUP(A$4,'Data Billing Quantities'!A:P,MATCH(B6&" kWh",'Data Billing Quantities'!$4:$4,0),FALSE) -> 690 | E6: BI_UR_Avg | F6: BI Template_Energy | G6: =VLOOKUP(VLOOKUP($F6,'Data BI Summary'!$A:$P,MATCH($G$2,'Data BI Summary'!$2:$2,0),FALSE),INDIRECT("'"&$E6&"'!"&"$A:$K"),8,FALSE) -> 1.61 | H6: =VLOOKUP(VLOOKUP($F6,'Data BI Summary'!$A:$P,MATCH($G$2,'Data BI Summary'!$2:$2,0),FALSE),INDIRECT("'"&$E6&"'!"&"$A:$K"),9,FALSE) -> 0.04036099273 | I6: =VLOOKUP(VLOOKUP($F6,'Data BI Summary'!$A:$P,MATCH($I$2,'Data BI Summary'!$2:$2,0),FALSE),INDIRECT("'"&$E6&"'!"&"$A:$K"),8,FALSE) -> -0.46 | J6: =VLOOKUP(VLOOKUP($F6,'Data BI Summary'!$A:$P,MATCH($I$2,'Data BI Summary'!$2:$2,0),FALSE),INDIRECT("'"&$E6&"'!"&"$A:$K"),9,FALSE) -> -0.01039841909 | K6: =VLOOKUP(VLOOKUP($F6,'Data BI Summary'!$A:$P,MATCH($K$2,'Data BI Summary'!$2:$2,0),FALSE),INDIRECT("'"&$E6&"'!"&"$A:$K"),8,FALSE) -> 0.706928 | L6: =VLOOKUP(VLOOKUP($F6,'Data BI Summary'!$A:$P,MATCH($K$2,'Data BI Summary'!$2:$2,0),FALSE),INDIRECT("'"&$E6&"'!"&"$A:$K"),9,FALSE) -> 0.01174107464 | M6: =VLOOKUP(VLOOKUP($F6,'Data BI Summary'!$A:$P,MATCH($M$2,'Data BI Summary'!$2:$2,0),FALSE),INDIRECT("'"&$E6&"'!"&"$A:$K"),8,FALSE) -> 0.706221072 | N6: =VLOOKUP(VLOOKUP($F6,'Data BI Summary'!$A:$P,MATCH($M$2,'Data BI Summary'!$2:$2,0),FALSE),INDIRECT("'"&$E6&"'!"&"$A:$K"),9,FALSE) -> 0.005285869781
B7: High | C7: =VLOOKUP(A$4,'Data Billing Quantities'!A:P,MATCH(B7&" kWh",'Data Billing Quantities'!$4:$4,0),FALSE) -> 1260 | E7: BI_UR_High | F7: BI Template_Energy | G7: =VLOOKUP(VLOOKUP($F7,'Data BI Summary'!$A:$P,MATCH($G$2,'Data BI Summary'!$2:$2,0),FALSE),INDIRECT("'"&$E7&"'!"&"$A:$K"),8,FALSE) -> 1.61 | H7: =VLOOKUP(VLOOKUP($F7,'Data BI Summary'!$A:$P,MATCH($G$2,'Data BI Summary'!$2:$2,0),FALSE),INDIRECT("'"&$E7&"'!"&"$A:$K"),9,FALSE) -> 0.04036099273 | I7: =VLOOKUP(VLOOKUP($F7,'Data BI Summary'!$A:$P,MATCH($I$2,'Data BI Summary'!$2:$2,0),FALSE),INDIRECT("'"&$E7&"'!"&"$A:$K"),8,FALSE) -> -2.17 | J7: =VLOOKUP(VLOOKUP($F7,'Data BI Summary'!$A:$P,MATCH($I$2,'Data BI Summary'!$2:$2,0),FALSE),INDIRECT("'"&$E7&"'!"&"$A:$K"),9,FALSE) -> -0.04570158175 | K7: =VLOOKUP(VLOOKUP($F7,'Data BI Summary'!$A:$P,MATCH($K$2,'Data BI Summary'!$2:$2,0),FALSE),INDIRECT("'"&$E7&"'!"&"$A:$K"),8,FALSE) -> -0.039088 | L7: =VLOOKUP(VLOOKUP($F7,'Data BI Summary'!$A:$P,MATCH($K$2,'Data BI Summary'!$2:$2,0),FALSE),INDIRECT("'"&$E7&"'!"&"$A:$K"),9,FALSE) -> -0.0005099623004 | M7: =VLOOKUP(VLOOKUP($F7,'Data BI Summary'!$A:$P,MATCH($M$2,'Data BI Summary'!$2:$2,0),FALSE),INDIRECT("'"&$E7&"'!"&"$A:$K"),8,FALSE) -> -0.039048912 | N7: =VLOOKUP(VLOOKUP($F7,'Data BI Summary'!$A:$P,MATCH($M$2,'Data BI Summary'!$2:$2,0),FALSE),INDIRECT("'"&$E7&"'!"&"$A:$K"),9,FALSE) -> -0.0001855032202
A8: R1 (with DRP) | B8: Low | C8: =VLOOKUP("R1",'Data Billing Quantities'!A:P,MATCH(B8&" kWh",'Data Billing Quantities'!$4:$4,0),FALSE) -> 370 | E8: BI_R1_Low (with DRP) | F8: BI Template_Energy | G8: =VLOOKUP(VLOOKUP($F8,'Data BI Summary'!$A:$P,MATCH($G$2,'Data BI Summary'!$2:$2,0),FALSE),INDIRECT("'"&$E8&"'!"&"$A:$K"),8,FALSE) -> 0 | H8: =VLOOKUP(VLOOKUP($F8,'Data BI Summary'!$A:$P,MATCH($G$2,'Data BI Summary'!$2:$2,0),FALSE),INDIRECT("'"&$E8&"'!"&"$A:$K"),9,FALSE) -> 0 | I8: =VLOOKUP(VLOOKUP($F8,'Data BI Summary'!$A:$P,MATCH($I$2,'Data BI Summary'!$2:$2,0),FALSE),INDIRECT("'"&$E8&"'!"&"$A:$K"),8,FALSE) -> -1.073 | J8: =VLOOKUP(VLOOKUP($F8,'Data BI Summary'!$A:$P,MATCH($I$2,'Data BI Summary'!$2:$2,0),FALSE),INDIRECT("'"&$E8&"'!"&"$A:$K"),9,FALSE) -> -0.02416227871 | K8: =VLOOKUP(VLOOKUP($F8,'Data BI Summary'!$A:$P,MATCH($K$2,'Data BI Summary'!$2:$2,0),FALSE),INDIRECT("'"&$E8&"'!"&"$A:$K"),8,FALSE) -> -0.47582 | L8: =VLOOKUP(VLOOKUP($F8,'Data BI Summary'!$A:$P,MATCH($K$2,'Data BI Summary'!$2:$2,0),FALSE),INDIRECT("'"&$E8&"'!"&"$A:$K"),9,FALSE) -> -0.009051251962 | M8: =VLOOKUP(VLOOKUP($F8,'Data BI Summary'!$A:$P,MATCH($M$2,'Data BI Summary'!$2:$2,0),FALSE),INDIRECT("'"&$E8&"'!"&"$A:$K"),8,FALSE) -> -0.47534418 | N8: =VLOOKUP(VLOOKUP($F8,'Data BI Summary'!$A:$P,MATCH($M$2,'Data BI Summary'!$2:$2,0),FALSE),INDIRECT("'"&$E8&"'!"&"$A:$K"),9,FALSE) -> -0.005163176697
B9: Typical | C9: =VLOOKUP("R1",'Data Billing Quantities'!A:P,MATCH(B9&" kWh",'Data Billing Quantities'!$4:$4,0),FALSE) -> 750 | E9: BI_R1_Typical (with DRP) | F9: BI Template_Energy | G9: =VLOOKUP(VLOOKUP($F9,'Data BI Summary'!$A:$P,MATCH($G$2,'Data BI Summary'!$2:$2,0),FALSE),INDIRECT("'"&$E9&"'!"&"$A:$K"),8,FALSE) -> 0 | H9: =VLOOKUP(VLOOKUP($F9,'Data BI Summary'!$A:$P,MATCH($G$2,'Data BI Summary'!$2:$2,0),FALSE),INDIRECT("'"&$E9&"'!"&"$A:$K"),9,FALSE) -> 0 | I9: =VLOOKUP(VLOOKUP($F9,'Data BI Summary'!$A:$P,MATCH($I$2,'Data BI Summary'!$2:$2,0),FALSE),INDIRECT("'"&$E9&"'!"&"$A:$K"),8,FALSE) -> -2.175 | J9: =VLOOKUP(VLOOKUP($F9,'Data BI Summary'!$A:$P,MATCH($I$2,'Data BI Summary'!$2:$2,0),FALSE),INDIRECT("'"&$E9&"'!"&"$A:$K"),9,FALSE) -> -0.04599084581 | K9: =VLOOKUP(VLOOKUP($F9,'Data BI Summary'!$A:$P,MATCH($K$2,'Data BI Summary'!$2:$2,0),FALSE),INDIRECT("'"&$E9&"'!"&"$A:$K"),8,FALSE) -> -0.9645 | L9: =VLOOKUP(VLOOKUP($F9,'Data BI Summary'!$A:$P,MATCH($K$2,'Data BI Summary'!$2:$2,0),FALSE),INDIRECT("'"&$E9&"'!"&"$A:$K"),9,FALSE) -> -0.015109143 | M9: =VLOOKUP(VLOOKUP($F9,'Data BI Summary'!$A:$P,MATCH($M$2,'Data BI Summary'!$2:$2,0),FALSE),INDIRECT("'"&$E9&"'!"&"$A:$K"),8,FALSE) -> -0.9635355 | N9: =VLOOKUP(VLOOKUP($F9,'Data BI Summary'!$A:$P,MATCH($M$2,'Data BI Summary'!$2:$2,0),FALSE),INDIRECT("'"&$E9&"'!"&"$A:$K"),9,FALSE) -> -0.006706182036
B10: Average | C10: =VLOOKUP("R1",'Data Billing Quantities'!A:P,MATCH(B10&" kWh",'Data Billing Quantities'!$4:$4,0),FALSE) -> 784 | E10: BI_R1_Avg (with DRP) | F10: BI Template_Energy | G10: =VLOOKUP(VLOOKUP($F10,'Data BI Summary'!$A:$P,MATCH($G$2,'Data BI Summary'!$2:$2,0),FALSE),INDIRECT("'"&$E10&"'!"&"$A:$K"),8,FALSE) -> 0 | H10: =VLOOKUP(VLOOKUP($F10,'Data BI Summary'!$A:$P,MATCH($G$2,'Data BI Summary'!$2:$2,0),FALSE),INDIRECT("'"&$E10&"'!"&"$A:$K"),9,FALSE) -> 0 | I10: =VLOOKUP(VLOOKUP($F10,'Data BI Summary'!$A:$P,MATCH($I$2,'Data BI Summary'!$2:$2,0),FALSE),INDIRECT("'"&$E10&"'!"&"$A:$K"),8,FALSE) -> -2.2736 | J10: =VLOOKUP(VLOOKUP($F10,'Data BI Summary'!$A:$P,MATCH($I$2,'Data BI Summary'!$2:$2,0),FALSE),INDIRECT("'"&$E10&"'!"&"$A:$K"),9,FALSE) -> -0.04781487309 | K10: =VLOOKUP(VLOOKUP($F10,'Data BI Summary'!$A:$P,MATCH($K$2,'Data BI Summary'!$2:$2,0),FALSE),INDIRECT("'"&$E10&"'!"&"$A:$K"),8,FALSE) -> -1.008224 | L10: =VLOOKUP(VLOOKUP($F10,'Data BI Summary'!$A:$P,MATCH($K$2,'Data BI Summary'!$2:$2,0),FALSE),INDIRECT("'"&$E10&"'!"&"$A:$K"),9,FALSE) -> -0.01554856739 | M10: =VLOOKUP(VLOOKUP($F10,'Data BI Summary'!$A:$P,MATCH($M$2,'Data BI Summary'!$2:$2,0),FALSE),INDIRECT("'"&$E10&"'!"&"$A:$K"),8,FALSE) -> -1.007215776 | N10: =VLOOKUP(VLOOKUP($F10,'Data BI Summary'!$A:$P,MATCH($M$2,'Data BI Summary'!$2:$2,0),FALSE),INDIRECT("'"&$E10&"'!"&"$A:$K"),9,FALSE) -> -0.006791890177
B11: High | C11: =VLOOKUP("R1",'Data Billing Quantities'!A:P,MATCH(B11&" kWh",'Data Billing Quantities'!$4:$4,0),FALSE) -> 1650 | E11: BI_R1_High (with DRP) | F11: BI Template_Energy | G11: =VLOOKUP(VLOOKUP($F11,'Data BI Summary'!$A:$P,MATCH($G$2,'Data BI Summary'!$2:$2,0),FALSE),INDIRECT("'"&$E11&"'!"&"$A:$K"),8,FALSE) -> 0 | H11: =VLOOKUP(VLOOKUP($F11,'Data BI Summary'!$A:$P,MATCH($G$2,'Data BI Summary'!$2:$2,0),FALSE),INDIRECT("'"&$E11&"'!"&"$A:$K"),9,FALSE) -> 0 | I11: =VLOOKUP(VLOOKUP($F11,'Data BI Summary'!$A:$P,MATCH($I$2,'Data BI Summary'!$2:$2,0),FALSE),INDIRECT("'"&$E11&"'!"&"$A:$K"),8,FALSE) -> -4.785 | J11: =VLOOKUP(VLOOKUP($F11,'Data BI Summary'!$A:$P,MATCH($I$2,'Data BI Summary'!$2:$2,0),FALSE),INDIRECT("'"&$E11&"'!"&"$A:$K"),9,FALSE) -> -0.08841064162 | K11: =VLOOKUP(VLOOKUP($F11,'Data BI Summary'!$A:$P,MATCH($K$2,'Data BI Summary'!$2:$2,0),FALSE),INDIRECT("'"&$E11&"'!"&"$A:$K"),8,FALSE) -> -2.1219 | L11: =VLOOKUP(VLOOKUP($F11,'Data BI Summary'!$A:$P,MATCH($K$2,'Data BI Summary'!$2:$2,0),FALSE),INDIRECT("'"&$E11&"'!"&"$A:$K"),9,FALSE) -> -0.0234417091 | M11: =VLOOKUP(VLOOKUP($F11,'Data BI Summary'!$A:$P,MATCH($M$2,'Data BI Summary'!$2:$2,0),FALSE),INDIRECT("'"&$E11&"'!"&"$A:$K"),8,FALSE) -> -2.1197781 | N11: =VLOOKUP(VLOOKUP($F11,'Data BI Summary'!$A:$P,MATCH($M$2,'Data BI Summary'!$2:$2,0),FALSE),INDIRECT("'"&$E11&"'!"&"$A:$K"),9,FALSE) -> -0.007971387486
A12: R1 (without DRP) | B12: Low | C12: =VLOOKUP("R1",'Data Billing Quantities'!A:P,MATCH(B12&" kWh",'Data Billing Quantities'!$4:$4,0),FALSE) -> 370 | E12: BI_R1_Low (without DRP) | F12: BI Template_Energy | G12: =VLOOKUP(VLOOKUP($F12,'Data BI Summary'!$A:$P,MATCH($G$2,'Data BI Summary'!$2:$2,0),FALSE),INDIRECT("'"&$E12&"'!"&"$A:$K"),8,FALSE) -> 2.75 | H12: =VLOOKUP(VLOOKUP($F12,'Data BI Summary'!$A:$P,MATCH($G$2,'Data BI Summary'!$2:$2,0),FALSE),INDIRECT("'"&$E12&"'!"&"$A:$K"),9,FALSE) -> 0.04038772213 | I12: =VLOOKUP(VLOOKUP($F12,'Data BI Summary'!$A:$P,MATCH($I$2,'Data BI Summary'!$2:$2,0),FALSE),INDIRECT("'"&$E12&"'!"&"$A:$K"),8,FALSE) -> 1.677 | J12: =VLOOKUP(VLOOKUP($F12,'Data BI Summary'!$A:$P,MATCH($I$2,'Data BI Summary'!$2:$2,0),FALSE),INDIRECT("'"&$E12&"'!"&"$A:$K"),9,FALSE) -> 0.02351437945 | K12: =VLOOKUP(VLOOKUP($F12,'Data BI Summary'!$A:$P,MATCH($K$2,'Data BI Summary'!$2:$2,0),FALSE),INDIRECT("'"&$E12&"'!"&"$A:$K"),8,FALSE) -> 2.27418 | L12: =VLOOKUP(VLOOKUP($F12,'Data BI Summary'!$A:$P,MATCH($K$2,'Data BI Summary'!$2:$2,0),FALSE),INDIRECT("'"&$E12&"'!"&"$A:$K"),9,FALSE) -> 0.02861340769 | M12: =VLOOKUP(VLOOKUP($F12,'Data BI Summary'!$A:$P,MATCH($M$2,'Data BI Summary'!$2:$2,0),FALSE),INDIRECT("'"&$E12&"'!"&"$A:$K"),8,FALSE) -> 2.27190582 | N12: =VLOOKUP(VLOOKUP($F12,'Data BI Summary'!$A:$P,MATCH($M$2,'Data BI Summary'!$2:$2,0),FALSE),INDIRECT("'"&$E12&"'!"&"$A:$K"),9,FALSE) -> 0.01910009184
B13: Typical | C13: =VLOOKUP("R1",'Data Billing Quantities'!A:P,MATCH(B13&" kWh",'Data Billing Quantities'!$4:$4,0),FALSE) -> 750 | E13: BI_R1_Typical (without DRP) | F13: BI Template_Energy | G13: =VLOOKUP(VLOOKUP($F13,'Data BI Summary'!$A:$P,MATCH($G$2,'Data BI Summary'!$2:$2,0),FALSE),INDIRECT("'"&$E13&"'!"&"$A:$K"),8,FALSE) -> 2.75 | H13: =VLOOKUP(VLOOKUP($F13,'Data BI Summary'!$A:$P,MATCH($G$2,'Data BI Summary'!$2:$2,0),FALSE),INDIRECT("'"&$E13&"'!"&"$A:$K"),9,FALSE) -> 0.04038772213 | I13: =VLOOKUP(VLOOKUP($F13,'Data BI Summary'!$A:$P,MATCH($I$2,'Data BI Summary'!$2:$2,0),FALSE),INDIRECT("'"&$E13&"'!"&"$A:$K"),8,FALSE) -> 0.575 | J13: =VLOOKUP(VLOOKUP($F13,'Data BI Summary'!$A:$P,MATCH($I$2,'Data BI Summary'!$2:$2,0),FALSE),INDIRECT("'"&$E13&"'!"&"$A:$K"),9,FALSE) -> 0.007749115186 | K13: =VLOOKUP(VLOOKUP($F13,'Data BI Summary'!$A:$P,MATCH($K$2,'Data BI Summary'!$2:$2,0),FALSE),INDIRECT("'"&$E13&"'!"&"$A:$K"),8,FALSE) -> 1.7855 | L13: =VLOOKUP(VLOOKUP($F13,'Data BI Summary'!$A:$P,MATCH($K$2,'Data BI Summary'!$2:$2,0),FALSE),INDIRECT("'"&$E13&"'!"&"$A:$K"),9,FALSE) -> 0.01967590246 | M13: =VLOOKUP(VLOOKUP($F13,'Data BI Summary'!$A:$P,MATCH($M$2,'Data BI Summary'!$2:$2,0),FALSE),INDIRECT("'"&$E13&"'!"&"$A:$K"),8,FALSE) -> 1.7837145 | N13: =VLOOKUP(VLOOKUP($F13,'Data BI Summary'!$A:$P,MATCH($M$2,'Data BI Summary'!$2:$2,0),FALSE),INDIRECT("'"&$E13&"'!"&"$A:$K"),9,FALSE) -> 0.01045787879
B14: Average | C14: =VLOOKUP("R1",'Data Billing Quantities'!A:P,MATCH(B14&" kWh",'Data Billing Quantities'!$4:$4,0),FALSE) -> 784 | E14: BI_R1_Avg (without DRP) | F14: BI Template_Energy | G14: =VLOOKUP(VLOOKUP($F14,'Data BI Summary'!$A:$P,MATCH($G$2,'Data BI Summary'!$2:$2,0),FALSE),INDIRECT("'"&$E14&"'!"&"$A:$K"),8,FALSE) -> 2.75 | H14: =VLOOKUP(VLOOKUP($F14,'Data BI Summary'!$A:$P,MATCH($G$2,'Data BI Summary'!$2:$2,0),FALSE),INDIRECT("'"&$E14&"'!"&"$A:$K"),9,FALSE) -> 0.04038772213 | I14: =VLOOKUP(VLOOKUP($F14,'Data BI Summary'!$A:$P,MATCH($I$2,'Data BI Summary'!$2:$2,0),FALSE),INDIRECT("'"&$E14&"'!"&"$A:$K"),8,FALSE) -> 0.4764 | J14: =VLOOKUP(VLOOKUP($F14,'Data BI Summary'!$A:$P,MATCH($I$2,'Data BI Summary'!$2:$2,0),FALSE),INDIRECT("'"&$E14&"'!"&"$A:$K"),9,FALSE) -> 0.006398061071 | K14: =VLOOKUP(VLOOKUP($F14,'Data BI Summary'!$A:$P,MATCH($K$2,'Data BI Summary'!$2:$2,0),FALSE),INDIRECT("'"&$E14&"'!"&"$A:$K"),8,FALSE) -> 1.741776 | L14: =VLOOKUP(VLOOKUP($F14,'Data BI Summary'!$A:$P,MATCH($K$2,'Data BI Summary'!$2:$2,0),FALSE),INDIRECT("'"&$E14&"'!"&"$A:$K"),9,FALSE) -> 0.01898320419 | M14: =VLOOKUP(VLOOKUP($F14,'Data BI Summary'!$A:$P,MATCH($M$2,'Data BI Summary'!$2:$2,0),FALSE),INDIRECT("'"&$E14&"'!"&"$A:$K"),8,FALSE) -> 1.740034224 | N14: =VLOOKUP(VLOOKUP($F14,'Data BI Summary'!$A:$P,MATCH($M$2,'Data BI Summary'!$2:$2,0),FALSE),INDIRECT("'"&$E14&"'!"&"$A:$K"),9,FALSE) -> 0.009932840672
B15: High | C15: =VLOOKUP("R1",'Data Billing Quantities'!A:P,MATCH(B15&" kWh",'Data Billing Quantities'!$4:$4,0),FALSE) -> 1650 | E15: BI_R1_High (without DRP) | F15: BI Template_Energy | G15: =VLOOKUP(VLOOKUP($F15,'Data BI Summary'!$A:$P,MATCH($G$2,'Data BI Summary'!$2:$2,0),FALSE),INDIRECT("'"&$E15&"'!"&"$A:$K"),8,FALSE) -> 2.75 | H15: =VLOOKUP(VLOOKUP($F15,'Data BI Summary'!$A:$P,MATCH($G$2,'Data BI Summary'!$2:$2,0),FALSE),INDIRECT("'"&$E15&"'!"&"$A:$K"),9,FALSE) -> 0.04038772213 | I15: =VLOOKUP(VLOOKUP($F15,'Data BI Summary'!$A:$P,MATCH($I$2,'Data BI Summary'!$2:$2,0),FALSE),INDIRECT("'"&$E15&"'!"&"$A:$K"),8,FALSE) -> -2.035 | J15: =VLOOKUP(VLOOKUP($F15,'Data BI Summary'!$A:$P,MATCH($I$2,'Data BI Summary'!$2:$2,0),FALSE),INDIRECT("'"&$E15&"'!"&"$A:$K"),9,FALSE) -> -0.02511339779 | K15: =VLOOKUP(VLOOKUP($F15,'Data BI Summary'!$A:$P,MATCH($K$2,'Data BI Summary'!$2:$2,0),FALSE),INDIRECT("'"&$E15&"'!"&"$A:$K"),8,FALSE) -> 0.6281 | L15: =VLOOKUP(VLOOKUP($F15,'Data BI Summary'!$A:$P,MATCH($K$2,'Data BI Summary'!$2:$2,0),FALSE),INDIRECT("'"&$E15&"'!"&"$A:$K"),9,FALSE) -> 0.005348802924 | M15: =VLOOKUP(VLOOKUP($F15,'Data BI Summary'!$A:$P,MATCH($M$2,'Data BI Summary'!$2:$2,0),FALSE),INDIRECT("'"&$E15&"'!"&"$A:$K"),8,FALSE) -> 0.6274719 | N15: =VLOOKUP(VLOOKUP($F15,'Data BI Summary'!$A:$P,MATCH($M$2,'Data BI Summary'!$2:$2,0),FALSE),INDIRECT("'"&$E15&"'!"&"$A:$K"),9,FALSE) -> 0.002142957957
A16: R2 (with DRP) | B16: Low | C16: =VLOOKUP("R2",'Data Billing Quantities'!A:P,MATCH(B16&" kWh",'Data Billing Quantities'!$4:$4,0),FALSE) -> 440 | E16: BI_R2_Low (with DRP) | F16: BI Template_Energy | G16: =VLOOKUP(VLOOKUP($F16,'Data BI Summary'!$A:$P,MATCH($G$2,'Data BI Summary'!$2:$2,0),FALSE),INDIRECT("'"&$E16&"'!"&"$A:$K"),8,FALSE) -> 0 | H16: =VLOOKUP(VLOOKUP($F16,'Data BI Summary'!$A:$P,MATCH($G$2,'Data BI Summary'!$2:$2,0),FALSE),INDIRECT("'"&$E16&"'!"&"$A:$K"),9,FALSE) -> 0 | I16: =VLOOKUP(VLOOKUP($F16,'Data BI Summary'!$A:$P,MATCH($I$2,'Data BI Summary'!$2:$2,0),FALSE),INDIRECT("'"&$E16&"'!"&"$A:$K"),8,FALSE) -> -1.276 | J16: =VLOOKUP(VLOOKUP($F16,'Data BI Summary'!$A:$P,MATCH($I$2,'Data BI Summary'!$2:$2,0),FALSE),INDIRECT("'"&$E16&"'!"&"$A:$K"),9,FALSE) -> -0.02772253789 | K16: =VLOOKUP(VLOOKUP($F16,'Data BI Summary'!$A:$P,MATCH($K$2,'Data BI Summary'!$2:$2,0),FALSE),INDIRECT("'"&$E16&"'!"&"$A:$K"),8,FALSE) -> -0.64394 | L16: =VLOOKUP(VLOOKUP($F16,'Data BI Summary'!$A:$P,MATCH($K$2,'Data BI Summary'!$2:$2,0),FALSE),INDIRECT("'"&$E16&"'!"&"$A:$K"),9,FALSE) -> -0.01164154751 | M16: =VLOOKUP(VLOOKUP($F16,'Data BI Summary'!$A:$P,MATCH($M$2,'Data BI Summary'!$2:$2,0),FALSE),INDIRECT("'"&$E16&"'!"&"$A:$K"),8,FALSE) -> -0.64329606 | N16: =VLOOKUP(VLOOKUP($F16,'Data BI Summary'!$A:$P,MATCH($M$2,'Data BI Summary'!$2:$2,0),FALSE),INDIRECT("'"&$E16&"'!"&"$A:$K"),9,FALSE) -> -0.006287276086
B17: Typical | C17: =VLOOKUP("R2",'Data Billing Quantities'!A:P,MATCH(B17&" kWh",'Data Billing Quantities'!$4:$4,0),FALSE) -> 750 | E17: BI_R2_Typical (with DRP) | F17: BI Template_Energy | G17: =VLOOKUP(VLOOKUP($F17,'Data BI Summary'!$A:$P,MATCH($G$2,'Data BI Summary'!$2:$2,0),FALSE),INDIRECT("'"&$E17&"'!"&"$A:$K"),8,FALSE) -> 0 | H17: =VLOOKUP(VLOOKUP($F17,'Data BI Summary'!$A:$P,MATCH($G$2,'Data BI Summary'!$2:$2,0),FALSE),INDIRECT("'"&$E17&"'!"&"$A:$K"),9,FALSE) -> 0 | I17: =VLOOKUP(VLOOKUP($F17,'Data BI Summary'!$A:$P,MATCH($I$2,'Data BI Summary'!$2:$2,0),FALSE),INDIRECT("'"&$E17&"'!"&"$A:$K"),8,FALSE) -> -2.175 | J17: =VLOOKUP(VLOOKUP($F17,'Data BI Summary'!$A:$P,MATCH($I$2,'Data BI Summary'!$2:$2,0),FALSE),INDIRECT("'"&$E17&"'!"&"$A:$K"),9,FALSE) -> -0.04410961696 | K17: =VLOOKUP(VLOOKUP($F17,'Data BI Summary'!$A:$P,MATCH($K$2,'Data BI Summary'!$2:$2,0),FALSE),INDIRECT("'"&$E17&"'!"&"$A:$K"),8,FALSE) -> -1.097625 | L17: =VLOOKUP(VLOOKUP($F17,'Data BI Summary'!$A:$P,MATCH($K$2,'Data BI Summary'!$2:$2,0),FALSE),INDIRECT("'"&$E17&"'!"&"$A:$K"),9,FALSE) -> -0.01685073713 | M17: =VLOOKUP(VLOOKUP($F17,'Data BI Summary'!$A:$P,MATCH($M$2,'Data BI Summary'!$2:$2,0),FALSE),INDIRECT("'"&$E17&"'!"&"$A:$K"),8,FALSE) -> -1.096527375 | N17: =VLOOKUP(VLOOKUP($F17,'Data BI Summary'!$A:$P,MATCH($M$2,'Data BI Summary'!$2:$2,0),FALSE),INDIRECT("'"&$E17&"'!"&"$A:$K"),9,FALSE) -> -0.007556507288
B18: Average | C18: =VLOOKUP("R2",'Data Billing Quantities'!A:P,MATCH(B18&" kWh",'Data Billing Quantities'!$4:$4,0),FALSE) -> 978 | E18: BI_R2_Avg (with DRP) | F18: BI Template_Energy | G18: =VLOOKUP(VLOOKUP($F18,'Data BI Summary'!$A:$P,MATCH($G$2,'Data BI Summary'!$2:$2,0),FALSE),INDIRECT("'"&$E18&"'!"&"$A:$K"),8,FALSE) -> 0 | H18: =VLOOKUP(VLOOKUP($F18,'Data BI Summary'!$A:$P,MATCH($G$2,'Data BI Summary'!$2:$2,0),FALSE),INDIRECT("'"&$E18&"'!"&"$A:$K"),9,FALSE) -> 0 | I18: =VLOOKUP(VLOOKUP($F18,'Data BI Summary'!$A:$P,MATCH($I$2,'Data BI Summary'!$2:$2,0),FALSE),INDIRECT("'"&$E18&"'!"&"$A:$K"),8,FALSE) -> -2.8362 | J18: =VLOOKUP(VLOOKUP($F18,'Data BI Summary'!$A:$P,MATCH($I$2,'Data BI Summary'!$2:$2,0),FALSE),INDIRECT("'"&$E18&"'!"&"$A:$K"),9,FALSE) -> -0.05483501765 | K18: =VLOOKUP(VLOOKUP($F18,'Data BI Summary'!$A:$P,MATCH($K$2,'Data BI Summary'!$2:$2,0),FALSE),INDIRECT("'"&$E18&"'!"&"$A:$K"),8,FALSE) -> -1.431303 | L18: =VLOOKUP(VLOOKUP($F18,'Data BI Summary'!$A:$P,MATCH($K$2,'Data BI Summary'!$2:$2,0),FALSE),INDIRECT("'"&$E18&"'!"&"$A:$K"),9,FALSE) -> -0.0197793221 | M18: =VLOOKUP(VLOOKUP($F18,'Data BI Summary'!$A:$P,MATCH($M$2,'Data BI Summary'!$2:$2,0),FALSE),INDIRECT("'"&$E18&"'!"&"$A:$K"),8,FALSE) -> -1.429871697 | N18: =VLOOKUP(VLOOKUP($F18,'Data BI Summary'!$A:$P,MATCH($M$2,'Data BI Summary'!$2:$2,0),FALSE),INDIRECT("'"&$E18&"'!"&"$A:$K"),9,FALSE) -> -0.008097399529
B19: High | C19: =VLOOKUP("R2",'Data Billing Quantities'!A:P,MATCH(B19&" kWh",'Data Billing Quantities'!$4:$4,0),FALSE) -> 2110 | E19: BI_R2_High (with DRP) | F19: BI Template_Energy | G19: =VLOOKUP(VLOOKUP($F19,'Data BI Summary'!$A:$P,MATCH($G$2,'Data BI Summary'!$2:$2,0),FALSE),INDIRECT("'"&$E19&"'!"&"$A:$K"),8,FALSE) -> 0 | H19: =VLOOKUP(VLOOKUP($F19,'Data BI Summary'!$A:$P,MATCH($G$2,'Data BI Summary'!$2:$2,0),FALSE),INDIRECT("'"&$E19&"'!"&"$A:$K"),9,FALSE) -> 0 | I19: =VLOOKUP(VLOOKUP($F19,'Data BI Summary'!$A:$P,MATCH($I$2,'Data BI Summary'!$2:$2,0),FALSE),INDIRECT("'"&$E19&"'!"&"$A:$K"),8,FALSE) -> -6.119 | J19: =VLOOKUP(VLOOKUP($F19,'Data BI Summary'!$A:$P,MATCH($I$2,'Data BI Summary'!$2:$2,0),FALSE),INDIRECT("'"&$E19&"'!"&"$A:$K"),9,FALSE) -> -0.09605214085 | K19: =VLOOKUP(VLOOKUP($F19,'Data BI Summary'!$A:$P,MATCH($K$2,'Data BI Summary'!$2:$2,0),FALSE),INDIRECT("'"&$E19&"'!"&"$A:$K"),8,FALSE) -> -3.087985 | L19: =VLOOKUP(VLOOKUP($F19,'Data BI Summary'!$A:$P,MATCH($K$2,'Data BI Summary'!$2:$2,0),FALSE),INDIRECT("'"&$E19&"'!"&"$A:$K"),9,FALSE) -> -0.02852969155 | M19: =VLOOKUP(VLOOKUP($F19,'Data BI Summary'!$A:$P,MATCH($M$2,'Data BI Summary'!$2:$2,0),FALSE),INDIRECT("'"&$E19&"'!"&"$A:$K"),8,FALSE) -> -3.084897015 | N19: =VLOOKUP(VLOOKUP($F19,'Data BI Summary'!$A:$P,MATCH($M$2,'Data BI Summary'!$2:$2,0),FALSE),INDIRECT("'"&$E19&"'!"&"$A:$K"),9,FALSE) -> -0.009268176988
A20: R2 (without DRP) | B20: Low | C20: =VLOOKUP("R2",'Data Billing Quantities'!A:P,MATCH(B20&" kWh",'Data Billing Quantities'!$4:$4,0),FALSE) -> 440 | E20: BI_R2_Low (without DRP) | F20: BI Template_Energy | G20: =VLOOKUP(VLOOKUP($F20,'Data BI Summary'!$A:$P,MATCH($G$2,'Data BI Summary'!$2:$2,0),FALSE),INDIRECT("'"&$E20&"'!"&"$A:$K"),8,FALSE) -> 5.15 | H20: =VLOOKUP(VLOOKUP($F20,'Data BI Summary'!$A:$P,MATCH($G$2,'Data BI Summary'!$2:$2,0),FALSE),INDIRECT("'"&$E20&"'!"&"$A:$K"),9,FALSE) -> 0.06190350266 | I20: =VLOOKUP(VLOOKUP($F20,'Data BI Summary'!$A:$P,MATCH($I$2,'Data BI Summary'!$2:$2,0),FALSE),INDIRECT("'"&$E20&"'!"&"$A:$K"),8,FALSE) -> 3.874 | J20: =VLOOKUP(VLOOKUP($F20,'Data BI Summary'!$A:$P,MATCH($I$2,'Data BI Summary'!$2:$2,0),FALSE),INDIRECT("'"&$E20&"'!"&"$A:$K"),9,FALSE) -> 0.04388730899 | K20: =VLOOKUP(VLOOKUP($F20,'Data BI Summary'!$A:$P,MATCH($K$2,'Data BI Summary'!$2:$2,0),FALSE),INDIRECT("'"&$E20&"'!"&"$A:$K"),8,FALSE) -> 4.50606 | L20: =VLOOKUP(VLOOKUP($F20,'Data BI Summary'!$A:$P,MATCH($K$2,'Data BI Summary'!$2:$2,0),FALSE),INDIRECT("'"&$E20&"'!"&"$A:$K"),9,FALSE) -> 0.04618854648 | M20: =VLOOKUP(VLOOKUP($F20,'Data BI Summary'!$A:$P,MATCH($M$2,'Data BI Summary'!$2:$2,0),FALSE),INDIRECT("'"&$E20&"'!"&"$A:$K"),8,FALSE) -> 4.50155394 | N20: =VLOOKUP(VLOOKUP($F20,'Data BI Summary'!$A:$P,MATCH($M$2,'Data BI Summary'!$2:$2,0),FALSE),INDIRECT("'"&$E20&"'!"&"$A:$K"),9,FALSE) -> 0.03114855081
B21: Typical | C21: =VLOOKUP("R2",'Data Billing Quantities'!A:P,MATCH(B21&" kWh",'Data Billing Quantities'!$4:$4,0),FALSE) -> 750 | E21: BI_R2_Typical (without DRP) | F21: BI Template_Energy | G21: =VLOOKUP(VLOOKUP($F21,'Data BI Summary'!$A:$P,MATCH($G$2,'Data BI Summary'!$2:$2,0),FALSE),INDIRECT("'"&$E21&"'!"&"$A:$K"),8,FALSE) -> 4.995 | H21: =VLOOKUP(VLOOKUP($F21,'Data BI Summary'!$A:$P,MATCH($G$2,'Data BI Summary'!$2:$2,0),FALSE),INDIRECT("'"&$E21&"'!"&"$A:$K"),9,FALSE) -> 0.057347876 | I21: =VLOOKUP(VLOOKUP($F21,'Data BI Summary'!$A:$P,MATCH($I$2,'Data BI Summary'!$2:$2,0),FALSE),INDIRECT("'"&$E21&"'!"&"$A:$K"),8,FALSE) -> 2.82 | J21: =VLOOKUP(VLOOKUP($F21,'Data BI Summary'!$A:$P,MATCH($I$2,'Data BI Summary'!$2:$2,0),FALSE),INDIRECT("'"&$E21&"'!"&"$A:$K"),9,FALSE) -> 0.02954148628 | K21: =VLOOKUP(VLOOKUP($F21,'Data BI Summary'!$A:$P,MATCH($K$2,'Data BI Summary'!$2:$2,0),FALSE),INDIRECT("'"&$E21&"'!"&"$A:$K"),8,FALSE) -> 3.897375 | L21: =VLOOKUP(VLOOKUP($F21,'Data BI Summary'!$A:$P,MATCH($K$2,'Data BI Summary'!$2:$2,0),FALSE),INDIRECT("'"&$E21&"'!"&"$A:$K"),9,FALSE) -> 0.0350205907 | M21: =VLOOKUP(VLOOKUP($F21,'Data BI Summary'!$A:$P,MATCH($M$2,'Data BI Summary'!$2:$2,0),FALSE),INDIRECT("'"&$E21&"'!"&"$A:$K"),8,FALSE) -> 3.893477625 | N21: =VLOOKUP(VLOOKUP($F21,'Data BI Summary'!$A:$P,MATCH($M$2,'Data BI Summary'!$2:$2,0),FALSE),INDIRECT("'"&$E21&"'!"&"$A:$K"),9,FALSE) -> 0.02036186507
B22: Average | C22: =VLOOKUP("R2",'Data Billing Quantities'!A:P,MATCH(B22&" kWh",'Data Billing Quantities'!$4:$4,0),FALSE) -> 978 | E22: BI_R2_Avg (without DRP) | F22: BI Template_Energy | G22: =VLOOKUP(VLOOKUP($F22,'Data BI Summary'!$A:$P,MATCH($G$2,'Data BI Summary'!$2:$2,0),FALSE),INDIRECT("'"&$E22&"'!"&"$A:$K"),8,FALSE) -> 4.881 | H22: =VLOOKUP(VLOOKUP($F22,'Data BI Summary'!$A:$P,MATCH($G$2,'Data BI Summary'!$2:$2,0),FALSE),INDIRECT("'"&$E22&"'!"&"$A:$K"),9,FALSE) -> 0.05424972881 | I22: =VLOOKUP(VLOOKUP($F22,'Data BI Summary'!$A:$P,MATCH($I$2,'Data BI Summary'!$2:$2,0),FALSE),INDIRECT("'"&$E22&"'!"&"$A:$K"),8,FALSE) -> 2.0448 | J22: =VLOOKUP(VLOOKUP($F22,'Data BI Summary'!$A:$P,MATCH($I$2,'Data BI Summary'!$2:$2,0),FALSE),INDIRECT("'"&$E22&"'!"&"$A:$K"),9,FALSE) -> 0.02029674391 | K22: =VLOOKUP(VLOOKUP($F22,'Data BI Summary'!$A:$P,MATCH($K$2,'Data BI Summary'!$2:$2,0),FALSE),INDIRECT("'"&$E22&"'!"&"$A:$K"),8,FALSE) -> 3.449697 | L22: =VLOOKUP(VLOOKUP($F22,'Data BI Summary'!$A:$P,MATCH($K$2,'Data BI Summary'!$2:$2,0),FALSE),INDIRECT("'"&$E22&"'!"&"$A:$K"),9,FALSE) -> 0.02841913865 | M22: =VLOOKUP(VLOOKUP($F22,'Data BI Summary'!$A:$P,MATCH($M$2,'Data BI Summary'!$2:$2,0),FALSE),INDIRECT("'"&$E22&"'!"&"$A:$K"),8,FALSE) -> 3.446247303 | N22: =VLOOKUP(VLOOKUP($F22,'Data BI Summary'!$A:$P,MATCH($M$2,'Data BI Summary'!$2:$2,0),FALSE),INDIRECT("'"&$E22&"'!"&"$A:$K"),9,FALSE) -> 0.01527877427
B23: High | C23: =VLOOKUP("R2",'Data Billing Quantities'!A:P,MATCH(B23&" kWh",'Data Billing Quantities'!$4:$4,0),FALSE) -> 2110 | E23: BI_R2_High (without DRP) | F23: BI Template_Energy | G23: =VLOOKUP(VLOOKUP($F23,'Data BI Summary'!$A:$P,MATCH($G$2,'Data BI Summary'!$2:$2,0),FALSE),INDIRECT("'"&$E23&"'!"&"$A:$K"),8,FALSE) -> 4.315 | H23: =VLOOKUP(VLOOKUP($F23,'Data BI Summary'!$A:$P,MATCH($G$2,'Data BI Summary'!$2:$2,0),FALSE),INDIRECT("'"&$E23&"'!"&"$A:$K"),9,FALSE) -> 0.04139644653 | I23: =VLOOKUP(VLOOKUP($F23,'Data BI Summary'!$A:$P,MATCH($I$2,'Data BI Summary'!$2:$2,0),FALSE),INDIRECT("'"&$E23&"'!"&"$A:$K"),8,FALSE) -> -1.804 | J23: =VLOOKUP(VLOOKUP($F23,'Data BI Summary'!$A:$P,MATCH($I$2,'Data BI Summary'!$2:$2,0),FALSE),INDIRECT("'"&$E23&"'!"&"$A:$K"),9,FALSE) -> -0.01420573302 | K23: =VLOOKUP(VLOOKUP($F23,'Data BI Summary'!$A:$P,MATCH($K$2,'Data BI Summary'!$2:$2,0),FALSE),INDIRECT("'"&$E23&"'!"&"$A:$K"),8,FALSE) -> 1.227015 | L23: =VLOOKUP(VLOOKUP($F23,'Data BI Summary'!$A:$P,MATCH($K$2,'Data BI Summary'!$2:$2,0),FALSE),INDIRECT("'"&$E23&"'!"&"$A:$K"),9,FALSE) -> 0.007153622509 | M23: =VLOOKUP(VLOOKUP($F23,'Data BI Summary'!$A:$P,MATCH($M$2,'Data BI Summary'!$2:$2,0),FALSE),INDIRECT("'"&$E23&"'!"&"$A:$K"),8,FALSE) -> 1.225787985 | N23: =VLOOKUP(VLOOKUP($F23,'Data BI Summary'!$A:$P,MATCH($M$2,'Data BI Summary'!$2:$2,0),FALSE),INDIRECT("'"&$E23&"'!"&"$A:$K"),9,FALSE) -> 0.003094869156
A24: Seasonal-UR | B24: Low | C24: =VLOOKUP("Seasonal",'Data Billing Quantities'!A:P,MATCH(B24&" kWh",'Data Billing Quantities'!$4:$4,0),FALSE) -> 40 | E24: BI_Seas_UR_Low | F24: BI Template_Energy | G24: =VLOOKUP(VLOOKUP($F24,'Data BI Summary'!$A:$P,MATCH($G$2,'Data BI Summary'!$2:$2,0),FALSE),INDIRECT("'"&$E24&"'!"&"$A:$K"),8,FALSE) -> 1.61 | H24: =VLOOKUP(VLOOKUP($F24,'Data BI Summary'!$A:$P,MATCH($G$2,'Data BI Summary'!$2:$2,0),FALSE),INDIRECT("'"&$E24&"'!"&"$A:$K"),9,FALSE) -> 0.04036099273 | I24: =VLOOKUP(VLOOKUP($F24,'Data BI Summary'!$A:$P,MATCH($I$2,'Data BI Summary'!$2:$2,0),FALSE),INDIRECT("'"&$E24&"'!"&"$A:$K"),8,FALSE) -> 1.49 | J24: =VLOOKUP(VLOOKUP($F24,'Data BI Summary'!$A:$P,MATCH($I$2,'Data BI Summary'!$2:$2,0),FALSE),INDIRECT("'"&$E24&"'!"&"$A:$K"),9,FALSE) -> 0.03675592611 | K24: =VLOOKUP(VLOOKUP($F24,'Data BI Summary'!$A:$P,MATCH($K$2,'Data BI Summary'!$2:$2,0),FALSE),INDIRECT("'"&$E24&"'!"&"$A:$K"),8,FALSE) -> 1.557648 | L24: =VLOOKUP(VLOOKUP($F24,'Data BI Summary'!$A:$P,MATCH($K$2,'Data BI Summary'!$2:$2,0),FALSE),INDIRECT("'"&$E24&"'!"&"$A:$K"),9,FALSE) -> 0.03756662516 | M24: =VLOOKUP(VLOOKUP($F24,'Data BI Summary'!$A:$P,MATCH($M$2,'Data BI Summary'!$2:$2,0),FALSE),INDIRECT("'"&$E24&"'!"&"$A:$K"),8,FALSE) -> 1.556090352 | N24: =VLOOKUP(VLOOKUP($F24,'Data BI Summary'!$A:$P,MATCH($M$2,'Data BI Summary'!$2:$2,0),FALSE),INDIRECT("'"&$E24&"'!"&"$A:$K"),9,FALSE) -> 0.03389013557
B25: Average | C25: =VLOOKUP("Seasonal",'Data Billing Quantities'!A:P,MATCH(B25&" kWh",'Data Billing Quantities'!$4:$4,0),FALSE) -> 369 | E25: BI_Seas_UR_Avg | F25: BI Template_Energy | G25: =VLOOKUP(VLOOKUP($F25,'Data BI Summary'!$A:$P,MATCH($G$2,'Data BI Summary'!$2:$2,0),FALSE),INDIRECT("'"&$E25&"'!"&"$A:$K"),8,FALSE) -> 1.61 | H25: =VLOOKUP(VLOOKUP($F25,'Data BI Summary'!$A:$P,MATCH($G$2,'Data BI Summary'!$2:$2,0),FALSE),INDIRECT("'"&$E25&"'!"&"$A:$K"),9,FALSE) -> 0.04036099273 | I25: =VLOOKUP(VLOOKUP($F25,'Data BI Summary'!$A:$P,MATCH($I$2,'Data BI Summary'!$2:$2,0),FALSE),INDIRECT("'"&$E25&"'!"&"$A:$K"),8,FALSE) -> 0.503 | J25: =VLOOKUP(VLOOKUP($F25,'Data BI Summary'!$A:$P,MATCH($I$2,'Data BI Summary'!$2:$2,0),FALSE),INDIRECT("'"&$E25&"'!"&"$A:$K"),9,FALSE) -> 0.0118603109 | K25: =VLOOKUP(VLOOKUP($F25,'Data BI Summary'!$A:$P,MATCH($K$2,'Data BI Summary'!$2:$2,0),FALSE),INDIRECT("'"&$E25&"'!"&"$A:$K"),8,FALSE) -> 1.1270528 | L25: =VLOOKUP(VLOOKUP($F25,'Data BI Summary'!$A:$P,MATCH($K$2,'Data BI Summary'!$2:$2,0),FALSE),INDIRECT("'"&$E25&"'!"&"$A:$K"),9,FALSE) -> 0.02211985934 | M25: =VLOOKUP(VLOOKUP($F25,'Data BI Summary'!$A:$P,MATCH($M$2,'Data BI Summary'!$2:$2,0),FALSE),INDIRECT("'"&$E25&"'!"&"$A:$K"),8,FALSE) -> 1.125925747 | N25: =VLOOKUP(VLOOKUP($F25,'Data BI Summary'!$A:$P,MATCH($M$2,'Data BI Summary'!$2:$2,0),FALSE),INDIRECT("'"&$E25&"'!"&"$A:$K"),9,FALSE) -> 0.01246869254
B26: High | C26: =VLOOKUP("Seasonal",'Data Billing Quantities'!A:P,MATCH(B26&" kWh",'Data Billing Quantities'!$4:$4,0),FALSE) -> 1040 | E26: BI_Seas_UR_High | F26: BI Template_Energy | G26: =VLOOKUP(VLOOKUP($F26,'Data BI Summary'!$A:$P,MATCH($G$2,'Data BI Summary'!$2:$2,0),FALSE),INDIRECT("'"&$E26&"'!"&"$A:$K"),8,FALSE) -> 1.61 | H26: =VLOOKUP(VLOOKUP($F26,'Data BI Summary'!$A:$P,MATCH($G$2,'Data BI Summary'!$2:$2,0),FALSE),INDIRECT("'"&$E26&"'!"&"$A:$K"),9,FALSE) -> 0.04036099273 | I26: =VLOOKUP(VLOOKUP($F26,'Data BI Summary'!$A:$P,MATCH($I$2,'Data BI Summary'!$2:$2,0),FALSE),INDIRECT("'"&$E26&"'!"&"$A:$K"),8,FALSE) -> -1.51 | J26: =VLOOKUP(VLOOKUP($F26,'Data BI Summary'!$A:$P,MATCH($I$2,'Data BI Summary'!$2:$2,0),FALSE),INDIRECT("'"&$E26&"'!"&"$A:$K"),9,FALSE) -> -0.03266298449 | K26: =VLOOKUP(VLOOKUP($F26,'Data BI Summary'!$A:$P,MATCH($K$2,'Data BI Summary'!$2:$2,0),FALSE),INDIRECT("'"&$E26&"'!"&"$A:$K"),8,FALSE) -> 0.248848 | L26: =VLOOKUP(VLOOKUP($F26,'Data BI Summary'!$A:$P,MATCH($K$2,'Data BI Summary'!$2:$2,0),FALSE),INDIRECT("'"&$E26&"'!"&"$A:$K"),9,FALSE) -> 0.003539602837 | M26: =VLOOKUP(VLOOKUP($F26,'Data BI Summary'!$A:$P,MATCH($M$2,'Data BI Summary'!$2:$2,0),FALSE),INDIRECT("'"&$E26&"'!"&"$A:$K"),8,FALSE) -> 0.248599152 | N26: =VLOOKUP(VLOOKUP($F26,'Data BI Summary'!$A:$P,MATCH($M$2,'Data BI Summary'!$2:$2,0),FALSE),INDIRECT("'"&$E26&"'!"&"$A:$K"),9,FALSE) -> 0.001374820349
A27: Seasonal-R1 | B27: Low | C27: =VLOOKUP("Seasonal",'Data Billing Quantities'!A:P,MATCH(B27&" kWh",'Data Billing Quantities'!$4:$4,0),FALSE) -> 40 | E27: BI_Seas_R1_Low | F27: BI Template_Energy | G27: =VLOOKUP(VLOOKUP($F27,'Data BI Summary'!$A:$P,MATCH($G$2,'Data BI Summary'!$2:$2,0),FALSE),INDIRECT("'"&$E27&"'!"&"$A:$K"),8,FALSE) -> 2.75 | H27: =VLOOKUP(VLOOKUP($F27,'Data BI Summary'!$A:$P,MATCH($G$2,'Data BI Summary'!$2:$2,0),FALSE),INDIRECT("'"&$E27&"'!"&"$A:$K"),9,FALSE) -> 0.04038772213 | I27: =VLOOKUP(VLOOKUP($F27,'Data BI Summary'!$A:$P,MATCH($I$2,'Data BI Summary'!$2:$2,0),FALSE),INDIRECT("'"&$E27&"'!"&"$A:$K"),8,FALSE) -> 2.634 | J27: =VLOOKUP(VLOOKUP($F27,'Data BI Summary'!$A:$P,MATCH($I$2,'Data BI Summary'!$2:$2,0),FALSE),INDIRECT("'"&$E27&"'!"&"$A:$K"),9,FALSE) -> 0.03827733151 | K27: =VLOOKUP(VLOOKUP($F27,'Data BI Summary'!$A:$P,MATCH($K$2,'Data BI Summary'!$2:$2,0),FALSE),INDIRECT("'"&$E27&"'!"&"$A:$K"),8,FALSE) -> 2.69856 | L27: =VLOOKUP(VLOOKUP($F27,'Data BI Summary'!$A:$P,MATCH($K$2,'Data BI Summary'!$2:$2,0),FALSE),INDIRECT("'"&$E27&"'!"&"$A:$K"),9,FALSE) -> 0.03871906693 | M27: =VLOOKUP(VLOOKUP($F27,'Data BI Summary'!$A:$P,MATCH($M$2,'Data BI Summary'!$2:$2,0),FALSE),INDIRECT("'"&$E27&"'!"&"$A:$K"),8,FALSE) -> 2.69586144 | N27: =VLOOKUP(VLOOKUP($F27,'Data BI Summary'!$A:$P,MATCH($M$2,'Data BI Summary'!$2:$2,0),FALSE),INDIRECT("'"&$E27&"'!"&"$A:$K"),9,FALSE) -> 0.03636945152
B28: Average | C28: =VLOOKUP("Seasonal",'Data Billing Quantities'!A:P,MATCH(B28&" kWh",'Data Billing Quantities'!$4:$4,0),FALSE) -> 369 | E28: BI_Seas_R1_Avg | F28: BI Template_Energy | G28: =VLOOKUP(VLOOKUP($F28,'Data BI Summary'!$A:$P,MATCH($G$2,'Data BI Summary'!$2:$2,0),FALSE),INDIRECT("'"&$E28&"'!"&"$A:$K"),8,FALSE) -> 2.75 | H28: =VLOOKUP(VLOOKUP($F28,'Data BI Summary'!$A:$P,MATCH($G$2,'Data BI Summary'!$2:$2,0),FALSE),INDIRECT("'"&$E28&"'!"&"$A:$K"),9,FALSE) -> 0.04038772213 | I28: =VLOOKUP(VLOOKUP($F28,'Data BI Summary'!$A:$P,MATCH($I$2,'Data BI Summary'!$2:$2,0),FALSE),INDIRECT("'"&$E28&"'!"&"$A:$K"),8,FALSE) -> 1.6799 | J28: =VLOOKUP(VLOOKUP($F28,'Data BI Summary'!$A:$P,MATCH($I$2,'Data BI Summary'!$2:$2,0),FALSE),INDIRECT("'"&$E28&"'!"&"$A:$K"),9,FALSE) -> 0.02355754926 | K28: =VLOOKUP(VLOOKUP($F28,'Data BI Summary'!$A:$P,MATCH($K$2,'Data BI Summary'!$2:$2,0),FALSE),INDIRECT("'"&$E28&"'!"&"$A:$K"),8,FALSE) -> 2.275466 | L28: =VLOOKUP(VLOOKUP($F28,'Data BI Summary'!$A:$P,MATCH($K$2,'Data BI Summary'!$2:$2,0),FALSE),INDIRECT("'"&$E28&"'!"&"$A:$K"),9,FALSE) -> 0.02864027131 | M28: =VLOOKUP(VLOOKUP($F28,'Data BI Summary'!$A:$P,MATCH($M$2,'Data BI Summary'!$2:$2,0),FALSE),INDIRECT("'"&$E28&"'!"&"$A:$K"),8,FALSE) -> 2.273190534 | N28: =VLOOKUP(VLOOKUP($F28,'Data BI Summary'!$A:$P,MATCH($M$2,'Data BI Summary'!$2:$2,0),FALSE),INDIRECT("'"&$E28&"'!"&"$A:$K"),9,FALSE) -> 0.01913274043
B29: High | C29: =VLOOKUP("Seasonal",'Data Billing Quantities'!A:P,MATCH(B29&" kWh",'Data Billing Quantities'!$4:$4,0),FALSE) -> 1040 | E29: BI_Seas_R1_High | F29: BI Template_Energy | G29: =VLOOKUP(VLOOKUP($F29,'Data BI Summary'!$A:$P,MATCH($G$2,'Data BI Summary'!$2:$2,0),FALSE),INDIRECT("'"&$E29&"'!"&"$A:$K"),8,FALSE) -> 2.75 | H29: =VLOOKUP(VLOOKUP($F29,'Data BI Summary'!$A:$P,MATCH($G$2,'Data BI Summary'!$2:$2,0),FALSE),INDIRECT("'"&$E29&"'!"&"$A:$K"),9,FALSE) -> 0.04038772213 | I29: =VLOOKUP(VLOOKUP($F29,'Data BI Summary'!$A:$P,MATCH($I$2,'Data BI Summary'!$2:$2,0),FALSE),INDIRECT("'"&$E29&"'!"&"$A:$K"),8,FALSE) -> -0.266 | J29: =VLOOKUP(VLOOKUP($F29,'Data BI Summary'!$A:$P,MATCH($I$2,'Data BI Summary'!$2:$2,0),FALSE),INDIRECT("'"&$E29&"'!"&"$A:$K"),9,FALSE) -> -0.003481541672 | K29: =VLOOKUP(VLOOKUP($F29,'Data BI Summary'!$A:$P,MATCH($K$2,'Data BI Summary'!$2:$2,0),FALSE),INDIRECT("'"&$E29&"'!"&"$A:$K"),8,FALSE) -> 1.41256 | L29: =VLOOKUP(VLOOKUP($F29,'Data BI Summary'!$A:$P,MATCH($K$2,'Data BI Summary'!$2:$2,0),FALSE),INDIRECT("'"&$E29&"'!"&"$A:$K"),9,FALSE) -> 0.01421898254 | M29: =VLOOKUP(VLOOKUP($F29,'Data BI Summary'!$A:$P,MATCH($M$2,'Data BI Summary'!$2:$2,0),FALSE),INDIRECT("'"&$E29&"'!"&"$A:$K"),8,FALSE) -> 1.41114744 | N29: =VLOOKUP(VLOOKUP($F29,'Data BI Summary'!$A:$P,MATCH($M$2,'Data BI Summary'!$2:$2,0),FALSE),INDIRECT("'"&$E29&"'!"&"$A:$K"),9,FALSE) -> 0.006721294572
A30: Seasonal-R2 | B30: Low | C30: =VLOOKUP("Seasonal",'Data Billing Quantities'!A:P,MATCH(B30&" kWh",'Data Billing Quantities'!$4:$4,0),FALSE) -> 40 | E30: BI_Seas_R2_Low | F30: BI Template_Energy | G30: =VLOOKUP(VLOOKUP($F30,'Data BI Summary'!$A:$P,MATCH($G$2,'Data BI Summary'!$2:$2,0),FALSE),INDIRECT("'"&$E30&"'!"&"$A:$K"),8,FALSE) -> 8.74 | H30: =VLOOKUP(VLOOKUP($F30,'Data BI Summary'!$A:$P,MATCH($G$2,'Data BI Summary'!$2:$2,0),FALSE),INDIRECT("'"&$E30&"'!"&"$A:$K"),9,FALSE) -> 0.1181975549 | I30: =VLOOKUP(VLOOKUP($F30,'Data BI Summary'!$A:$P,MATCH($I$2,'Data BI Summary'!$2:$2,0),FALSE),INDIRECT("'"&$E30&"'!"&"$A:$K"),8,FALSE) -> 8.624 | J30: =VLOOKUP(VLOOKUP($F30,'Data BI Summary'!$A:$P,MATCH($I$2,'Data BI Summary'!$2:$2,0),FALSE),INDIRECT("'"&$E30&"'!"&"$A:$K"),9,FALSE) -> 0.1153135236 | K30: =VLOOKUP(VLOOKUP($F30,'Data BI Summary'!$A:$P,MATCH($K$2,'Data BI Summary'!$2:$2,0),FALSE),INDIRECT("'"&$E30&"'!"&"$A:$K"),8,FALSE) -> 8.68146 | L30: =VLOOKUP(VLOOKUP($F30,'Data BI Summary'!$A:$P,MATCH($K$2,'Data BI Summary'!$2:$2,0),FALSE),INDIRECT("'"&$E30&"'!"&"$A:$K"),9,FALSE) -> 0.114786099 | M30: =VLOOKUP(VLOOKUP($F30,'Data BI Summary'!$A:$P,MATCH($M$2,'Data BI Summary'!$2:$2,0),FALSE),INDIRECT("'"&$E30&"'!"&"$A:$K"),8,FALSE) -> 8.67277854 | N30: =VLOOKUP(VLOOKUP($F30,'Data BI Summary'!$A:$P,MATCH($M$2,'Data BI Summary'!$2:$2,0),FALSE),INDIRECT("'"&$E30&"'!"&"$A:$K"),9,FALSE) -> 0.1083270095
B31: Average | C31: =VLOOKUP("Seasonal",'Data Billing Quantities'!A:P,MATCH(B31&" kWh",'Data Billing Quantities'!$4:$4,0),FALSE) -> 369 | E31: BI_Seas_R2_Avg | F31: BI Template_Energy | G31: =VLOOKUP(VLOOKUP($F31,'Data BI Summary'!$A:$P,MATCH($G$2,'Data BI Summary'!$2:$2,0),FALSE),INDIRECT("'"&$E31&"'!"&"$A:$K"),8,FALSE) -> 8.5755 | H31: =VLOOKUP(VLOOKUP($F31,'Data BI Summary'!$A:$P,MATCH($G$2,'Data BI Summary'!$2:$2,0),FALSE),INDIRECT("'"&$E31&"'!"&"$A:$K"),9,FALSE) -> 0.1098164412 | I31: =VLOOKUP(VLOOKUP($F31,'Data BI Summary'!$A:$P,MATCH($I$2,'Data BI Summary'!$2:$2,0),FALSE),INDIRECT("'"&$E31&"'!"&"$A:$K"),8,FALSE) -> 7.5054 | J31: =VLOOKUP(VLOOKUP($F31,'Data BI Summary'!$A:$P,MATCH($I$2,'Data BI Summary'!$2:$2,0),FALSE),INDIRECT("'"&$E31&"'!"&"$A:$K"),9,FALSE) -> 0.09106795833 | K31: =VLOOKUP(VLOOKUP($F31,'Data BI Summary'!$A:$P,MATCH($K$2,'Data BI Summary'!$2:$2,0),FALSE),INDIRECT("'"&$E31&"'!"&"$A:$K"),8,FALSE) -> 8.0354685 | L31: =VLOOKUP(VLOOKUP($F31,'Data BI Summary'!$A:$P,MATCH($K$2,'Data BI Summary'!$2:$2,0),FALSE),INDIRECT("'"&$E31&"'!"&"$A:$K"),9,FALSE) -> 0.08908175241 | M31: =VLOOKUP(VLOOKUP($F31,'Data BI Summary'!$A:$P,MATCH($M$2,'Data BI Summary'!$2:$2,0),FALSE),INDIRECT("'"&$E31&"'!"&"$A:$K"),8,FALSE) -> 8.027433032 | N31: =VLOOKUP(VLOOKUP($F31,'Data BI Summary'!$A:$P,MATCH($M$2,'Data BI Summary'!$2:$2,0),FALSE),INDIRECT("'"&$E31&"'!"&"$A:$K"),9,FALSE) -> 0.0619312927
B32: High | C32: =VLOOKUP("Seasonal",'Data Billing Quantities'!A:P,MATCH(B32&" kWh",'Data Billing Quantities'!$4:$4,0),FALSE) -> 1040 | E32: BI_Seas_R2_High | F32: BI Template_Energy | G32: =VLOOKUP(VLOOKUP($F32,'Data BI Summary'!$A:$P,MATCH($G$2,'Data BI Summary'!$2:$2,0),FALSE),INDIRECT("'"&$E32&"'!"&"$A:$K"),8,FALSE) -> 8.24 | H32: =VLOOKUP(VLOOKUP($F32,'Data BI Summary'!$A:$P,MATCH($G$2,'Data BI Summary'!$2:$2,0),FALSE),INDIRECT("'"&$E32&"'!"&"$A:$K"),9,FALSE) -> 0.09521168423 | I32: =VLOOKUP(VLOOKUP($F32,'Data BI Summary'!$A:$P,MATCH($I$2,'Data BI Summary'!$2:$2,0),FALSE),INDIRECT("'"&$E32&"'!"&"$A:$K"),8,FALSE) -> 5.224 | J32: =VLOOKUP(VLOOKUP($F32,'Data BI Summary'!$A:$P,MATCH($I$2,'Data BI Summary'!$2:$2,0),FALSE),INDIRECT("'"&$E32&"'!"&"$A:$K"),9,FALSE) -> 0.05332096962 | K32: =VLOOKUP(VLOOKUP($F32,'Data BI Summary'!$A:$P,MATCH($K$2,'Data BI Summary'!$2:$2,0),FALSE),INDIRECT("'"&$E32&"'!"&"$A:$K"),8,FALSE) -> 6.71796 | L32: =VLOOKUP(VLOOKUP($F32,'Data BI Summary'!$A:$P,MATCH($K$2,'Data BI Summary'!$2:$2,0),FALSE),INDIRECT("'"&$E32&"'!"&"$A:$K"),9,FALSE) -> 0.05601921082 | M32: =VLOOKUP(VLOOKUP($F32,'Data BI Summary'!$A:$P,MATCH($M$2,'Data BI Summary'!$2:$2,0),FALSE),INDIRECT("'"&$E32&"'!"&"$A:$K"),8,FALSE) -> 6.71124204 | N32: =VLOOKUP(VLOOKUP($F32,'Data BI Summary'!$A:$P,MATCH($M$2,'Data BI Summary'!$2:$2,0),FALSE),INDIRECT("'"&$E32&"'!"&"$A:$K"),9,FALSE) -> 0.02909189713
A33: GSe | B33: Low | C33: =VLOOKUP(A$33,'Data Billing Quantities'!A:P,MATCH(B33&" kWh",'Data Billing Quantities'!$4:$4,0),FALSE) -> 60 | E33: BI_GSe_Low | F33: BI Template_Energy | G33: =VLOOKUP(VLOOKUP($F33,'Data BI Summary'!$A:$P,MATCH($G$2,'Data BI Summary'!$2:$2,0),FALSE),INDIRECT("'"&$E33&"'!"&"$A:$K"),8,FALSE) -> 0.222 | H33: =VLOOKUP(VLOOKUP($F33,'Data BI Summary'!$A:$P,MATCH($G$2,'Data BI Summary'!$2:$2,0),FALSE),INDIRECT("'"&$E33&"'!"&"$A:$K"),9,FALSE) -> 0.005976095618 | I33: =VLOOKUP(VLOOKUP($F33,'Data BI Summary'!$A:$P,MATCH($I$2,'Data BI Summary'!$2:$2,0),FALSE),INDIRECT("'"&$E33&"'!"&"$A:$K"),8,FALSE) -> 0.054 | J33: =VLOOKUP(VLOOKUP($F33,'Data BI Summary'!$A:$P,MATCH($I$2,'Data BI Summary'!$2:$2,0),FALSE),INDIRECT("'"&$E33&"'!"&"$A:$K"),9,FALSE) -> 0.001414605248 | K33: =VLOOKUP(VLOOKUP($F33,'Data BI Summary'!$A:$P,MATCH($K$2,'Data BI Summary'!$2:$2,0),FALSE),INDIRECT("'"&$E33&"'!"&"$A:$K"),8,FALSE) -> 0.132912 | L33: =VLOOKUP(VLOOKUP($F33,'Data BI Summary'!$A:$P,MATCH($K$2,'Data BI Summary'!$2:$2,0),FALSE),INDIRECT("'"&$E33&"'!"&"$A:$K"),9,FALSE) -> 0.003384448956 | M33: =VLOOKUP(VLOOKUP($F33,'Data BI Summary'!$A:$P,MATCH($M$2,'Data BI Summary'!$2:$2,0),FALSE),INDIRECT("'"&$E33&"'!"&"$A:$K"),8,FALSE) -> 0.132779088 | N33: =VLOOKUP(VLOOKUP($F33,'Data BI Summary'!$A:$P,MATCH($M$2,'Data BI Summary'!$2:$2,0),FALSE),INDIRECT("'"&$E33&"'!"&"$A:$K"),9,FALSE) -> 0.002895210325
B34: Typical | C34: =VLOOKUP(A$33,'Data Billing Quantities'!A:P,MATCH(B34&" kWh",'Data Billing Quantities'!$4:$4,0),FALSE) -> 2000 | E34: BI_GSe_Typical | F34: BI Template_Energy | G34: =VLOOKUP(VLOOKUP($F34,'Data BI Summary'!$A:$P,MATCH($G$2,'Data BI Summary'!$2:$2,0),FALSE),INDIRECT("'"&$E34&"'!"&"$A:$K"),8,FALSE) -> 7.4 | H34: =VLOOKUP(VLOOKUP($F34,'Data BI Summary'!$A:$P,MATCH($G$2,'Data BI Summary'!$2:$2,0),FALSE),INDIRECT("'"&$E34&"'!"&"$A:$K"),9,FALSE) -> 0.04148447135 | I34: =VLOOKUP(VLOOKUP($F34,'Data BI Summary'!$A:$P,MATCH($I$2,'Data BI Summary'!$2:$2,0),FALSE),INDIRECT("'"&$E34&"'!"&"$A:$K"),8,FALSE) -> 1.8 | J34: =VLOOKUP(VLOOKUP($F34,'Data BI Summary'!$A:$P,MATCH($I$2,'Data BI Summary'!$2:$2,0),FALSE),INDIRECT("'"&$E34&"'!"&"$A:$K"),9,FALSE) -> 0.009046448083 | K34: =VLOOKUP(VLOOKUP($F34,'Data BI Summary'!$A:$P,MATCH($K$2,'Data BI Summary'!$2:$2,0),FALSE),INDIRECT("'"&$E34&"'!"&"$A:$K"),8,FALSE) -> 4.4304 | L34: =VLOOKUP(VLOOKUP($F34,'Data BI Summary'!$A:$P,MATCH($K$2,'Data BI Summary'!$2:$2,0),FALSE),INDIRECT("'"&$E34&"'!"&"$A:$K"),9,FALSE) -> 0.0188063886 | M34: =VLOOKUP(VLOOKUP($F34,'Data BI Summary'!$A:$P,MATCH($M$2,'Data BI Summary'!$2:$2,0),FALSE),INDIRECT("'"&$E34&"'!"&"$A:$K"),8,FALSE) -> 4.4259696 | N34: =VLOOKUP(VLOOKUP($F34,'Data BI Summary'!$A:$P,MATCH($M$2,'Data BI Summary'!$2:$2,0),FALSE),INDIRECT("'"&$E34&"'!"&"$A:$K"),9,FALSE) -> 0.009873824363
B35: Average | C35: =VLOOKUP(A$33,'Data Billing Quantities'!A:P,MATCH(B35&" kWh",'Data Billing Quantities'!$4:$4,0),FALSE) -> 1887 | E35: BI_GSe_Avg | F35: BI Template_Energy | G35: =VLOOKUP(VLOOKUP($F35,'Data BI Summary'!$A:$P,MATCH($G$2,'Data BI Summary'!$2:$2,0),FALSE),INDIRECT("'"&$E35&"'!"&"$A:$K"),8,FALSE) -> 6.9819 | H35: =VLOOKUP(VLOOKUP($F35,'Data BI Summary'!$A:$P,MATCH($G$2,'Data BI Summary'!$2:$2,0),FALSE),INDIRECT("'"&$E35&"'!"&"$A:$K"),9,FALSE) -> 0.04103292554 | I35: =VLOOKUP(VLOOKUP($F35,'Data BI Summary'!$A:$P,MATCH($I$2,'Data BI Summary'!$2:$2,0),FALSE),INDIRECT("'"&$E35&"'!"&"$A:$K"),8,FALSE) -> 1.6983 | J35: =VLOOKUP(VLOOKUP($F35,'Data BI Summary'!$A:$P,MATCH($I$2,'Data BI Summary'!$2:$2,0),FALSE),INDIRECT("'"&$E35&"'!"&"$A:$K"),9,FALSE) -> 0.008956950687 | K35: =VLOOKUP(VLOOKUP($F35,'Data BI Summary'!$A:$P,MATCH($K$2,'Data BI Summary'!$2:$2,0),FALSE),INDIRECT("'"&$E35&"'!"&"$A:$K"),8,FALSE) -> 4.1800824 | L35: =VLOOKUP(VLOOKUP($F35,'Data BI Summary'!$A:$P,MATCH($K$2,'Data BI Summary'!$2:$2,0),FALSE),INDIRECT("'"&$E35&"'!"&"$A:$K"),9,FALSE) -> 0.01864900382 | M35: =VLOOKUP(VLOOKUP($F35,'Data BI Summary'!$A:$P,MATCH($M$2,'Data BI Summary'!$2:$2,0),FALSE),INDIRECT("'"&$E35&"'!"&"$A:$K"),8,FALSE) -> 4.175902318 | N35: =VLOOKUP(VLOOKUP($F35,'Data BI Summary'!$A:$P,MATCH($M$2,'Data BI Summary'!$2:$2,0),FALSE),INDIRECT("'"&$E35&"'!"&"$A:$K"),9,FALSE) -> 0.009829941389
B36: High | C36: =VLOOKUP(A$33,'Data Billing Quantities'!A:P,MATCH(B36&" kWh",'Data Billing Quantities'!$4:$4,0),FALSE) -> 5570 | E36: BI_GSe_High | F36: BI Template_Energy | G36: =VLOOKUP(VLOOKUP($F36,'Data BI Summary'!$A:$P,MATCH($G$2,'Data BI Summary'!$2:$2,0),FALSE),INDIRECT("'"&$E36&"'!"&"$A:$K"),8,FALSE) -> 20.609 | H36: =VLOOKUP(VLOOKUP($F36,'Data BI Summary'!$A:$P,MATCH($G$2,'Data BI Summary'!$2:$2,0),FALSE),INDIRECT("'"&$E36&"'!"&"$A:$K"),9,FALSE) -> 0.04702288056 | I36: =VLOOKUP(VLOOKUP($F36,'Data BI Summary'!$A:$P,MATCH($I$2,'Data BI Summary'!$2:$2,0),FALSE),INDIRECT("'"&$E36&"'!"&"$A:$K"),8,FALSE) -> 5.013 | J36: =VLOOKUP(VLOOKUP($F36,'Data BI Summary'!$A:$P,MATCH($I$2,'Data BI Summary'!$2:$2,0),FALSE),INDIRECT("'"&$E36&"'!"&"$A:$K"),9,FALSE) -> 0.01012976651 | K36: =VLOOKUP(VLOOKUP($F36,'Data BI Summary'!$A:$P,MATCH($K$2,'Data BI Summary'!$2:$2,0),FALSE),INDIRECT("'"&$E36&"'!"&"$A:$K"),8,FALSE) -> 12.338664 | L36: =VLOOKUP(VLOOKUP($F36,'Data BI Summary'!$A:$P,MATCH($K$2,'Data BI Summary'!$2:$2,0),FALSE),INDIRECT("'"&$E36&"'!"&"$A:$K"),9,FALSE) -> 0.02067377106 | M36: =VLOOKUP(VLOOKUP($F36,'Data BI Summary'!$A:$P,MATCH($M$2,'Data BI Summary'!$2:$2,0),FALSE),INDIRECT("'"&$E36&"'!"&"$A:$K"),8,FALSE) -> 12.32632534 | N36: =VLOOKUP(VLOOKUP($F36,'Data BI Summary'!$A:$P,MATCH($M$2,'Data BI Summary'!$2:$2,0),FALSE),INDIRECT("'"&$E36&"'!"&"$A:$K"),9,FALSE) -> 0.01036927453
A37: UGe | B37: Low | C37: =VLOOKUP(A$37,'Data Billing Quantities'!A:P,MATCH(B37&" kWh",'Data Billing Quantities'!$4:$4,0),FALSE) -> 180 | E37: BI_UGe_Low | F37: BI Template_Energy | G37: =VLOOKUP(VLOOKUP($F37,'Data BI Summary'!$A:$P,MATCH($G$2,'Data BI Summary'!$2:$2,0),FALSE),INDIRECT("'"&$E37&"'!"&"$A:$K"),8,FALSE) -> 0.324 | H37: =VLOOKUP(VLOOKUP($F37,'Data BI Summary'!$A:$P,MATCH($G$2,'Data BI Summary'!$2:$2,0),FALSE),INDIRECT("'"&$E37&"'!"&"$A:$K"),9,FALSE) -> 0.01017971597 | I37: =VLOOKUP(VLOOKUP($F37,'Data BI Summary'!$A:$P,MATCH($I$2,'Data BI Summary'!$2:$2,0),FALSE),INDIRECT("'"&$E37&"'!"&"$A:$K"),8,FALSE) -> -0.18 | J37: =VLOOKUP(VLOOKUP($F37,'Data BI Summary'!$A:$P,MATCH($I$2,'Data BI Summary'!$2:$2,0),FALSE),INDIRECT("'"&$E37&"'!"&"$A:$K"),9,FALSE) -> -0.005366356444 | K37: =VLOOKUP(VLOOKUP($F37,'Data BI Summary'!$A:$P,MATCH($K$2,'Data BI Summary'!$2:$2,0),FALSE),INDIRECT("'"&$E37&"'!"&"$A:$K"),8,FALSE) -> 0.088884 | L37: =VLOOKUP(VLOOKUP($F37,'Data BI Summary'!$A:$P,MATCH($K$2,'Data BI Summary'!$2:$2,0),FALSE),INDIRECT("'"&$E37&"'!"&"$A:$K"),9,FALSE) -> 0.002406056649 | M37: =VLOOKUP(VLOOKUP($F37,'Data BI Summary'!$A:$P,MATCH($M$2,'Data BI Summary'!$2:$2,0),FALSE),INDIRECT("'"&$E37&"'!"&"$A:$K"),8,FALSE) -> 0.088795116 | N37: =VLOOKUP(VLOOKUP($F37,'Data BI Summary'!$A:$P,MATCH($M$2,'Data BI Summary'!$2:$2,0),FALSE),INDIRECT("'"&$E37&"'!"&"$A:$K"),9,FALSE) -> 0.001578225906
B38: Typical | C38: =VLOOKUP(A$37,'Data Billing Quantities'!A:P,MATCH(B38&" kWh",'Data Billing Quantities'!$4:$4,0),FALSE) -> 2000 | E38: BI_UGe_Typical | F38: BI Template_Energy | G38: =VLOOKUP(VLOOKUP($F38,'Data BI Summary'!$A:$P,MATCH($G$2,'Data BI Summary'!$2:$2,0),FALSE),INDIRECT("'"&$E38&"'!"&"$A:$K"),8,FALSE) -> 3.6 | H38: =VLOOKUP(VLOOKUP($F38,'Data BI Summary'!$A:$P,MATCH($G$2,'Data BI Summary'!$2:$2,0),FALSE),INDIRECT("'"&$E38&"'!"&"$A:$K"),9,FALSE) -> 0.03761362449 | I38: =VLOOKUP(VLOOKUP($F38,'Data BI Summary'!$A:$P,MATCH($I$2,'Data BI Summary'!$2:$2,0),FALSE),INDIRECT("'"&$E38&"'!"&"$A:$K"),8,FALSE) -> -2 | J38: =VLOOKUP(VLOOKUP($F38,'Data BI Summary'!$A:$P,MATCH($I$2,'Data BI Summary'!$2:$2,0),FALSE),INDIRECT("'"&$E38&"'!"&"$A:$K"),9,FALSE) -> -0.01809770662 | K38: =VLOOKUP(VLOOKUP($F38,'Data BI Summary'!$A:$P,MATCH($K$2,'Data BI Summary'!$2:$2,0),FALSE),INDIRECT("'"&$E38&"'!"&"$A:$K"),8,FALSE) -> 0.9876 | L38: =VLOOKUP(VLOOKUP($F38,'Data BI Summary'!$A:$P,MATCH($K$2,'Data BI Summary'!$2:$2,0),FALSE),INDIRECT("'"&$E38&"'!"&"$A:$K"),9,FALSE) -> 0.006660235722 | M38: =VLOOKUP(VLOOKUP($F38,'Data BI Summary'!$A:$P,MATCH($M$2,'Data BI Summary'!$2:$2,0),FALSE),INDIRECT("'"&$E38&"'!"&"$A:$K"),8,FALSE) -> 0.9866124 | N38: =VLOOKUP(VLOOKUP($F38,'Data BI Summary'!$A:$P,MATCH($M$2,'Data BI Summary'!$2:$2,0),FALSE),INDIRECT("'"&$E38&"'!"&"$A:$K"),9,FALSE) -> 0.002735301879
B39: Average | C39: =VLOOKUP(A$37,'Data Billing Quantities'!A:P,MATCH(B39&" kWh",'Data Billing Quantities'!$4:$4,0),FALSE) -> 2494 | E39: BI_UGe_Avg | F39: BI Template_Energy | G39: =VLOOKUP(VLOOKUP($F39,'Data BI Summary'!$A:$P,MATCH($G$2,'Data BI Summary'!$2:$2,0),FALSE),INDIRECT("'"&$E39&"'!"&"$A:$K"),8,FALSE) -> 4.4892 | H39: =VLOOKUP(VLOOKUP($F39,'Data BI Summary'!$A:$P,MATCH($G$2,'Data BI Summary'!$2:$2,0),FALSE),INDIRECT("'"&$E39&"'!"&"$A:$K"),9,FALSE) -> 0.03971007365 | I39: =VLOOKUP(VLOOKUP($F39,'Data BI Summary'!$A:$P,MATCH($I$2,'Data BI Summary'!$2:$2,0),FALSE),INDIRECT("'"&$E39&"'!"&"$A:$K"),8,FALSE) -> -2.494 | J39: =VLOOKUP(VLOOKUP($F39,'Data BI Summary'!$A:$P,MATCH($I$2,'Data BI Summary'!$2:$2,0),FALSE),INDIRECT("'"&$E39&"'!"&"$A:$K"),9,FALSE) -> -0.01897980774 | K39: =VLOOKUP(VLOOKUP($F39,'Data BI Summary'!$A:$P,MATCH($K$2,'Data BI Summary'!$2:$2,0),FALSE),INDIRECT("'"&$E39&"'!"&"$A:$K"),8,FALSE) -> 1.2315372 | L39: =VLOOKUP(VLOOKUP($F39,'Data BI Summary'!$A:$P,MATCH($K$2,'Data BI Summary'!$2:$2,0),FALSE),INDIRECT("'"&$E39&"'!"&"$A:$K"),9,FALSE) -> 0.006899204153 | M39: =VLOOKUP(VLOOKUP($F39,'Data BI Summary'!$A:$P,MATCH($M$2,'Data BI Summary'!$2:$2,0),FALSE),INDIRECT("'"&$E39&"'!"&"$A:$K"),8,FALSE) -> 1.230305663 | N39: =VLOOKUP(VLOOKUP($F39,'Data BI Summary'!$A:$P,MATCH($M$2,'Data BI Summary'!$2:$2,0),FALSE),INDIRECT("'"&$E39&"'!"&"$A:$K"),9,FALSE) -> 0.002775159584
B40: High | C40: =VLOOKUP(A$37,'Data Billing Quantities'!A:P,MATCH(B40&" kWh",'Data Billing Quantities'!$4:$4,0),FALSE) -> 6930 | E40: BI_UGe_High | F40: BI Template_Energy | G40: =VLOOKUP(VLOOKUP($F40,'Data BI Summary'!$A:$P,MATCH($G$2,'Data BI Summary'!$2:$2,0),FALSE),INDIRECT("'"&$E40&"'!"&"$A:$K"),8,FALSE) -> 12.474 | H40: =VLOOKUP(VLOOKUP($F40,'Data BI Summary'!$A:$P,MATCH($G$2,'Data BI Summary'!$2:$2,0),FALSE),INDIRECT("'"&$E40&"'!"&"$A:$K"),9,FALSE) -> 0.04641436561 | I40: =VLOOKUP(VLOOKUP($F40,'Data BI Summary'!$A:$P,MATCH($I$2,'Data BI Summary'!$2:$2,0),FALSE),INDIRECT("'"&$E40&"'!"&"$A:$K"),8,FALSE) -> -6.93 | J40: =VLOOKUP(VLOOKUP($F40,'Data BI Summary'!$A:$P,MATCH($I$2,'Data BI Summary'!$2:$2,0),FALSE),INDIRECT("'"&$E40&"'!"&"$A:$K"),9,FALSE) -> -0.02172386576 | K40: =VLOOKUP(VLOOKUP($F40,'Data BI Summary'!$A:$P,MATCH($K$2,'Data BI Summary'!$2:$2,0),FALSE),INDIRECT("'"&$E40&"'!"&"$A:$K"),8,FALSE) -> 3.422034 | L40: =VLOOKUP(VLOOKUP($F40,'Data BI Summary'!$A:$P,MATCH($K$2,'Data BI Summary'!$2:$2,0),FALSE),INDIRECT("'"&$E40&"'!"&"$A:$K"),9,FALSE) -> 0.007606492894 | M40: =VLOOKUP(VLOOKUP($F40,'Data BI Summary'!$A:$P,MATCH($M$2,'Data BI Summary'!$2:$2,0),FALSE),INDIRECT("'"&$E40&"'!"&"$A:$K"),8,FALSE) -> 3.418611966 | N40: =VLOOKUP(VLOOKUP($F40,'Data BI Summary'!$A:$P,MATCH($M$2,'Data BI Summary'!$2:$2,0),FALSE),INDIRECT("'"&$E40&"'!"&"$A:$K"),9,FALSE) -> 0.002884071239
A41: GSd | B41: Low | C41: =VLOOKUP(A$41,'Data Billing Quantities'!A:P,MATCH(B41&" kWh",'Data Billing Quantities'!$4:$4,0),FALSE) -> 9310 | D41: =VLOOKUP(A$41,'Data Billing Quantities'!A:P,MATCH(B41&" kW",'Data Billing Quantities'!$4:$4,0),FALSE) -> 55 | E41: BI_GSd_Low | F41: BI Template_Demand | G41: =VLOOKUP(VLOOKUP($F41,'Data BI Summary'!$A:$P,MATCH($G$2,'Data BI Summary'!$2:$2,0),FALSE),INDIRECT("'"&$E41&"'!"&"$A:$K"),8,FALSE) -> 47.4155 | H41: =VLOOKUP(VLOOKUP($F41,'Data BI Summary'!$A:$P,MATCH($G$2,'Data BI Summary'!$2:$2,0),FALSE),INDIRECT("'"&$E41&"'!"&"$A:$K"),9,FALSE) -> 0.03851292848 | I41: =VLOOKUP(VLOOKUP($F41,'Data BI Summary'!$A:$P,MATCH($I$2,'Data BI Summary'!$2:$2,0),FALSE),INDIRECT("'"&$E41&"'!"&"$A:$K"),8,FALSE) -> -0.605 | J41: =VLOOKUP(VLOOKUP($F41,'Data BI Summary'!$A:$P,MATCH($I$2,'Data BI Summary'!$2:$2,0),FALSE),INDIRECT("'"&$E41&"'!"&"$A:$K"),9,FALSE) -> -0.0004781582171 | K41: =VLOOKUP(VLOOKUP($F41,'Data BI Summary'!$A:$P,MATCH($K$2,'Data BI Summary'!$2:$2,0),FALSE),INDIRECT("'"&$E41&"'!"&"$A:$K"),8,FALSE) -> 20.691 | L41: =VLOOKUP(VLOOKUP($F41,'Data BI Summary'!$A:$P,MATCH($K$2,'Data BI Summary'!$2:$2,0),FALSE),INDIRECT("'"&$E41&"'!"&"$A:$K"),9,FALSE) -> 0.01325514246 | M41: =VLOOKUP(VLOOKUP($F41,'Data BI Summary'!$A:$P,MATCH($M$2,'Data BI Summary'!$2:$2,0),FALSE),INDIRECT("'"&$E41&"'!"&"$A:$K"),8,FALSE) -> 20.670309 | N41: =VLOOKUP(VLOOKUP($F41,'Data BI Summary'!$A:$P,MATCH($M$2,'Data BI Summary'!$2:$2,0),FALSE),INDIRECT("'"&$E41&"'!"&"$A:$K"),9,FALSE) -> 0.00806814336
B42: Average | C42: =VLOOKUP(A$41,'Data Billing Quantities'!A:P,MATCH(B42&" kWh",'Data Billing Quantities'!$4:$4,0),FALSE) -> 34334 | D42: =VLOOKUP(A$41,'Data Billing Quantities'!A:P,MATCH(B42&" kW",'Data Billing Quantities'!$4:$4,0),FALSE) -> 110 | E42: BI_GSd_Avg | F42: BI Template_Demand | G42: =VLOOKUP(VLOOKUP($F42,'Data BI Summary'!$A:$P,MATCH($G$2,'Data BI Summary'!$2:$2,0),FALSE),INDIRECT("'"&$E42&"'!"&"$A:$K"),8,FALSE) -> 94.831 | H42: =VLOOKUP(VLOOKUP($F42,'Data BI Summary'!$A:$P,MATCH($G$2,'Data BI Summary'!$2:$2,0),FALSE),INDIRECT("'"&$E42&"'!"&"$A:$K"),9,FALSE) -> 0.0402377665 | I42: =VLOOKUP(VLOOKUP($F42,'Data BI Summary'!$A:$P,MATCH($I$2,'Data BI Summary'!$2:$2,0),FALSE),INDIRECT("'"&$E42&"'!"&"$A:$K"),8,FALSE) -> -1.21 | J42: =VLOOKUP(VLOOKUP($F42,'Data BI Summary'!$A:$P,MATCH($I$2,'Data BI Summary'!$2:$2,0),FALSE),INDIRECT("'"&$E42&"'!"&"$A:$K"),9,FALSE) -> -0.0005438286816 | K42: =VLOOKUP(VLOOKUP($F42,'Data BI Summary'!$A:$P,MATCH($K$2,'Data BI Summary'!$2:$2,0),FALSE),INDIRECT("'"&$E42&"'!"&"$A:$K"),8,FALSE) -> 41.382 | L42: =VLOOKUP(VLOOKUP($F42,'Data BI Summary'!$A:$P,MATCH($K$2,'Data BI Summary'!$2:$2,0),FALSE),INDIRECT("'"&$E42&"'!"&"$A:$K"),9,FALSE) -> 0.01469332765 | M42: =VLOOKUP(VLOOKUP($F42,'Data BI Summary'!$A:$P,MATCH($M$2,'Data BI Summary'!$2:$2,0),FALSE),INDIRECT("'"&$E42&"'!"&"$A:$K"),8,FALSE) -> 46.76166 | N42: =VLOOKUP(VLOOKUP($F42,'Data BI Summary'!$A:$P,MATCH($M$2,'Data BI Summary'!$2:$2,0),FALSE),INDIRECT("'"&$E42&"'!"&"$A:$K"),9,FALSE) -> 0.006149764859
B43: High | C43: =VLOOKUP(A$41,'Data Billing Quantities'!A:P,MATCH(B43&" kWh",'Data Billing Quantities'!$4:$4,0),FALSE) -> 75790 | D43: =VLOOKUP(A$41,'Data Billing Quantities'!A:P,MATCH(B43&" kW",'Data Billing Quantities'!$4:$4,0),FALSE) -> 250 | E43: BI_GSd_High | F43: BI Template_Demand | G43: =VLOOKUP(VLOOKUP($F43,'Data BI Summary'!$A:$P,MATCH($G$2,'Data BI Summary'!$2:$2,0),FALSE),INDIRECT("'"&$E43&"'!"&"$A:$K"),8,FALSE) -> 215.525 | H43: =VLOOKUP(VLOOKUP($F43,'Data BI Summary'!$A:$P,MATCH($G$2,'Data BI Summary'!$2:$2,0),FALSE),INDIRECT("'"&$E43&"'!"&"$A:$K"),9,FALSE) -> 0.04127289614 | I43: =VLOOKUP(VLOOKUP($F43,'Data BI Summary'!$A:$P,MATCH($I$2,'Data BI Summary'!$2:$2,0),FALSE),INDIRECT("'"&$E43&"'!"&"$A:$K"),8,FALSE) -> -2.75 | J43: =VLOOKUP(VLOOKUP($F43,'Data BI Summary'!$A:$P,MATCH($I$2,'Data BI Summary'!$2:$2,0),FALSE),INDIRECT("'"&$E43&"'!"&"$A:$K"),9,FALSE) -> -0.0005572996219 | K43: =VLOOKUP(VLOOKUP($F43,'Data BI Summary'!$A:$P,MATCH($K$2,'Data BI Summary'!$2:$2,0),FALSE),INDIRECT("'"&$E43&"'!"&"$A:$K"),8,FALSE) -> 94.05 | L43: =VLOOKUP(VLOOKUP($F43,'Data BI Summary'!$A:$P,MATCH($K$2,'Data BI Summary'!$2:$2,0),FALSE),INDIRECT("'"&$E43&"'!"&"$A:$K"),9,FALSE) -> 0.0149793729 | M43: =VLOOKUP(VLOOKUP($F43,'Data BI Summary'!$A:$P,MATCH($M$2,'Data BI Summary'!$2:$2,0),FALSE),INDIRECT("'"&$E43&"'!"&"$A:$K"),8,FALSE) -> 106.2765 | N43: =VLOOKUP(VLOOKUP($F43,'Data BI Summary'!$A:$P,MATCH($M$2,'Data BI Summary'!$2:$2,0),FALSE),INDIRECT("'"&$E43&"'!"&"$A:$K"),9,FALSE) -> 0.006305622308
A44: UGd | B44: Low | C44: =VLOOKUP(A$44,'Data Billing Quantities'!A:P,MATCH(B44&" kWh",'Data Billing Quantities'!$4:$4,0),FALSE) -> 13900 | D44: =VLOOKUP(A$44,'Data Billing Quantities'!A:P,MATCH(B44&" kW",'Data Billing Quantities'!$4:$4,0),FALSE) -> 55 | E44: BI_UGd_Low | F44: BI Template_Demand | G44: =VLOOKUP(VLOOKUP($F44,'Data BI Summary'!$A:$P,MATCH($G$2,'Data BI Summary'!$2:$2,0),FALSE),INDIRECT("'"&$E44&"'!"&"$A:$K"),8,FALSE) -> 28.083 | H44: =VLOOKUP(VLOOKUP($F44,'Data BI Summary'!$A:$P,MATCH($G$2,'Data BI Summary'!$2:$2,0),FALSE),INDIRECT("'"&$E44&"'!"&"$A:$K"),9,FALSE) -> 0.03742606044 | I44: =VLOOKUP(VLOOKUP($F44,'Data BI Summary'!$A:$P,MATCH($I$2,'Data BI Summary'!$2:$2,0),FALSE),INDIRECT("'"&$E44&"'!"&"$A:$K"),8,FALSE) -> -31.2345 | J44: =VLOOKUP(VLOOKUP($F44,'Data BI Summary'!$A:$P,MATCH($I$2,'Data BI Summary'!$2:$2,0),FALSE),INDIRECT("'"&$E44&"'!"&"$A:$K"),9,FALSE) -> -0.04458078264 | K44: =VLOOKUP(VLOOKUP($F44,'Data BI Summary'!$A:$P,MATCH($K$2,'Data BI Summary'!$2:$2,0),FALSE),INDIRECT("'"&$E44&"'!"&"$A:$K"),8,FALSE) -> -4.1745 | L44: =VLOOKUP(VLOOKUP($F44,'Data BI Summary'!$A:$P,MATCH($K$2,'Data BI Summary'!$2:$2,0),FALSE),INDIRECT("'"&$E44&"'!"&"$A:$K"),9,FALSE) -> -0.003880532222 | M44: =VLOOKUP(VLOOKUP($F44,'Data BI Summary'!$A:$P,MATCH($M$2,'Data BI Summary'!$2:$2,0),FALSE),INDIRECT("'"&$E44&"'!"&"$A:$K"),8,FALSE) -> -4.1703255 | N44: =VLOOKUP(VLOOKUP($F44,'Data BI Summary'!$A:$P,MATCH($M$2,'Data BI Summary'!$2:$2,0),FALSE),INDIRECT("'"&$E44&"'!"&"$A:$K"),9,FALSE) -> -0.001579151941
B45: Average | C45: =VLOOKUP(A$44,'Data Billing Quantities'!A:P,MATCH(B45&" kWh",'Data Billing Quantities'!$4:$4,0),FALSE) -> 42592 | D45: =VLOOKUP(A$44,'Data Billing Quantities'!A:P,MATCH(B45&" kW",'Data Billing Quantities'!$4:$4,0),FALSE) -> 111 | E45: BI_UGd_Avg | F45: BI Template_Demand | G45: =VLOOKUP(VLOOKUP($F45,'Data BI Summary'!$A:$P,MATCH($G$2,'Data BI Summary'!$2:$2,0),FALSE),INDIRECT("'"&$E45&"'!"&"$A:$K"),8,FALSE) -> 56.6766 | H45: =VLOOKUP(VLOOKUP($F45,'Data BI Summary'!$A:$P,MATCH($G$2,'Data BI Summary'!$2:$2,0),FALSE),INDIRECT("'"&$E45&"'!"&"$A:$K"),9,FALSE) -> 0.04002194984 | I45: =VLOOKUP(VLOOKUP($F45,'Data BI Summary'!$A:$P,MATCH($I$2,'Data BI Summary'!$2:$2,0),FALSE),INDIRECT("'"&$E45&"'!"&"$A:$K"),8,FALSE) -> -63.0369 | J45: =VLOOKUP(VLOOKUP($F45,'Data BI Summary'!$A:$P,MATCH($I$2,'Data BI Summary'!$2:$2,0),FALSE),INDIRECT("'"&$E45&"'!"&"$A:$K"),9,FALSE) -> -0.05094893008 | K45: =VLOOKUP(VLOOKUP($F45,'Data BI Summary'!$A:$P,MATCH($K$2,'Data BI Summary'!$2:$2,0),FALSE),INDIRECT("'"&$E45&"'!"&"$A:$K"),8,FALSE) -> -8.4249 | L45: =VLOOKUP(VLOOKUP($F45,'Data BI Summary'!$A:$P,MATCH($K$2,'Data BI Summary'!$2:$2,0),FALSE),INDIRECT("'"&$E45&"'!"&"$A:$K"),9,FALSE) -> -0.0042244218 | M45: =VLOOKUP(VLOOKUP($F45,'Data BI Summary'!$A:$P,MATCH($M$2,'Data BI Summary'!$2:$2,0),FALSE),INDIRECT("'"&$E45&"'!"&"$A:$K"),8,FALSE) -> -9.520137 | N45: =VLOOKUP(VLOOKUP($F45,'Data BI Summary'!$A:$P,MATCH($M$2,'Data BI Summary'!$2:$2,0),FALSE),INDIRECT("'"&$E45&"'!"&"$A:$K"),9,FALSE) -> -0.001239378376
B46: High | C46: =VLOOKUP(A$44,'Data Billing Quantities'!A:P,MATCH(B46&" kWh",'Data Billing Quantities'!$4:$4,0),FALSE) -> 97610 | D46: =VLOOKUP(A$44,'Data Billing Quantities'!A:P,MATCH(B46&" kW",'Data Billing Quantities'!$4:$4,0),FALSE) -> 280 | E46: BI_UGd_High | F46: BI Template_Demand | G46: =VLOOKUP(VLOOKUP($F46,'Data BI Summary'!$A:$P,MATCH($G$2,'Data BI Summary'!$2:$2,0),FALSE),INDIRECT("'"&$E46&"'!"&"$A:$K"),8,FALSE) -> 142.968 | H46: =VLOOKUP(VLOOKUP($F46,'Data BI Summary'!$A:$P,MATCH($G$2,'Data BI Summary'!$2:$2,0),FALSE),INDIRECT("'"&$E46&"'!"&"$A:$K"),9,FALSE) -> 0.04173807031 | I46: =VLOOKUP(VLOOKUP($F46,'Data BI Summary'!$A:$P,MATCH($I$2,'Data BI Summary'!$2:$2,0),FALSE),INDIRECT("'"&$E46&"'!"&"$A:$K"),8,FALSE) -> -159.012 | J46: =VLOOKUP(VLOOKUP($F46,'Data BI Summary'!$A:$P,MATCH($I$2,'Data BI Summary'!$2:$2,0),FALSE),INDIRECT("'"&$E46&"'!"&"$A:$K"),9,FALSE) -> -0.0525276096 | K46: =VLOOKUP(VLOOKUP($F46,'Data BI Summary'!$A:$P,MATCH($K$2,'Data BI Summary'!$2:$2,0),FALSE),INDIRECT("'"&$E46&"'!"&"$A:$K"),8,FALSE) -> -21.252 | L46: =VLOOKUP(VLOOKUP($F46,'Data BI Summary'!$A:$P,MATCH($K$2,'Data BI Summary'!$2:$2,0),FALSE),INDIRECT("'"&$E46&"'!"&"$A:$K"),9,FALSE) -> -0.004304683784 | M46: =VLOOKUP(VLOOKUP($F46,'Data BI Summary'!$A:$P,MATCH($M$2,'Data BI Summary'!$2:$2,0),FALSE),INDIRECT("'"&$E46&"'!"&"$A:$K"),8,FALSE) -> -24.01476 | N46: =VLOOKUP(VLOOKUP($F46,'Data BI Summary'!$A:$P,MATCH($M$2,'Data BI Summary'!$2:$2,0),FALSE),INDIRECT("'"&$E46&"'!"&"$A:$K"),9,FALSE) -> -0.00133285855
A47: St Lgt | B47: Low | C47: =VLOOKUP(A$47,'Data Billing Quantities'!A:P,MATCH(B47&" kWh",'Data Billing Quantities'!$4:$4,0),FALSE) -> 30 | E47: BI_StLgt_Low | F47: BI Template_Unmtr | G47: =VLOOKUP(VLOOKUP($F47,'Data BI Summary'!$A:$P,MATCH($G$2,'Data BI Summary'!$2:$2,0),FALSE),INDIRECT("'"&$E47&"'!"&"$A:$K"),8,FALSE) -> 0.187 | H47: =VLOOKUP(VLOOKUP($F47,'Data BI Summary'!$A:$P,MATCH($G$2,'Data BI Summary'!$2:$2,0),FALSE),INDIRECT("'"&$E47&"'!"&"$A:$K"),9,FALSE) -> 0.02743544601 | I47: =VLOOKUP(VLOOKUP($F47,'Data BI Summary'!$A:$P,MATCH($I$2,'Data BI Summary'!$2:$2,0),FALSE),INDIRECT("'"&$E47&"'!"&"$A:$K"),8,FALSE) -> 0.103 | J47: =VLOOKUP(VLOOKUP($F47,'Data BI Summary'!$A:$P,MATCH($I$2,'Data BI Summary'!$2:$2,0),FALSE),INDIRECT("'"&$E47&"'!"&"$A:$K"),9,FALSE) -> 0.01448932854 | K47: =VLOOKUP(VLOOKUP($F47,'Data BI Summary'!$A:$P,MATCH($K$2,'Data BI Summary'!$2:$2,0),FALSE),INDIRECT("'"&$E47&"'!"&"$A:$K"),8,FALSE) -> 0.132484 | L47: =VLOOKUP(VLOOKUP($F47,'Data BI Summary'!$A:$P,MATCH($K$2,'Data BI Summary'!$2:$2,0),FALSE),INDIRECT("'"&$E47&"'!"&"$A:$K"),9,FALSE) -> 0.01764488399 | M47: =VLOOKUP(VLOOKUP($F47,'Data BI Summary'!$A:$P,MATCH($M$2,'Data BI Summary'!$2:$2,0),FALSE),INDIRECT("'"&$E47&"'!"&"$A:$K"),8,FALSE) -> 0.132351516 | N47: =VLOOKUP(VLOOKUP($F47,'Data BI Summary'!$A:$P,MATCH($M$2,'Data BI Summary'!$2:$2,0),FALSE),INDIRECT("'"&$E47&"'!"&"$A:$K"),9,FALSE) -> 0.01232992881
B48: Average | C48: =VLOOKUP(A$47,'Data Billing Quantities'!A:P,MATCH(B48&" kWh",'Data Billing Quantities'!$4:$4,0),FALSE) -> 1274 | E48: BI_StLgt_Avg | F48: BI Template_Unmtr | G48: =VLOOKUP(VLOOKUP($F48,'Data BI Summary'!$A:$P,MATCH($G$2,'Data BI Summary'!$2:$2,0),FALSE),INDIRECT("'"&$E48&"'!"&"$A:$K"),8,FALSE) -> 6.2826 | H48: =VLOOKUP(VLOOKUP($F48,'Data BI Summary'!$A:$P,MATCH($G$2,'Data BI Summary'!$2:$2,0),FALSE),INDIRECT("'"&$E48&"'!"&"$A:$K"),9,FALSE) -> 0.04083407428 | I48: =VLOOKUP(VLOOKUP($F48,'Data BI Summary'!$A:$P,MATCH($I$2,'Data BI Summary'!$2:$2,0),FALSE),INDIRECT("'"&$E48&"'!"&"$A:$K"),8,FALSE) -> 2.7154 | J48: =VLOOKUP(VLOOKUP($F48,'Data BI Summary'!$A:$P,MATCH($I$2,'Data BI Summary'!$2:$2,0),FALSE),INDIRECT("'"&$E48&"'!"&"$A:$K"),9,FALSE) -> 0.01613634732 | K48: =VLOOKUP(VLOOKUP($F48,'Data BI Summary'!$A:$P,MATCH($K$2,'Data BI Summary'!$2:$2,0),FALSE),INDIRECT("'"&$E48&"'!"&"$A:$K"),8,FALSE) -> 3.9674872 | L48: =VLOOKUP(VLOOKUP($F48,'Data BI Summary'!$A:$P,MATCH($K$2,'Data BI Summary'!$2:$2,0),FALSE),INDIRECT("'"&$E48&"'!"&"$A:$K"),9,FALSE) -> 0.02141679419 | M48: =VLOOKUP(VLOOKUP($F48,'Data BI Summary'!$A:$P,MATCH($M$2,'Data BI Summary'!$2:$2,0),FALSE),INDIRECT("'"&$E48&"'!"&"$A:$K"),8,FALSE) -> 3.963519713 | N48: =VLOOKUP(VLOOKUP($F48,'Data BI Summary'!$A:$P,MATCH($M$2,'Data BI Summary'!$2:$2,0),FALSE),INDIRECT("'"&$E48&"'!"&"$A:$K"),9,FALSE) -> 0.01235059815
B49: High | C49: =VLOOKUP(A$47,'Data Billing Quantities'!A:P,MATCH(B49&" kWh",'Data Billing Quantities'!$4:$4,0),FALSE) -> 2310 | E49: BI_StLgt_High | F49: BI Template_Unmtr | G49: =VLOOKUP(VLOOKUP($F49,'Data BI Summary'!$A:$P,MATCH($G$2,'Data BI Summary'!$2:$2,0),FALSE),INDIRECT("'"&$E49&"'!"&"$A:$K"),8,FALSE) -> 11.359 | H49: =VLOOKUP(VLOOKUP($F49,'Data BI Summary'!$A:$P,MATCH($G$2,'Data BI Summary'!$2:$2,0),FALSE),INDIRECT("'"&$E49&"'!"&"$A:$K"),9,FALSE) -> 0.04110932569 | I49: =VLOOKUP(VLOOKUP($F49,'Data BI Summary'!$A:$P,MATCH($I$2,'Data BI Summary'!$2:$2,0),FALSE),INDIRECT("'"&$E49&"'!"&"$A:$K"),8,FALSE) -> 4.891 | J49: =VLOOKUP(VLOOKUP($F49,'Data BI Summary'!$A:$P,MATCH($I$2,'Data BI Summary'!$2:$2,0),FALSE),INDIRECT("'"&$E49&"'!"&"$A:$K"),9,FALSE) -> 0.01617066916 | K49: =VLOOKUP(VLOOKUP($F49,'Data BI Summary'!$A:$P,MATCH($K$2,'Data BI Summary'!$2:$2,0),FALSE),INDIRECT("'"&$E49&"'!"&"$A:$K"),8,FALSE) -> 7.161268 | L49: =VLOOKUP(VLOOKUP($F49,'Data BI Summary'!$A:$P,MATCH($K$2,'Data BI Summary'!$2:$2,0),FALSE),INDIRECT("'"&$E49&"'!"&"$A:$K"),9,FALSE) -> 0.02149008271 | M49: =VLOOKUP(VLOOKUP($F49,'Data BI Summary'!$A:$P,MATCH($M$2,'Data BI Summary'!$2:$2,0),FALSE),INDIRECT("'"&$E49&"'!"&"$A:$K"),8,FALSE) -> 7.154106732 | N49: =VLOOKUP(VLOOKUP($F49,'Data BI Summary'!$A:$P,MATCH($M$2,'Data BI Summary'!$2:$2,0),FALSE),INDIRECT("'"&$E49&"'!"&"$A:$K"),9,FALSE) -> 0.01213833769
A50: Sen Lgt | B50: Low | C50: =VLOOKUP(A$50,'Data Billing Quantities'!A:P,MATCH(B50&" kWh",'Data Billing Quantities'!$4:$4,0),FALSE) -> 20 | E50: BI_SenLgt_Low | F50: BI Template_Unmtr | G50: =VLOOKUP(VLOOKUP($F50,'Data BI Summary'!$A:$P,MATCH($G$2,'Data BI Summary'!$2:$2,0),FALSE),INDIRECT("'"&$E50&"'!"&"$A:$K"),8,FALSE) -> 0.25 | H50: =VLOOKUP(VLOOKUP($F50,'Data BI Summary'!$A:$P,MATCH($G$2,'Data BI Summary'!$2:$2,0),FALSE),INDIRECT("'"&$E50&"'!"&"$A:$K"),9,FALSE) -> 0.03616898148 | I50: =VLOOKUP(VLOOKUP($F50,'Data BI Summary'!$A:$P,MATCH($I$2,'Data BI Summary'!$2:$2,0),FALSE),INDIRECT("'"&$E50&"'!"&"$A:$K"),8,FALSE) -> 0.194 | J50: =VLOOKUP(VLOOKUP($F50,'Data BI Summary'!$A:$P,MATCH($I$2,'Data BI Summary'!$2:$2,0),FALSE),INDIRECT("'"&$E50&"'!"&"$A:$K"),9,FALSE) -> 0.02735044663 | K50: =VLOOKUP(VLOOKUP($F50,'Data BI Summary'!$A:$P,MATCH($K$2,'Data BI Summary'!$2:$2,0),FALSE),INDIRECT("'"&$E50&"'!"&"$A:$K"),8,FALSE) -> 0.213656 | L50: =VLOOKUP(VLOOKUP($F50,'Data BI Summary'!$A:$P,MATCH($K$2,'Data BI Summary'!$2:$2,0),FALSE),INDIRECT("'"&$E50&"'!"&"$A:$K"),9,FALSE) -> 0.02903105182 | M50: =VLOOKUP(VLOOKUP($F50,'Data BI Summary'!$A:$P,MATCH($M$2,'Data BI Summary'!$2:$2,0),FALSE),INDIRECT("'"&$E50&"'!"&"$A:$K"),8,FALSE) -> 0.213442344 | N50: =VLOOKUP(VLOOKUP($F50,'Data BI Summary'!$A:$P,MATCH($M$2,'Data BI Summary'!$2:$2,0),FALSE),INDIRECT("'"&$E50&"'!"&"$A:$K"),9,FALSE) -> 0.02225442389
B51: Average | C51: =VLOOKUP(A$50,'Data Billing Quantities'!A:P,MATCH(B51&" kWh",'Data Billing Quantities'!$4:$4,0),FALSE) -> 49 | E51: BI_SenLgt_Avg | F51: BI Template_Unmtr | G51: =VLOOKUP(VLOOKUP($F51,'Data BI Summary'!$A:$P,MATCH($G$2,'Data BI Summary'!$2:$2,0),FALSE),INDIRECT("'"&$E51&"'!"&"$A:$K"),8,FALSE) -> 0.4965 | H51: =VLOOKUP(VLOOKUP($F51,'Data BI Summary'!$A:$P,MATCH($G$2,'Data BI Summary'!$2:$2,0),FALSE),INDIRECT("'"&$E51&"'!"&"$A:$K"),9,FALSE) -> 0.04081750097 | I51: =VLOOKUP(VLOOKUP($F51,'Data BI Summary'!$A:$P,MATCH($I$2,'Data BI Summary'!$2:$2,0),FALSE),INDIRECT("'"&$E51&"'!"&"$A:$K"),8,FALSE) -> 0.3593 | J51: =VLOOKUP(VLOOKUP($F51,'Data BI Summary'!$A:$P,MATCH($I$2,'Data BI Summary'!$2:$2,0),FALSE),INDIRECT("'"&$E51&"'!"&"$A:$K"),9,FALSE) -> 0.02849858387 | K51: =VLOOKUP(VLOOKUP($F51,'Data BI Summary'!$A:$P,MATCH($K$2,'Data BI Summary'!$2:$2,0),FALSE),INDIRECT("'"&$E51&"'!"&"$A:$K"),8,FALSE) -> 0.4074572 | L51: =VLOOKUP(VLOOKUP($F51,'Data BI Summary'!$A:$P,MATCH($K$2,'Data BI Summary'!$2:$2,0),FALSE),INDIRECT("'"&$E51&"'!"&"$A:$K"),9,FALSE) -> 0.03072727231 | M51: =VLOOKUP(VLOOKUP($F51,'Data BI Summary'!$A:$P,MATCH($M$2,'Data BI Summary'!$2:$2,0),FALSE),INDIRECT("'"&$E51&"'!"&"$A:$K"),8,FALSE) -> 0.4070497428 | N51: =VLOOKUP(VLOOKUP($F51,'Data BI Summary'!$A:$P,MATCH($M$2,'Data BI Summary'!$2:$2,0),FALSE),INDIRECT("'"&$E51&"'!"&"$A:$K"),9,FALSE) -> 0.02215827449
B52: High | C52: =VLOOKUP(A$50,'Data Billing Quantities'!A:P,MATCH(B52&" kWh",'Data Billing Quantities'!$4:$4,0),FALSE) -> 80 | E52: BI_SenLgt_High | F52: BI Template_Unmtr | G52: =VLOOKUP(VLOOKUP($F52,'Data BI Summary'!$A:$P,MATCH($G$2,'Data BI Summary'!$2:$2,0),FALSE),INDIRECT("'"&$E52&"'!"&"$A:$K"),8,FALSE) -> 0.76 | H52: =VLOOKUP(VLOOKUP($F52,'Data BI Summary'!$A:$P,MATCH($G$2,'Data BI Summary'!$2:$2,0),FALSE),INDIRECT("'"&$E52&"'!"&"$A:$K"),9,FALSE) -> 0.04274946563 | I52: =VLOOKUP(VLOOKUP($F52,'Data BI Summary'!$A:$P,MATCH($I$2,'Data BI Summary'!$2:$2,0),FALSE),INDIRECT("'"&$E52&"'!"&"$A:$K"),8,FALSE) -> 0.536 | J52: =VLOOKUP(VLOOKUP($F52,'Data BI Summary'!$A:$P,MATCH($I$2,'Data BI Summary'!$2:$2,0),FALSE),INDIRECT("'"&$E52&"'!"&"$A:$K"),9,FALSE) -> 0.02896908955 | K52: =VLOOKUP(VLOOKUP($F52,'Data BI Summary'!$A:$P,MATCH($K$2,'Data BI Summary'!$2:$2,0),FALSE),INDIRECT("'"&$E52&"'!"&"$A:$K"),8,FALSE) -> 0.614624 | L52: =VLOOKUP(VLOOKUP($F52,'Data BI Summary'!$A:$P,MATCH($K$2,'Data BI Summary'!$2:$2,0),FALSE),INDIRECT("'"&$E52&"'!"&"$A:$K"),9,FALSE) -> 0.03140921181 | M52: =VLOOKUP(VLOOKUP($F52,'Data BI Summary'!$A:$P,MATCH($M$2,'Data BI Summary'!$2:$2,0),FALSE),INDIRECT("'"&$E52&"'!"&"$A:$K"),8,FALSE) -> 0.614009376 | N52: =VLOOKUP(VLOOKUP($F52,'Data BI Summary'!$A:$P,MATCH($M$2,'Data BI Summary'!$2:$2,0),FALSE),INDIRECT("'"&$E52&"'!"&"$A:$K"),9,FALSE) -> 0.02212275729
A53: USL | B53: Low | C53: =VLOOKUP(A$53,'Data Billing Quantities'!A:P,MATCH(B53&" kWh",'Data Billing Quantities'!$4:$4,0),FALSE) -> 100 | E53: BI_USL_Low | F53: BI Template_Unmtr | G53: =VLOOKUP(VLOOKUP($F53,'Data BI Summary'!$A:$P,MATCH($G$2,'Data BI Summary'!$2:$2,0),FALSE),INDIRECT("'"&$E53&"'!"&"$A:$K"),8,FALSE) -> 0.45 | H53: =VLOOKUP(VLOOKUP($F53,'Data BI Summary'!$A:$P,MATCH($G$2,'Data BI Summary'!$2:$2,0),FALSE),INDIRECT("'"&$E53&"'!"&"$A:$K"),9,FALSE) -> 0.01092763477 | I53: =VLOOKUP(VLOOKUP($F53,'Data BI Summary'!$A:$P,MATCH($I$2,'Data BI Summary'!$2:$2,0),FALSE),INDIRECT("'"&$E53&"'!"&"$A:$K"),8,FALSE) -> 0.17 | J53: =VLOOKUP(VLOOKUP($F53,'Data BI Summary'!$A:$P,MATCH($I$2,'Data BI Summary'!$2:$2,0),FALSE),INDIRECT("'"&$E53&"'!"&"$A:$K"),9,FALSE) -> 0.004040346424 | K53: =VLOOKUP(VLOOKUP($F53,'Data BI Summary'!$A:$P,MATCH($K$2,'Data BI Summary'!$2:$2,0),FALSE),INDIRECT("'"&$E53&"'!"&"$A:$K"),8,FALSE) -> 0.26828 | L53: =VLOOKUP(VLOOKUP($F53,'Data BI Summary'!$A:$P,MATCH($K$2,'Data BI Summary'!$2:$2,0),FALSE),INDIRECT("'"&$E53&"'!"&"$A:$K"),9,FALSE) -> 0.006155673278 | M53: =VLOOKUP(VLOOKUP($F53,'Data BI Summary'!$A:$P,MATCH($M$2,'Data BI Summary'!$2:$2,0),FALSE),INDIRECT("'"&$E53&"'!"&"$A:$K"),8,FALSE) -> 0.26801172 | N53: =VLOOKUP(VLOOKUP($F53,'Data BI Summary'!$A:$P,MATCH($M$2,'Data BI Summary'!$2:$2,0),FALSE),INDIRECT("'"&$E53&"'!"&"$A:$K"),9,FALSE) -> 0.00498775186
B54: Average | C54: =VLOOKUP(A$53,'Data Billing Quantities'!A:P,MATCH(B54&" kWh",'Data Billing Quantities'!$4:$4,0),FALSE) -> 477 | E54: BI_USL_Avg | F54: BI Template_Unmtr | G54: =VLOOKUP(VLOOKUP($F54,'Data BI Summary'!$A:$P,MATCH($G$2,'Data BI Summary'!$2:$2,0),FALSE),INDIRECT("'"&$E54&"'!"&"$A:$K"),8,FALSE) -> 2.1465 | H54: =VLOOKUP(VLOOKUP($F54,'Data BI Summary'!$A:$P,MATCH($G$2,'Data BI Summary'!$2:$2,0),FALSE),INDIRECT("'"&$E54&"'!"&"$A:$K"),9,FALSE) -> 0.04121915764 | I54: =VLOOKUP(VLOOKUP($F54,'Data BI Summary'!$A:$P,MATCH($I$2,'Data BI Summary'!$2:$2,0),FALSE),INDIRECT("'"&$E54&"'!"&"$A:$K"),8,FALSE) -> 0.8109 | J54: =VLOOKUP(VLOOKUP($F54,'Data BI Summary'!$A:$P,MATCH($I$2,'Data BI Summary'!$2:$2,0),FALSE),INDIRECT("'"&$E54&"'!"&"$A:$K"),9,FALSE) -> 0.01439110352 | K54: =VLOOKUP(VLOOKUP($F54,'Data BI Summary'!$A:$P,MATCH($K$2,'Data BI Summary'!$2:$2,0),FALSE),INDIRECT("'"&$E54&"'!"&"$A:$K"),8,FALSE) -> 1.2796956 | L54: =VLOOKUP(VLOOKUP($F54,'Data BI Summary'!$A:$P,MATCH($K$2,'Data BI Summary'!$2:$2,0),FALSE),INDIRECT("'"&$E54&"'!"&"$A:$K"),9,FALSE) -> 0.0201414229 | M54: =VLOOKUP(VLOOKUP($F54,'Data BI Summary'!$A:$P,MATCH($M$2,'Data BI Summary'!$2:$2,0),FALSE),INDIRECT("'"&$E54&"'!"&"$A:$K"),8,FALSE) -> 1.278415904 | N54: =VLOOKUP(VLOOKUP($F54,'Data BI Summary'!$A:$P,MATCH($M$2,'Data BI Summary'!$2:$2,0),FALSE),INDIRECT("'"&$E54&"'!"&"$A:$K"),9,FALSE) -> 0.01150062662
B55: High | C55: =VLOOKUP(A$53,'Data Billing Quantities'!A:P,MATCH(B55&" kWh",'Data Billing Quantities'!$4:$4,0),FALSE) -> 550 | E55: BI_USL_High | F55: BI Template_Unmtr | G55: =VLOOKUP(VLOOKUP($F55,'Data BI Summary'!$A:$P,MATCH($G$2,'Data BI Summary'!$2:$2,0),FALSE),INDIRECT("'"&$E55&"'!"&"$A:$K"),8,FALSE) -> 2.475 | H55: =VLOOKUP(VLOOKUP($F55,'Data BI Summary'!$A:$P,MATCH($G$2,'Data BI Summary'!$2:$2,0),FALSE),INDIRECT("'"&$E55&"'!"&"$A:$K"),9,FALSE) -> 0.04567684784 | I55: =VLOOKUP(VLOOKUP($F55,'Data BI Summary'!$A:$P,MATCH($I$2,'Data BI Summary'!$2:$2,0),FALSE),INDIRECT("'"&$E55&"'!"&"$A:$K"),8,FALSE) -> 0.935 | J55: =VLOOKUP(VLOOKUP($F55,'Data BI Summary'!$A:$P,MATCH($I$2,'Data BI Summary'!$2:$2,0),FALSE),INDIRECT("'"&$E55&"'!"&"$A:$K"),9,FALSE) -> 0.01581775242 | K55: =VLOOKUP(VLOOKUP($F55,'Data BI Summary'!$A:$P,MATCH($K$2,'Data BI Summary'!$2:$2,0),FALSE),INDIRECT("'"&$E55&"'!"&"$A:$K"),8,FALSE) -> 1.47554 | L55: =VLOOKUP(VLOOKUP($F55,'Data BI Summary'!$A:$P,MATCH($K$2,'Data BI Summary'!$2:$2,0),FALSE),INDIRECT("'"&$E55&"'!"&"$A:$K"),9,FALSE) -> 0.0218925837 | M55: =VLOOKUP(VLOOKUP($F55,'Data BI Summary'!$A:$P,MATCH($M$2,'Data BI Summary'!$2:$2,0),FALSE),INDIRECT("'"&$E55&"'!"&"$A:$K"),8,FALSE) -> 1.47406446 | N55: =VLOOKUP(VLOOKUP($F55,'Data BI Summary'!$A:$P,MATCH($M$2,'Data BI Summary'!$2:$2,0),FALSE),INDIRECT("'"&$E55&"'!"&"$A:$K"),9,FALSE) -> 0.01205480141
A56: DGen | B56: Low | C56: =VLOOKUP(A$56,'Data Billing Quantities'!A:P,MATCH($B56&" kWh",'Data Billing Quantities'!$4:$4,0),FALSE) -> 10 | D56: =VLOOKUP(A$56,'Data Billing Quantities'!A:P,MATCH($B56&" kW",'Data Billing Quantities'!$4:$4,0),FALSE) -> 0.02941666667 | E56: BI_Dgen_Low | F56: BI Template_Demand | G56: =VLOOKUP(VLOOKUP($F56,'Data BI Summary'!$A:$P,MATCH($G$2,'Data BI Summary'!$2:$2,0),FALSE),INDIRECT("'"&$E56&"'!"&"$A:$K"),8,FALSE) -> 0.036014825 | H56: =VLOOKUP(VLOOKUP($F56,'Data BI Summary'!$A:$P,MATCH($G$2,'Data BI Summary'!$2:$2,0),FALSE),INDIRECT("'"&$E56&"'!"&"$A:$K"),9,FALSE) -> 0.0001804020686 | I56: =VLOOKUP(VLOOKUP($F56,'Data BI Summary'!$A:$P,MATCH($I$2,'Data BI Summary'!$2:$2,0),FALSE),INDIRECT("'"&$E56&"'!"&"$A:$K"),8,FALSE) -> 0.023959875 | J56: =VLOOKUP(VLOOKUP($F56,'Data BI Summary'!$A:$P,MATCH($I$2,'Data BI Summary'!$2:$2,0),FALSE),INDIRECT("'"&$E56&"'!"&"$A:$K"),9,FALSE) -> 0.00012000896 | K56: =VLOOKUP(VLOOKUP($F56,'Data BI Summary'!$A:$P,MATCH($K$2,'Data BI Summary'!$2:$2,0),FALSE),INDIRECT("'"&$E56&"'!"&"$A:$K"),8,FALSE) -> 0.02975495833 | L56: =VLOOKUP(VLOOKUP($F56,'Data BI Summary'!$A:$P,MATCH($K$2,'Data BI Summary'!$2:$2,0),FALSE),INDIRECT("'"&$E56&"'!"&"$A:$K"),9,FALSE) -> 0.0001489765091 | M56: =VLOOKUP(VLOOKUP($F56,'Data BI Summary'!$A:$P,MATCH($M$2,'Data BI Summary'!$2:$2,0),FALSE),INDIRECT("'"&$E56&"'!"&"$A:$K"),8,FALSE) -> 0.02972520337 | N56: =VLOOKUP(VLOOKUP($F56,'Data BI Summary'!$A:$P,MATCH($M$2,'Data BI Summary'!$2:$2,0),FALSE),INDIRECT("'"&$E56&"'!"&"$A:$K"),9,FALSE) -> 0.0001479927568
B57: Average | C57: =VLOOKUP(A$56,'Data Billing Quantities'!A:P,MATCH($B57&" kWh",'Data Billing Quantities'!$4:$4,0),FALSE) -> 1709 | D57: =VLOOKUP(A$56,'Data Billing Quantities'!A:P,MATCH($B57&" kW",'Data Billing Quantities'!$4:$4,0),FALSE) -> 12 | E57: BI_Dgen_Avg | F57: BI Template_Demand | G57: =VLOOKUP(VLOOKUP($F57,'Data BI Summary'!$A:$P,MATCH($G$2,'Data BI Summary'!$2:$2,0),FALSE),INDIRECT("'"&$E57&"'!"&"$A:$K"),8,FALSE) -> 14.6916 | H57: =VLOOKUP(VLOOKUP($F57,'Data BI Summary'!$A:$P,MATCH($G$2,'Data BI Summary'!$2:$2,0),FALSE),INDIRECT("'"&$E57&"'!"&"$A:$K"),9,FALSE) -> 0.04164073262 | I57: =VLOOKUP(VLOOKUP($F57,'Data BI Summary'!$A:$P,MATCH($I$2,'Data BI Summary'!$2:$2,0),FALSE),INDIRECT("'"&$E57&"'!"&"$A:$K"),8,FALSE) -> 9.774 | J57: =VLOOKUP(VLOOKUP($F57,'Data BI Summary'!$A:$P,MATCH($I$2,'Data BI Summary'!$2:$2,0),FALSE),INDIRECT("'"&$E57&"'!"&"$A:$K"),9,FALSE) -> 0.02739467642 | K57: =VLOOKUP(VLOOKUP($F57,'Data BI Summary'!$A:$P,MATCH($K$2,'Data BI Summary'!$2:$2,0),FALSE),INDIRECT("'"&$E57&"'!"&"$A:$K"),8,FALSE) -> 12.138 | L57: =VLOOKUP(VLOOKUP($F57,'Data BI Summary'!$A:$P,MATCH($K$2,'Data BI Summary'!$2:$2,0),FALSE),INDIRECT("'"&$E57&"'!"&"$A:$K"),9,FALSE) -> 0.03121927643 | M57: =VLOOKUP(VLOOKUP($F57,'Data BI Summary'!$A:$P,MATCH($M$2,'Data BI Summary'!$2:$2,0),FALSE),INDIRECT("'"&$E57&"'!"&"$A:$K"),8,FALSE) -> 12.125862 | N57: =VLOOKUP(VLOOKUP($F57,'Data BI Summary'!$A:$P,MATCH($M$2,'Data BI Summary'!$2:$2,0),FALSE),INDIRECT("'"&$E57&"'!"&"$A:$K"),9,FALSE) -> 0.02117510336
B58: High | C58: =VLOOKUP(A$56,'Data Billing Quantities'!A:P,MATCH($B58&" kWh",'Data Billing Quantities'!$4:$4,0),FALSE) -> 8490 | D58: =VLOOKUP(A$56,'Data Billing Quantities'!A:P,MATCH($B58&" kW",'Data Billing Quantities'!$4:$4,0),FALSE) -> 45 | E58: BI_Dgen_High | F58: BI Template_Demand | G58: =VLOOKUP(VLOOKUP($F58,'Data BI Summary'!$A:$P,MATCH($G$2,'Data BI Summary'!$2:$2,0),FALSE),INDIRECT("'"&$E58&"'!"&"$A:$K"),8,FALSE) -> 55.0935 | H58: =VLOOKUP(VLOOKUP($F58,'Data BI Summary'!$A:$P,MATCH($G$2,'Data BI Summary'!$2:$2,0),FALSE),INDIRECT("'"&$E58&"'!"&"$A:$K"),9,FALSE) -> 0.07107898633 | I58: =VLOOKUP(VLOOKUP($F58,'Data BI Summary'!$A:$P,MATCH($I$2,'Data BI Summary'!$2:$2,0),FALSE),INDIRECT("'"&$E58&"'!"&"$A:$K"),8,FALSE) -> 36.6525 | J58: =VLOOKUP(VLOOKUP($F58,'Data BI Summary'!$A:$P,MATCH($I$2,'Data BI Summary'!$2:$2,0),FALSE),INDIRECT("'"&$E58&"'!"&"$A:$K"),9,FALSE) -> 0.04630108926 | K58: =VLOOKUP(VLOOKUP($F58,'Data BI Summary'!$A:$P,MATCH($K$2,'Data BI Summary'!$2:$2,0),FALSE),INDIRECT("'"&$E58&"'!"&"$A:$K"),8,FALSE) -> 45.5175 | L58: =VLOOKUP(VLOOKUP($F58,'Data BI Summary'!$A:$P,MATCH($K$2,'Data BI Summary'!$2:$2,0),FALSE),INDIRECT("'"&$E58&"'!"&"$A:$K"),9,FALSE) -> 0.04992798622 | M58: =VLOOKUP(VLOOKUP($F58,'Data BI Summary'!$A:$P,MATCH($M$2,'Data BI Summary'!$2:$2,0),FALSE),INDIRECT("'"&$E58&"'!"&"$A:$K"),8,FALSE) -> 45.4719825 | N58: =VLOOKUP(VLOOKUP($F58,'Data BI Summary'!$A:$P,MATCH($M$2,'Data BI Summary'!$2:$2,0),FALSE),INDIRECT("'"&$E58&"'!"&"$A:$K"),9,FALSE) -> 0.02491588803
A59: ST | B59: Low | C59: =VLOOKUP(A$59,'Data Billing Quantities'!A:P,MATCH($B59&" kWh",'Data Billing Quantities'!$4:$4,0),FALSE) -> 88780 | D59: =VLOOKUP(A$59,'Data Billing Quantities'!A:P,MATCH($B59&" kW",'Data Billing Quantities'!$4:$4,0),FALSE) -> 500 | E59: BI_ST_Low | F59: BI Template_Demand | G59: =VLOOKUP(VLOOKUP($F59,'Data BI Summary'!$A:$P,MATCH($G$2,'Data BI Summary'!$2:$2,0),FALSE),INDIRECT("'"&$E59&"'!"&"$A:$K"),8,FALSE) -> 39.75 | H59: =VLOOKUP(VLOOKUP($F59,'Data BI Summary'!$A:$P,MATCH($G$2,'Data BI Summary'!$2:$2,0),FALSE),INDIRECT("'"&$E59&"'!"&"$A:$K"),9,FALSE) -> 0.01935889194 | I59: =VLOOKUP(VLOOKUP($F59,'Data BI Summary'!$A:$P,MATCH($I$2,'Data BI Summary'!$2:$2,0),FALSE),INDIRECT("'"&$E59&"'!"&"$A:$K"),8,FALSE) -> -654.05 | J59: =VLOOKUP(VLOOKUP($F59,'Data BI Summary'!$A:$P,MATCH($I$2,'Data BI Summary'!$2:$2,0),FALSE),INDIRECT("'"&$E59&"'!"&"$A:$K"),9,FALSE) -> -0.3960319902 | K59: =VLOOKUP(VLOOKUP($F59,'Data BI Summary'!$A:$P,MATCH($K$2,'Data BI Summary'!$2:$2,0),FALSE),INDIRECT("'"&$E59&"'!"&"$A:$K"),8,FALSE) -> -324.5 | L59: =VLOOKUP(VLOOKUP($F59,'Data BI Summary'!$A:$P,MATCH($K$2,'Data BI Summary'!$2:$2,0),FALSE),INDIRECT("'"&$E59&"'!"&"$A:$K"),9,FALSE) -> -0.05203357472 | M59: =VLOOKUP(VLOOKUP($F59,'Data BI Summary'!$A:$P,MATCH($M$2,'Data BI Summary'!$2:$2,0),FALSE),INDIRECT("'"&$E59&"'!"&"$A:$K"),8,FALSE) -> -366.685 | N59: =VLOOKUP(VLOOKUP($F59,'Data BI Summary'!$A:$P,MATCH($M$2,'Data BI Summary'!$2:$2,0),FALSE),INDIRECT("'"&$E59&"'!"&"$A:$K"),9,FALSE) -> -0.02016057754
B60: Average | C60: =VLOOKUP(A$59,'Data Billing Quantities'!A:P,MATCH($B60&" kWh",'Data Billing Quantities'!$4:$4,0),FALSE) -> 1373443 | D60: =VLOOKUP(A$59,'Data Billing Quantities'!A:P,MATCH($B60&" kW",'Data Billing Quantities'!$4:$4,0),FALSE) -> 2808 | E60: BI_ST_Avg | F60: BI Template_Demand | G60: =VLOOKUP(VLOOKUP($F60,'Data BI Summary'!$A:$P,MATCH($G$2,'Data BI Summary'!$2:$2,0),FALSE),INDIRECT("'"&$E60&"'!"&"$A:$K"),8,FALSE) -> 223.236 | H60: =VLOOKUP(VLOOKUP($F60,'Data BI Summary'!$A:$P,MATCH($G$2,'Data BI Summary'!$2:$2,0),FALSE),INDIRECT("'"&$E60&"'!"&"$A:$K"),9,FALSE) -> 0.0384957806 | I60: =VLOOKUP(VLOOKUP($F60,'Data BI Summary'!$A:$P,MATCH($I$2,'Data BI Summary'!$2:$2,0),FALSE),INDIRECT("'"&$E60&"'!"&"$A:$K"),8,FALSE) -> -3673.1448 | J60: =VLOOKUP(VLOOKUP($F60,'Data BI Summary'!$A:$P,MATCH($I$2,'Data BI Summary'!$2:$2,0),FALSE),INDIRECT("'"&$E60&"'!"&"$A:$K"),9,FALSE) -> 3.108047656 | K60: =VLOOKUP(VLOOKUP($F60,'Data BI Summary'!$A:$P,MATCH($K$2,'Data BI Summary'!$2:$2,0),FALSE),INDIRECT("'"&$E60&"'!"&"$A:$K"),8,FALSE) -> -1822.392 | L60: =VLOOKUP(VLOOKUP($F60,'Data BI Summary'!$A:$P,MATCH($K$2,'Data BI Summary'!$2:$2,0),FALSE),INDIRECT("'"&$E60&"'!"&"$A:$K"),9,FALSE) -> -0.07418139128 | M60: =VLOOKUP(VLOOKUP($F60,'Data BI Summary'!$A:$P,MATCH($M$2,'Data BI Summary'!$2:$2,0),FALSE),INDIRECT("'"&$E60&"'!"&"$A:$K"),8,FALSE) -> -2059.30296 | N60: =VLOOKUP(VLOOKUP($F60,'Data BI Summary'!$A:$P,MATCH($M$2,'Data BI Summary'!$2:$2,0),FALSE),INDIRECT("'"&$E60&"'!"&"$A:$K"),9,FALSE) -> -0.01029076782
B61: High | C61: =VLOOKUP(A$59,'Data Billing Quantities'!A:P,MATCH($B61&" kWh",'Data Billing Quantities'!$4:$4,0),FALSE) -> 2641420 | D61: =VLOOKUP(A$59,'Data Billing Quantities'!A:P,MATCH($B61&" kW",'Data Billing Quantities'!$4:$4,0),FALSE) -> 13730 | E61: BI_ST_High | F61: BI Template_Demand | G61: =VLOOKUP(VLOOKUP($F61,'Data BI Summary'!$A:$P,MATCH($G$2,'Data BI Summary'!$2:$2,0),FALSE),INDIRECT("'"&$E61&"'!"&"$A:$K"),8,FALSE) -> 1091.535 | H61: =VLOOKUP(VLOOKUP($F61,'Data BI Summary'!$A:$P,MATCH($G$2,'Data BI Summary'!$2:$2,0),FALSE),INDIRECT("'"&$E61&"'!"&"$A:$K"),9,FALSE) -> 0.04640034361 | I61: =VLOOKUP(VLOOKUP($F61,'Data BI Summary'!$A:$P,MATCH($I$2,'Data BI Summary'!$2:$2,0),FALSE),INDIRECT("'"&$E61&"'!"&"$A:$K"),8,FALSE) -> -17960.213 | J61: =VLOOKUP(VLOOKUP($F61,'Data BI Summary'!$A:$P,MATCH($I$2,'Data BI Summary'!$2:$2,0),FALSE),INDIRECT("'"&$E61&"'!"&"$A:$K"),9,FALSE) -> -1.576630764 | K61: =VLOOKUP(VLOOKUP($F61,'Data BI Summary'!$A:$P,MATCH($K$2,'Data BI Summary'!$2:$2,0),FALSE),INDIRECT("'"&$E61&"'!"&"$A:$K"),8,FALSE) -> -8910.77 | L61: =VLOOKUP(VLOOKUP($F61,'Data BI Summary'!$A:$P,MATCH($K$2,'Data BI Summary'!$2:$2,0),FALSE),INDIRECT("'"&$E61&"'!"&"$A:$K"),9,FALSE) -> -0.06490401998 | M61: =VLOOKUP(VLOOKUP($F61,'Data BI Summary'!$A:$P,MATCH($M$2,'Data BI Summary'!$2:$2,0),FALSE),INDIRECT("'"&$E61&"'!"&"$A:$K"),8,FALSE) -> -10069.1701 | N61: =VLOOKUP(VLOOKUP($F61,'Data BI Summary'!$A:$P,MATCH($M$2,'Data BI Summary'!$2:$2,0),FALSE),INDIRECT("'"&$E61&"'!"&"$A:$K"),9,FALSE) -> -0.02069261254

Sheet Bill Impact Summary_Acq (hidden)
A1: Rate Class | B1: Consumption Level | C1: Monthly Consumption (kWh) | D1: Monthly Peak (kW) | E1: BI Worksheet | F1: Template | G1: Sub-Total | M1: Total
G2: A | I2: B | K2: C | M2: Total Bill
G3: $ | H3: % | I3: $ | J3: % | K3: $ | L3: % | M3: $ | N3: %
A4: WHSI to HONI
A5: AUR-WHSI | B5: Low | C5: =VLOOKUP(A$5,'Data Billing Quantities'!A:P,MATCH($B5&" kWh",'Data Billing Quantities'!$4:$4,0),FALSE) -> 310 | E5: BI_WHSI_AUR_Low | F5: BI Template_Energy | G5: =VLOOKUP(VLOOKUP($F5,'Data BI Summary'!$A:$P,MATCH($G$2,'Data BI Summary'!$2:$2,0),FALSE),INDIRECT("'"&$E5&"'!"&"$A:$K"),8,FALSE) -> 1.33 | H5: =VLOOKUP(VLOOKUP($F5,'Data BI Summary'!$A:$P,MATCH($G$2,'Data BI Summary'!$2:$2,0),FALSE),INDIRECT("'"&$E5&"'!"&"$A:$K"),9,FALSE) -> 0.04076003678 | I5: =VLOOKUP(VLOOKUP($F5,'Data BI Summary'!$A:$P,MATCH($I$2,'Data BI Summary'!$2:$2,0),FALSE),INDIRECT("'"&$E5&"'!"&"$A:$K"),8,FALSE) -> 0.4 | J5: =VLOOKUP(VLOOKUP($F5,'Data BI Summary'!$A:$P,MATCH($I$2,'Data BI Summary'!$2:$2,0),FALSE),INDIRECT("'"&$E5&"'!"&"$A:$K"),9,FALSE) -> 0.01167640008 | K5: =VLOOKUP(VLOOKUP($F5,'Data BI Summary'!$A:$P,MATCH($K$2,'Data BI Summary'!$2:$2,0),FALSE),INDIRECT("'"&$E5&"'!"&"$A:$K"),8,FALSE) -> 0.917328 | L5: =VLOOKUP(VLOOKUP($F5,'Data BI Summary'!$A:$P,MATCH($K$2,'Data BI Summary'!$2:$2,0),FALSE),INDIRECT("'"&$E5&"'!"&"$A:$K"),9,FALSE) -> 0.02207004506 | M5: =VLOOKUP(VLOOKUP($F5,'Data BI Summary'!$A:$P,MATCH($M$2,'Data BI Summary'!$2:$2,0),FALSE),INDIRECT("'"&$E5&"'!"&"$A:$K"),8,FALSE) -> 0.916410672 | N5: =VLOOKUP(VLOOKUP($F5,'Data BI Summary'!$A:$P,MATCH($M$2,'Data BI Summary'!$2:$2,0),FALSE),INDIRECT("'"&$E5&"'!"&"$A:$K"),9,FALSE) -> 0.01227835722
B6: Typical | C6: =VLOOKUP(A$5,'Data Billing Quantities'!A:P,MATCH($B6&" kWh",'Data Billing Quantities'!$4:$4,0),FALSE) -> 750 | E6: BI_WHSI_AUR_Typical | F6: BI Template_Energy | G6: =VLOOKUP(VLOOKUP($F6,'Data BI Summary'!$A:$P,MATCH($G$2,'Data BI Summary'!$2:$2,0),FALSE),INDIRECT("'"&$E6&"'!"&"$A:$K"),8,FALSE) -> 1.33 | H6: =VLOOKUP(VLOOKUP($F6,'Data BI Summary'!$A:$P,MATCH($G$2,'Data BI Summary'!$2:$2,0),FALSE),INDIRECT("'"&$E6&"'!"&"$A:$K"),9,FALSE) -> 0.04076003678 | I6: =VLOOKUP(VLOOKUP($F6,'Data BI Summary'!$A:$P,MATCH($I$2,'Data BI Summary'!$2:$2,0),FALSE),INDIRECT("'"&$E6&"'!"&"$A:$K"),8,FALSE) -> -0.92 | J6: =VLOOKUP(VLOOKUP($F6,'Data BI Summary'!$A:$P,MATCH($I$2,'Data BI Summary'!$2:$2,0),FALSE),INDIRECT("'"&$E6&"'!"&"$A:$K"),9,FALSE) -> -0.02557652475 | K6: =VLOOKUP(VLOOKUP($F6,'Data BI Summary'!$A:$P,MATCH($K$2,'Data BI Summary'!$2:$2,0),FALSE),INDIRECT("'"&$E6&"'!"&"$A:$K"),8,FALSE) -> 0.3316 | L6: =VLOOKUP(VLOOKUP($F6,'Data BI Summary'!$A:$P,MATCH($K$2,'Data BI Summary'!$2:$2,0),FALSE),INDIRECT("'"&$E6&"'!"&"$A:$K"),9,FALSE) -> 0.006180878104 | M6: =VLOOKUP(VLOOKUP($F6,'Data BI Summary'!$A:$P,MATCH($M$2,'Data BI Summary'!$2:$2,0),FALSE),INDIRECT("'"&$E6&"'!"&"$A:$K"),8,FALSE) -> 0.3312684 | N6: =VLOOKUP(VLOOKUP($F6,'Data BI Summary'!$A:$P,MATCH($M$2,'Data BI Summary'!$2:$2,0),FALSE),INDIRECT("'"&$E6&"'!"&"$A:$K"),9,FALSE) -> 0.002484121493
B7: High | C7: =VLOOKUP(A$5,'Data Billing Quantities'!A:P,MATCH($B7&" kWh",'Data Billing Quantities'!$4:$4,0),FALSE) -> 1160 | E7: BI_WHSI_AUR_High | F7: BI Template_Energy | G7: =VLOOKUP(VLOOKUP($F7,'Data BI Summary'!$A:$P,MATCH($G$2,'Data BI Summary'!$2:$2,0),FALSE),INDIRECT("'"&$E7&"'!"&"$A:$K"),8,FALSE) -> 1.33 | H7: =VLOOKUP(VLOOKUP($F7,'Data BI Summary'!$A:$P,MATCH($G$2,'Data BI Summary'!$2:$2,0),FALSE),INDIRECT("'"&$E7&"'!"&"$A:$K"),9,FALSE) -> 0.04076003678 | I7: =VLOOKUP(VLOOKUP($F7,'Data BI Summary'!$A:$P,MATCH($I$2,'Data BI Summary'!$2:$2,0),FALSE),INDIRECT("'"&$E7&"'!"&"$A:$K"),8,FALSE) -> -2.15 | J7: =VLOOKUP(VLOOKUP($F7,'Data BI Summary'!$A:$P,MATCH($I$2,'Data BI Summary'!$2:$2,0),FALSE),INDIRECT("'"&$E7&"'!"&"$A:$K"),9,FALSE) -> -0.05723105488 | K7: =VLOOKUP(VLOOKUP($F7,'Data BI Summary'!$A:$P,MATCH($K$2,'Data BI Summary'!$2:$2,0),FALSE),INDIRECT("'"&$E7&"'!"&"$A:$K"),8,FALSE) -> -0.214192 | L7: =VLOOKUP(VLOOKUP($F7,'Data BI Summary'!$A:$P,MATCH($K$2,'Data BI Summary'!$2:$2,0),FALSE),INDIRECT("'"&$E7&"'!"&"$A:$K"),9,FALSE) -> -0.00329981504 | M7: =VLOOKUP(VLOOKUP($F7,'Data BI Summary'!$A:$P,MATCH($M$2,'Data BI Summary'!$2:$2,0),FALSE),INDIRECT("'"&$E7&"'!"&"$A:$K"),8,FALSE) -> -0.213977808 | N7: =VLOOKUP(VLOOKUP($F7,'Data BI Summary'!$A:$P,MATCH($M$2,'Data BI Summary'!$2:$2,0),FALSE),INDIRECT("'"&$E7&"'!"&"$A:$K"),9,FALSE) -> -0.001137762685
A8: AUGe-WHSI | B8: Low | C8: =VLOOKUP(A$8,'Data Billing Quantities'!A:P,MATCH($B8&" kWh",'Data Billing Quantities'!$4:$4,0),FALSE) -> 190 | E8: BI_WHSI_AUGe_Low | F8: BI Template_Energy | G8: =VLOOKUP(VLOOKUP($F8,'Data BI Summary'!$A:$P,MATCH($G$2,'Data BI Summary'!$2:$2,0),FALSE),INDIRECT("'"&$E8&"'!"&"$A:$K"),8,FALSE) -> 0.209 | H8: =VLOOKUP(VLOOKUP($F8,'Data BI Summary'!$A:$P,MATCH($G$2,'Data BI Summary'!$2:$2,0),FALSE),INDIRECT("'"&$E8&"'!"&"$A:$K"),9,FALSE) -> 0.007099667097 | I8: =VLOOKUP(VLOOKUP($F8,'Data BI Summary'!$A:$P,MATCH($I$2,'Data BI Summary'!$2:$2,0),FALSE),INDIRECT("'"&$E8&"'!"&"$A:$K"),8,FALSE) -> -0.323 | J8: =VLOOKUP(VLOOKUP($F8,'Data BI Summary'!$A:$P,MATCH($I$2,'Data BI Summary'!$2:$2,0),FALSE),INDIRECT("'"&$E8&"'!"&"$A:$K"),9,FALSE) -> -0.01053666662 | K8: =VLOOKUP(VLOOKUP($F8,'Data BI Summary'!$A:$P,MATCH($K$2,'Data BI Summary'!$2:$2,0),FALSE),INDIRECT("'"&$E8&"'!"&"$A:$K"),8,FALSE) -> -0.065379 | L8: =VLOOKUP(VLOOKUP($F8,'Data BI Summary'!$A:$P,MATCH($K$2,'Data BI Summary'!$2:$2,0),FALSE),INDIRECT("'"&$E8&"'!"&"$A:$K"),9,FALSE) -> -0.001912657546 | M8: =VLOOKUP(VLOOKUP($F8,'Data BI Summary'!$A:$P,MATCH($M$2,'Data BI Summary'!$2:$2,0),FALSE),INDIRECT("'"&$E8&"'!"&"$A:$K"),8,FALSE) -> -0.065313621 | N8: =VLOOKUP(VLOOKUP($F8,'Data BI Summary'!$A:$P,MATCH($M$2,'Data BI Summary'!$2:$2,0),FALSE),INDIRECT("'"&$E8&"'!"&"$A:$K"),9,FALSE) -> -0.001197533778
B9: Typical | C9: =VLOOKUP(A$8,'Data Billing Quantities'!A:P,MATCH($B9&" kWh",'Data Billing Quantities'!$4:$4,0),FALSE) -> 2000 | E9: BI_WHSI_AUGe_Typical | F9: BI Template_Energy | G9: =VLOOKUP(VLOOKUP($F9,'Data BI Summary'!$A:$P,MATCH($G$2,'Data BI Summary'!$2:$2,0),FALSE),INDIRECT("'"&$E9&"'!"&"$A:$K"),8,FALSE) -> 2.2 | H9: =VLOOKUP(VLOOKUP($F9,'Data BI Summary'!$A:$P,MATCH($G$2,'Data BI Summary'!$2:$2,0),FALSE),INDIRECT("'"&$E9&"'!"&"$A:$K"),9,FALSE) -> 0.03744043567 | I9: =VLOOKUP(VLOOKUP($F9,'Data BI Summary'!$A:$P,MATCH($I$2,'Data BI Summary'!$2:$2,0),FALSE),INDIRECT("'"&$E9&"'!"&"$A:$K"),8,FALSE) -> -3.4 | J9: =VLOOKUP(VLOOKUP($F9,'Data BI Summary'!$A:$P,MATCH($I$2,'Data BI Summary'!$2:$2,0),FALSE),INDIRECT("'"&$E9&"'!"&"$A:$K"),9,FALSE) -> -0.05031970774 | K9: =VLOOKUP(VLOOKUP($F9,'Data BI Summary'!$A:$P,MATCH($K$2,'Data BI Summary'!$2:$2,0),FALSE),INDIRECT("'"&$E9&"'!"&"$A:$K"),8,FALSE) -> -0.6882 | L9: =VLOOKUP(VLOOKUP($F9,'Data BI Summary'!$A:$P,MATCH($K$2,'Data BI Summary'!$2:$2,0),FALSE),INDIRECT("'"&$E9&"'!"&"$A:$K"),9,FALSE) -> -0.006573143751 | M9: =VLOOKUP(VLOOKUP($F9,'Data BI Summary'!$A:$P,MATCH($M$2,'Data BI Summary'!$2:$2,0),FALSE),INDIRECT("'"&$E9&"'!"&"$A:$K"),8,FALSE) -> -0.6875118 | N9: =VLOOKUP(VLOOKUP($F9,'Data BI Summary'!$A:$P,MATCH($M$2,'Data BI Summary'!$2:$2,0),FALSE),INDIRECT("'"&$E9&"'!"&"$A:$K"),9,FALSE) -> -0.002169713324
B10: High | C10: =VLOOKUP(A$8,'Data Billing Quantities'!A:P,MATCH($B10&" kWh",'Data Billing Quantities'!$4:$4,0),FALSE) -> 7240 | E10: BI_WHSI_AUGe_High | F10: BI Template_Energy | G10: =VLOOKUP(VLOOKUP($F10,'Data BI Summary'!$A:$P,MATCH($G$2,'Data BI Summary'!$2:$2,0),FALSE),INDIRECT("'"&$E10&"'!"&"$A:$K"),8,FALSE) -> 7.964 | H10: =VLOOKUP(VLOOKUP($F10,'Data BI Summary'!$A:$P,MATCH($G$2,'Data BI Summary'!$2:$2,0),FALSE),INDIRECT("'"&$E10&"'!"&"$A:$K"),9,FALSE) -> 0.05544107819 | I10: =VLOOKUP(VLOOKUP($F10,'Data BI Summary'!$A:$P,MATCH($I$2,'Data BI Summary'!$2:$2,0),FALSE),INDIRECT("'"&$E10&"'!"&"$A:$K"),8,FALSE) -> -12.308 | J10: =VLOOKUP(VLOOKUP($F10,'Data BI Summary'!$A:$P,MATCH($I$2,'Data BI Summary'!$2:$2,0),FALSE),INDIRECT("'"&$E10&"'!"&"$A:$K"),9,FALSE) -> -0.07056027967 | K10: =VLOOKUP(VLOOKUP($F10,'Data BI Summary'!$A:$P,MATCH($K$2,'Data BI Summary'!$2:$2,0),FALSE),INDIRECT("'"&$E10&"'!"&"$A:$K"),8,FALSE) -> -2.491284 | L10: =VLOOKUP(VLOOKUP($F10,'Data BI Summary'!$A:$P,MATCH($K$2,'Data BI Summary'!$2:$2,0),FALSE),INDIRECT("'"&$E10&"'!"&"$A:$K"),9,FALSE) -> -0.008066430248 | M10: =VLOOKUP(VLOOKUP($F10,'Data BI Summary'!$A:$P,MATCH($M$2,'Data BI Summary'!$2:$2,0),FALSE),INDIRECT("'"&$E10&"'!"&"$A:$K"),8,FALSE) -> -2.488792716 | N10: =VLOOKUP(VLOOKUP($F10,'Data BI Summary'!$A:$P,MATCH($M$2,'Data BI Summary'!$2:$2,0),FALSE),INDIRECT("'"&$E10&"'!"&"$A:$K"),9,FALSE) -> -0.002312332085
A11: AUGd-WHSI | B11: Low | C11: =VLOOKUP(A$11,'Data Billing Quantities'!A:P,MATCH($B11&" kWh",'Data Billing Quantities'!$4:$4,0),FALSE) -> 9370 | D11: =VLOOKUP(A$11,'Data Billing Quantities'!A:P,MATCH(B11&" kW",'Data Billing Quantities'!$4:$4,0),FALSE) -> 50 | E11: BI_WHSI_AUGd_Low | F11: BI Template_Demand | G11: =VLOOKUP(VLOOKUP($F11,'Data BI Summary'!$A:$P,MATCH($G$2,'Data BI Summary'!$2:$2,0),FALSE),INDIRECT("'"&$E11&"'!"&"$A:$K"),8,FALSE) -> 7.645 | H11: =VLOOKUP(VLOOKUP($F11,'Data BI Summary'!$A:$P,MATCH($G$2,'Data BI Summary'!$2:$2,0),FALSE),INDIRECT("'"&$E11&"'!"&"$A:$K"),9,FALSE) -> 0.02583206623 | I11: =VLOOKUP(VLOOKUP($F11,'Data BI Summary'!$A:$P,MATCH($I$2,'Data BI Summary'!$2:$2,0),FALSE),INDIRECT("'"&$E11&"'!"&"$A:$K"),8,FALSE) -> -41.775 | J11: =VLOOKUP(VLOOKUP($F11,'Data BI Summary'!$A:$P,MATCH($I$2,'Data BI Summary'!$2:$2,0),FALSE),INDIRECT("'"&$E11&"'!"&"$A:$K"),9,FALSE) -> -0.147159378 | K11: =VLOOKUP(VLOOKUP($F11,'Data BI Summary'!$A:$P,MATCH($K$2,'Data BI Summary'!$2:$2,0),FALSE),INDIRECT("'"&$E11&"'!"&"$A:$K"),8,FALSE) -> -19.495 | L11: =VLOOKUP(VLOOKUP($F11,'Data BI Summary'!$A:$P,MATCH($K$2,'Data BI Summary'!$2:$2,0),FALSE),INDIRECT("'"&$E11&"'!"&"$A:$K"),9,FALSE) -> -0.03289929474 | M11: =VLOOKUP(VLOOKUP($F11,'Data BI Summary'!$A:$P,MATCH($M$2,'Data BI Summary'!$2:$2,0),FALSE),INDIRECT("'"&$E11&"'!"&"$A:$K"),8,FALSE) -> -19.475505 | N11: =VLOOKUP(VLOOKUP($F11,'Data BI Summary'!$A:$P,MATCH($M$2,'Data BI Summary'!$2:$2,0),FALSE),INDIRECT("'"&$E11&"'!"&"$A:$K"),9,FALSE) -> -0.0121766949
B12: Average | C12: =VLOOKUP(A$11,'Data Billing Quantities'!A:P,MATCH($B12&" kWh",'Data Billing Quantities'!$4:$4,0),FALSE) -> 47636 | D12: =VLOOKUP(A$11,'Data Billing Quantities'!A:P,MATCH(B12&" kW",'Data Billing Quantities'!$4:$4,0),FALSE) -> 134 | E12: BI_WHSI_AUGd_Avg | F12: BI Template_Demand | G12: =VLOOKUP(VLOOKUP($F12,'Data BI Summary'!$A:$P,MATCH($G$2,'Data BI Summary'!$2:$2,0),FALSE),INDIRECT("'"&$E12&"'!"&"$A:$K"),8,FALSE) -> 20.4886 | H12: =VLOOKUP(VLOOKUP($F12,'Data BI Summary'!$A:$P,MATCH($G$2,'Data BI Summary'!$2:$2,0),FALSE),INDIRECT("'"&$E12&"'!"&"$A:$K"),9,FALSE) -> 0.0374510763 | I12: =VLOOKUP(VLOOKUP($F12,'Data BI Summary'!$A:$P,MATCH($I$2,'Data BI Summary'!$2:$2,0),FALSE),INDIRECT("'"&$E12&"'!"&"$A:$K"),8,FALSE) -> -111.957 | J12: =VLOOKUP(VLOOKUP($F12,'Data BI Summary'!$A:$P,MATCH($I$2,'Data BI Summary'!$2:$2,0),FALSE),INDIRECT("'"&$E12&"'!"&"$A:$K"),9,FALSE) -> -0.3622528616 | K12: =VLOOKUP(VLOOKUP($F12,'Data BI Summary'!$A:$P,MATCH($K$2,'Data BI Summary'!$2:$2,0),FALSE),INDIRECT("'"&$E12&"'!"&"$A:$K"),8,FALSE) -> -52.2466 | L12: =VLOOKUP(VLOOKUP($F12,'Data BI Summary'!$A:$P,MATCH($K$2,'Data BI Summary'!$2:$2,0),FALSE),INDIRECT("'"&$E12&"'!"&"$A:$K"),9,FALSE) -> -0.04597768921 | M12: =VLOOKUP(VLOOKUP($F12,'Data BI Summary'!$A:$P,MATCH($M$2,'Data BI Summary'!$2:$2,0),FALSE),INDIRECT("'"&$E12&"'!"&"$A:$K"),8,FALSE) -> -59.038658 | N12: =VLOOKUP(VLOOKUP($F12,'Data BI Summary'!$A:$P,MATCH($M$2,'Data BI Summary'!$2:$2,0),FALSE),INDIRECT("'"&$E12&"'!"&"$A:$K"),9,FALSE) -> -0.008136154728
B13: High | C13: =VLOOKUP(A$11,'Data Billing Quantities'!A:P,MATCH($B13&" kWh",'Data Billing Quantities'!$4:$4,0),FALSE) -> 137890 | D13: =VLOOKUP(A$11,'Data Billing Quantities'!A:P,MATCH(B13&" kW",'Data Billing Quantities'!$4:$4,0),FALSE) -> 340 | E13: BI_WHSI_AUGd_High | F13: BI Template_Demand | G13: =VLOOKUP(VLOOKUP($F13,'Data BI Summary'!$A:$P,MATCH($G$2,'Data BI Summary'!$2:$2,0),FALSE),INDIRECT("'"&$E13&"'!"&"$A:$K"),8,FALSE) -> 51.986 | H13: =VLOOKUP(VLOOKUP($F13,'Data BI Summary'!$A:$P,MATCH($G$2,'Data BI Summary'!$2:$2,0),FALSE),INDIRECT("'"&$E13&"'!"&"$A:$K"),9,FALSE) -> 0.04470245087 | I13: =VLOOKUP(VLOOKUP($F13,'Data BI Summary'!$A:$P,MATCH($I$2,'Data BI Summary'!$2:$2,0),FALSE),INDIRECT("'"&$E13&"'!"&"$A:$K"),8,FALSE) -> -284.07 | J13: =VLOOKUP(VLOOKUP($F13,'Data BI Summary'!$A:$P,MATCH($I$2,'Data BI Summary'!$2:$2,0),FALSE),INDIRECT("'"&$E13&"'!"&"$A:$K"),9,FALSE) -> -0.6081775441 | K13: =VLOOKUP(VLOOKUP($F13,'Data BI Summary'!$A:$P,MATCH($K$2,'Data BI Summary'!$2:$2,0),FALSE),INDIRECT("'"&$E13&"'!"&"$A:$K"),8,FALSE) -> -132.566 | L13: =VLOOKUP(VLOOKUP($F13,'Data BI Summary'!$A:$P,MATCH($K$2,'Data BI Summary'!$2:$2,0),FALSE),INDIRECT("'"&$E13&"'!"&"$A:$K"),9,FALSE) -> -0.05165896649 | M13: =VLOOKUP(VLOOKUP($F13,'Data BI Summary'!$A:$P,MATCH($M$2,'Data BI Summary'!$2:$2,0),FALSE),INDIRECT("'"&$E13&"'!"&"$A:$K"),8,FALSE) -> -149.79958 | N13: =VLOOKUP(VLOOKUP($F13,'Data BI Summary'!$A:$P,MATCH($M$2,'Data BI Summary'!$2:$2,0),FALSE),INDIRECT("'"&$E13&"'!"&"$A:$K"),9,FALSE) -> -0.007420629667
A14: St Lgt-WHSI | B14: Average | C14: =VLOOKUP(A14,'Data Billing Quantities'!A:P,MATCH($B14&" kWh",'Data Billing Quantities'!$4:$4,0),FALSE) -> 37079 | D14: =VLOOKUP(A$14,'Data Billing Quantities'!A:P,MATCH(B14&" kW",'Data Billing Quantities'!$4:$4,0),FALSE) -> 104 | E14: BI_WHSI_StLgt_Avg | F14: BI Template_Unmtr | G14: =VLOOKUP(VLOOKUP($F14,'Data BI Summary'!$A:$P,MATCH($G$2,'Data BI Summary'!$2:$2,0),FALSE),INDIRECT("'"&$E14&"'!"&"$A:$K"),8,FALSE) -> 181.7271 | H14: =VLOOKUP(VLOOKUP($F14,'Data BI Summary'!$A:$P,MATCH($G$2,'Data BI Summary'!$2:$2,0),FALSE),INDIRECT("'"&$E14&"'!"&"$A:$K"),9,FALSE) -> 0.04175103794 | I14: =VLOOKUP(VLOOKUP($F14,'Data BI Summary'!$A:$P,MATCH($I$2,'Data BI Summary'!$2:$2,0),FALSE),INDIRECT("'"&$E14&"'!"&"$A:$K"),8,FALSE) -> 77.9059 | J14: =VLOOKUP(VLOOKUP($F14,'Data BI Summary'!$A:$P,MATCH($I$2,'Data BI Summary'!$2:$2,0),FALSE),INDIRECT("'"&$E14&"'!"&"$A:$K"),9,FALSE) -> 0.01785292795 | K14: =VLOOKUP(VLOOKUP($F14,'Data BI Summary'!$A:$P,MATCH($K$2,'Data BI Summary'!$2:$2,0),FALSE),INDIRECT("'"&$E14&"'!"&"$A:$K"),8,FALSE) -> 114.3471412 | L14: =VLOOKUP(VLOOKUP($F14,'Data BI Summary'!$A:$P,MATCH($K$2,'Data BI Summary'!$2:$2,0),FALSE),INDIRECT("'"&$E14&"'!"&"$A:$K"),9,FALSE) -> 0.02353915646 | M14: =VLOOKUP(VLOOKUP($F14,'Data BI Summary'!$A:$P,MATCH($M$2,'Data BI Summary'!$2:$2,0),FALSE),INDIRECT("'"&$E14&"'!"&"$A:$K"),8,FALSE) -> 129.2122696 | N14: =VLOOKUP(VLOOKUP($F14,'Data BI Summary'!$A:$P,MATCH($M$2,'Data BI Summary'!$2:$2,0),FALSE),INDIRECT("'"&$E14&"'!"&"$A:$K"),9,FALSE) -> 0.01198341962
A15: USL-WHSI | B15: Average | C15: =VLOOKUP(A15,'Data Billing Quantities'!A:P,MATCH($B15&" kWh",'Data Billing Quantities'!$4:$4,0),FALSE) -> 1349 | E15: BI_WHSI_USL_Avg | F15: BI Template_Unmtr | G15: =VLOOKUP(VLOOKUP($F15,'Data BI Summary'!$A:$P,MATCH($G$2,'Data BI Summary'!$2:$2,0),FALSE),INDIRECT("'"&$E15&"'!"&"$A:$K"),8,FALSE) -> 6.0705 | H15: =VLOOKUP(VLOOKUP($F15,'Data BI Summary'!$A:$P,MATCH($G$2,'Data BI Summary'!$2:$2,0),FALSE),INDIRECT("'"&$E15&"'!"&"$A:$K"),9,FALSE) -> 0.07855598303 | I15: =VLOOKUP(VLOOKUP($F15,'Data BI Summary'!$A:$P,MATCH($I$2,'Data BI Summary'!$2:$2,0),FALSE),INDIRECT("'"&$E15&"'!"&"$A:$K"),8,FALSE) -> 2.2933 | J15: =VLOOKUP(VLOOKUP($F15,'Data BI Summary'!$A:$P,MATCH($I$2,'Data BI Summary'!$2:$2,0),FALSE),INDIRECT("'"&$E15&"'!"&"$A:$K"),9,FALSE) -> 0.02522105957 | K15: =VLOOKUP(VLOOKUP($F15,'Data BI Summary'!$A:$P,MATCH($K$2,'Data BI Summary'!$2:$2,0),FALSE),INDIRECT("'"&$E15&"'!"&"$A:$K"),8,FALSE) -> 3.6190972 | L15: =VLOOKUP(VLOOKUP($F15,'Data BI Summary'!$A:$P,MATCH($K$2,'Data BI Summary'!$2:$2,0),FALSE),INDIRECT("'"&$E15&"'!"&"$A:$K"),9,FALSE) -> 0.0325292019 | M15: =VLOOKUP(VLOOKUP($F15,'Data BI Summary'!$A:$P,MATCH($M$2,'Data BI Summary'!$2:$2,0),FALSE),INDIRECT("'"&$E15&"'!"&"$A:$K"),8,FALSE) -> 3.615478103 | N15: =VLOOKUP(VLOOKUP($F15,'Data BI Summary'!$A:$P,MATCH($M$2,'Data BI Summary'!$2:$2,0),FALSE),INDIRECT("'"&$E15&"'!"&"$A:$K"),9,FALSE) -> 0.0141378982
A16: ST-WHSI | B16: Average | C16: =VLOOKUP(A16,'Data Billing Quantities'!A:P,MATCH($B16&" kWh",'Data Billing Quantities'!$4:$4,0),FALSE) -> 895853 | D16: =VLOOKUP(A$16,'Data Billing Quantities'!A:P,MATCH(B16&" kW",'Data Billing Quantities'!$4:$4,0),FALSE) -> 3301 | E16: BI_WHSI_ST_Avg | F16: BI Template_Demand | G16: =VLOOKUP(VLOOKUP($F16,'Data BI Summary'!$A:$P,MATCH($G$2,'Data BI Summary'!$2:$2,0),FALSE),INDIRECT("'"&$E16&"'!"&"$A:$K"),8,FALSE) -> 262.4295 | H16: =VLOOKUP(VLOOKUP($F16,'Data BI Summary'!$A:$P,MATCH($G$2,'Data BI Summary'!$2:$2,0),FALSE),INDIRECT("'"&$E16&"'!"&"$A:$K"),9,FALSE) -> 0.04050934278 | I16: =VLOOKUP(VLOOKUP($F16,'Data BI Summary'!$A:$P,MATCH($I$2,'Data BI Summary'!$2:$2,0),FALSE),INDIRECT("'"&$E16&"'!"&"$A:$K"),8,FALSE) -> -4318.0381 | J16: =VLOOKUP(VLOOKUP($F16,'Data BI Summary'!$A:$P,MATCH($I$2,'Data BI Summary'!$2:$2,0),FALSE),INDIRECT("'"&$E16&"'!"&"$A:$K"),9,FALSE) -> -1.858062131 | K16: =VLOOKUP(VLOOKUP($F16,'Data BI Summary'!$A:$P,MATCH($K$2,'Data BI Summary'!$2:$2,0),FALSE),INDIRECT("'"&$E16&"'!"&"$A:$K"),8,FALSE) -> -2142.349 | L16: =VLOOKUP(VLOOKUP($F16,'Data BI Summary'!$A:$P,MATCH($K$2,'Data BI Summary'!$2:$2,0),FALSE),INDIRECT("'"&$E16&"'!"&"$A:$K"),9,FALSE) -> -0.06573008515 | M16: =VLOOKUP(VLOOKUP($F16,'Data BI Summary'!$A:$P,MATCH($M$2,'Data BI Summary'!$2:$2,0),FALSE),INDIRECT("'"&$E16&"'!"&"$A:$K"),8,FALSE) -> -2420.85437 | N16: =VLOOKUP(VLOOKUP($F16,'Data BI Summary'!$A:$P,MATCH($M$2,'Data BI Summary'!$2:$2,0),FALSE),INDIRECT("'"&$E16&"'!"&"$A:$K"),9,FALSE) -> -0.01622017402
A17: NPDI to HONI
A18: AR-NPDI | B18: Low | C18: =VLOOKUP(A$18,'Data Billing Quantities'!A:P,MATCH($B18&" kWh",'Data Billing Quantities'!$4:$4,0),FALSE) -> 290 | E18: BI_NPDI_AR_Low | F18: BI Template_Energy | G18: =VLOOKUP(VLOOKUP($F18,'Data BI Summary'!$A:$P,MATCH($G$2,'Data BI Summary'!$2:$2,0),FALSE),INDIRECT("'"&$E18&"'!"&"$A:$K"),8,FALSE) -> 1.61 | H18: =VLOOKUP(VLOOKUP($F18,'Data BI Summary'!$A:$P,MATCH($G$2,'Data BI Summary'!$2:$2,0),FALSE),INDIRECT("'"&$E18&"'!"&"$A:$K"),9,FALSE) -> 0.0405848248 | I18: =VLOOKUP(VLOOKUP($F18,'Data BI Summary'!$A:$P,MATCH($I$2,'Data BI Summary'!$2:$2,0),FALSE),INDIRECT("'"&$E18&"'!"&"$A:$K"),8,FALSE) -> 0.74 | J18: =VLOOKUP(VLOOKUP($F18,'Data BI Summary'!$A:$P,MATCH($I$2,'Data BI Summary'!$2:$2,0),FALSE),INDIRECT("'"&$E18&"'!"&"$A:$K"),9,FALSE) -> 0.01767949398 | K18: =VLOOKUP(VLOOKUP($F18,'Data BI Summary'!$A:$P,MATCH($K$2,'Data BI Summary'!$2:$2,0),FALSE),INDIRECT("'"&$E18&"'!"&"$A:$K"),8,FALSE) -> 1.233696 | L18: =VLOOKUP(VLOOKUP($F18,'Data BI Summary'!$A:$P,MATCH($K$2,'Data BI Summary'!$2:$2,0),FALSE),INDIRECT("'"&$E18&"'!"&"$A:$K"),9,FALSE) -> 0.02540970706 | M18: =VLOOKUP(VLOOKUP($F18,'Data BI Summary'!$A:$P,MATCH($M$2,'Data BI Summary'!$2:$2,0),FALSE),INDIRECT("'"&$E18&"'!"&"$A:$K"),8,FALSE) -> 1.232462304 | N18: =VLOOKUP(VLOOKUP($F18,'Data BI Summary'!$A:$P,MATCH($M$2,'Data BI Summary'!$2:$2,0),FALSE),INDIRECT("'"&$E18&"'!"&"$A:$K"),9,FALSE) -> 0.0154961795
B19: Typical | C19: =VLOOKUP(A$18,'Data Billing Quantities'!A:P,MATCH($B19&" kWh",'Data Billing Quantities'!$4:$4,0),FALSE) -> 750 | E19: BI_NPDI_AR_Typical | F19: BI Template_Energy | G19: =VLOOKUP(VLOOKUP($F19,'Data BI Summary'!$A:$P,MATCH($G$2,'Data BI Summary'!$2:$2,0),FALSE),INDIRECT("'"&$E19&"'!"&"$A:$K"),8,FALSE) -> 1.61 | H19: =VLOOKUP(VLOOKUP($F19,'Data BI Summary'!$A:$P,MATCH($G$2,'Data BI Summary'!$2:$2,0),FALSE),INDIRECT("'"&$E19&"'!"&"$A:$K"),9,FALSE) -> 0.0405848248 | I19: =VLOOKUP(VLOOKUP($F19,'Data BI Summary'!$A:$P,MATCH($I$2,'Data BI Summary'!$2:$2,0),FALSE),INDIRECT("'"&$E19&"'!"&"$A:$K"),8,FALSE) -> -0.64 | J19: =VLOOKUP(VLOOKUP($F19,'Data BI Summary'!$A:$P,MATCH($I$2,'Data BI Summary'!$2:$2,0),FALSE),INDIRECT("'"&$E19&"'!"&"$A:$K"),9,FALSE) -> -0.01433104902 | K19: =VLOOKUP(VLOOKUP($F19,'Data BI Summary'!$A:$P,MATCH($K$2,'Data BI Summary'!$2:$2,0),FALSE),INDIRECT("'"&$E19&"'!"&"$A:$K"),8,FALSE) -> 0.6368 | L19: =VLOOKUP(VLOOKUP($F19,'Data BI Summary'!$A:$P,MATCH($K$2,'Data BI Summary'!$2:$2,0),FALSE),INDIRECT("'"&$E19&"'!"&"$A:$K"),9,FALSE) -> 0.01027513083 | M19: =VLOOKUP(VLOOKUP($F19,'Data BI Summary'!$A:$P,MATCH($M$2,'Data BI Summary'!$2:$2,0),FALSE),INDIRECT("'"&$E19&"'!"&"$A:$K"),8,FALSE) -> 0.6361632 | N19: =VLOOKUP(VLOOKUP($F19,'Data BI Summary'!$A:$P,MATCH($M$2,'Data BI Summary'!$2:$2,0),FALSE),INDIRECT("'"&$E19&"'!"&"$A:$K"),9,FALSE) -> 0.004487418176
B20: High | C20: =VLOOKUP(A$18,'Data Billing Quantities'!A:P,MATCH($B20&" kWh",'Data Billing Quantities'!$4:$4,0),FALSE) -> 1230 | E20: BI_NPDI_AR_High | F20: BI Template_Energy | G20: =VLOOKUP(VLOOKUP($F20,'Data BI Summary'!$A:$P,MATCH($G$2,'Data BI Summary'!$2:$2,0),FALSE),INDIRECT("'"&$E20&"'!"&"$A:$K"),8,FALSE) -> 1.61 | H20: =VLOOKUP(VLOOKUP($F20,'Data BI Summary'!$A:$P,MATCH($G$2,'Data BI Summary'!$2:$2,0),FALSE),INDIRECT("'"&$E20&"'!"&"$A:$K"),9,FALSE) -> 0.0405848248 | I20: =VLOOKUP(VLOOKUP($F20,'Data BI Summary'!$A:$P,MATCH($I$2,'Data BI Summary'!$2:$2,0),FALSE),INDIRECT("'"&$E20&"'!"&"$A:$K"),8,FALSE) -> -2.08 | J20: =VLOOKUP(VLOOKUP($F20,'Data BI Summary'!$A:$P,MATCH($I$2,'Data BI Summary'!$2:$2,0),FALSE),INDIRECT("'"&$E20&"'!"&"$A:$K"),9,FALSE) -> -0.04371402861 | K20: =VLOOKUP(VLOOKUP($F20,'Data BI Summary'!$A:$P,MATCH($K$2,'Data BI Summary'!$2:$2,0),FALSE),INDIRECT("'"&$E20&"'!"&"$A:$K"),8,FALSE) -> 0.013952 | L20: =VLOOKUP(VLOOKUP($F20,'Data BI Summary'!$A:$P,MATCH($K$2,'Data BI Summary'!$2:$2,0),FALSE),INDIRECT("'"&$E20&"'!"&"$A:$K"),9,FALSE) -> 0.0001836243625 | M20: =VLOOKUP(VLOOKUP($F20,'Data BI Summary'!$A:$P,MATCH($M$2,'Data BI Summary'!$2:$2,0),FALSE),INDIRECT("'"&$E20&"'!"&"$A:$K"),8,FALSE) -> 0.013938048 | N20: =VLOOKUP(VLOOKUP($F20,'Data BI Summary'!$A:$P,MATCH($M$2,'Data BI Summary'!$2:$2,0),FALSE),INDIRECT("'"&$E20&"'!"&"$A:$K"),9,FALSE) -> 6.742985248e-05
A21: AGSe-NPDI | B21: Low | C21: =VLOOKUP(A$21,'Data Billing Quantities'!A:P,MATCH($B21&" kWh",'Data Billing Quantities'!$4:$4,0),FALSE) -> 110 | E21: BI_NPDI_AGSe_Low | F21: BI Template_Energy | G21: =VLOOKUP(VLOOKUP($F21,'Data BI Summary'!$A:$P,MATCH($G$2,'Data BI Summary'!$2:$2,0),FALSE),INDIRECT("'"&$E21&"'!"&"$A:$K"),8,FALSE) -> 0.165 | H21: =VLOOKUP(VLOOKUP($F21,'Data BI Summary'!$A:$P,MATCH($G$2,'Data BI Summary'!$2:$2,0),FALSE),INDIRECT("'"&$E21&"'!"&"$A:$K"),9,FALSE) -> 0.003916727989 | I21: =VLOOKUP(VLOOKUP($F21,'Data BI Summary'!$A:$P,MATCH($I$2,'Data BI Summary'!$2:$2,0),FALSE),INDIRECT("'"&$E21&"'!"&"$A:$K"),8,FALSE) -> -0.143 | J21: =VLOOKUP(VLOOKUP($F21,'Data BI Summary'!$A:$P,MATCH($I$2,'Data BI Summary'!$2:$2,0),FALSE),INDIRECT("'"&$E21&"'!"&"$A:$K"),9,FALSE) -> -0.003306357281 | K21: =VLOOKUP(VLOOKUP($F21,'Data BI Summary'!$A:$P,MATCH($K$2,'Data BI Summary'!$2:$2,0),FALSE),INDIRECT("'"&$E21&"'!"&"$A:$K"),8,FALSE) -> 0.020856 | L21: =VLOOKUP(VLOOKUP($F21,'Data BI Summary'!$A:$P,MATCH($K$2,'Data BI Summary'!$2:$2,0),FALSE),INDIRECT("'"&$E21&"'!"&"$A:$K"),9,FALSE) -> 0.0004605344906 | M21: =VLOOKUP(VLOOKUP($F21,'Data BI Summary'!$A:$P,MATCH($M$2,'Data BI Summary'!$2:$2,0),FALSE),INDIRECT("'"&$E21&"'!"&"$A:$K"),8,FALSE) -> 0.020835144 | N21: =VLOOKUP(VLOOKUP($F21,'Data BI Summary'!$A:$P,MATCH($M$2,'Data BI Summary'!$2:$2,0),FALSE),INDIRECT("'"&$E21&"'!"&"$A:$K"),9,FALSE) -> 0.0003644666007
B22: Typical | C22: =VLOOKUP(A$21,'Data Billing Quantities'!A:P,MATCH($B22&" kWh",'Data Billing Quantities'!$4:$4,0),FALSE) -> 2000 | E22: BI_NPDI_AGSe_Typical | F22: BI Template_Energy | G22: =VLOOKUP(VLOOKUP($F22,'Data BI Summary'!$A:$P,MATCH($G$2,'Data BI Summary'!$2:$2,0),FALSE),INDIRECT("'"&$E22&"'!"&"$A:$K"),8,FALSE) -> 3 | H22: =VLOOKUP(VLOOKUP($F22,'Data BI Summary'!$A:$P,MATCH($G$2,'Data BI Summary'!$2:$2,0),FALSE),INDIRECT("'"&$E22&"'!"&"$A:$K"),9,FALSE) -> 0.03780241935 | I22: =VLOOKUP(VLOOKUP($F22,'Data BI Summary'!$A:$P,MATCH($I$2,'Data BI Summary'!$2:$2,0),FALSE),INDIRECT("'"&$E22&"'!"&"$A:$K"),8,FALSE) -> -2.6 | J22: =VLOOKUP(VLOOKUP($F22,'Data BI Summary'!$A:$P,MATCH($I$2,'Data BI Summary'!$2:$2,0),FALSE),INDIRECT("'"&$E22&"'!"&"$A:$K"),9,FALSE) -> -0.02808925642 | K22: =VLOOKUP(VLOOKUP($F22,'Data BI Summary'!$A:$P,MATCH($K$2,'Data BI Summary'!$2:$2,0),FALSE),INDIRECT("'"&$E22&"'!"&"$A:$K"),8,FALSE) -> 0.3792 | L22: =VLOOKUP(VLOOKUP($F22,'Data BI Summary'!$A:$P,MATCH($K$2,'Data BI Summary'!$2:$2,0),FALSE),INDIRECT("'"&$E22&"'!"&"$A:$K"),9,FALSE) -> 0.002926167967 | M22: =VLOOKUP(VLOOKUP($F22,'Data BI Summary'!$A:$P,MATCH($M$2,'Data BI Summary'!$2:$2,0),FALSE),INDIRECT("'"&$E22&"'!"&"$A:$K"),8,FALSE) -> 0.3788208 | N22: =VLOOKUP(VLOOKUP($F22,'Data BI Summary'!$A:$P,MATCH($M$2,'Data BI Summary'!$2:$2,0),FALSE),INDIRECT("'"&$E22&"'!"&"$A:$K"),9,FALSE) -> 0.001107711895
B23: High | C23: =VLOOKUP(A$21,'Data Billing Quantities'!A:P,MATCH($B23&" kWh",'Data Billing Quantities'!$4:$4,0),FALSE) -> 6410 | E23: BI_NPDI_AGSe_High | F23: BI Template_Energy | G23: =VLOOKUP(VLOOKUP($F23,'Data BI Summary'!$A:$P,MATCH($G$2,'Data BI Summary'!$2:$2,0),FALSE),INDIRECT("'"&$E23&"'!"&"$A:$K"),8,FALSE) -> 9.615 | H23: =VLOOKUP(VLOOKUP($F23,'Data BI Summary'!$A:$P,MATCH($G$2,'Data BI Summary'!$2:$2,0),FALSE),INDIRECT("'"&$E23&"'!"&"$A:$K"),9,FALSE) -> 0.05783910922 | I23: =VLOOKUP(VLOOKUP($F23,'Data BI Summary'!$A:$P,MATCH($I$2,'Data BI Summary'!$2:$2,0),FALSE),INDIRECT("'"&$E23&"'!"&"$A:$K"),8,FALSE) -> -8.333 | J23: =VLOOKUP(VLOOKUP($F23,'Data BI Summary'!$A:$P,MATCH($I$2,'Data BI Summary'!$2:$2,0),FALSE),INDIRECT("'"&$E23&"'!"&"$A:$K"),9,FALSE) -> -0.04013513564 | K23: =VLOOKUP(VLOOKUP($F23,'Data BI Summary'!$A:$P,MATCH($K$2,'Data BI Summary'!$2:$2,0),FALSE),INDIRECT("'"&$E23&"'!"&"$A:$K"),8,FALSE) -> 1.215336 | L23: =VLOOKUP(VLOOKUP($F23,'Data BI Summary'!$A:$P,MATCH($K$2,'Data BI Summary'!$2:$2,0),FALSE),INDIRECT("'"&$E23&"'!"&"$A:$K"),9,FALSE) -> 0.003724645596 | M23: =VLOOKUP(VLOOKUP($F23,'Data BI Summary'!$A:$P,MATCH($M$2,'Data BI Summary'!$2:$2,0),FALSE),INDIRECT("'"&$E23&"'!"&"$A:$K"),8,FALSE) -> 1.214120664 | N23: =VLOOKUP(VLOOKUP($F23,'Data BI Summary'!$A:$P,MATCH($M$2,'Data BI Summary'!$2:$2,0),FALSE),INDIRECT("'"&$E23&"'!"&"$A:$K"),9,FALSE) -> 0.001206205288
A24: AGSd-NPDI | B24: Low | C24: =VLOOKUP(A$24,'Data Billing Quantities'!A:P,MATCH($B24&" kWh",'Data Billing Quantities'!$4:$4,0),FALSE) -> 13020 | D24: =VLOOKUP(A$24,'Data Billing Quantities'!A:P,MATCH(B24&" kW",'Data Billing Quantities'!$4:$4,0),FALSE) -> 55 | E24: BI_NPDI_AGSd_Low | F24: BI Template_Demand | G24: =VLOOKUP(VLOOKUP($F24,'Data BI Summary'!$A:$P,MATCH($G$2,'Data BI Summary'!$2:$2,0),FALSE),INDIRECT("'"&$E24&"'!"&"$A:$K"),8,FALSE) -> 12.485 | H24: =VLOOKUP(VLOOKUP($F24,'Data BI Summary'!$A:$P,MATCH($G$2,'Data BI Summary'!$2:$2,0),FALSE),INDIRECT("'"&$E24&"'!"&"$A:$K"),9,FALSE) -> 0.02858281002 | I24: =VLOOKUP(VLOOKUP($F24,'Data BI Summary'!$A:$P,MATCH($I$2,'Data BI Summary'!$2:$2,0),FALSE),INDIRECT("'"&$E24&"'!"&"$A:$K"),8,FALSE) -> -42.295 | J24: =VLOOKUP(VLOOKUP($F24,'Data BI Summary'!$A:$P,MATCH($I$2,'Data BI Summary'!$2:$2,0),FALSE),INDIRECT("'"&$E24&"'!"&"$A:$K"),9,FALSE) -> -0.1129203644 | K24: =VLOOKUP(VLOOKUP($F24,'Data BI Summary'!$A:$P,MATCH($K$2,'Data BI Summary'!$2:$2,0),FALSE),INDIRECT("'"&$E24&"'!"&"$A:$K"),8,FALSE) -> -20.6085 | L24: =VLOOKUP(VLOOKUP($F24,'Data BI Summary'!$A:$P,MATCH($K$2,'Data BI Summary'!$2:$2,0),FALSE),INDIRECT("'"&$E24&"'!"&"$A:$K"),9,FALSE) -> -0.03048991585 | M24: =VLOOKUP(VLOOKUP($F24,'Data BI Summary'!$A:$P,MATCH($M$2,'Data BI Summary'!$2:$2,0),FALSE),INDIRECT("'"&$E24&"'!"&"$A:$K"),8,FALSE) -> -20.5878915 | N24: =VLOOKUP(VLOOKUP($F24,'Data BI Summary'!$A:$P,MATCH($M$2,'Data BI Summary'!$2:$2,0),FALSE),INDIRECT("'"&$E24&"'!"&"$A:$K"),9,FALSE) -> -0.009591494335
B25: Average | C25: =VLOOKUP(A$24,'Data Billing Quantities'!A:P,MATCH($B25&" kWh",'Data Billing Quantities'!$4:$4,0),FALSE) -> 70294 | D25: =VLOOKUP(A$24,'Data Billing Quantities'!A:P,MATCH(B25&" kW",'Data Billing Quantities'!$4:$4,0),FALSE) -> 181 | E25: BI_NPDI_AGSd_Avg | F25: BI Template_Demand | G25: =VLOOKUP(VLOOKUP($F25,'Data BI Summary'!$A:$P,MATCH($G$2,'Data BI Summary'!$2:$2,0),FALSE),INDIRECT("'"&$E25&"'!"&"$A:$K"),8,FALSE) -> 41.087 | H25: =VLOOKUP(VLOOKUP($F25,'Data BI Summary'!$A:$P,MATCH($G$2,'Data BI Summary'!$2:$2,0),FALSE),INDIRECT("'"&$E25&"'!"&"$A:$K"),9,FALSE) -> 0.0392267798 | I25: =VLOOKUP(VLOOKUP($F25,'Data BI Summary'!$A:$P,MATCH($I$2,'Data BI Summary'!$2:$2,0),FALSE),INDIRECT("'"&$E25&"'!"&"$A:$K"),8,FALSE) -> -139.189 | J25: =VLOOKUP(VLOOKUP($F25,'Data BI Summary'!$A:$P,MATCH($I$2,'Data BI Summary'!$2:$2,0),FALSE),INDIRECT("'"&$E25&"'!"&"$A:$K"),9,FALSE) -> -0.2004538796 | K25: =VLOOKUP(VLOOKUP($F25,'Data BI Summary'!$A:$P,MATCH($K$2,'Data BI Summary'!$2:$2,0),FALSE),INDIRECT("'"&$E25&"'!"&"$A:$K"),8,FALSE) -> -67.8207 | L25: =VLOOKUP(VLOOKUP($F25,'Data BI Summary'!$A:$P,MATCH($K$2,'Data BI Summary'!$2:$2,0),FALSE),INDIRECT("'"&$E25&"'!"&"$A:$K"),9,FALSE) -> -0.04022331002 | M25: =VLOOKUP(VLOOKUP($F25,'Data BI Summary'!$A:$P,MATCH($M$2,'Data BI Summary'!$2:$2,0),FALSE),INDIRECT("'"&$E25&"'!"&"$A:$K"),8,FALSE) -> -76.637391 | N25: =VLOOKUP(VLOOKUP($F25,'Data BI Summary'!$A:$P,MATCH($M$2,'Data BI Summary'!$2:$2,0),FALSE),INDIRECT("'"&$E25&"'!"&"$A:$K"),9,FALSE) -> -0.007038220761
B26: High | C26: =VLOOKUP(A$24,'Data Billing Quantities'!A:P,MATCH($B26&" kWh",'Data Billing Quantities'!$4:$4,0),FALSE) -> 129420 | D26: =VLOOKUP(A$24,'Data Billing Quantities'!A:P,MATCH(B26&" kW",'Data Billing Quantities'!$4:$4,0),FALSE) -> 300 | E26: BI_NPDI_AGSd_High | F26: BI Template_Demand | G26: =VLOOKUP(VLOOKUP($F26,'Data BI Summary'!$A:$P,MATCH($G$2,'Data BI Summary'!$2:$2,0),FALSE),INDIRECT("'"&$E26&"'!"&"$A:$K"),8,FALSE) -> 68.1 | H26: =VLOOKUP(VLOOKUP($F26,'Data BI Summary'!$A:$P,MATCH($G$2,'Data BI Summary'!$2:$2,0),FALSE),INDIRECT("'"&$E26&"'!"&"$A:$K"),9,FALSE) -> 0.04193039923 | I26: =VLOOKUP(VLOOKUP($F26,'Data BI Summary'!$A:$P,MATCH($I$2,'Data BI Summary'!$2:$2,0),FALSE),INDIRECT("'"&$E26&"'!"&"$A:$K"),8,FALSE) -> -230.7 | J26: =VLOOKUP(VLOOKUP($F26,'Data BI Summary'!$A:$P,MATCH($I$2,'Data BI Summary'!$2:$2,0),FALSE),INDIRECT("'"&$E26&"'!"&"$A:$K"),9,FALSE) -> -0.2380235073 | K26: =VLOOKUP(VLOOKUP($F26,'Data BI Summary'!$A:$P,MATCH($K$2,'Data BI Summary'!$2:$2,0),FALSE),INDIRECT("'"&$E26&"'!"&"$A:$K"),8,FALSE) -> -112.41 | L26: =VLOOKUP(VLOOKUP($F26,'Data BI Summary'!$A:$P,MATCH($K$2,'Data BI Summary'!$2:$2,0),FALSE),INDIRECT("'"&$E26&"'!"&"$A:$K"),9,FALSE) -> -0.04301964951 | M26: =VLOOKUP(VLOOKUP($F26,'Data BI Summary'!$A:$P,MATCH($M$2,'Data BI Summary'!$2:$2,0),FALSE),INDIRECT("'"&$E26&"'!"&"$A:$K"),8,FALSE) -> -127.0233 | N26: =VLOOKUP(VLOOKUP($F26,'Data BI Summary'!$A:$P,MATCH($M$2,'Data BI Summary'!$2:$2,0),FALSE),INDIRECT("'"&$E26&"'!"&"$A:$K"),9,FALSE) -> -0.006516659808
A27: St Lgt-NPDI | B27: Average | C27: =VLOOKUP(A$27,'Data Billing Quantities'!A:P,MATCH($B27&" kWh",'Data Billing Quantities'!$4:$4,0),FALSE) -> 11389 | D27: =VLOOKUP(A$27,'Data Billing Quantities'!A:P,MATCH(B27&" kW",'Data Billing Quantities'!$4:$4,0),FALSE) -> 39 | E27: BI_NPDI_StLgt_Avg | F27: BI Template_Unmtr | G27: =VLOOKUP(VLOOKUP($F27,'Data BI Summary'!$A:$P,MATCH($G$2,'Data BI Summary'!$2:$2,0),FALSE),INDIRECT("'"&$E27&"'!"&"$A:$K"),8,FALSE) -> 55.8461 | H27: =VLOOKUP(VLOOKUP($F27,'Data BI Summary'!$A:$P,MATCH($G$2,'Data BI Summary'!$2:$2,0),FALSE),INDIRECT("'"&$E27&"'!"&"$A:$K"),9,FALSE) -> 0.04163029197 | I27: =VLOOKUP(VLOOKUP($F27,'Data BI Summary'!$A:$P,MATCH($I$2,'Data BI Summary'!$2:$2,0),FALSE),INDIRECT("'"&$E27&"'!"&"$A:$K"),8,FALSE) -> 23.9569 | J27: =VLOOKUP(VLOOKUP($F27,'Data BI Summary'!$A:$P,MATCH($I$2,'Data BI Summary'!$2:$2,0),FALSE),INDIRECT("'"&$E27&"'!"&"$A:$K"),9,FALSE) -> 0.01647137744 | K27: =VLOOKUP(VLOOKUP($F27,'Data BI Summary'!$A:$P,MATCH($K$2,'Data BI Summary'!$2:$2,0),FALSE),INDIRECT("'"&$E27&"'!"&"$A:$K"),8,FALSE) -> 35.1500092 | L27: =VLOOKUP(VLOOKUP($F27,'Data BI Summary'!$A:$P,MATCH($K$2,'Data BI Summary'!$2:$2,0),FALSE),INDIRECT("'"&$E27&"'!"&"$A:$K"),9,FALSE) -> 0.02188415716 | M27: =VLOOKUP(VLOOKUP($F27,'Data BI Summary'!$A:$P,MATCH($M$2,'Data BI Summary'!$2:$2,0),FALSE),INDIRECT("'"&$E27&"'!"&"$A:$K"),8,FALSE) -> 35.11485919 | N27: =VLOOKUP(VLOOKUP($F27,'Data BI Summary'!$A:$P,MATCH($M$2,'Data BI Summary'!$2:$2,0),FALSE),INDIRECT("'"&$E27&"'!"&"$A:$K"),9,FALSE) -> 0.01203315815
A28: Sen Lgt-NPDI | B28: Average | C28: =VLOOKUP(A$28,'Data Billing Quantities'!A:P,MATCH($B28&" kWh",'Data Billing Quantities'!$4:$4,0),FALSE) -> 108 | D28: =VLOOKUP(A$28,'Data Billing Quantities'!A:P,MATCH(B28&" kW",'Data Billing Quantities'!$4:$4,0),FALSE) -> 0.3368027211 | E28: BI_NPDI_SenLgt_Avg | F28: BI Template_Unmtr | G28: =VLOOKUP(VLOOKUP($F28,'Data BI Summary'!$A:$P,MATCH($G$2,'Data BI Summary'!$2:$2,0),FALSE),INDIRECT("'"&$E28&"'!"&"$A:$K"),8,FALSE) -> 0.998 | H28: =VLOOKUP(VLOOKUP($F28,'Data BI Summary'!$A:$P,MATCH($G$2,'Data BI Summary'!$2:$2,0),FALSE),INDIRECT("'"&$E28&"'!"&"$A:$K"),9,FALSE) -> 0.04394849483 | I28: =VLOOKUP(VLOOKUP($F28,'Data BI Summary'!$A:$P,MATCH($I$2,'Data BI Summary'!$2:$2,0),FALSE),INDIRECT("'"&$E28&"'!"&"$A:$K"),8,FALSE) -> 0.6956 | J28: =VLOOKUP(VLOOKUP($F28,'Data BI Summary'!$A:$P,MATCH($I$2,'Data BI Summary'!$2:$2,0),FALSE),INDIRECT("'"&$E28&"'!"&"$A:$K"),9,FALSE) -> 0.02947451632 | K28: =VLOOKUP(VLOOKUP($F28,'Data BI Summary'!$A:$P,MATCH($K$2,'Data BI Summary'!$2:$2,0),FALSE),INDIRECT("'"&$E28&"'!"&"$A:$K"),8,FALSE) -> 0.8017424 | L28: =VLOOKUP(VLOOKUP($F28,'Data BI Summary'!$A:$P,MATCH($K$2,'Data BI Summary'!$2:$2,0),FALSE),INDIRECT("'"&$E28&"'!"&"$A:$K"),9,FALSE) -> 0.03201991502 | M28: =VLOOKUP(VLOOKUP($F28,'Data BI Summary'!$A:$P,MATCH($M$2,'Data BI Summary'!$2:$2,0),FALSE),INDIRECT("'"&$E28&"'!"&"$A:$K"),8,FALSE) -> 0.8009406576 | N28: =VLOOKUP(VLOOKUP($F28,'Data BI Summary'!$A:$P,MATCH($M$2,'Data BI Summary'!$2:$2,0),FALSE),INDIRECT("'"&$E28&"'!"&"$A:$K"),9,FALSE) -> 0.0222456063
A29: USL-NPDI | B29: Average | C29: =VLOOKUP(A$29,'Data Billing Quantities'!A:P,MATCH($B29&" kWh",'Data Billing Quantities'!$4:$4,0),FALSE) -> 904 | E29: BI_NPDI_USL_Avg | F29: BI Template_Unmtr | G29: =VLOOKUP(VLOOKUP($F29,'Data BI Summary'!$A:$P,MATCH($G$2,'Data BI Summary'!$2:$2,0),FALSE),INDIRECT("'"&$E29&"'!"&"$A:$K"),8,FALSE) -> 4.068 | H29: =VLOOKUP(VLOOKUP($F29,'Data BI Summary'!$A:$P,MATCH($G$2,'Data BI Summary'!$2:$2,0),FALSE),INDIRECT("'"&$E29&"'!"&"$A:$K"),9,FALSE) -> 0.06359867174 | I29: =VLOOKUP(VLOOKUP($F29,'Data BI Summary'!$A:$P,MATCH($I$2,'Data BI Summary'!$2:$2,0),FALSE),INDIRECT("'"&$E29&"'!"&"$A:$K"),8,FALSE) -> 1.5368 | J29: =VLOOKUP(VLOOKUP($F29,'Data BI Summary'!$A:$P,MATCH($I$2,'Data BI Summary'!$2:$2,0),FALSE),INDIRECT("'"&$E29&"'!"&"$A:$K"),9,FALSE) -> 0.02115054098 | K29: =VLOOKUP(VLOOKUP($F29,'Data BI Summary'!$A:$P,MATCH($K$2,'Data BI Summary'!$2:$2,0),FALSE),INDIRECT("'"&$E29&"'!"&"$A:$K"),8,FALSE) -> 2.4252512 | L29: =VLOOKUP(VLOOKUP($F29,'Data BI Summary'!$A:$P,MATCH($K$2,'Data BI Summary'!$2:$2,0),FALSE),INDIRECT("'"&$E29&"'!"&"$A:$K"),9,FALSE) -> 0.02810810061 | M29: =VLOOKUP(VLOOKUP($F29,'Data BI Summary'!$A:$P,MATCH($M$2,'Data BI Summary'!$2:$2,0),FALSE),INDIRECT("'"&$E29&"'!"&"$A:$K"),8,FALSE) -> 2.422825949 | N29: =VLOOKUP(VLOOKUP($F29,'Data BI Summary'!$A:$P,MATCH($M$2,'Data BI Summary'!$2:$2,0),FALSE),INDIRECT("'"&$E29&"'!"&"$A:$K"),9,FALSE) -> 0.01353784686
A30: HCHI to HONI
A31: AR-HCHI | B31: Low | C31: =VLOOKUP(A$31,'Data Billing Quantities'!A:P,MATCH($B31&" kWh",'Data Billing Quantities'!$4:$4,0),FALSE) -> 250 | E31: BI_HCHI_AR_Low | F31: BI Template_Energy | G31: =VLOOKUP(VLOOKUP($F31,'Data BI Summary'!$A:$P,MATCH($G$2,'Data BI Summary'!$2:$2,0),FALSE),INDIRECT("'"&$E31&"'!"&"$A:$K"),8,FALSE) -> 1.61 | H31: =VLOOKUP(VLOOKUP($F31,'Data BI Summary'!$A:$P,MATCH($G$2,'Data BI Summary'!$2:$2,0),FALSE),INDIRECT("'"&$E31&"'!"&"$A:$K"),9,FALSE) -> 0.04061553986 | I31: =VLOOKUP(VLOOKUP($F31,'Data BI Summary'!$A:$P,MATCH($I$2,'Data BI Summary'!$2:$2,0),FALSE),INDIRECT("'"&$E31&"'!"&"$A:$K"),8,FALSE) -> 0.86 | J31: =VLOOKUP(VLOOKUP($F31,'Data BI Summary'!$A:$P,MATCH($I$2,'Data BI Summary'!$2:$2,0),FALSE),INDIRECT("'"&$E31&"'!"&"$A:$K"),9,FALSE) -> 0.02066922132 | K31: =VLOOKUP(VLOOKUP($F31,'Data BI Summary'!$A:$P,MATCH($K$2,'Data BI Summary'!$2:$2,0),FALSE),INDIRECT("'"&$E31&"'!"&"$A:$K"),8,FALSE) -> 1.2856 | L31: =VLOOKUP(VLOOKUP($F31,'Data BI Summary'!$A:$P,MATCH($K$2,'Data BI Summary'!$2:$2,0),FALSE),INDIRECT("'"&$E31&"'!"&"$A:$K"),9,FALSE) -> 0.02713383464 | M31: =VLOOKUP(VLOOKUP($F31,'Data BI Summary'!$A:$P,MATCH($M$2,'Data BI Summary'!$2:$2,0),FALSE),INDIRECT("'"&$E31&"'!"&"$A:$K"),8,FALSE) -> 1.2843144 | N31: =VLOOKUP(VLOOKUP($F31,'Data BI Summary'!$A:$P,MATCH($M$2,'Data BI Summary'!$2:$2,0),FALSE),INDIRECT("'"&$E31&"'!"&"$A:$K"),9,FALSE) -> 0.0173282567
B32: Typical | C32: =VLOOKUP(A$31,'Data Billing Quantities'!A:P,MATCH($B32&" kWh",'Data Billing Quantities'!$4:$4,0),FALSE) -> 750 | E32: BI_HCHI_AR_Typical | F32: BI Template_Energy | G32: =VLOOKUP(VLOOKUP($F32,'Data BI Summary'!$A:$P,MATCH($G$2,'Data BI Summary'!$2:$2,0),FALSE),INDIRECT("'"&$E32&"'!"&"$A:$K"),8,FALSE) -> 1.61 | H32: =VLOOKUP(VLOOKUP($F32,'Data BI Summary'!$A:$P,MATCH($G$2,'Data BI Summary'!$2:$2,0),FALSE),INDIRECT("'"&$E32&"'!"&"$A:$K"),9,FALSE) -> 0.04061553986 | I32: =VLOOKUP(VLOOKUP($F32,'Data BI Summary'!$A:$P,MATCH($I$2,'Data BI Summary'!$2:$2,0),FALSE),INDIRECT("'"&$E32&"'!"&"$A:$K"),8,FALSE) -> -0.64 | J32: =VLOOKUP(VLOOKUP($F32,'Data BI Summary'!$A:$P,MATCH($I$2,'Data BI Summary'!$2:$2,0),FALSE),INDIRECT("'"&$E32&"'!"&"$A:$K"),9,FALSE) -> -0.01431662285 | K32: =VLOOKUP(VLOOKUP($F32,'Data BI Summary'!$A:$P,MATCH($K$2,'Data BI Summary'!$2:$2,0),FALSE),INDIRECT("'"&$E32&"'!"&"$A:$K"),8,FALSE) -> 0.6368 | L32: =VLOOKUP(VLOOKUP($F32,'Data BI Summary'!$A:$P,MATCH($K$2,'Data BI Summary'!$2:$2,0),FALSE),INDIRECT("'"&$E32&"'!"&"$A:$K"),9,FALSE) -> 0.01026767546 | M32: =VLOOKUP(VLOOKUP($F32,'Data BI Summary'!$A:$P,MATCH($M$2,'Data BI Summary'!$2:$2,0),FALSE),INDIRECT("'"&$E32&"'!"&"$A:$K"),8,FALSE) -> 0.6361632 | N32: =VLOOKUP(VLOOKUP($F32,'Data BI Summary'!$A:$P,MATCH($M$2,'Data BI Summary'!$2:$2,0),FALSE),INDIRECT("'"&$E32&"'!"&"$A:$K"),9,FALSE) -> 0.004485995635
B33: High | C33: =VLOOKUP(A$31,'Data Billing Quantities'!A:P,MATCH($B33&" kWh",'Data Billing Quantities'!$4:$4,0),FALSE) -> 1410 | E33: BI_HCHI_AR_High | F33: BI Template_Energy | G33: =VLOOKUP(VLOOKUP($F33,'Data BI Summary'!$A:$P,MATCH($G$2,'Data BI Summary'!$2:$2,0),FALSE),INDIRECT("'"&$E33&"'!"&"$A:$K"),8,FALSE) -> 1.61 | H33: =VLOOKUP(VLOOKUP($F33,'Data BI Summary'!$A:$P,MATCH($G$2,'Data BI Summary'!$2:$2,0),FALSE),INDIRECT("'"&$E33&"'!"&"$A:$K"),9,FALSE) -> 0.04061553986 | I33: =VLOOKUP(VLOOKUP($F33,'Data BI Summary'!$A:$P,MATCH($I$2,'Data BI Summary'!$2:$2,0),FALSE),INDIRECT("'"&$E33&"'!"&"$A:$K"),8,FALSE) -> -2.62 | J33: =VLOOKUP(VLOOKUP($F33,'Data BI Summary'!$A:$P,MATCH($I$2,'Data BI Summary'!$2:$2,0),FALSE),INDIRECT("'"&$E33&"'!"&"$A:$K"),9,FALSE) -> -0.05370022596 | K33: =VLOOKUP(VLOOKUP($F33,'Data BI Summary'!$A:$P,MATCH($K$2,'Data BI Summary'!$2:$2,0),FALSE),INDIRECT("'"&$E33&"'!"&"$A:$K"),8,FALSE) -> -0.219616 | L33: =VLOOKUP(VLOOKUP($F33,'Data BI Summary'!$A:$P,MATCH($K$2,'Data BI Summary'!$2:$2,0),FALSE),INDIRECT("'"&$E33&"'!"&"$A:$K"),9,FALSE) -> -0.002699823579 | M33: =VLOOKUP(VLOOKUP($F33,'Data BI Summary'!$A:$P,MATCH($M$2,'Data BI Summary'!$2:$2,0),FALSE),INDIRECT("'"&$E33&"'!"&"$A:$K"),8,FALSE) -> -0.219396384 | N33: =VLOOKUP(VLOOKUP($F33,'Data BI Summary'!$A:$P,MATCH($M$2,'Data BI Summary'!$2:$2,0),FALSE),INDIRECT("'"&$E33&"'!"&"$A:$K"),9,FALSE) -> -0.0009490808775
A34: AGSe-HCHI | B34: Low | C34: =VLOOKUP(A$34,'Data Billing Quantities'!A:P,MATCH($B34&" kWh",'Data Billing Quantities'!$4:$4,0),FALSE) -> 90 | E34: BI_HCHI_AGSe_Low | F34: BI Template_Energy | G34: =VLOOKUP(VLOOKUP($F34,'Data BI Summary'!$A:$P,MATCH($G$2,'Data BI Summary'!$2:$2,0),FALSE),INDIRECT("'"&$E34&"'!"&"$A:$K"),8,FALSE) -> 0.135 | H34: =VLOOKUP(VLOOKUP($F34,'Data BI Summary'!$A:$P,MATCH($G$2,'Data BI Summary'!$2:$2,0),FALSE),INDIRECT("'"&$E34&"'!"&"$A:$K"),9,FALSE) -> 0.003234850119 | I34: =VLOOKUP(VLOOKUP($F34,'Data BI Summary'!$A:$P,MATCH($I$2,'Data BI Summary'!$2:$2,0),FALSE),INDIRECT("'"&$E34&"'!"&"$A:$K"),8,FALSE) -> -0.117 | J34: =VLOOKUP(VLOOKUP($F34,'Data BI Summary'!$A:$P,MATCH($I$2,'Data BI Summary'!$2:$2,0),FALSE),INDIRECT("'"&$E34&"'!"&"$A:$K"),9,FALSE) -> -0.002737662213 | K34: =VLOOKUP(VLOOKUP($F34,'Data BI Summary'!$A:$P,MATCH($K$2,'Data BI Summary'!$2:$2,0),FALSE),INDIRECT("'"&$E34&"'!"&"$A:$K"),8,FALSE) -> 0.017064 | L34: =VLOOKUP(VLOOKUP($F34,'Data BI Summary'!$A:$P,MATCH($K$2,'Data BI Summary'!$2:$2,0),FALSE),INDIRECT("'"&$E34&"'!"&"$A:$K"),9,FALSE) -> 0.000384294744 | M34: =VLOOKUP(VLOOKUP($F34,'Data BI Summary'!$A:$P,MATCH($M$2,'Data BI Summary'!$2:$2,0),FALSE),INDIRECT("'"&$E34&"'!"&"$A:$K"),8,FALSE) -> 0.017046936 | N34: =VLOOKUP(VLOOKUP($F34,'Data BI Summary'!$A:$P,MATCH($M$2,'Data BI Summary'!$2:$2,0),FALSE),INDIRECT("'"&$E34&"'!"&"$A:$K"),9,FALSE) -> 0.0003147446491
B35: Typical | C35: =VLOOKUP(A$34,'Data Billing Quantities'!A:P,MATCH($B35&" kWh",'Data Billing Quantities'!$4:$4,0),FALSE) -> 2000 | E35: BI_HCHI_AGSe_Typical | F35: BI Template_Energy | G35: =VLOOKUP(VLOOKUP($F35,'Data BI Summary'!$A:$P,MATCH($G$2,'Data BI Summary'!$2:$2,0),FALSE),INDIRECT("'"&$E35&"'!"&"$A:$K"),8,FALSE) -> 3 | H35: =VLOOKUP(VLOOKUP($F35,'Data BI Summary'!$A:$P,MATCH($G$2,'Data BI Summary'!$2:$2,0),FALSE),INDIRECT("'"&$E35&"'!"&"$A:$K"),9,FALSE) -> 0.03780241935 | I35: =VLOOKUP(VLOOKUP($F35,'Data BI Summary'!$A:$P,MATCH($I$2,'Data BI Summary'!$2:$2,0),FALSE),INDIRECT("'"&$E35&"'!"&"$A:$K"),8,FALSE) -> -2.6 | J35: =VLOOKUP(VLOOKUP($F35,'Data BI Summary'!$A:$P,MATCH($I$2,'Data BI Summary'!$2:$2,0),FALSE),INDIRECT("'"&$E35&"'!"&"$A:$K"),9,FALSE) -> -0.02802869448 | K35: =VLOOKUP(VLOOKUP($F35,'Data BI Summary'!$A:$P,MATCH($K$2,'Data BI Summary'!$2:$2,0),FALSE),INDIRECT("'"&$E35&"'!"&"$A:$K"),8,FALSE) -> 0.3792 | L35: =VLOOKUP(VLOOKUP($F35,'Data BI Summary'!$A:$P,MATCH($K$2,'Data BI Summary'!$2:$2,0),FALSE),INDIRECT("'"&$E35&"'!"&"$A:$K"),9,FALSE) -> 0.002921658861 | M35: =VLOOKUP(VLOOKUP($F35,'Data BI Summary'!$A:$P,MATCH($M$2,'Data BI Summary'!$2:$2,0),FALSE),INDIRECT("'"&$E35&"'!"&"$A:$K"),8,FALSE) -> 0.3788208 | N35: =VLOOKUP(VLOOKUP($F35,'Data BI Summary'!$A:$P,MATCH($M$2,'Data BI Summary'!$2:$2,0),FALSE),INDIRECT("'"&$E35&"'!"&"$A:$K"),9,FALSE) -> 0.001107065107
B36: High | C36: =VLOOKUP(A$34,'Data Billing Quantities'!A:P,MATCH($B36&" kWh",'Data Billing Quantities'!$4:$4,0),FALSE) -> 5430 | E36: BI_HCHI_AGSe_High | F36: BI Template_Energy | G36: =VLOOKUP(VLOOKUP($F36,'Data BI Summary'!$A:$P,MATCH($G$2,'Data BI Summary'!$2:$2,0),FALSE),INDIRECT("'"&$E36&"'!"&"$A:$K"),8,FALSE) -> 8.145 | H36: =VLOOKUP(VLOOKUP($F36,'Data BI Summary'!$A:$P,MATCH($G$2,'Data BI Summary'!$2:$2,0),FALSE),INDIRECT("'"&$E36&"'!"&"$A:$K"),9,FALSE) -> 0.05543418339 | I36: =VLOOKUP(VLOOKUP($F36,'Data BI Summary'!$A:$P,MATCH($I$2,'Data BI Summary'!$2:$2,0),FALSE),INDIRECT("'"&$E36&"'!"&"$A:$K"),8,FALSE) -> -7.059 | J36: =VLOOKUP(VLOOKUP($F36,'Data BI Summary'!$A:$P,MATCH($I$2,'Data BI Summary'!$2:$2,0),FALSE),INDIRECT("'"&$E36&"'!"&"$A:$K"),9,FALSE) -> -0.03865883107 | K36: =VLOOKUP(VLOOKUP($F36,'Data BI Summary'!$A:$P,MATCH($K$2,'Data BI Summary'!$2:$2,0),FALSE),INDIRECT("'"&$E36&"'!"&"$A:$K"),8,FALSE) -> 1.029528 | L36: =VLOOKUP(VLOOKUP($F36,'Data BI Summary'!$A:$P,MATCH($K$2,'Data BI Summary'!$2:$2,0),FALSE),INDIRECT("'"&$E36&"'!"&"$A:$K"),9,FALSE) -> 0.003636286636 | M36: =VLOOKUP(VLOOKUP($F36,'Data BI Summary'!$A:$P,MATCH($M$2,'Data BI Summary'!$2:$2,0),FALSE),INDIRECT("'"&$E36&"'!"&"$A:$K"),8,FALSE) -> 1.028498472 | N36: =VLOOKUP(VLOOKUP($F36,'Data BI Summary'!$A:$P,MATCH($M$2,'Data BI Summary'!$2:$2,0),FALSE),INDIRECT("'"&$E36&"'!"&"$A:$K"),9,FALSE) -> 0.001196734395
A37: AGSd-HCHI | B37: Low | C37: =VLOOKUP(A$37,'Data Billing Quantities'!A:P,MATCH($B37&" kWh",'Data Billing Quantities'!$4:$4,0),FALSE) -> 10880 | D37: =VLOOKUP(A$37,'Data Billing Quantities'!A:P,MATCH(B37&" kW",'Data Billing Quantities'!$4:$4,0),FALSE) -> 55 | E37: BI_HCHI_AGSd_Low | F37: BI Template_Demand | G37: =VLOOKUP(VLOOKUP($F37,'Data BI Summary'!$A:$P,MATCH($G$2,'Data BI Summary'!$2:$2,0),FALSE),INDIRECT("'"&$E37&"'!"&"$A:$K"),8,FALSE) -> 12.485 | H37: =VLOOKUP(VLOOKUP($F37,'Data BI Summary'!$A:$P,MATCH($G$2,'Data BI Summary'!$2:$2,0),FALSE),INDIRECT("'"&$E37&"'!"&"$A:$K"),9,FALSE) -> 0.02857741251 | I37: =VLOOKUP(VLOOKUP($F37,'Data BI Summary'!$A:$P,MATCH($I$2,'Data BI Summary'!$2:$2,0),FALSE),INDIRECT("'"&$E37&"'!"&"$A:$K"),8,FALSE) -> -42.295 | J37: =VLOOKUP(VLOOKUP($F37,'Data BI Summary'!$A:$P,MATCH($I$2,'Data BI Summary'!$2:$2,0),FALSE),INDIRECT("'"&$E37&"'!"&"$A:$K"),9,FALSE) -> -0.09550264917 | K37: =VLOOKUP(VLOOKUP($F37,'Data BI Summary'!$A:$P,MATCH($K$2,'Data BI Summary'!$2:$2,0),FALSE),INDIRECT("'"&$E37&"'!"&"$A:$K"),8,FALSE) -> -20.6085 | L37: =VLOOKUP(VLOOKUP($F37,'Data BI Summary'!$A:$P,MATCH($K$2,'Data BI Summary'!$2:$2,0),FALSE),INDIRECT("'"&$E37&"'!"&"$A:$K"),9,FALSE) -> -0.02769128582 | M37: =VLOOKUP(VLOOKUP($F37,'Data BI Summary'!$A:$P,MATCH($M$2,'Data BI Summary'!$2:$2,0),FALSE),INDIRECT("'"&$E37&"'!"&"$A:$K"),8,FALSE) -> -20.5878915 | N37: =VLOOKUP(VLOOKUP($F37,'Data BI Summary'!$A:$P,MATCH($M$2,'Data BI Summary'!$2:$2,0),FALSE),INDIRECT("'"&$E37&"'!"&"$A:$K"),9,FALSE) -> -0.01075350377
B38: Average | C38: =VLOOKUP(A$37,'Data Billing Quantities'!A:P,MATCH($B38&" kWh",'Data Billing Quantities'!$4:$4,0),FALSE) -> 57529 | D38: =VLOOKUP(A$37,'Data Billing Quantities'!A:P,MATCH(B38&" kW",'Data Billing Quantities'!$4:$4,0),FALSE) -> 175 | E38: BI_HCHI_AGSd_Avg | F38: BI Template_Demand | G38: =VLOOKUP(VLOOKUP($F38,'Data BI Summary'!$A:$P,MATCH($G$2,'Data BI Summary'!$2:$2,0),FALSE),INDIRECT("'"&$E38&"'!"&"$A:$K"),8,FALSE) -> 39.725 | H38: =VLOOKUP(VLOOKUP($F38,'Data BI Summary'!$A:$P,MATCH($G$2,'Data BI Summary'!$2:$2,0),FALSE),INDIRECT("'"&$E38&"'!"&"$A:$K"),9,FALSE) -> 0.03899932015 | I38: =VLOOKUP(VLOOKUP($F38,'Data BI Summary'!$A:$P,MATCH($I$2,'Data BI Summary'!$2:$2,0),FALSE),INDIRECT("'"&$E38&"'!"&"$A:$K"),8,FALSE) -> -134.575 | J38: =VLOOKUP(VLOOKUP($F38,'Data BI Summary'!$A:$P,MATCH($I$2,'Data BI Summary'!$2:$2,0),FALSE),INDIRECT("'"&$E38&"'!"&"$A:$K"),9,FALSE) -> -0.1848853814 | K38: =VLOOKUP(VLOOKUP($F38,'Data BI Summary'!$A:$P,MATCH($K$2,'Data BI Summary'!$2:$2,0),FALSE),INDIRECT("'"&$E38&"'!"&"$A:$K"),8,FALSE) -> -65.5725 | L38: =VLOOKUP(VLOOKUP($F38,'Data BI Summary'!$A:$P,MATCH($K$2,'Data BI Summary'!$2:$2,0),FALSE),INDIRECT("'"&$E38&"'!"&"$A:$K"),9,FALSE) -> -0.03887520769 | M38: =VLOOKUP(VLOOKUP($F38,'Data BI Summary'!$A:$P,MATCH($M$2,'Data BI Summary'!$2:$2,0),FALSE),INDIRECT("'"&$E38&"'!"&"$A:$K"),8,FALSE) -> -74.096925 | N38: =VLOOKUP(VLOOKUP($F38,'Data BI Summary'!$A:$P,MATCH($M$2,'Data BI Summary'!$2:$2,0),FALSE),INDIRECT("'"&$E38&"'!"&"$A:$K"),9,FALSE) -> -0.008003405731
B39: High | C39: =VLOOKUP(A$37,'Data Billing Quantities'!A:P,MATCH($B39&" kWh",'Data Billing Quantities'!$4:$4,0),FALSE) -> 135160 | D39: =VLOOKUP(A$37,'Data Billing Quantities'!A:P,MATCH(B39&" kW",'Data Billing Quantities'!$4:$4,0),FALSE) -> 375 | E39: BI_HCHI_AGSd_High | F39: BI Template_Demand | G39: =VLOOKUP(VLOOKUP($F39,'Data BI Summary'!$A:$P,MATCH($G$2,'Data BI Summary'!$2:$2,0),FALSE),INDIRECT("'"&$E39&"'!"&"$A:$K"),8,FALSE) -> 85.125 | H39: =VLOOKUP(VLOOKUP($F39,'Data BI Summary'!$A:$P,MATCH($G$2,'Data BI Summary'!$2:$2,0),FALSE),INDIRECT("'"&$E39&"'!"&"$A:$K"),9,FALSE) -> 0.04281623974 | I39: =VLOOKUP(VLOOKUP($F39,'Data BI Summary'!$A:$P,MATCH($I$2,'Data BI Summary'!$2:$2,0),FALSE),INDIRECT("'"&$E39&"'!"&"$A:$K"),8,FALSE) -> -288.375 | J39: =VLOOKUP(VLOOKUP($F39,'Data BI Summary'!$A:$P,MATCH($I$2,'Data BI Summary'!$2:$2,0),FALSE),INDIRECT("'"&$E39&"'!"&"$A:$K"),9,FALSE) -> -0.2216570996 | K39: =VLOOKUP(VLOOKUP($F39,'Data BI Summary'!$A:$P,MATCH($K$2,'Data BI Summary'!$2:$2,0),FALSE),INDIRECT("'"&$E39&"'!"&"$A:$K"),8,FALSE) -> -140.5125 | L39: =VLOOKUP(VLOOKUP($F39,'Data BI Summary'!$A:$P,MATCH($K$2,'Data BI Summary'!$2:$2,0),FALSE),INDIRECT("'"&$E39&"'!"&"$A:$K"),9,FALSE) -> -0.04187283353 | M39: =VLOOKUP(VLOOKUP($F39,'Data BI Summary'!$A:$P,MATCH($M$2,'Data BI Summary'!$2:$2,0),FALSE),INDIRECT("'"&$E39&"'!"&"$A:$K"),8,FALSE) -> -158.779125 | N39: =VLOOKUP(VLOOKUP($F39,'Data BI Summary'!$A:$P,MATCH($M$2,'Data BI Summary'!$2:$2,0),FALSE),INDIRECT("'"&$E39&"'!"&"$A:$K"),9,FALSE) -> -0.007537622633
A40: St Lgt-HCHI | B40: Average | C40: =VLOOKUP(A$40,'Data Billing Quantities'!A:P,MATCH($B40&" kWh",'Data Billing Quantities'!$4:$4,0),FALSE) -> 31001 | D40: =VLOOKUP(A$40,'Data Billing Quantities'!A:P,MATCH(B40&" kW",'Data Billing Quantities'!$4:$4,0),FALSE) -> 85 | E40: BI_HCHI_StLgt_Avg | F40: BI Template_Unmtr | G40: =VLOOKUP(VLOOKUP($F40,'Data BI Summary'!$A:$P,MATCH($G$2,'Data BI Summary'!$2:$2,0),FALSE),INDIRECT("'"&$E40&"'!"&"$A:$K"),8,FALSE) -> 151.9449 | H40: =VLOOKUP(VLOOKUP($F40,'Data BI Summary'!$A:$P,MATCH($G$2,'Data BI Summary'!$2:$2,0),FALSE),INDIRECT("'"&$E40&"'!"&"$A:$K"),9,FALSE) -> 0.04228695883 | I40: =VLOOKUP(VLOOKUP($F40,'Data BI Summary'!$A:$P,MATCH($I$2,'Data BI Summary'!$2:$2,0),FALSE),INDIRECT("'"&$E40&"'!"&"$A:$K"),8,FALSE) -> 65.1421 | J40: =VLOOKUP(VLOOKUP($F40,'Data BI Summary'!$A:$P,MATCH($I$2,'Data BI Summary'!$2:$2,0),FALSE),INDIRECT("'"&$E40&"'!"&"$A:$K"),9,FALSE) -> 0.01809811451 | K40: =VLOOKUP(VLOOKUP($F40,'Data BI Summary'!$A:$P,MATCH($K$2,'Data BI Summary'!$2:$2,0),FALSE),INDIRECT("'"&$E40&"'!"&"$A:$K"),8,FALSE) -> 95.6098828 | L40: =VLOOKUP(VLOOKUP($F40,'Data BI Summary'!$A:$P,MATCH($K$2,'Data BI Summary'!$2:$2,0),FALSE),INDIRECT("'"&$E40&"'!"&"$A:$K"),9,FALSE) -> 0.02382863931 | M40: =VLOOKUP(VLOOKUP($F40,'Data BI Summary'!$A:$P,MATCH($M$2,'Data BI Summary'!$2:$2,0),FALSE),INDIRECT("'"&$E40&"'!"&"$A:$K"),8,FALSE) -> 108.0391676 | N40: =VLOOKUP(VLOOKUP($F40,'Data BI Summary'!$A:$P,MATCH($M$2,'Data BI Summary'!$2:$2,0),FALSE),INDIRECT("'"&$E40&"'!"&"$A:$K"),9,FALSE) -> 0.01206151926
A41: Sen Lgt-HCHI | B41: Average | C41: =VLOOKUP(A$41,'Data Billing Quantities'!A:P,MATCH($B41&" kWh",'Data Billing Quantities'!$4:$4,0),FALSE) -> 61 | D41: =VLOOKUP(A$41,'Data Billing Quantities'!A:P,MATCH(B41&" kW",'Data Billing Quantities'!$4:$4,0),FALSE) -> 0.1956473214 | E41: BI_HCHI_SenLgt_Avg | F41: BI Template_Unmtr | G41: =VLOOKUP(VLOOKUP($F41,'Data BI Summary'!$A:$P,MATCH($G$2,'Data BI Summary'!$2:$2,0),FALSE),INDIRECT("'"&$E41&"'!"&"$A:$K"),8,FALSE) -> 0.5985 | H41: =VLOOKUP(VLOOKUP($F41,'Data BI Summary'!$A:$P,MATCH($G$2,'Data BI Summary'!$2:$2,0),FALSE),INDIRECT("'"&$E41&"'!"&"$A:$K"),9,FALSE) -> 0.04265220459 | I41: =VLOOKUP(VLOOKUP($F41,'Data BI Summary'!$A:$P,MATCH($I$2,'Data BI Summary'!$2:$2,0),FALSE),INDIRECT("'"&$E41&"'!"&"$A:$K"),8,FALSE) -> 0.4277 | J41: =VLOOKUP(VLOOKUP($F41,'Data BI Summary'!$A:$P,MATCH($I$2,'Data BI Summary'!$2:$2,0),FALSE),INDIRECT("'"&$E41&"'!"&"$A:$K"),9,FALSE) -> 0.02936246449 | K41: =VLOOKUP(VLOOKUP($F41,'Data BI Summary'!$A:$P,MATCH($K$2,'Data BI Summary'!$2:$2,0),FALSE),INDIRECT("'"&$E41&"'!"&"$A:$K"),8,FALSE) -> 0.4876508 | L41: =VLOOKUP(VLOOKUP($F41,'Data BI Summary'!$A:$P,MATCH($K$2,'Data BI Summary'!$2:$2,0),FALSE),INDIRECT("'"&$E41&"'!"&"$A:$K"),9,FALSE) -> 0.03170911821 | M41: =VLOOKUP(VLOOKUP($F41,'Data BI Summary'!$A:$P,MATCH($M$2,'Data BI Summary'!$2:$2,0),FALSE),INDIRECT("'"&$E41&"'!"&"$A:$K"),8,FALSE) -> 0.4871631492 | N41: =VLOOKUP(VLOOKUP($F41,'Data BI Summary'!$A:$P,MATCH($M$2,'Data BI Summary'!$2:$2,0),FALSE),INDIRECT("'"&$E41&"'!"&"$A:$K"),9,FALSE) -> 0.02247077748
A42: USL-HCHI | B42: Average | C42: =VLOOKUP(A$42,'Data Billing Quantities'!A:P,MATCH($B42&" kWh",'Data Billing Quantities'!$4:$4,0),FALSE) -> 471 | E42: BI_HCHI_USL_Avg | F42: BI Template_Unmtr | G42: =VLOOKUP(VLOOKUP($F42,'Data BI Summary'!$A:$P,MATCH($G$2,'Data BI Summary'!$2:$2,0),FALSE),INDIRECT("'"&$E42&"'!"&"$A:$K"),8,FALSE) -> 2.1195 | H42: =VLOOKUP(VLOOKUP($F42,'Data BI Summary'!$A:$P,MATCH($G$2,'Data BI Summary'!$2:$2,0),FALSE),INDIRECT("'"&$E42&"'!"&"$A:$K"),9,FALSE) -> 0.04098542934 | I42: =VLOOKUP(VLOOKUP($F42,'Data BI Summary'!$A:$P,MATCH($I$2,'Data BI Summary'!$2:$2,0),FALSE),INDIRECT("'"&$E42&"'!"&"$A:$K"),8,FALSE) -> 0.8007 | J42: =VLOOKUP(VLOOKUP($F42,'Data BI Summary'!$A:$P,MATCH($I$2,'Data BI Summary'!$2:$2,0),FALSE),INDIRECT("'"&$E42&"'!"&"$A:$K"),9,FALSE) -> 0.01433980587 | K42: =VLOOKUP(VLOOKUP($F42,'Data BI Summary'!$A:$P,MATCH($K$2,'Data BI Summary'!$2:$2,0),FALSE),INDIRECT("'"&$E42&"'!"&"$A:$K"),8,FALSE) -> 1.2635988 | L42: =VLOOKUP(VLOOKUP($F42,'Data BI Summary'!$A:$P,MATCH($K$2,'Data BI Summary'!$2:$2,0),FALSE),INDIRECT("'"&$E42&"'!"&"$A:$K"),9,FALSE) -> 0.02007772496 | M42: =VLOOKUP(VLOOKUP($F42,'Data BI Summary'!$A:$P,MATCH($M$2,'Data BI Summary'!$2:$2,0),FALSE),INDIRECT("'"&$E42&"'!"&"$A:$K"),8,FALSE) -> 1.262335201 | N42: =VLOOKUP(VLOOKUP($F42,'Data BI Summary'!$A:$P,MATCH($M$2,'Data BI Summary'!$2:$2,0),FALSE),INDIRECT("'"&$E42&"'!"&"$A:$K"),9,FALSE) -> 0.01147950276
A43: CPUC to HONI
A44: R1-CPUC | B44: Low | C44: =VLOOKUP(A$44,'Data Billing Quantities'!A:P,MATCH($B44&" kWh",'Data Billing Quantities'!$4:$4,0),FALSE) -> 370 | E44: BI_CPUC_R1_Low | F44: BI Template_Energy | G44: =VLOOKUP(VLOOKUP($F44,'Data BI Summary'!$A:$P,MATCH($G$2,'Data BI Summary'!$2:$2,0),FALSE),INDIRECT("'"&$E44&"'!"&"$A:$K"),8,FALSE) -> 2.75 | H44: =VLOOKUP(VLOOKUP($F44,'Data BI Summary'!$A:$P,MATCH($G$2,'Data BI Summary'!$2:$2,0),FALSE),INDIRECT("'"&$E44&"'!"&"$A:$K"),9,FALSE) -> 0.04026354319 | I44: =VLOOKUP(VLOOKUP($F44,'Data BI Summary'!$A:$P,MATCH($I$2,'Data BI Summary'!$2:$2,0),FALSE),INDIRECT("'"&$E44&"'!"&"$A:$K"),8,FALSE) -> 2.75 | J44: =VLOOKUP(VLOOKUP($F44,'Data BI Summary'!$A:$P,MATCH($I$2,'Data BI Summary'!$2:$2,0),FALSE),INDIRECT("'"&$E44&"'!"&"$A:$K"),9,FALSE) -> 0.03799441273 | K44: =VLOOKUP(VLOOKUP($F44,'Data BI Summary'!$A:$P,MATCH($K$2,'Data BI Summary'!$2:$2,0),FALSE),INDIRECT("'"&$E44&"'!"&"$A:$K"),8,FALSE) -> 3.34718 | L44: =VLOOKUP(VLOOKUP($F44,'Data BI Summary'!$A:$P,MATCH($K$2,'Data BI Summary'!$2:$2,0),FALSE),INDIRECT("'"&$E44&"'!"&"$A:$K"),9,FALSE) -> 0.04155895526 | M44: =VLOOKUP(VLOOKUP($F44,'Data BI Summary'!$A:$P,MATCH($M$2,'Data BI Summary'!$2:$2,0),FALSE),INDIRECT("'"&$E44&"'!"&"$A:$K"),8,FALSE) -> 3.34383282 | N44: =VLOOKUP(VLOOKUP($F44,'Data BI Summary'!$A:$P,MATCH($M$2,'Data BI Summary'!$2:$2,0),FALSE),INDIRECT("'"&$E44&"'!"&"$A:$K"),9,FALSE) -> 0.02786357481
B45: Typical | C45: =VLOOKUP(A$44,'Data Billing Quantities'!A:P,MATCH($B45&" kWh",'Data Billing Quantities'!$4:$4,0),FALSE) -> 750 | E45: BI_CPUC_R1_Typical | F45: BI Template_Energy | G45: =VLOOKUP(VLOOKUP($F45,'Data BI Summary'!$A:$P,MATCH($G$2,'Data BI Summary'!$2:$2,0),FALSE),INDIRECT("'"&$E45&"'!"&"$A:$K"),8,FALSE) -> 2.75 | H45: =VLOOKUP(VLOOKUP($F45,'Data BI Summary'!$A:$P,MATCH($G$2,'Data BI Summary'!$2:$2,0),FALSE),INDIRECT("'"&$E45&"'!"&"$A:$K"),9,FALSE) -> 0.04026354319 | I45: =VLOOKUP(VLOOKUP($F45,'Data BI Summary'!$A:$P,MATCH($I$2,'Data BI Summary'!$2:$2,0),FALSE),INDIRECT("'"&$E45&"'!"&"$A:$K"),8,FALSE) -> 2.75 | J45: =VLOOKUP(VLOOKUP($F45,'Data BI Summary'!$A:$P,MATCH($I$2,'Data BI Summary'!$2:$2,0),FALSE),INDIRECT("'"&$E45&"'!"&"$A:$K"),9,FALSE) -> 0.03611909161 | K45: =VLOOKUP(VLOOKUP($F45,'Data BI Summary'!$A:$P,MATCH($K$2,'Data BI Summary'!$2:$2,0),FALSE),INDIRECT("'"&$E45&"'!"&"$A:$K"),8,FALSE) -> 3.9605 | L45: =VLOOKUP(VLOOKUP($F45,'Data BI Summary'!$A:$P,MATCH($K$2,'Data BI Summary'!$2:$2,0),FALSE),INDIRECT("'"&$E45&"'!"&"$A:$K"),9,FALSE) -> 0.04273282023 | M45: =VLOOKUP(VLOOKUP($F45,'Data BI Summary'!$A:$P,MATCH($M$2,'Data BI Summary'!$2:$2,0),FALSE),INDIRECT("'"&$E45&"'!"&"$A:$K"),8,FALSE) -> 3.9565395 | N45: =VLOOKUP(VLOOKUP($F45,'Data BI Summary'!$A:$P,MATCH($M$2,'Data BI Summary'!$2:$2,0),FALSE),INDIRECT("'"&$E45&"'!"&"$A:$K"),9,FALSE) -> 0.02293714533
B46: High | C46: =VLOOKUP(A$44,'Data Billing Quantities'!A:P,MATCH($B46&" kWh",'Data Billing Quantities'!$4:$4,0),FALSE) -> 2100 | E46: BI_CPUC_R1_High | F46: BI Template_Energy | G46: =VLOOKUP(VLOOKUP($F46,'Data BI Summary'!$A:$P,MATCH($G$2,'Data BI Summary'!$2:$2,0),FALSE),INDIRECT("'"&$E46&"'!"&"$A:$K"),8,FALSE) -> 2.75 | H46: =VLOOKUP(VLOOKUP($F46,'Data BI Summary'!$A:$P,MATCH($G$2,'Data BI Summary'!$2:$2,0),FALSE),INDIRECT("'"&$E46&"'!"&"$A:$K"),9,FALSE) -> 0.04026354319 | I46: =VLOOKUP(VLOOKUP($F46,'Data BI Summary'!$A:$P,MATCH($I$2,'Data BI Summary'!$2:$2,0),FALSE),INDIRECT("'"&$E46&"'!"&"$A:$K"),8,FALSE) -> 2.75 | J46: =VLOOKUP(VLOOKUP($F46,'Data BI Summary'!$A:$P,MATCH($I$2,'Data BI Summary'!$2:$2,0),FALSE),INDIRECT("'"&$E46&"'!"&"$A:$K"),9,FALSE) -> 0.03073049539 | K46: =VLOOKUP(VLOOKUP($F46,'Data BI Summary'!$A:$P,MATCH($K$2,'Data BI Summary'!$2:$2,0),FALSE),INDIRECT("'"&$E46&"'!"&"$A:$K"),8,FALSE) -> 6.1394 | L46: =VLOOKUP(VLOOKUP($F46,'Data BI Summary'!$A:$P,MATCH($K$2,'Data BI Summary'!$2:$2,0),FALSE),INDIRECT("'"&$E46&"'!"&"$A:$K"),9,FALSE) -> 0.0452059833 | M46: =VLOOKUP(VLOOKUP($F46,'Data BI Summary'!$A:$P,MATCH($M$2,'Data BI Summary'!$2:$2,0),FALSE),INDIRECT("'"&$E46&"'!"&"$A:$K"),8,FALSE) -> 6.1332606 | N46: =VLOOKUP(VLOOKUP($F46,'Data BI Summary'!$A:$P,MATCH($M$2,'Data BI Summary'!$2:$2,0),FALSE),INDIRECT("'"&$E46&"'!"&"$A:$K"),9,FALSE) -> 0.01708601744
A47: GSe-CPUC | B47: Low | C47: =VLOOKUP(A$47,'Data Billing Quantities'!A:P,MATCH($B47&" kWh",'Data Billing Quantities'!$4:$4,0),FALSE) -> 100 | E47: BI_CPUC_GSe_Low | F47: BI Template_Energy | G47: =VLOOKUP(VLOOKUP($F47,'Data BI Summary'!$A:$P,MATCH($G$2,'Data BI Summary'!$2:$2,0),FALSE),INDIRECT("'"&$E47&"'!"&"$A:$K"),8,FALSE) -> -2.93 | H47: =VLOOKUP(VLOOKUP($F47,'Data BI Summary'!$A:$P,MATCH($G$2,'Data BI Summary'!$2:$2,0),FALSE),INDIRECT("'"&$E47&"'!"&"$A:$K"),9,FALSE) -> -0.06752707997 | I47: =VLOOKUP(VLOOKUP($F47,'Data BI Summary'!$A:$P,MATCH($I$2,'Data BI Summary'!$2:$2,0),FALSE),INDIRECT("'"&$E47&"'!"&"$A:$K"),8,FALSE) -> -2.93 | J47: =VLOOKUP(VLOOKUP($F47,'Data BI Summary'!$A:$P,MATCH($I$2,'Data BI Summary'!$2:$2,0),FALSE),INDIRECT("'"&$E47&"'!"&"$A:$K"),9,FALSE) -> -0.06509858904 | K47: =VLOOKUP(VLOOKUP($F47,'Data BI Summary'!$A:$P,MATCH($K$2,'Data BI Summary'!$2:$2,0),FALSE),INDIRECT("'"&$E47&"'!"&"$A:$K"),8,FALSE) -> -2.79848 | L47: =VLOOKUP(VLOOKUP($F47,'Data BI Summary'!$A:$P,MATCH($K$2,'Data BI Summary'!$2:$2,0),FALSE),INDIRECT("'"&$E47&"'!"&"$A:$K"),9,FALSE) -> -0.05974682282 | M47: =VLOOKUP(VLOOKUP($F47,'Data BI Summary'!$A:$P,MATCH($M$2,'Data BI Summary'!$2:$2,0),FALSE),INDIRECT("'"&$E47&"'!"&"$A:$K"),8,FALSE) -> -2.79568152 | N47: =VLOOKUP(VLOOKUP($F47,'Data BI Summary'!$A:$P,MATCH($M$2,'Data BI Summary'!$2:$2,0),FALSE),INDIRECT("'"&$E47&"'!"&"$A:$K"),9,FALSE) -> -0.04847315318
B48: Typical | C48: =VLOOKUP(A$47,'Data Billing Quantities'!A:P,MATCH($B48&" kWh",'Data Billing Quantities'!$4:$4,0),FALSE) -> 2000 | E48: BI_CPUC_GSe_Typical | F48: BI Template_Energy | G48: =VLOOKUP(VLOOKUP($F48,'Data BI Summary'!$A:$P,MATCH($G$2,'Data BI Summary'!$2:$2,0),FALSE),INDIRECT("'"&$E48&"'!"&"$A:$K"),8,FALSE) -> 85.42 | H48: =VLOOKUP(VLOOKUP($F48,'Data BI Summary'!$A:$P,MATCH($G$2,'Data BI Summary'!$2:$2,0),FALSE),INDIRECT("'"&$E48&"'!"&"$A:$K"),9,FALSE) -> 0.8460776545 | I48: =VLOOKUP(VLOOKUP($F48,'Data BI Summary'!$A:$P,MATCH($I$2,'Data BI Summary'!$2:$2,0),FALSE),INDIRECT("'"&$E48&"'!"&"$A:$K"),8,FALSE) -> 85.42 | J48: =VLOOKUP(VLOOKUP($F48,'Data BI Summary'!$A:$P,MATCH($I$2,'Data BI Summary'!$2:$2,0),FALSE),INDIRECT("'"&$E48&"'!"&"$A:$K"),9,FALSE) -> 0.6814349735 | K48: =VLOOKUP(VLOOKUP($F48,'Data BI Summary'!$A:$P,MATCH($K$2,'Data BI Summary'!$2:$2,0),FALSE),INDIRECT("'"&$E48&"'!"&"$A:$K"),8,FALSE) -> 88.0504 | L48: =VLOOKUP(VLOOKUP($F48,'Data BI Summary'!$A:$P,MATCH($K$2,'Data BI Summary'!$2:$2,0),FALSE),INDIRECT("'"&$E48&"'!"&"$A:$K"),9,FALSE) -> 0.5436568347 | M48: =VLOOKUP(VLOOKUP($F48,'Data BI Summary'!$A:$P,MATCH($M$2,'Data BI Summary'!$2:$2,0),FALSE),INDIRECT("'"&$E48&"'!"&"$A:$K"),8,FALSE) -> 87.9623496 | N48: =VLOOKUP(VLOOKUP($F48,'Data BI Summary'!$A:$P,MATCH($M$2,'Data BI Summary'!$2:$2,0),FALSE),INDIRECT("'"&$E48&"'!"&"$A:$K"),9,FALSE) -> 0.2347500351
B49: High | C49: =VLOOKUP(A$47,'Data Billing Quantities'!A:P,MATCH($B49&" kWh",'Data Billing Quantities'!$4:$4,0),FALSE) -> 6600 | E49: BI_CPUC_GSe_High | F49: BI Template_Energy | G49: =VLOOKUP(VLOOKUP($F49,'Data BI Summary'!$A:$P,MATCH($G$2,'Data BI Summary'!$2:$2,0),FALSE),INDIRECT("'"&$E49&"'!"&"$A:$K"),8,FALSE) -> 299.32 | H49: =VLOOKUP(VLOOKUP($F49,'Data BI Summary'!$A:$P,MATCH($G$2,'Data BI Summary'!$2:$2,0),FALSE),INDIRECT("'"&$E49&"'!"&"$A:$K"),9,FALSE) -> 1.245402347 | I49: =VLOOKUP(VLOOKUP($F49,'Data BI Summary'!$A:$P,MATCH($I$2,'Data BI Summary'!$2:$2,0),FALSE),INDIRECT("'"&$E49&"'!"&"$A:$K"),8,FALSE) -> 299.32 | J49: =VLOOKUP(VLOOKUP($F49,'Data BI Summary'!$A:$P,MATCH($I$2,'Data BI Summary'!$2:$2,0),FALSE),INDIRECT("'"&$E49&"'!"&"$A:$K"),9,FALSE) -> 0.9357513592 | K49: =VLOOKUP(VLOOKUP($F49,'Data BI Summary'!$A:$P,MATCH($K$2,'Data BI Summary'!$2:$2,0),FALSE),INDIRECT("'"&$E49&"'!"&"$A:$K"),8,FALSE) -> 308.00032 | L49: =VLOOKUP(VLOOKUP($F49,'Data BI Summary'!$A:$P,MATCH($K$2,'Data BI Summary'!$2:$2,0),FALSE),INDIRECT("'"&$E49&"'!"&"$A:$K"),9,FALSE) -> 0.6989326058 | M49: =VLOOKUP(VLOOKUP($F49,'Data BI Summary'!$A:$P,MATCH($M$2,'Data BI Summary'!$2:$2,0),FALSE),INDIRECT("'"&$E49&"'!"&"$A:$K"),8,FALSE) -> 307.6923197 | N49: =VLOOKUP(VLOOKUP($F49,'Data BI Summary'!$A:$P,MATCH($M$2,'Data BI Summary'!$2:$2,0),FALSE),INDIRECT("'"&$E49&"'!"&"$A:$K"),9,FALSE) -> 0.2693723244
A50: GSd-CPUC | B50: Low | C50: =VLOOKUP(A$50,'Data Billing Quantities'!A:P,MATCH($B50&" kWh",'Data Billing Quantities'!$4:$4,0),FALSE) -> 12900 | D50: =VLOOKUP(A$50,'Data Billing Quantities'!A:P,MATCH(B50&" kW",'Data Billing Quantities'!$4:$4,0),FALSE) -> 50 | E50: BI_CPUC_GSd_Low | F50: BI Template_Demand | G50: =VLOOKUP(VLOOKUP($F50,'Data BI Summary'!$A:$P,MATCH($G$2,'Data BI Summary'!$2:$2,0),FALSE),INDIRECT("'"&$E50&"'!"&"$A:$K"),8,FALSE) -> 665.45 | H50: =VLOOKUP(VLOOKUP($F50,'Data BI Summary'!$A:$P,MATCH($G$2,'Data BI Summary'!$2:$2,0),FALSE),INDIRECT("'"&$E50&"'!"&"$A:$K"),9,FALSE) -> 1.304714382 | I50: =VLOOKUP(VLOOKUP($F50,'Data BI Summary'!$A:$P,MATCH($I$2,'Data BI Summary'!$2:$2,0),FALSE),INDIRECT("'"&$E50&"'!"&"$A:$K"),8,FALSE) -> 665.45 | J50: =VLOOKUP(VLOOKUP($F50,'Data BI Summary'!$A:$P,MATCH($I$2,'Data BI Summary'!$2:$2,0),FALSE),INDIRECT("'"&$E50&"'!"&"$A:$K"),9,FALSE) -> 1.148396783 | K50: =VLOOKUP(VLOOKUP($F50,'Data BI Summary'!$A:$P,MATCH($K$2,'Data BI Summary'!$2:$2,0),FALSE),INDIRECT("'"&$E50&"'!"&"$A:$K"),8,FALSE) -> 684.81 | L50: =VLOOKUP(VLOOKUP($F50,'Data BI Summary'!$A:$P,MATCH($K$2,'Data BI Summary'!$2:$2,0),FALSE),INDIRECT("'"&$E50&"'!"&"$A:$K"),9,FALSE) -> 0.8072876451 | M50: =VLOOKUP(VLOOKUP($F50,'Data BI Summary'!$A:$P,MATCH($M$2,'Data BI Summary'!$2:$2,0),FALSE),INDIRECT("'"&$E50&"'!"&"$A:$K"),8,FALSE) -> 684.12519 | N50: =VLOOKUP(VLOOKUP($F50,'Data BI Summary'!$A:$P,MATCH($M$2,'Data BI Summary'!$2:$2,0),FALSE),INDIRECT("'"&$E50&"'!"&"$A:$K"),9,FALSE) -> 0.2953666678
B51: Average | C51: =VLOOKUP(A$50,'Data Billing Quantities'!A:P,MATCH($B51&" kWh",'Data Billing Quantities'!$4:$4,0),FALSE) -> 29000 | D51: =VLOOKUP(A$50,'Data Billing Quantities'!A:P,MATCH(B51&" kW",'Data Billing Quantities'!$4:$4,0),FALSE) -> 90 | E51: BI_CPUC_GSd_Avg | F51: BI Template_Demand | G51: =VLOOKUP(VLOOKUP($F51,'Data BI Summary'!$A:$P,MATCH($G$2,'Data BI Summary'!$2:$2,0),FALSE),INDIRECT("'"&$E51&"'!"&"$A:$K"),8,FALSE) -> 1291.01 | H51: =VLOOKUP(VLOOKUP($F51,'Data BI Summary'!$A:$P,MATCH($G$2,'Data BI Summary'!$2:$2,0),FALSE),INDIRECT("'"&$E51&"'!"&"$A:$K"),9,FALSE) -> 1.743611422 | I51: =VLOOKUP(VLOOKUP($F51,'Data BI Summary'!$A:$P,MATCH($I$2,'Data BI Summary'!$2:$2,0),FALSE),INDIRECT("'"&$E51&"'!"&"$A:$K"),8,FALSE) -> 1291.01 | J51: =VLOOKUP(VLOOKUP($F51,'Data BI Summary'!$A:$P,MATCH($I$2,'Data BI Summary'!$2:$2,0),FALSE),INDIRECT("'"&$E51&"'!"&"$A:$K"),9,FALSE) -> 1.46540158 | K51: =VLOOKUP(VLOOKUP($F51,'Data BI Summary'!$A:$P,MATCH($K$2,'Data BI Summary'!$2:$2,0),FALSE),INDIRECT("'"&$E51&"'!"&"$A:$K"),8,FALSE) -> 1325.858 | L51: =VLOOKUP(VLOOKUP($F51,'Data BI Summary'!$A:$P,MATCH($K$2,'Data BI Summary'!$2:$2,0),FALSE),INDIRECT("'"&$E51&"'!"&"$A:$K"),9,FALSE) -> 0.9714106525 | M51: =VLOOKUP(VLOOKUP($F51,'Data BI Summary'!$A:$P,MATCH($M$2,'Data BI Summary'!$2:$2,0),FALSE),INDIRECT("'"&$E51&"'!"&"$A:$K"),8,FALSE) -> 1498.21954 | N51: =VLOOKUP(VLOOKUP($F51,'Data BI Summary'!$A:$P,MATCH($M$2,'Data BI Summary'!$2:$2,0),FALSE),INDIRECT("'"&$E51&"'!"&"$A:$K"),9,FALSE) -> 0.2839266837
B52: High | C52: =VLOOKUP(A$50,'Data Billing Quantities'!A:P,MATCH($B52&" kWh",'Data Billing Quantities'!$4:$4,0),FALSE) -> 72900 | D52: =VLOOKUP(A$50,'Data Billing Quantities'!A:P,MATCH(B52&" kW",'Data Billing Quantities'!$4:$4,0),FALSE) -> 240 | E52: BI_CPUC_GSd_High | F52: BI Template_Demand | G52: =VLOOKUP(VLOOKUP($F52,'Data BI Summary'!$A:$P,MATCH($G$2,'Data BI Summary'!$2:$2,0),FALSE),INDIRECT("'"&$E52&"'!"&"$A:$K"),8,FALSE) -> 3636.86 | H52: =VLOOKUP(VLOOKUP($F52,'Data BI Summary'!$A:$P,MATCH($G$2,'Data BI Summary'!$2:$2,0),FALSE),INDIRECT("'"&$E52&"'!"&"$A:$K"),9,FALSE) -> 2.266834873 | I52: =VLOOKUP(VLOOKUP($F52,'Data BI Summary'!$A:$P,MATCH($I$2,'Data BI Summary'!$2:$2,0),FALSE),INDIRECT("'"&$E52&"'!"&"$A:$K"),8,FALSE) -> 3636.86 | J52: =VLOOKUP(VLOOKUP($F52,'Data BI Summary'!$A:$P,MATCH($I$2,'Data BI Summary'!$2:$2,0),FALSE),INDIRECT("'"&$E52&"'!"&"$A:$K"),9,FALSE) -> 1.848689347 | K52: =VLOOKUP(VLOOKUP($F52,'Data BI Summary'!$A:$P,MATCH($K$2,'Data BI Summary'!$2:$2,0),FALSE),INDIRECT("'"&$E52&"'!"&"$A:$K"),8,FALSE) -> 3729.788 | L52: =VLOOKUP(VLOOKUP($F52,'Data BI Summary'!$A:$P,MATCH($K$2,'Data BI Summary'!$2:$2,0),FALSE),INDIRECT("'"&$E52&"'!"&"$A:$K"),9,FALSE) -> 1.144941221 | M52: =VLOOKUP(VLOOKUP($F52,'Data BI Summary'!$A:$P,MATCH($M$2,'Data BI Summary'!$2:$2,0),FALSE),INDIRECT("'"&$E52&"'!"&"$A:$K"),8,FALSE) -> 4214.66044 | N52: =VLOOKUP(VLOOKUP($F52,'Data BI Summary'!$A:$P,MATCH($M$2,'Data BI Summary'!$2:$2,0),FALSE),INDIRECT("'"&$E52&"'!"&"$A:$K"),9,FALSE) -> 0.3225084508
A53: St Lgt-CPUC | B53: Average | C53: =VLOOKUP(A$54,'Data Billing Quantities'!A:P,MATCH($B53&" kWh",'Data Billing Quantities'!$4:$4,0),FALSE) -> 220 | D53: =VLOOKUP(A$53,'Data Billing Quantities'!A:P,MATCH(B53&" kW",'Data Billing Quantities'!$4:$4,0),FALSE) -> 21 | E53: BI_CPUC_StLgt_Avg | F53: BI Template_CPUCLights | G53: =VLOOKUP(VLOOKUP($F53,'Data BI Summary'!$A:$P,MATCH($G$2,'Data BI Summary'!$2:$2,0),FALSE),INDIRECT("'"&$E53&"'!"&"$A:$K"),8,FALSE) -> 379.3466 | H53: =VLOOKUP(VLOOKUP($F53,'Data BI Summary'!$A:$P,MATCH($G$2,'Data BI Summary'!$2:$2,0),FALSE),INDIRECT("'"&$E53&"'!"&"$A:$K"),9,FALSE) -> 0.5844973309 | I53: =VLOOKUP(VLOOKUP($F53,'Data BI Summary'!$A:$P,MATCH($I$2,'Data BI Summary'!$2:$2,0),FALSE),INDIRECT("'"&$E53&"'!"&"$A:$K"),8,FALSE) -> 379.3466 | J53: =VLOOKUP(VLOOKUP($F53,'Data BI Summary'!$A:$P,MATCH($I$2,'Data BI Summary'!$2:$2,0),FALSE),INDIRECT("'"&$E53&"'!"&"$A:$K"),9,FALSE) -> 0.503272795 | K53: =VLOOKUP(VLOOKUP($F53,'Data BI Summary'!$A:$P,MATCH($K$2,'Data BI Summary'!$2:$2,0),FALSE),INDIRECT("'"&$E53&"'!"&"$A:$K"),8,FALSE) -> 387.50384 | L53: =VLOOKUP(VLOOKUP($F53,'Data BI Summary'!$A:$P,MATCH($K$2,'Data BI Summary'!$2:$2,0),FALSE),INDIRECT("'"&$E53&"'!"&"$A:$K"),9,FALSE) -> 0.4483258187 | M53: =VLOOKUP(VLOOKUP($F53,'Data BI Summary'!$A:$P,MATCH($M$2,'Data BI Summary'!$2:$2,0),FALSE),INDIRECT("'"&$E53&"'!"&"$A:$K"),8,FALSE) -> 387.1163362 | N53: =VLOOKUP(VLOOKUP($F53,'Data BI Summary'!$A:$P,MATCH($M$2,'Data BI Summary'!$2:$2,0),FALSE),INDIRECT("'"&$E53&"'!"&"$A:$K"),9,FALSE) -> 0.2130058465
A54: Sen Lgt-CPUC | B54: Average | C54: =VLOOKUP(A$53,'Data Billing Quantities'!A:P,MATCH($B54&" kWh",'Data Billing Quantities'!$4:$4,0),FALSE) -> 8300 | D54: =VLOOKUP(A$54,'Data Billing Quantities'!A:P,MATCH(B54&" kW",'Data Billing Quantities'!$4:$4,0),FALSE) -> 0.6 | E54: BI_CPUC_SenLgt_Avg | F54: BI Template_CPUCLights | G54: =VLOOKUP(VLOOKUP($F54,'Data BI Summary'!$A:$P,MATCH($G$2,'Data BI Summary'!$2:$2,0),FALSE),INDIRECT("'"&$E54&"'!"&"$A:$K"),8,FALSE) -> 6.81088 | H54: =VLOOKUP(VLOOKUP($F54,'Data BI Summary'!$A:$P,MATCH($G$2,'Data BI Summary'!$2:$2,0),FALSE),INDIRECT("'"&$E54&"'!"&"$A:$K"),9,FALSE) -> 0.1774539148 | I54: =VLOOKUP(VLOOKUP($F54,'Data BI Summary'!$A:$P,MATCH($I$2,'Data BI Summary'!$2:$2,0),FALSE),INDIRECT("'"&$E54&"'!"&"$A:$K"),8,FALSE) -> 6.81088 | J54: =VLOOKUP(VLOOKUP($F54,'Data BI Summary'!$A:$P,MATCH($I$2,'Data BI Summary'!$2:$2,0),FALSE),INDIRECT("'"&$E54&"'!"&"$A:$K"),9,FALSE) -> 0.1668783616 | K54: =VLOOKUP(VLOOKUP($F54,'Data BI Summary'!$A:$P,MATCH($K$2,'Data BI Summary'!$2:$2,0),FALSE),INDIRECT("'"&$E54&"'!"&"$A:$K"),8,FALSE) -> 7.027096 | L54: =VLOOKUP(VLOOKUP($F54,'Data BI Summary'!$A:$P,MATCH($K$2,'Data BI Summary'!$2:$2,0),FALSE),INDIRECT("'"&$E54&"'!"&"$A:$K"),9,FALSE) -> 0.1606400166 | M54: =VLOOKUP(VLOOKUP($F54,'Data BI Summary'!$A:$P,MATCH($M$2,'Data BI Summary'!$2:$2,0),FALSE),INDIRECT("'"&$E54&"'!"&"$A:$K"),8,FALSE) -> 7.020068904 | N54: =VLOOKUP(VLOOKUP($F54,'Data BI Summary'!$A:$P,MATCH($M$2,'Data BI Summary'!$2:$2,0),FALSE),INDIRECT("'"&$E54&"'!"&"$A:$K"),9,FALSE) -> 0.1066394997
A55: USL-CPUC | B55: Average | C55: =VLOOKUP(A$55,'Data Billing Quantities'!A:P,MATCH($B55&" kWh",'Data Billing Quantities'!$4:$4,0),FALSE) -> 60 | E55: BI_CPUC_USL_Avg | F55: BI Template_Unmtr | G55: =VLOOKUP(VLOOKUP($F55,'Data BI Summary'!$A:$P,MATCH($G$2,'Data BI Summary'!$2:$2,0),FALSE),INDIRECT("'"&$E55&"'!"&"$A:$K"),8,FALSE) -> 19.002 | H55: =VLOOKUP(VLOOKUP($F55,'Data BI Summary'!$A:$P,MATCH($G$2,'Data BI Summary'!$2:$2,0),FALSE),INDIRECT("'"&$E55&"'!"&"$A:$K"),9,FALSE) -> 0.8916940404 | I55: =VLOOKUP(VLOOKUP($F55,'Data BI Summary'!$A:$P,MATCH($I$2,'Data BI Summary'!$2:$2,0),FALSE),INDIRECT("'"&$E55&"'!"&"$A:$K"),8,FALSE) -> 19.002 | J55: =VLOOKUP(VLOOKUP($F55,'Data BI Summary'!$A:$P,MATCH($I$2,'Data BI Summary'!$2:$2,0),FALSE),INDIRECT("'"&$E55&"'!"&"$A:$K"),9,FALSE) -> 0.864774436 | K55: =VLOOKUP(VLOOKUP($F55,'Data BI Summary'!$A:$P,MATCH($K$2,'Data BI Summary'!$2:$2,0),FALSE),INDIRECT("'"&$E55&"'!"&"$A:$K"),8,FALSE) -> 19.060968 | L55: =VLOOKUP(VLOOKUP($F55,'Data BI Summary'!$A:$P,MATCH($K$2,'Data BI Summary'!$2:$2,0),FALSE),INDIRECT("'"&$E55&"'!"&"$A:$K"),9,FALSE) -> 0.8331739922 | M55: =VLOOKUP(VLOOKUP($F55,'Data BI Summary'!$A:$P,MATCH($M$2,'Data BI Summary'!$2:$2,0),FALSE),INDIRECT("'"&$E55&"'!"&"$A:$K"),8,FALSE) -> 19.04190703 | N55: =VLOOKUP(VLOOKUP($F55,'Data BI Summary'!$A:$P,MATCH($M$2,'Data BI Summary'!$2:$2,0),FALSE),INDIRECT("'"&$E55&"'!"&"$A:$K"),9,FALSE) -> 0.6550013168

Sheet BI Template_Energy (hidden)
A1: 2025 Bill Impacts (Typical Consumption Level) - R2
A3: Rate Class | B3: =RIGHT(A1,LEN(A1)-FIND("- ",A1,1)-1) -> R2
A4: Monthly Consumption (kWh) | B4: =IF(COUNTIF(A1,"*Low*")>0,VLOOKUP(B3,'Data Billing Quantities'!$A:$Z,MATCH("Low kWh",'Data Billing Quantities'!4:4,0),FALSE),IF(COUNTIF(A1,"*Typical*")>0,VLOOKUP(B3,'Data Billing Quantities'!$A:$Z,MATCH("Typical kWh",'Data Billing Quantities'!4:4,0),FALSE),IF(COUNTIF(A1,"*Average*")>0,VLOOKUP(B3,'Data Billing Quantities'!$A:$Z,MATCH("Average kWh",'Data Billing Quantities'!4:4,0),FALSE),IF(COUNTIF(A1,"*High*")>0,VLOOKUP(B3,'Data Billing Quantities'!$A:$Z,MATCH("High kWh",'Data Billing Quantities'!4:4,0),FALSE),"error")))) -> 750
A5: Peak (kW) | B5: =IF(COUNTIF(A1,"*Low*")>0,VLOOKUP(B3,'Data Billing Quantities'!$A:$Z,MATCH("Low kW",'Data Billing Quantities'!4:4,0),FALSE),IF(COUNTIF(A1,"*Typical*")>0,VLOOKUP(B3,'Data Billing Quantities'!$A:$Z,MATCH("Typical kW",'Data Billing Quantities'!4:4,0),FALSE),IF(COUNTIF(A1,"*Average*")>0,VLOOKUP(B3,'Data Billing Quantities'!$A:$Z,MATCH("Average kW",'Data Billing Quantities'!4:4,0),FALSE),IF(COUNTIF(A1,"*High*")>0,VLOOKUP(B3,'Data Billing Quantities'!$A:$Z,MATCH("High kW",'Data Billing Quantities'!4:4,0),FALSE),"error")))) -> 0
A6: Loss factor | B6: =VLOOKUP(B3,'Data Billing Quantities'!A:D,MATCH(A6,'Data Billing Quantities'!4:4,0),FALSE) -> 1.105
A7: Charge determinant | B7: =VLOOKUP(B3,'Data Billing Quantities'!A:D,MATCH(A7,'Data Billing Quantities'!4:4,0),FALSE) -> kWh
B9: Current OEB-Approved | E9: Proposed | H9: Impact
B10: Rate ($) | C10: Volume | D10: Charge ($) | E10: Rate ($) | F10: Volume | G10: Charge ($) | H10: $ Change | I10: % Change
A11: Service Charge | B11: =VLOOKUP($B$3,'Data Current Rates'!$A:$AJ,MATCH('BI Template_Energy'!$A11,CurrentHeader,0),FALSE) -> 138.59 | C11: 1 | D11: =B11*C11 -> 138.59 | E11: =VLOOKUP($B$3,'Data Proposed Rates'!$A:$AM,MATCH('BI Template_Energy'!$A11,ProposedHeader,0),FALSE) -> 143.96 | F11: =C11 -> 1 | G11: =E11*F11 -> 143.96 | H11: =G11-D11 -> 5.37 | I11: =IF(ISERROR(H11/ABS(D11)),"N/A",(H11/ABS(D11))) -> 0.03874738437
A12: Distribution Volumetric Charge | B12: =VLOOKUP($B$3,'Data Current Rates'!$A:$AJ,MATCH('BI Template_Energy'!$A12,CurrentHeader,0),FALSE) -> 0.0126 | C12: =IF(B7="kWh",$B$4,$B$5) -> 750 | D12: =B12*C12 -> 9.45 | E12: =VLOOKUP($B$3,'Data Proposed Rates'!$A:$AM,MATCH('BI Template_Energy'!$A12,ProposedHeader,0),FALSE) -> 0.0121 | F12: =C12 -> 750 | G12: 9.075 | H12: -0.375 | I12: -0.03968253968
A13: RRRP Adjustment | B13: =IF($B$3="R2",VLOOKUP(A13,'Data Pass Through'!$A4:$C19,2,0),0)*-1 -> -60.5 | C13: 1 | D13: =B13*C13 -> -60.5 | E13: =IF($B$3="R2",VLOOKUP(A13,'Data Pass Through'!$A4:$C19,3,0),0)*-1 -> -60.5 | F13: 1 | G13: -60.5 | H13: 0 | I13: 0
A14: DRP Adjustment | D14: =IF(OR($B$3="R1",$B$3="R2"),IF(SUM(D11:D13)>'Data Pass Through'!$B$16,-(SUM(D11:D13)-'Data Pass Through'!$B$16),0),0) -> -46.15 | G14: =IF(OR($B$3="R1",$B$3="R2"),IF(SUM(G11:G13)>'Data Pass Through'!$C$16,-(SUM(G11:G13)-'Data Pass Through'!$C$16),0),0) -> -51.145 | H14: -4.995 | I14: -0.1082340195
A15: Fixed Rate Riders | B15: =VLOOKUP($B$3,'Data Current Rates'!$A:$AJ,MATCH('BI Template_Energy'!$A15,CurrentHeader,0),FALSE) -> -0.44 | C15: 1 | D15: =B15*C15 -> -0.44 | E15: =VLOOKUP($B$3,'Data Proposed Rates'!$A:$AM,MATCH('BI Template_Energy'!$A15,ProposedHeader,0),FALSE) -> -0.44 | F15: 1 | G15: =E15*F15 -> -0.44 | H15: 0 | I15: 0
A16: Volumetric Rate Riders | B16: =VLOOKUP($B$3,'Data Current Rates'!$A:$AJ,MATCH('BI Template_Energy'!$A16,CurrentHeader,0),FALSE) -> 0 | C16: =IF(B7="kWh",$B$4,$B$5) -> 750 | D16: =B16*C16 -> 0 | E16: =VLOOKUP($B$3,'Data Proposed Rates'!$A:$AM,MATCH('BI Template_Energy'!$A16,ProposedHeader,0),FALSE) -> 0 | F16: 750 | G16: 0 | H16: 0 | I16: N/A
A17: Sub-Total A (excluding pass through) | D17: =SUM(D11:D16) -> 40.95 | G17: =SUM(G11:G16) -> 40.95 | H17: 0 | I17: 0
A18: Line Losses on Cost of Power | B18: =VLOOKUP($B$3,'Data Billing Quantities'!$A:$O,MATCH('BI Template_Energy'!$A33,'Data Billing Quantities'!$4:$4,0),FALSE)*$B33+VLOOKUP($B$3,'Data Billing Quantities'!$A:$O,MATCH('BI Template_Energy'!$A34,'Data Billing Quantities'!$4:$4,0),FALSE)*$B34+VLOOKUP($B$3,'Data Billing Quantities'!$A:$O,MATCH('BI Template_Energy'!$A35,'Data Billing Quantities'!$4:$4,0),FALSE)*$B35 -> 0.09986 | C18: =(B6*B4)-B4 -> 78.75 | D18: =B18*C18 -> 7.863975 | E18: =VLOOKUP($B$3,'Data Billing Quantities'!$A:$O,MATCH('BI Template_Energy'!$A33,'Data Billing Quantities'!$4:$4,0),FALSE)*$B33+VLOOKUP($B$3,'Data Billing Quantities'!$A:$O,MATCH('BI Template_Energy'!$A34,'Data Billing Quantities'!$4:$4,0),FALSE)*$B34+VLOOKUP($B$3,'Data Billing Quantities'!$A:$O,MATCH('BI Template_Energy'!$A35,'Data Billing Quantities'!$4:$4,0),FALSE)*$B35 -> 0.09986 | F18: =C18 -> 78.75 | G18: 7.863975 | H18: 0 | I18: 0
A19: Total Deferral/Variance Account Rate Riders | B19: =VLOOKUP($B$3,'Data Current Rates'!$A:$AJ,MATCH('BI Template_Energy'!$A19,CurrentHeader,0),FALSE) -> 0.0007 | C19: =IF(B7="kWh",$B$4,$B$5) -> 750 | D19: 0.525 | E19: =VLOOKUP($B$3,'Data Proposed Rates'!$A:$AM,MATCH('BI Template_Energy'!$A19,ProposedHeader,0),FALSE) -> -0.0023 | F19: =C19 -> 750 | G19: -1.725 | H19: -2.25 | I19: -4.285714286
A20: CBR Class B Rate Riders | B20: =VLOOKUP($B$3,'Data Current Rates'!$A:$AJ,MATCH('BI Template_Energy'!$A20,CurrentHeader,0),FALSE) -> -0.0006 | C20: =IF(B7="kWh",$B$4,$B$5) -> 750 | D20: -0.45 | E20: =VLOOKUP($B$3,'Data Proposed Rates'!$A:$AM,MATCH('BI Template_Energy'!$A20,ProposedHeader,0),FALSE) -> -0.0005 | F20: 750 | G20: -0.375 | H20: 0.075 | I20: 0.1666666667
A21: GA Rate Riders | B21: =VLOOKUP($B$3,'Data Current Rates'!$A:$AJ,MATCH('BI Template_Energy'!$A21,CurrentHeader,0),FALSE) -> 0 | C21: =IF(B7="kWh",$B$4,$B$5) -> 750 | D21: 0 | E21: =VLOOKUP($B$3,'Data Proposed Rates'!$A:$AM,MATCH('BI Template_Energy'!$A21,ProposedHeader,0),FALSE) -> 0 | F21: 750 | G21: 0 | H21: 0 | I21: N/A
A22: Smart Meter Entity Charge (if applicable) | B22: =VLOOKUP($A22,'Data Pass Through'!$A:$D,2,FALSE) -> 0.42 | C22: 1 | D22: 0.42 | E22: =VLOOKUP($A22,'Data Pass Through'!$A:$D,2,FALSE) -> 0.42 | F22: 1 | G22: 0.42 | H22: 0 | I22: 0
A23: Additional Fixed Rate Riders | B23: =VLOOKUP($B$3,'Data Current Rates'!$A:$AJ,MATCH('BI Template_Energy'!$A23,CurrentHeader,0),FALSE) -> 0 | C23: =IF(B9="kWh",$B$4,$B$5) -> 0 | D23: 0 | E23: =VLOOKUP($B$3,'Data Proposed Rates'!$A:$AM,MATCH('BI Template_Energy'!$A23,ProposedHeader,0),FALSE) -> 0 | F23: 0 | G23: 0 | H23: 0 | I23: N/A
A24: Additional Volumetric Rate Riders | B24: =VLOOKUP($B$3,'Data Current Rates'!$A:$AJ,MATCH('BI Template_Energy'!$A24,CurrentHeader,0),FALSE) -> 0 | C24: =IF(B10="kWh",$B$4,$B$5) -> 0 | D24: 0 | E24: =VLOOKUP($B$3,'Data Proposed Rates'!$A:$AM,MATCH('BI Template_Energy'!$A24,ProposedHeader,0),FALSE) -> 0 | F24: 0 | G24: 0 | H24: 0 | I24: N/A
A25: Sub-Total B - Distribution (includes Sub-Total A) | D25: =SUM(INDIRECT("D17:D"&ROW()-1)) -> 49.308975 | G25: =SUM(INDIRECT("G17:G"&ROW()-1)) -> 47.133975 | H25: -2.175 | I25: -0.04410961696
A26: Retail Transmission Rate – Network Service Rate | B26: =VLOOKUP($B$3,'Data Current Rates'!$A:$AJ,MATCH('BI Template_Energy'!$A26,CurrentHeader,0),FALSE) -> 0.0109 | C26: =IF(B7="kWh",$B$4*$B$6,$B$5) -> 828.75 | D26: =B26*C26 -> 9.033375 | E26: =VLOOKUP($B$3,'Data Proposed Rates'!$A:$AM,MATCH('BI Template_Energy'!$A26,ProposedHeader,0),FALSE) -> 0.0118 | F26: 828.75 | G26: 9.77925 | H26: 0.745875 | I26: 0.08256880734
A27: Retail Transmission Rate – Line and Transformation Connection Service Rate | B27: =VLOOKUP($B$3,'Data Current Rates'!$A:$AJ,MATCH('BI Template_Energy'!$A27,CurrentHeader,0),FALSE) -> 0.0082 | C27: =C26 -> 828.75 | D27: 6.79575 | E27: =VLOOKUP($B$3,'Data Proposed Rates'!$A:$AM,MATCH('BI Template_Energy'!$A27,ProposedHeader,0),FALSE) -> 0.0086 | F27: 828.75 | G27: 7.12725 | H27: 0.3315 | I27: 0.0487804878
A28: Sub-Total C - Delivery (including Sub-Total B) | D28: =SUM(D25:D27) -> 65.1381 | G28: =SUM(G25:G27) -> 64.040475 | H28: -1.097625 | I28: -0.01685073713
A29: Wholesale Market Service Rate (WMS) – not ot including CBR | B29: =VLOOKUP($A29,'Data Pass Through'!$A:$D,2,FALSE) -> 0.0041 | C29: =$B$4*$B$6 -> 828.75 | D29: =B29*C29 -> 3.397875 | E29: =VLOOKUP($A29,'Data Pass Through'!$A:$D,3,FALSE) -> 0.0041 | F29: 828.75 | G29: 3.397875 | H29: 0 | I29: 0
A30: Capacity Based Recovery (CBR) – Applicable for Class B Customers | B30: =VLOOKUP($A30,'Data Pass Through'!$A:$D,2,FALSE) -> 0.0004 | C30: =$B$4*$B$6 -> 828.75 | D30: 0.3315 | E30: =VLOOKUP($A30,'Data Pass Through'!$A:$D,3,FALSE) -> 0.0004 | F30: 828.75 | G30: 0.3315 | H30: 0 | I30: 0
A31: Rural Rate Protection Charge | B31: =VLOOKUP($A31,'Data Pass Through'!$A:$D,2,FALSE) -> 0.0015 | C31: =$B$4*$B$6 -> 828.75 | D31: 1.243125 | E31: =VLOOKUP($A31,'Data Pass Through'!$A:$D,3,FALSE) -> 0.0015 | F31: 828.75 | G31: 1.243125 | H31: 0 | I31: 0
A32: Standard Supply Service – Administration Charge (if applicable) | B32: =VLOOKUP($A32,'Data Pass Through'!$A:$D,2,FALSE) -> 0.25 | C32: 1 | D32: 0.25 | E32: =VLOOKUP($A32,'Data Pass Through'!$A:$D,3,FALSE) -> 0.25 | F32: 1 | G32: 0.25 | H32: 0 | I32: 0
A33: TOU-Off Peak | B33: =VLOOKUP($A33,'Data Pass Through'!$A:$D,2,FALSE) -> 0.076 | C33: =B$4*VLOOKUP($B$3,'Data Billing Quantities'!$A:$O,MATCH($A33,'Data Billing Quantities'!$4:$4,0),FALSE) -> 472.5 | D33: 35.91 | E33: =VLOOKUP($A33,'Data Pass Through'!$A:$D,3,FALSE) -> 0.076 | F33: 472.5 | G33: =E33*F33 -> 35.91 | H33: 0 | I33: 0
A34: TOU-Mid Peak | B34: =VLOOKUP($A34,'Data Pass Through'!$A:$D,2,FALSE) -> 0.122 | C34: =B$4*VLOOKUP($B$3,'Data Billing Quantities'!$A:$O,MATCH($A34,'Data Billing Quantities'!$4:$4,0),FALSE) -> 135 | D34: 16.47 | E34: =VLOOKUP($A34,'Data Pass Through'!$A:$D,3,FALSE) -> 0.122 | F34: 135 | G34: =E34*F34 -> 16.47 | H34: 0 | I34: 0
A35: TOU-On Peak | B35: =VLOOKUP($A35,'Data Pass Through'!$A:$D,2,FALSE) -> 0.158 | C35: =B$4*VLOOKUP($B$3,'Data Billing Quantities'!$A:$O,MATCH($A35,'Data Billing Quantities'!$4:$4,0),FALSE) -> 142.5 | D35: 22.515 | E35: =VLOOKUP($A35,'Data Pass Through'!$A:$D,3,FALSE) -> 0.158 | F35: 142.5 | G35: =E35*F35 -> 22.515 | H35: 0 | I35: 0
A36: Total Bill on TOU (before Taxes) | D36: =SUM(D28:D35) -> 145.2556 | G36: =SUM(G28:G35) -> 144.157975 | H36: -1.097625 | I36: -0.007556507288
A37: HST | B37: 0.13 | D37: =D36*B37 -> 18.883228 | E37: =B37 -> 0.13 | G37: =G36*E37 -> 18.74053675 | H37: -0.14269125 | I37: -0.007556507288
A38: Ontario Electricity Rebate (OER) | B38: =IF(($B$4*12)<250000,VLOOKUP($A38,'Data Pass Through'!$A$4:$C$19,2,0),0) -> -0.131 | D38: =D36*B38 -> -19.0284836 | E38: =IF(($B$4*12)<250000,VLOOKUP($A38,'Data Pass Through'!$A$4:$C$19,3,0),0) -> -0.131 | G38: =G36*E38 -> -18.88469473 | H38: 0.143788875 | I38: 0.007556507288
A39: Total Bill on TOU | D39: =SUM(D36:D38) -> 145.1103444 | G39: =SUM(G36:G38) -> 144.013817 | H39: -1.096527375 | I39: -0.007556507288
A40: * Distribution rate protection applies to R1 and R2 customers

Sheet BI Template_EnergyUNM (hidden)
A1: 2024 Bill Impacts (Average Consumption Level) - USL
A3: Rate Class | B3: =RIGHT(A1,LEN(A1)-FIND("- ",A1,1)-1) -> USL
A4: Monthly Consumption (kWh) | B4: =IF(COUNTIF(A1,"*Low*")>0,VLOOKUP(B3,'Data Billing Quantities'!$A:$Z,MATCH("Low kWh",'Data Billing Quantities'!4:4,0),FALSE),IF(COUNTIF(A1,"*Typical*")>0,VLOOKUP(B3,'Data Billing Quantities'!$A:$Z,MATCH("Typical kWh",'Data Billing Quantities'!4:4,0),FALSE),IF(COUNTIF(A1,"*Average*")>0,VLOOKUP(B3,'Data Billing Quantities'!$A:$Z,MATCH("Average kWh",'Data Billing Quantities'!4:4,0),FALSE),IF(COUNTIF(A1,"*High*")>0,VLOOKUP(B3,'Data Billing Quantities'!$A:$Z,MATCH("High kWh",'Data Billing Quantities'!4:4,0),FALSE),"error")))) -> 477
A5: Peak (kW) | B5: =IF(COUNTIF(A1,"*Low*")>0,VLOOKUP(B3,'Data Billing Quantities'!$A:$Z,MATCH("Low kW",'Data Billing Quantities'!4:4,0),FALSE),IF(COUNTIF(A1,"*Typical*")>0,VLOOKUP(B3,'Data Billing Quantities'!$A:$Z,MATCH("Typical kW",'Data Billing Quantities'!4:4,0),FALSE),IF(COUNTIF(A1,"*Average*")>0,VLOOKUP(B3,'Data Billing Quantities'!$A:$Z,MATCH("Average kW",'Data Billing Quantities'!4:4,0),FALSE),IF(COUNTIF(A1,"*High*")>0,VLOOKUP(B3,'Data Billing Quantities'!$A:$Z,MATCH("High kW",'Data Billing Quantities'!4:4,0),FALSE),"error")))) -> 0
A6: Loss factor | B6: =VLOOKUP(B3,'Data Billing Quantities'!A:D,MATCH(A6,'Data Billing Quantities'!4:4,0),FALSE) -> 1.092
A7: Commodity Threshold | B7: =VLOOKUP(B3,'Data Billing Quantities'!A:D,MATCH(A7,'Data Billing Quantities'!4:4,0),FALSE) -> 750
A8: Monthly Consumption (kWh) - Uplifted | B8: =B4*B6 -> 520.884
A9: Charge determinant | B9: =VLOOKUP(B3,'Data Billing Quantities'!A:D,MATCH(A9,'Data Billing Quantities'!4:4,0),FALSE) -> kWh
B11: Volume | C11: Current Rate ($) | D11: Current Charge ($) | E11: Volume | F11: Proposed Rate ($) | G11: Proposed Charge ($) | H11: Change ($) | I11: Change (%) | J11: % of Total Bill
A12: Energy First Tier | B12: =IF(B4>B7,B7,B4) -> 477 | C12: =VLOOKUP($A12,'Data Pass Through'!$A:$D,2,FALSE) ->  | D12: =B12*C12 ->  | E12: =B12 -> 477 | F12: =VLOOKUP($A12,'Data Pass Through'!$A:$D,3,FALSE) ->  | G12: =E12*F12 ->  | H12: =G12-D12 ->  | I12: =IF(ISERROR(H12/ABS(D12)),"N/A",(H12/ABS(D12))) -> N/A | J12: =G12/$G$39 -> 
A13: Energy Second Tier | B13: =IF(B4>B7,(B4)-B7,0) -> 0 | C13: =VLOOKUP($A13,'Data Pass Through'!$A:$D,2,FALSE) ->  | D13: =B13*C13 ->  | E13: =B13 -> 0 | F13: =VLOOKUP($A13,'Data Pass Through'!$A:$D,3,FALSE) ->  | G13: =E13*F13 ->  | I13: N/A
A14: Sub-Total: Energy (RPP Tiered) | D14: =SUM(D12:D13) ->  | G14: =SUM(G12:G13) ->  | I14: N/A
A15: Service Charge | B15: 1 | C15: =VLOOKUP($B$3,'Data Current Rates'!$A:$AJ,MATCH('BI Template_EnergyUNM'!$A15,CurrentHeader,0),FALSE) -> 38.29 | D15: =B15*C15 -> 38.29 | E15: 1 | F15: =VLOOKUP($B$3,'Data Proposed Rates'!$A:$BI,MATCH('BI Template_EnergyUNM'!$A15,ProposedHeader,0),FALSE) -> 38.29 | G15: =E15*F15 -> 38.29 | H15: 0 | I15: 0
A16: Fixed Base Rate Adjustment to Recover Past Tax Amounts | B16: 1 | C16: =VLOOKUP($B$3,'Data Current Rates'!$A:$AJ,MATCH('BI Template_EnergyUNM'!$A16,CurrentHeader,0),FALSE) ->  | D16: =B16*C16 ->  | H16: =G16-D16 ->  | I16: =IF(ISERROR(H16/ABS(D16)),"N/A",(H16/ABS(D16))) -> N/A
A17: Distribution Volumetric Charge | B17: =IF($B$9="kWh",$B$4,$B$5) -> 477 | C17: =VLOOKUP($B$3,'Data Current Rates'!$A:$AJ,MATCH('BI Template_EnergyUNM'!$A17,CurrentHeader,0),FALSE) -> 0.0292 | D17: 13.9284 | E17: 477 | F17: =VLOOKUP($B$3,'Data Proposed Rates'!$A:$BI,MATCH('BI Template_EnergyUNM'!$A17,ProposedHeader,0),FALSE) -> 0.0337 | G17: 16.0749 | H17: 2.1465 | I17: 0.154109589
A18: Volumetric Base Rate Adjustment to Recover Past Tax Amounts | B18: =IF($B$9="kWh",$B$4,$B$5) -> 477 | C18: =VLOOKUP($B$3,'Data Current Rates'!$A:$AJ,MATCH('BI Template_EnergyUNM'!$A18,CurrentHeader,0),FALSE) ->  | D18: =B18*C18 ->  | H18: =G18-D18 ->  | I18: =IF(ISERROR(H18/ABS(D18)),"N/A",(H18/ABS(D18))) -> N/A
A19: Group 1 Volumetric DVA Rider (General) (2023) | B19: =IF($B$9="kWh",$B$4,$B$5) -> 477 | C19: =VLOOKUP($B$3,'Data Current Rates'!$A:$AJ,MATCH('BI Template_EnergyUNM'!$A19,CurrentHeader,0),FALSE) -> -0.0007 | D19: =B19*C19 -> -0.3339 | E19: =B4 -> 477 | F19: =VLOOKUP($B$3,'Data Proposed Rates'!$A:$BI,MATCH('BI Template_EnergyUNM'!$A19,ProposedHeader,0),FALSE) -> -0.0007 | G19: =E19*F19 -> -0.3339 | H19: =G19-D19 -> 0 | I19: =IF(ISERROR(H19/ABS(D19)),"N/A",(H19/ABS(D19))) -> 0
A20: Group 2 Volumetric DVA Rider | B20: 477 | C20: =VLOOKUP($B$3,'Data Current Rates'!$A:$AJ,MATCH('BI Template_EnergyUNM'!$A20,CurrentHeader,0),FALSE) -> -0.0003 | D20: -0.1431 | E20: =IF($B$9="kWh",$B$4,$B$5) -> 477 | F20: =VLOOKUP($B$3,'Data Proposed Rates'!$A:$BI,MATCH('BI Template_EnergyUNM'!$A20,ProposedHeader,0),FALSE) -> -0.0003 | G20: -0.1431 | H20: 0 | I20: 0
A21: Group 1 Volumetric DVA Rider (General) (2024) | E21: 477 | F21: =VLOOKUP($B$3,'Data Proposed Rates'!$A:$BI,MATCH('BI Template_EnergyUNM'!$A21,ProposedHeader,0),FALSE) -> 0.0017 | G21: =E21*F21 -> 0.8109 | H21: =G21-D21 -> 0.8109 | I21: =IF(ISERROR(H21/ABS(D21)),"N/A",(H21/ABS(D21))) -> N/A | J21: =G21/$G$39 -> 
A22: Group 1 Volumetric Deferral/Variance Account Rider (Sub-Account CBR) (2024) | E22: 477 | F22: =VLOOKUP($B$3,'Data Proposed Rates'!$A:$BI,MATCH('BI Template_EnergyUNM'!$A22,ProposedHeader,0),FALSE) -> -0.0006 | G22: -0.2862 | H22: -0.2862 | I22: N/A
A23: Sub-Total: Distribution (excluding pass through) | D23: =SUM(INDIRECT("D15:D"&ROW()-1)) ->  | G23: =SUM(INDIRECT("g15:g"&ROW()-1)) -> 54.4126 | H23: =G23-D23 ->  | I23: N/A
A24: Line Losses on Cost of Power (based on two-tier RPP prices) | B24: =B8-B4 -> 43.884 | C24: =IF(B4>B7,C13,C12) ->  | D24: =B24*C24 ->  | E24: 43.884 | F24: =IF(B4>B7,F13,F12) ->  | G24: =E24*F24 ->  | I24: N/A
A25: Sub-Total: Distribution (based on two-tier RPP prices) | D25: =SUM(D23,D24:D24) ->  | G25: =SUM(G23,G24:G24) ->  | I25: N/A
A26: Retail Transmission Rate – Network Service Rate | B26: =B8 -> 520.884 | C26: =VLOOKUP($B$3,'Data Current Rates'!$A:$AJ,MATCH('BI Template_EnergyUNM'!$A26,CurrentHeader,0),FALSE) -> 0.0079 | D26: =B26*C26 -> 4.1149836 | E26: 520.884 | F26: =VLOOKUP($B$3,'Data Proposed Rates'!$A:$BI,MATCH('BI Template_EnergyUNM'!$A26,ProposedHeader,0),FALSE) -> 0.0085 | G26: =E26*F26 -> 4.427514 | H26: =G26-D26 -> 0.3125304 | I26: 0.07594936709
A27: Retail Transmission Rate – Line and Transformation Connection Service Rate | B27: =B8 -> 520.884 | C27: =VLOOKUP($B$3,'Data Current Rates'!$A:$AJ,MATCH('BI Template_EnergyUNM'!$A27,CurrentHeader,0),FALSE) -> 0.0059 | D27: =B27*C27 -> 3.0732156 | E27: 520.884 | F27: =VLOOKUP($B$3,'Data Proposed Rates'!$A:$BI,MATCH('BI Template_EnergyUNM'!$A27,ProposedHeader,0),FALSE) -> 0.0062 | G27: =E27*F27 -> 3.2294808 | H27: =G27-D27 -> 0.1562652 | I27: 0.05084745763
A28: Sub-Total: Retail Transmission | D28: =SUM(D26:D27) -> 7.1881992 | G28: =SUM(G26:G27) -> 7.6569948 | H28: =G28-D28 -> 0.4687956 | I28: 0.0652173913
A29: Sub-Total: Delivery (based on two-tier RPP prices) | D29: =D25+D28 ->  | G29: =G25+G28 ->  | H29: =G29-D29 ->  | I29: N/A
A30: Wholesale Market Service Rate (WMS) - not including CBR | B30: =B8 -> 520.884 | C30: =VLOOKUP($A30,'Data Pass Through'!$A:$D,2,FALSE) ->  | D30: =B30*C30 ->  | E30: =$B$8 -> 520.884 | F30: =VLOOKUP($A30,'Data Pass Through'!$A:$D,3,FALSE) ->  | G30: =E30*F30 ->  | H30: =G30-D30 ->  | I30: N/A
A31: Capacity Based Recovery (CBR) - Applicable for Class B Customers | B31: =B8 -> 520.884 | C31: =VLOOKUP($A31,'Data Pass Through'!$A:$D,2,FALSE) ->  | D31: =B31*C31 ->  | E31: =$B$8 -> 520.884 | F31: =VLOOKUP($A31,'Data Pass Through'!$A:$D,3,FALSE) ->  | G31: =E31*F31 ->  | I31: N/A
A32: Rural Rate Protection Charge | B32: =B8 -> 520.884 | C32: =VLOOKUP($A32,'Data Pass Through'!$A:$D,2,FALSE) -> 0.0015 | D32: 0.781326 | E32: 520.884 | F32: =VLOOKUP($A32,'Data Pass Through'!$A:$D,3,FALSE) -> 0.0015 | G32: 0.781326 | H32: 0 | I32: 0
A33: Standard Supply Service – Administration Charge (if applicable) | B33: 1 | C33: =VLOOKUP($A33,'Data Pass Through'!$A:$D,2,FALSE) -> 0.25 | D33: =B33*C33 -> 0.25 | E33: 1 | F33: =VLOOKUP($A33,'Data Pass Through'!$A:$D,3,FALSE) -> 0.25 | G33: 0.25 | H33: 0 | I33: 0
A34: Sub-Total: Regulatory | D34: =SUM(D30:D33) ->  | G34: =SUM(G30:G33) ->  | I34: N/A
A35: Total Electricty Charge on Two-Tier RPP | D35: =SUM(D14,D23,D24,D28,D34) ->  | G35: =SUM(G14,G23,G24,G28,G34) ->  | I35: N/A
A36: HST | C36: 0.13 | D36: =D35*C36 ->  | F36: =C36 -> 0.13 | G36: =G35*F36 ->  | I36: N/A
A37: Total Electricity Charge on Two-Tier RPP (including HST) | D37: =SUM(D35:D36) ->  | G37: =SUM(G35:G36) ->  | I37: N/A
A38: Ontario Electricity Rebate (OER) | C38: =IF(($B$4*12)<250000,VLOOKUP(A38,'Data Pass Through'!$A$4:$C$19,2,0),0) -> -0.131 | D38: =D35*C38 ->  | F38: =C38 -> -0.131 | G38: =G35*F38 ->  | I38: N/A
A39: Total Amount on Two-Tier RPP | D39: =SUM(D37:D38) ->  | G39: =SUM(G37:G38) ->  | I39: N/A

Sheet BI Template_Demand (hidden)
A1: 2025 Bill Impacts (Average Consumption Level) - GSd
A3: Rate Class | B3: =RIGHT(A1,LEN(A1)-FIND("- ",A1,1)-1) -> GSd
A4: Monthly Consumption (kWh) | B4: =IF(COUNTIF(A1,"*Low*")>0,VLOOKUP(B3,'Data Billing Quantities'!$A:$Z,MATCH("Low kWh",'Data Billing Quantities'!4:4,0),FALSE),IF(COUNTIF(A1,"*Typical*")>0,VLOOKUP(B3,'Data Billing Quantities'!$A:$Z,MATCH("Typical kWh",'Data Billing Quantities'!4:4,0),FALSE),IF(COUNTIF(A1,"*Average*")>0,VLOOKUP(B3,'Data Billing Quantities'!$A:$Z,MATCH("Average kWh",'Data Billing Quantities'!4:4,0),FALSE),IF(COUNTIF(A1,"*High*")>0,VLOOKUP(B3,'Data Billing Quantities'!$A:$Z,MATCH("High kWh",'Data Billing Quantities'!4:4,0),FALSE),"error")))) -> 34334
A5: Peak (kW) | B5: =IF(COUNTIF(A1,"*Low*")>0,VLOOKUP(B3,'Data Billing Quantities'!$A:$Z,MATCH("Low kW",'Data Billing Quantities'!4:4,0),FALSE),IF(COUNTIF(A1,"*Typical*")>0,VLOOKUP(B3,'Data Billing Quantities'!$A:$Z,MATCH("Typical kW",'Data Billing Quantities'!4:4,0),FALSE),IF(COUNTIF(A1,"*Average*")>0,VLOOKUP(B3,'Data Billing Quantities'!$A:$Z,MATCH("Average kW",'Data Billing Quantities'!4:4,0),FALSE),IF(COUNTIF(A1,"*High*")>0,VLOOKUP(B3,'Data Billing Quantities'!$A:$Z,MATCH("High kW",'Data Billing Quantities'!4:4,0),FALSE),"error")))) -> 110
A6: Loss factor | B6: =VLOOKUP(B3,'Data Billing Quantities'!A:D,MATCH(A6,'Data Billing Quantities'!4:4,0),FALSE) -> 1.061
A7: Charge determinant | B7: =VLOOKUP(B3,'Data Billing Quantities'!A:D,MATCH(A7,'Data Billing Quantities'!4:4,0),FALSE) -> kW
B9: Current OEB-Approved | E9: Proposed | H9: Impact
B10: Rate | C10: Volume | D10: Charge | E10: Rate | F10: Volume | G10: Charge | H10: $ Change | I10: % Change
B11: ($) | D11: ($) | E11: ($) | G11: ($)
A12: Service Charge | B12: =VLOOKUP($B$3,'Data Current Rates'!$A:$AJ,MATCH('BI Template_Demand'!$A12,CurrentHeader,0),FALSE) -> 105.55 | C12: 1 | D12: =C12*B12 -> 105.55 | E12: =VLOOKUP($B$3,'Data Proposed Rates'!$A:$AM,MATCH('BI Template_Demand'!$A12,ProposedHeader,0),FALSE) -> 105.55 | F12: =C12 -> 1 | G12: =F12*E12 -> 105.55 | H12: =G12-D12 -> 0 | I12: =IF(ISERROR(H12/ABS(D12)),"N/A",(H12/ABS(D12))) -> 0
A13: Distribution Volumetric Charge | B13: =VLOOKUP($B$3,'Data Current Rates'!$A:$AJ,MATCH('BI Template_Demand'!$A13,CurrentHeader,0),FALSE) -> 20.5366 | C13: =IF(B8="kWh",$B$4,$B$5) -> 110 | D13: =C13*B13 -> 2259.026 | E13: =VLOOKUP($B$3,'Data Proposed Rates'!$A:$AM,MATCH('BI Template_Demand'!$A13,ProposedHeader,0),FALSE) -> 21.3987 | F13: =C13 -> 110 | G13: =F13*E13 -> 2353.857 | H13: 94.831 | I13: 0.04197871118
A14: Fixed Rate Riders | B14: =VLOOKUP($B$3,'Data Current Rates'!$A:$AJ,MATCH('BI Template_Demand'!$A14,CurrentHeader,0),FALSE) -> 0 | C14: 1 | D14: 0 | E14: =VLOOKUP($B$3,'Data Proposed Rates'!$A:$AM,MATCH('BI Template_Demand'!$A14,ProposedHeader,0),FALSE) -> 0 | F14: 1 | G14: =F14*E14 -> 0 | H14: 0 | I14: N/A
A15: Volumetric Rate Riders | B15: =VLOOKUP($B$3,'Data Current Rates'!$A:$AJ,MATCH('BI Template_Demand'!$A15,CurrentHeader,0),FALSE) -> -0.071 | C15: =IF(B10="kWh",$B$4,$B$5) -> 110 | D15: -7.81 | E15: =VLOOKUP($B$3,'Data Proposed Rates'!$A:$AM,MATCH('BI Template_Demand'!$A15,ProposedHeader,0),FALSE) -> -0.071 | F15: 110 | G15: -7.81 | H15: 0 | I15: 0
A16: Sub-Total A (excluding pass through) | D16: =SUM(D12:D15) -> 2356.766 | G16: =SUM(G12:G15) -> 2451.597 | H16: 94.831 | I16: =IF((D16)=0,"",(H16/D16)) -> 0.0402377665
A17: Line Losses on Cost of Power | B17: =IF($B4*12>=150000,0,B$31) -> 0 | C17: =IF(B$17=0,0,B$4*B$6-B$4) -> 0 | D17: =C17*B17 -> 0 | E17: =IF($B4*12>=150000,0,E$31) -> 0 | F17: =IF(E$17=0,0,B$4*B$6-B$4) -> 0 | G17: 0 | H17: =G17-D17 -> 0 | I17: =IF(ISERROR(H17/ABS(D17)),"N/A",(H17/ABS(D17))) -> N/A
A18: Total Deferral/Variance Account Rate Riders | B18: =VLOOKUP($B$3,'Data Current Rates'!$A:$AJ,MATCH('BI Template_Demand'!$A18,CurrentHeader,0),FALSE) -> 0.6612 | C18: =IF(B12="kWh",$B$4,$B$5) -> 110 | D18: 72.732 | E18: =VLOOKUP($B$3,'Data Proposed Rates'!$A:$AM,MATCH('BI Template_Demand'!$A18,ProposedHeader,0),FALSE) -> -0.2291 | F18: =C18 -> 110 | G18: -25.201 | H18: -97.933 | I18: -1.346491228
A19: CBR Class B Rate Riders | B19: =VLOOKUP($B$3,'Data Current Rates'!$A:$AJ,MATCH('BI Template_Demand'!$A19,CurrentHeader,0),FALSE) -> -0.1739 | C19: =IF(B13="kWh",$B$4,$B$5) -> 110 | D19: =C19*B19 -> -19.129 | E19: =VLOOKUP($B$3,'Data Proposed Rates'!$A:$AM,MATCH('BI Template_Demand'!$A19,ProposedHeader,0),FALSE) -> -0.1567 | F19: =C19 -> 110 | G19: =F19*E19 -> -17.237 | H19: 1.892 | I19: 0.09890741806
A20: GA Rate Riders | B20: =VLOOKUP($B$3,'Data Current Rates'!$A:$AJ,MATCH('BI Template_Demand'!$A20,CurrentHeader,0),FALSE) -> -0.0054 | C20: =B4 -> 34334 | D20: =C20*B20 -> -185.4036 | E20: =VLOOKUP($B$3,'Data Proposed Rates'!$A:$AM,MATCH('BI Template_Demand'!$A20,ProposedHeader,0),FALSE) -> -0.0054 | F20: 34334 | G20: -185.4036 | H20: 0 | I20: 0
A21: Additional Fixed Rate Riders | B21: =VLOOKUP($B$3,'Data Current Rates'!$A:$AJ,MATCH('BI Template_Demand'!$A21,CurrentHeader,0),FALSE) -> 0 | C21: 1 | D21: 0 | E21: =VLOOKUP($B$3,'Data Proposed Rates'!$A:$AM,MATCH('BI Template_Demand'!$A21,ProposedHeader,0),FALSE) -> 0 | F21: 1 | G21: =F21*E21 -> 0 | H21: =G21-D21 -> 0 | I21: N/A
A22: Additional Volumetric Rate Riders | B22: =VLOOKUP($B$3,'Data Current Rates'!$A:$AJ,MATCH('BI Template_Demand'!$A22,CurrentHeader,0),FALSE) -> 0 | C22: =IF(B16="kWh",$B$4,$B$5) -> 110 | D22: =C22*B22 -> 0 | E22: =VLOOKUP($B$3,'Data Proposed Rates'!$A:$AM,MATCH('BI Template_Demand'!$A22,ProposedHeader,0),FALSE) -> 0 | F22: 110 | G22: =F22*E22 -> 0 | H22: 0 | I22: N/A
A23: Sub-Total B - Distribution (includes Sub-Total A) | D23: =SUM(D16:D22) -> 2224.9654 | G23: =SUM(G16:G22) -> 2223.7554 | H23: -1.21 | I23: =IF((D23)=0,"",(H23/D23)) -> -0.0005438286816
A24: Retail Transmission Rate – Network Service Rate | B24: =VLOOKUP($B$3,'Data Current Rates'!$A:$AJ,MATCH('BI Template_Demand'!$A24,CurrentHeader,0),FALSE) -> 3.0151 | C24: =IF(B19="kWh",$B$4,$B$5) -> 110 | D24: =C24*B24 -> 331.661 | E24: =VLOOKUP($B$3,'Data Proposed Rates'!$A:$AM,MATCH('BI Template_Demand'!$A24,ProposedHeader,0),FALSE) -> 3.2717 | F24: 110 | G24: =F24*E24 -> 359.887 | H24: 28.226 | I24: 0.08510497164
A25: Retail Transmission Rate – Line and Transformation Connection Service Rate | B25: =VLOOKUP($B$3,'Data Current Rates'!$A:$AJ,MATCH('BI Template_Demand'!$A25,CurrentHeader,0),FALSE) -> 2.3614 | C25: =IF(B20="kWh",$B$4,$B$5) -> 110 | D25: =C25*B25 -> 259.754 | E25: =VLOOKUP($B$3,'Data Proposed Rates'!$A:$AM,MATCH('BI Template_Demand'!$A25,ProposedHeader,0),FALSE) -> 2.492 | F25: 110 | G25: =F25*E25 -> 274.12 | H25: 14.366 | I25: 0.0553061743
A26: Sub-Total C - Delivery (including Sub-Total B) | D26: =SUM(D23:D25) -> 2816.3804 | G26: =SUM(G23:G25) -> 2857.7624 | H26: 41.382 | I26: =IF((D26)=0,"",(H26/D26)) -> 0.01469332765
A27: Wholesale Market Service Rate (WMS) – not ot including CBR | B27: =VLOOKUP($A27,'Data Pass Through'!$A:$D,2,FALSE) -> 0.0041 | C27: =$B$4*$B$6 -> 36428.374 | D27: =C27*B27 -> 149.3563334 | E27: =VLOOKUP($A27,'Data Pass Through'!$A:$D,3,FALSE) -> 0.0041 | F27: 36428.374 | G27: =F27*E27 -> 149.3563334 | H27: 0 | I27: 0
A28: Capacity Based Recovery (CBR) – Applicable for Class B Customers | B28: =VLOOKUP($A28,'Data Pass Through'!$A:$D,2,FALSE) -> 0.0004 | C28: =$B$4*$B$6 -> 36428.374 | D28: 14.5713496 | E28: =VLOOKUP($A28,'Data Pass Through'!$A:$D,3,FALSE) -> 0.0004 | F28: 36428.374 | G28: 14.5713496 | H28: 0 | I28: 0
A29: Rural Rate Protection Charge | B29: =VLOOKUP($A29,'Data Pass Through'!$A:$D,2,FALSE) -> 0.0015 | C29: 36428.374 | D29: 54.642561 | E29: =VLOOKUP($A29,'Data Pass Through'!$A:$D,3,FALSE) -> 0.0015 | F29: 36428.374 | G29: 54.642561 | H29: 0 | I29: 0
A30: Standard Supply Service – Administration Charge (if applicable) | B30: =VLOOKUP($A30,'Data Pass Through'!$A:$D,2,FALSE) -> 0.25 | C30: 1 | D30: 0.25 | E30: =VLOOKUP($A30,'Data Pass Through'!$A:$D,3,FALSE) -> 0.25 | F30: 1 | G30: 0.25 | H30: 0 | I30: 0
A31: Average IESO Wholesale Market Price | B31: =VLOOKUP(A31,'Data Pass Through'!A4:C19,2,0) -> 0.1014 | C31: =IF($B4*12>=150000,$B4*$B6,$B4) -> 36428.374 | D31: =C31*B31 -> 3693.837124 | E31: =VLOOKUP($A31,'Data Pass Through'!$A:$D,3,FALSE) -> 0.1014 | F31: 36428.374 | G31: 3693.837124 | H31: =G31-D31 -> 0 | I31: 0
A32: Total Bill on Average IESO Wholesale Market Price (before Taxes) | D32: =SUM(D26:D31) -> 6729.037768 | G32: =SUM(G26:G31) -> 6770.419768 | H32: =G32-D32 -> 41.382 | I32: 0.006149764859
A33: HST | B33: 0.13 | D33: =D32*B33 -> 874.7749098 | E33: 0.13 | G33: =G32*E33 -> 880.1545698 | H33: =G33-D33 -> 5.37966 | I33: 0.006149764859
A34: Ontario Electricity Rebate (OER) | B34: =IF(($B$4*12)<250000,VLOOKUP(A34,'Data Pass Through'!$A$4:$C$19,2,0),0) -> 0 | D34: =D32*B34 -> 0 | E34: =IF(($B$4*12)<250000,VLOOKUP(A34,'Data Pass Through'!$A$4:$C$19,3,0),0) -> 0 | G34: =G32*E34 -> 0 | H34: =G34-D34 -> 0 | I34: N/A
A35: Total Bill on Average IESO Wholesale Market Price | D35: =SUM(D32:D34) -> 7603.812677 | G35: =SUM(G32:G34) -> 7650.574337 | H35: =G35-D35 -> 46.76166 | I35: 0.006149764859

Sheet BI Template_Unmtr (hidden)
A1: 2024 Bill Impacts (Average Consumption Level) - St Lgt
A3: Rate Class | B3: =RIGHT(A1,LEN(A1)-FIND("- ",A1,1)-1) -> St Lgt
A4: Monthly Consumption (kWh) | B4: =IF(COUNTIF(A1,"*Low*")>0,VLOOKUP(B3,'Data Billing Quantities'!$A:$Z,MATCH("Low kWh",'Data Billing Quantities'!4:4,0),FALSE),IF(COUNTIF(A1,"*Typical*")>0,VLOOKUP(B3,'Data Billing Quantities'!$A:$Z,MATCH("Typical kWh",'Data Billing Quantities'!4:4,0),FALSE),IF(COUNTIF(A1,"*Average*")>0,VLOOKUP(B3,'Data Billing Quantities'!$A:$Z,MATCH("Average kWh",'Data Billing Quantities'!4:4,0),FALSE),IF(COUNTIF(A1,"*High*")>0,VLOOKUP(B3,'Data Billing Quantities'!$A:$Z,MATCH("High kWh",'Data Billing Quantities'!4:4,0),FALSE),"error")))) -> 1274
A5: Peak (kW) | B5: =IF(COUNTIF(A1,"*Low*")>0,VLOOKUP(B3,'Data Billing Quantities'!$A:$Z,MATCH("Low kW",'Data Billing Quantities'!4:4,0),FALSE),IF(COUNTIF(A1,"*Typical*")>0,VLOOKUP(B3,'Data Billing Quantities'!$A:$Z,MATCH("Typical kW",'Data Billing Quantities'!4:4,0),FALSE),IF(COUNTIF(A1,"*Average*")>0,VLOOKUP(B3,'Data Billing Quantities'!$A:$Z,MATCH("Average kW",'Data Billing Quantities'!4:4,0),FALSE),IF(COUNTIF(A1,"*High*")>0,VLOOKUP(B3,'Data Billing Quantities'!$A:$Z,MATCH("High kW",'Data Billing Quantities'!4:4,0),FALSE),"error")))) -> 0
A6: Loss factor | B6: =VLOOKUP(B3,'Data Billing Quantities'!A:D,MATCH(A6,'Data Billing Quantities'!4:4,0),FALSE) -> 1.092
A7: Charge determinant | B7: =VLOOKUP(B3,'Data Billing Quantities'!A:D,MATCH(A7,'Data Billing Quantities'!4:4,0),FALSE) -> kWh
B9: Current OEB-Approved | E9: Proposed | H9: Impact
B10: Rate ($) | C10: Volume | D10: Charge ($) | E10: Rate ($) | F10: Volume | G10: Charge ($) | H10: $ Change | I10: % Change
A11: Service Charge | B11: =VLOOKUP($B$3,'Data Current Rates'!$A:$AJ,MATCH('BI Template_Unmtr'!$A11,CurrentHeader,0),FALSE) -> 3.27 | C11: 1 | D11: =B11*C11 -> 3.27 | E11: =VLOOKUP($B$3,'Data Proposed Rates'!$A:$AM,MATCH('BI Template_Unmtr'!$A11,ProposedHeader,0),FALSE) -> 3.31 | F11: =C11 -> 1 | G11: =E11*F11 -> 3.31 | H11: =G11-D11 -> 0.04 | I11: =IF(ISERROR(H11/ABS(D11)),"N/A",(H11/ABS(D11))) -> 0.0122324159
A12: Distribution Volumetric Charge | B12: =VLOOKUP($B$3,'Data Current Rates'!$A:$AJ,MATCH('BI Template_Unmtr'!$A12,CurrentHeader,0),FALSE) -> 0.1186 | C12: =IF(B7="kWh",$B$4,$B$5) -> 1274 | D12: =B12*C12 -> 151.0964 | E12: =VLOOKUP($B$3,'Data Proposed Rates'!$A:$AM,MATCH('BI Template_Unmtr'!$A12,ProposedHeader,0),FALSE) -> 0.1235 | F12: =C12 -> 1274 | G12: 157.339 | H12: 6.2426 | I12: 0.0413153457
A13: RRRP Adjustment | B13: =IF($B$3="R2",VLOOKUP(A13,'Data Pass Through'!$A4:$C19,2,0),0)*-1 -> 0 | C13: 1 | D13: =B13*C13 -> 0 | E13: =IF($B$3="R2",VLOOKUP(A13,'Data Pass Through'!$A4:$C19,3,0),0)*-1 -> 0 | F13: 1 | G13: 0 | H13: 0 | I13: N/A
A14: DRP Adjustment | D14: =IF(OR($B$3="R1",$B$3="R2"),IF(SUM(D11:D13)>'Data Pass Through'!$B$16,-(SUM(D11:D13)-'Data Pass Through'!$B$16),0),0) -> 0 | G14: =IF(OR($B$3="R1",$B$3="R2"),IF(SUM(G11:G13)>'Data Pass Through'!$C$16,-(SUM(G11:G13)-'Data Pass Through'!$C$16),0),0) -> 0 | H14: 0 | I14: N/A
A15: Fixed Rate Riders | B15: =VLOOKUP($B$3,'Data Current Rates'!$A:$AJ,MATCH('BI Template_Unmtr'!$A15,CurrentHeader,0),FALSE) -> 0 | C15: 1 | D15: =B15*C15 -> 0 | E15: =VLOOKUP($B$3,'Data Proposed Rates'!$A:$AM,MATCH('BI Template_Unmtr'!$A15,ProposedHeader,0),FALSE) -> 0 | F15: 1 | G15: =E15*F15 -> 0 | H15: 0 | I15: N/A
A16: Volumetric Rate Riders | B16: =VLOOKUP($B$3,'Data Current Rates'!$A:$AJ,MATCH('BI Template_Unmtr'!$A16,CurrentHeader,0),FALSE) -> -0.0004 | C16: =IF(B7="kWh",$B$4,$B$5) -> 1274 | D16: =B16*C16 -> -0.5096 | E16: =VLOOKUP($B$3,'Data Proposed Rates'!$A:$AM,MATCH('BI Template_Unmtr'!$A16,ProposedHeader,0),FALSE) -> -0.0004 | F16: 1274 | G16: -0.5096 | H16: 0 | I16: 0
A17: Sub-Total A (excluding pass through) | D17: =SUM(D11:D16) -> 153.8568 | G17: =SUM(G11:G16) -> 160.1394 | H17: 6.2826 | I17: 0.04083407428
A18: Line Losses on Cost of Power | B18: =IF($B$4*12>=150000,0,IF($B$4>=750,$B33,$B32)) -> 0.11 | C18: =IF($B18=0,0,$B4*$B6-$B4) -> 117.208 | D18: =B18*C18 -> 12.89288 | E18: =IF($B$4*12>=150000,0,IF($B$4>=750,$E33,$E32)) -> 0.11 | F18: =IF($B18=0,0,$B4*$B6-$B4) -> 117.208 | G18: 12.89288 | H18: 0 | I18: 0
A19: Total Deferral/Variance Account Rate Riders | B19: =VLOOKUP($B$3,'Data Current Rates'!$A:$AJ,MATCH('BI Template_Unmtr'!$A19,CurrentHeader,0),FALSE) -> 0.0018 | C19: =IF(B7="kWh",$B$4,$B$5) -> 1274 | D19: 2.2932 | E19: =VLOOKUP($B$3,'Data Proposed Rates'!$A:$AM,MATCH('BI Template_Unmtr'!$A19,ProposedHeader,0),FALSE) -> -0.0011 | F19: =C19 -> 1274 | G19: -1.4014 | H19: -3.6946 | I19: -1.611111111
A20: CBR Class B Rate Riders | B20: =VLOOKUP($B$3,'Data Current Rates'!$A:$AJ,MATCH('BI Template_Unmtr'!$A20,CurrentHeader,0),FALSE) -> -0.0006 | C20: =IF(B7="kWh",$B$4,$B$5) -> 1274 | D20: -0.7644 | E20: =VLOOKUP($B$3,'Data Proposed Rates'!$A:$AM,MATCH('BI Template_Unmtr'!$A20,ProposedHeader,0),FALSE) -> -0.0005 | F20: 1274 | G20: -0.637 | H20: 0.1274 | I20: 0.1666666667
A21: GA Rate Riders | B21: =VLOOKUP($B$3,'Data Current Rates'!$A:$AJ,MATCH('BI Template_Unmtr'!$A21,CurrentHeader,0),FALSE) -> 0 | C21: =IF(B7="kWh",$B$4,$B$5) -> 1274 | D21: 0 | E21: =VLOOKUP($B$3,'Data Proposed Rates'!$A:$AM,MATCH('BI Template_Unmtr'!$A21,ProposedHeader,0),FALSE) -> 0 | F21: 1274 | G21: 0 | H21: 0 | I21: N/A
A22: Additional Fixed Rate Riders | B22: =VLOOKUP($B$3,'Data Current Rates'!$A:$AJ,MATCH('BI Template_Unmtr'!$A22,CurrentHeader,0),FALSE) -> 0 | C22: =IF(B9="kWh",$B$4,$B$5) -> 0 | D22: 0 | E22: =VLOOKUP($B$3,'Data Proposed Rates'!$A:$AM,MATCH('BI Template_Unmtr'!$A22,ProposedHeader,0),FALSE) -> 0 | F22: 0 | G22: 0 | H22: 0 | I22: N/A
A23: Additional Volumetric Rate Riders | B23: =VLOOKUP($B$3,'Data Current Rates'!$A:$AJ,MATCH('BI Template_Unmtr'!$A23,CurrentHeader,0),FALSE) -> 0 | C23: =IF(B10="kWh",$B$4,$B$5) -> 0 | D23: 0 | E23: =VLOOKUP($B$3,'Data Proposed Rates'!$A:$AM,MATCH('BI Template_Unmtr'!$A23,ProposedHeader,0),FALSE) -> 0 | F23: 0 | G23: 0 | H23: 0 | I23: N/A
A24: Sub-Total B - Distribution (includes Sub-Total A) | D24: =SUM(INDIRECT("D17:D"&ROW()-1)) -> 168.27848 | G24: =SUM(INDIRECT("G17:G"&ROW()-1)) -> 170.99388 | H24: 2.7154 | I24: 0.01613634732
A25: Retail Transmission Rate – Network Service Rate | B25: =VLOOKUP($B$3,'Data Current Rates'!$A:$AJ,MATCH('BI Template_Unmtr'!$A25,CurrentHeader,0),FALSE) -> 0.0068 | C25: =IF(B7="kWh",$B$4*$B$6,$B$5) -> 1391.208 | D25: =B25*C25 -> 9.4602144 | E25: =VLOOKUP($B$3,'Data Proposed Rates'!$A:$AM,MATCH('BI Template_Unmtr'!$A25,ProposedHeader,0),FALSE) -> 0.0074 | F25: 1391.208 | G25: 10.2949392 | H25: 0.8347248 | I25: 0.08823529412
A26: Retail Transmission Rate – Line and Transformation Connection Service Rate | B26: =VLOOKUP($B$3,'Data Current Rates'!$A:$AJ,MATCH('BI Template_Unmtr'!$A26,CurrentHeader,0),FALSE) -> 0.0054 | C26: =C25 -> 1391.208 | D26: 7.5125232 | E26: =VLOOKUP($B$3,'Data Proposed Rates'!$A:$AM,MATCH('BI Template_Unmtr'!$A26,ProposedHeader,0),FALSE) -> 0.0057 | F26: 1391.208 | G26: 7.9298856 | H26: 0.4173624 | I26: 0.05555555556
A27: Sub-Total C - Delivery (including Sub-Total B) | D27: =SUM(D24:D26) -> 185.2512176 | G27: =SUM(G24:G26) -> 189.2187048 | H27: 3.9674872 | I27: 0.02141679419
A28: Wholesale Market Service Rate (WMS) – not ot including CBR | B28: =VLOOKUP($A28,'Data Pass Through'!$A:$D,2,FALSE) -> 0.0041 | C28: =$B$4*$B$6 -> 1391.208 | D28: =B28*C28 -> 5.7039528 | E28: =VLOOKUP($A28,'Data Pass Through'!$A:$D,3,FALSE) -> 0.0041 | F28: 1391.208 | G28: 5.7039528 | H28: 0 | I28: 0
A29: Capacity Based Recovery (CBR) – Applicable for Class B Customers | B29: =VLOOKUP($A29,'Data Pass Through'!$A:$D,2,FALSE) -> 0.0004 | C29: =$B$4*$B$6 -> 1391.208 | D29: 0.5564832 | E29: =VLOOKUP($A29,'Data Pass Through'!$A:$D,3,FALSE) -> 0.0004 | F29: 1391.208 | G29: 0.5564832 | H29: 0 | I29: 0
A30: Rural Rate Protection Charge | B30: =VLOOKUP($A30,'Data Pass Through'!$A:$D,2,FALSE) -> 0.0015 | C30: =$B$4*$B$6 -> 1391.208 | D30: 2.086812 | E30: =VLOOKUP($A30,'Data Pass Through'!$A:$D,3,FALSE) -> 0.0015 | F30: 1391.208 | G30: 2.086812 | H30: 0 | I30: 0
A31: Standard Supply Service – Administration Charge (if applicable) | B31: =VLOOKUP($A31,'Data Pass Through'!$A:$D,2,FALSE) -> 0.25 | C31: 1 | D31: 0.25 | E31: =VLOOKUP($A31,'Data Pass Through'!$A:$D,3,FALSE) -> 0.25 | F31: 1 | G31: 0.25 | H31: 0 | I31: 0
A32: RPP Tier 1 | B32: =VLOOKUP($A32,'Data Pass Through'!$A:$D,2,FALSE) -> 0.093 | C32: =IF(($B4*12>=150000),750,IF($B4>=750,750,$B4)) -> 750 | D32: 69.75 | E32: =VLOOKUP($A32,'Data Pass Through'!$A:$D,3,FALSE) -> 0.093 | F32: =IF(($B4*12>=150000),750,IF($B4>=750,750,$B4)) -> 750 | G32: 69.75 | H32: 0 | I32: 0
A33: RPP Tier 2 | B33: =VLOOKUP($A33,'Data Pass Through'!$A:$D,2,FALSE) -> 0.11 | C33: =IF(($B4*12>=150000),($B4*$B6)-750,IF($B4>=750,($B4-750),0)) -> 524 | D33: 57.64 | E33: =VLOOKUP($A33,'Data Pass Through'!$A:$D,3,FALSE) -> 0.11 | F33: =IF(($B4*12>=150000),($B4*$B6)-750,IF($B4>=750,($B4-750),0)) -> 524 | G33: 57.64 | H33: =G33-D33 -> 0 | I33: =IF(ISERROR(H33/ABS(D33)),"N/A",(H33/ABS(D33))) -> 0
A34: Total Bill on Two-Tier RPP (before Taxes) | D34: =SUM(D27:D33) -> 321.2384656 | G34: =SUM(G27:G33) -> 325.2059528 | H34: 3.9674872 | I34: 0.01235059815
A35: HST | B35: 0.13 | D35: =D34*B35 -> 41.76100053 | E35: =B35 -> 0.13 | G35: =G34*E35 -> 42.27677386 | H35: 0.515773336 | I35: 0.01235059815
A36: Ontario Electricity Rebate (OER) | B36: =IF(($B$4*12)<250000,VLOOKUP(A36,'Data Pass Through'!$A$4:$C$19,2,0),0) -> -0.131 | D36: =D34*B36 -> -42.08223899 | E36: =IF(($B$4*12)<250000,VLOOKUP($A36,'Data Pass Through'!$A$4:$C$19,3,0),0) -> -0.131 | G36: =G34*E36 -> -42.60197982 | H36: -0.5197408232 | I36: -0.01235059815
A37: Total Bill on Two-Tier RPP | D37: =SUM(D34:D36) -> 320.9172271 | G37: =SUM(G34:G36) -> 324.8807468 | H37: 3.963519713 | I37: 0.01235059815
A38: * Distribution rate protection applies to R1 and R2 customers

Sheet BI Template_CPUCLights (hidden)
A1: 2025 Bill Impacts (Average Consumption Level) - Sen Lgt-CPUC
A3: Rate Class | B3: =VLOOKUP(A1,'Data BI List CPUCLights'!C:E,2,FALSE) -> Sen Lgt-CPUC | C3: =VLOOKUP(A1,'Data BI List CPUCLights'!C:E,3,FALSE) -> Sen Lgt-HONI
A4: Monthly Consumption (kWh) | B4: =IF(COUNTIF(A1,"*Low*")>0,VLOOKUP(B3,'Data Billing Quantities'!$A:$Z,MATCH("Low kWh",'Data Billing Quantities'!4:4,0),FALSE),IF(COUNTIF(A1,"*Typical*")>0,VLOOKUP(B3,'Data Billing Quantities'!$A:$Z,MATCH("Typical kWh",'Data Billing Quantities'!4:4,0),FALSE),IF(COUNTIF(A1,"*Average*")>0,VLOOKUP(B3,'Data Billing Quantities'!$A:$Z,MATCH("Average kWh",'Data Billing Quantities'!4:4,0),FALSE),IF(COUNTIF(A1,"*High*")>0,VLOOKUP(B3,'Data Billing Quantities'!$A:$Z,MATCH("High kWh",'Data Billing Quantities'!4:4,0),FALSE),"error")))) -> 220 | C4: =B4 -> 220
A5: Peak (kW) | B5: =IF(COUNTIF(A1,"*Low*")>0,VLOOKUP(B3,'Data Billing Quantities'!$A:$Z,MATCH("Low kW",'Data Billing Quantities'!4:4,0),FALSE),IF(COUNTIF(A1,"*Typical*")>0,VLOOKUP(B3,'Data Billing Quantities'!$A:$Z,MATCH("Typical kW",'Data Billing Quantities'!4:4,0),FALSE),IF(COUNTIF(A1,"*Average*")>0,VLOOKUP(B3,'Data Billing Quantities'!$A:$Z,MATCH("Average kW",'Data Billing Quantities'!4:4,0),FALSE),IF(COUNTIF(A1,"*High*")>0,VLOOKUP(B3,'Data Billing Quantities'!$A:$Z,MATCH("High kW",'Data Billing Quantities'!4:4,0),FALSE),"error")))) -> 0.6 | C5: 0
A6: Loss factor | B6: =VLOOKUP(B3,'Data Billing Quantities'!A:D,MATCH(A6,'Data Billing Quantities'!4:4,0),FALSE) -> 1.092 | C6: =VLOOKUP(C3,'Data Billing Quantities'!A:D,MATCH(A6,'Data Billing Quantities'!4:4,0),FALSE) -> 1.092
A7: Charge determinant | B7: =VLOOKUP(B3,'Data Billing Quantities'!A:D,MATCH(A7,'Data Billing Quantities'!4:4,0),FALSE) -> kW | C7: =VLOOKUP(C3,'Data Billing Quantities'!A:D,MATCH(A7,'Data Billing Quantities'!4:4,0),FALSE) -> kWh
B9: Current OEB-Approved | E9: Proposed | H9: Impact
B10: Rate ($) | C10: Volume | D10: Charge ($) | E10: Rate ($) | F10: Volume | G10: Charge ($) | H10: $ Change | I10: % Change
A11: Service Charge | B11: =VLOOKUP($B$3,'Data Current Rates'!$A:$AJ,MATCH('BI Template_CPUCLights'!$A11,CurrentHeader,0),FALSE) -> 12.61 | C11: =VLOOKUP($B3,'Data Billing Quantities'!$A$63:$P$70,16,0) -> 2 | D11: =B11*C11 -> 25.22 | E11: =VLOOKUP($C$3,'Data Proposed Rates'!$A:$AM,MATCH('BI Template_CPUCLights'!$A11,ProposedHeader,0),FALSE) -> 3.37 | F11: 1 | G11: =E11*F11 -> 3.37 | H11: =G11-D11 -> -21.85 | I11: =IF(ISERROR(H11/ABS(D11)),"N/A",(H11/ABS(D11))) -> -0.8663758921
A12: Distribution Volumetric Charge | B12: =VLOOKUP($B$3,'Data Current Rates'!$A:$AJ,MATCH('BI Template_CPUCLights'!$A12,CurrentHeader,0),FALSE) -> 21.9352 | C12: =IF(B7="kWh",$B$4,$B$5) -> 0.6 | D12: =B12*C12 -> 13.16112 | E12: =VLOOKUP($C$3,'Data Proposed Rates'!$A:$AM,MATCH('BI Template_CPUCLights'!$A12,ProposedHeader,0),FALSE) -> 0.1901 | F12: =IF(C7="kWh",$C$4,$C$5) -> 220 | G12: 41.822 | H12: 28.66088 | I12: 2.177693084
A13: RRRP Adjustment | B13: =IF($B$3="R2",VLOOKUP(A13,'Data Pass Through'!$A4:$C19,2,0),0)*-1 -> 0 | C13: 1 | D13: =B13*C13 -> 0 | E13: =IF($B$3="R2",VLOOKUP(A13,'Data Pass Through'!$A4:$C19,3,0),0)*-1 -> 0 | F13: 1 | G13: 0 | H13: 0 | I13: N/A
A14: DRP Adjustment | D14: =IF(OR($B$3="R1",$B$3="R2"),IF(SUM(D11:D13)>'Data Pass Through'!$B$16,-(SUM(D11:D13)-'Data Pass Through'!$B$16),0),0) -> 0 | G14: =IF(OR($B$3="R1",$B$3="R2"),IF(SUM(G11:G13)>'Data Pass Through'!$C$16,-(SUM(G11:G13)-'Data Pass Through'!$C$16),0),0) -> 0 | H14: 0 | I14: N/A
A15: Fixed Rate Riders | B15: =VLOOKUP($B$3,'Data Current Rates'!$A:$AJ,MATCH('BI Template_CPUCLights'!$A15,CurrentHeader,0),FALSE) -> 0 | C15: 1 | D15: =B15*C15 -> 0 | E15: =VLOOKUP($C$3,'Data Proposed Rates'!$A:$AM,MATCH('BI Template_CPUCLights'!$A15,ProposedHeader,0),FALSE) -> 0 | F15: 1 | G15: =E15*F15 -> 0 | H15: 0 | I15: N/A
A16: Volumetric Rate Riders | B16: =VLOOKUP($B$3,'Data Current Rates'!$A:$AJ,MATCH('BI Template_CPUCLights'!$A16,CurrentHeader,0),FALSE) -> 0 | C16: =IF(B7="kWh",$B$4,$B$5) -> 0.6 | D16: =B16*C16 -> 0 | E16: =VLOOKUP($C$3,'Data Proposed Rates'!$A:$AM,MATCH('BI Template_CPUCLights'!$A16,ProposedHeader,0),FALSE) -> 0 | F16: =IF(C7="kWh",$C$4,$C$5) -> 220 | G16: 0 | H16: 0 | I16: N/A
A17: Sub-Total A (excluding pass through) | D17: =SUM(D11:D16) -> 38.38112 | G17: =SUM(G11:G16) -> 45.192 | H17: 6.81088 | I17: 0.1774539148
A18: Line Losses on Cost of Power | B18: =IF($B$4*12>=150000,0,IF($B$4>=750,$B33,$B32)) -> 0.093 | C18: =IF($B18=0,0,$B4*$B6-$B4) -> 20.24 | D18: =B18*C18 -> 1.88232 | E18: =IF($C$4*12>=150000,0,IF($C$4>=750,$E33,$E32)) -> 0.093 | F18: =IF($E18=0,0,$C4*$C6-$C4) -> 20.24 | G18: 1.88232 | H18: 0 | I18: 0
A19: Total Deferral/Variance Account Rate Riders | B19: =VLOOKUP($B$3,'Data Current Rates'!$A:$AJ,MATCH('BI Template_CPUCLights'!$A19,CurrentHeader,0),FALSE) -> 0.0025 | C19: =B4 -> 220 | D19: 0.55 | E19: =VLOOKUP($C$3,'Data Proposed Rates'!$A:$AM,MATCH('BI Template_CPUCLights'!$A19,ProposedHeader,0),FALSE) -> 0.0025 | F19: =IF(C7="kWh",$C$4,$C$5) -> 220 | G19: 0.55 | H19: 0 | I19: 0
A20: CBR Class B Rate Riders | B20: =VLOOKUP($B$3,'Data Current Rates'!$A:$AJ,MATCH('BI Template_CPUCLights'!$A20,CurrentHeader,0),FALSE) -> 0 | C20: =IF(B7="kWh",$B$4,$B$5) -> 0.6 | D20: 0 | E20: =VLOOKUP($C$3,'Data Proposed Rates'!$A:$AM,MATCH('BI Template_CPUCLights'!$A20,ProposedHeader,0),FALSE) -> 0 | F20: =IF(C7="kWh",$C$4,$C$5) -> 220 | G20: 0 | H20: 0 | I20: N/A
A21: GA Rate Riders | B21: =VLOOKUP($B$3,'Data Current Rates'!$A:$AJ,MATCH('BI Template_CPUCLights'!$A21,CurrentHeader,0),FALSE) -> 0 | C21: =IF(B7="kWh",$B$4,$B$5) -> 0.6 | D21: 0 | E21: =VLOOKUP($C$3,'Data Proposed Rates'!$A:$AM,MATCH('BI Template_CPUCLights'!$A21,ProposedHeader,0),FALSE) -> 0 | F21: =IF(C7="kWh",$C$4,$C$5) -> 220 | G21: 0 | H21: 0 | I21: N/A
A22: Additional Fixed Rate Riders | B22: =VLOOKUP($B$3,'Data Current Rates'!$A:$AJ,MATCH('BI Template_CPUCLights'!$A22,CurrentHeader,0),FALSE) -> 0 | C22: =IF(B9="kWh",$B$4,$B$5) -> 0.6 | D22: 0 | E22: =VLOOKUP($C$3,'Data Proposed Rates'!$A:$AM,MATCH('BI Template_CPUCLights'!$A22,ProposedHeader,0),FALSE) -> 0 | F22: =IF(C$7="kWh",$C$4,$C$5) -> 220 | G22: 0 | H22: 0 | I22: N/A
A23: Additional Volumetric Rate Riders | B23: =VLOOKUP($B$3,'Data Current Rates'!$A:$AJ,MATCH('BI Template_CPUCLights'!$A23,CurrentHeader,0),FALSE) -> 0 | C23: =IF(B10="kWh",$B$4,$B$5) -> 0.6 | D23: 0 | E23: =VLOOKUP($C$3,'Data Proposed Rates'!$A:$AM,MATCH('BI Template_CPUCLights'!$A23,ProposedHeader,0),FALSE) -> 0 | F23: =IF(C7="kWh",$B$4,$B$5) -> 220 | G23: 0 | H23: 0 | I23: N/A
A24: Sub-Total B - Distribution (includes Sub-Total A) | D24: =SUM(INDIRECT("D17:D"&ROW()-1)) -> 40.81344 | G24: =SUM(INDIRECT("G17:G"&ROW()-1)) -> 47.62432 | H24: 6.81088 | I24: 0.1668783616
A25: Retail Transmission Rate – Network Service Rate | B25: =VLOOKUP($B$3,'Data Current Rates'!$A:$AJ,MATCH('BI Template_CPUCLights'!$A25,CurrentHeader,0),FALSE) -> 0.0068 | C25: =B4*B6 -> 240.24 | D25: =B25*C25 -> 1.633632 | E25: =VLOOKUP($C$3,'Data Proposed Rates'!$A:$AM,MATCH('BI Template_CPUCLights'!$A25,ProposedHeader,0),FALSE) -> 0.0074 | F25: =C4*C6 -> 240.24 | G25: 1.777776 | H25: 0.144144 | I25: 0.08823529412
A26: Retail Transmission Rate – Line and Transformation Connection Service Rate | B26: =VLOOKUP($B$3,'Data Current Rates'!$A:$AJ,MATCH('BI Template_CPUCLights'!$A26,CurrentHeader,0),FALSE) -> 0.0054 | C26: =C25 -> 240.24 | D26: 1.297296 | E26: =VLOOKUP($C$3,'Data Proposed Rates'!$A:$AM,MATCH('BI Template_CPUCLights'!$A26,ProposedHeader,0),FALSE) -> 0.0057 | F26: =F25 -> 240.24 | G26: 1.369368 | H26: 0.072072 | I26: 0.05555555556
A27: Sub-Total C - Delivery (including Sub-Total B) | D27: =SUM(D24:D26) -> 43.744368 | G27: =SUM(G24:G26) -> 50.771464 | H27: 7.027096 | I27: 0.1606400166
A28: Wholesale Market Service Rate (WMS) – not ot including CBR | B28: =VLOOKUP($A28,'Data Pass Through'!$A:$D,2,FALSE) -> 0.0041 | C28: =$B$4*$B$6 -> 240.24 | D28: =B28*C28 -> 0.984984 | E28: =VLOOKUP($A28,'Data Pass Through'!$A:$D,3,FALSE) -> 0.0041 | F28: =$C$4*$C$6 -> 240.24 | G28: 0.984984 | H28: 0 | I28: 0
A29: Capacity Based Recovery (CBR) – Applicable for Class B Customers | B29: =VLOOKUP($A29,'Data Pass Through'!$A:$D,2,FALSE) -> 0.0004 | C29: =$B$4*$B$6 -> 240.24 | D29: 0.096096 | E29: =VLOOKUP($A29,'Data Pass Through'!$A:$D,3,FALSE) -> 0.0004 | F29: =$C$4*$C$6 -> 240.24 | G29: 0.096096 | H29: 0 | I29: 0
A30: Rural Rate Protection Charge | B30: =VLOOKUP($A30,'Data Pass Through'!$A:$D,2,FALSE) -> 0.0015 | C30: =$B$4*$B$6 -> 240.24 | D30: 0.36036 | E30: =VLOOKUP($A30,'Data Pass Through'!$A:$D,3,FALSE) -> 0.0015 | F30: =$C$4*$C$6 -> 240.24 | G30: 0.36036 | H30: 0 | I30: 0
A31: Standard Supply Service – Administration Charge (if applicable) | B31: =VLOOKUP($A31,'Data Pass Through'!$A:$D,2,FALSE) -> 0.25 | C31: 1 | D31: 0.25 | E31: =VLOOKUP($A31,'Data Pass Through'!$A:$D,3,FALSE) -> 0.25 | F31: 1 | G31: 0.25 | H31: 0 | I31: 0
A32: RPP Tier 1 | B32: =VLOOKUP($A32,'Data Pass Through'!$A:$D,2,FALSE) -> 0.093 | C32: =IF(($B4*12>=150000),750,IF($B4>=750,750,$B4)) -> 220 | D32: 20.46 | E32: =VLOOKUP($A32,'Data Pass Through'!$A:$D,3,FALSE) -> 0.093 | F32: =IF(($C4*12>=150000),750,IF($C4>=750,750,$C4)) -> 220 | G32: 20.46 | H32: 0 | I32: 0
A33: RPP Tier 2 | B33: =VLOOKUP($A33,'Data Pass Through'!$A:$D,2,FALSE) -> 0.11 | C33: =IF(($B4*12>=150000),($B4*$B6)-750,IF($B4>=750,($B4-750),0)) -> 0 | D33: 0 | E33: =VLOOKUP($A33,'Data Pass Through'!$A:$D,3,FALSE) -> 0.11 | F33: =IF(($C4*12>=150000),($C4*$C6)-750,IF($C4>=750,($C4-750),0)) -> 0 | G33: 0 | H33: 0 | I33: N/A
A34: Total Bill on Two-Tier RPP (before Taxes) | D34: =SUM(D27:D33) -> 65.895808 | G34: =SUM(G27:G33) -> 72.922904 | H34: 7.027096 | I34: 0.1066394997
A35: HST | B35: 0.13 | D35: =D34*B35 -> 8.56645504 | E35: =B35 -> 0.13 | G35: =G34*E35 -> 9.47997752 | H35: 0.91352248 | I35: 0.1066394997
A36: Ontario Electricity Rebate (OER) | B36: =IF(($B$4*12)<250000,VLOOKUP($A36,'Data Pass Through'!$A$4:$C$19,2,0),0) -> -0.131 | D36: =D34*B36 -> -8.632350848 | E36: =IF(($B$4*12)<250000,VLOOKUP($A36,'Data Pass Through'!$A$4:$C$19,3,0),0) -> -0.131 | G36: =G34*E36 -> -9.552900424 | H36: -0.920549576 | I36: -0.1066394997
A37: Total Bill on Two-Tier RPP | D37: =SUM(D34:D36) -> 65.82991219 | G37: =SUM(G34:G36) -> 72.8499811 | H37: 7.020068904 | I37: 0.1066394997
A38: * Distribution rate protection applies to R1 and R2 customers

Sheet BI_UR_Low
A1: 2025 Bill Impacts (Low Consumption Level) - UR
A3: Rate Class | B3: =RIGHT(A1,LEN(A1)-FIND("- ",A1,1)-1) -> UR
A4: Monthly Consumption (kWh) | B4: =IF(COUNTIF(A1,"*Low*")>0,VLOOKUP(B3,'Data Billing Quantities'!$A:$Z,MATCH("Low kWh",'Data Billing Quantities'!4:4,0),FALSE),IF(COUNTIF(A1,"*Typical*")>0,VLOOKUP(B3,'Data Billing Quantities'!$A:$Z,MATCH("Typical kWh",'Data Billing Quantities'!4:4,0),FALSE),IF(COUNTIF(A1,"*Average*")>0,VLOOKUP(B3,'Data Billing Quantities'!$A:$Z,MATCH("Average kWh",'Data Billing Quantities'!4:4,0),FALSE),IF(COUNTIF(A1,"*High*")>0,VLOOKUP(B3,'Data Billing Quantities'!$A:$Z,MATCH("High kWh",'Data Billing Quantities'!4:4,0),FALSE),"error")))) -> 340
A5: Peak (kW) | B5: =IF(COUNTIF(A1,"*Low*")>0,VLOOKUP(B3,'Data Billing Quantities'!$A:$Z,MATCH("Low kW",'Data Billing Quantities'!4:4,0),FALSE),IF(COUNTIF(A1,"*Typical*")>0,VLOOKUP(B3,'Data Billing Quantities'!$A:$Z,MATCH("Typical kW",'Data Billing Quantities'!4:4,0),FALSE),IF(COUNTIF(A1,"*Average*")>0,VLOOKUP(B3,'Data Billing Quantities'!$A:$Z,MATCH("Average kW",'Data Billing Quantities'!4:4,0),FALSE),IF(COUNTIF(A1,"*High*")>0,VLOOKUP(B3,'Data Billing Quantities'!$A:$Z,MATCH("High kW",'Data Billing Quantities'!4:4,0),FALSE),"error")))) -> 0
A6: Loss factor | B6: =VLOOKUP(B3,'Data Billing Quantities'!A:D,MATCH(A6,'Data Billing Quantities'!4:4,0),FALSE) -> 1.057
A7: Charge determinant | B7: =VLOOKUP(B3,'Data Billing Quantities'!A:D,MATCH(A7,'Data Billing Quantities'!4:4,0),FALSE) -> kWh
B9: Current OEB-Approved | E9: Proposed | H9: Impact
B10: Rate ($) | C10: Volume | D10: Charge ($) | E10: Rate ($) | F10: Volume | G10: Charge ($) | H10: $ Change | I10: % Change
A11: Service Charge | B11: =VLOOKUP($B$3,'Data Current Rates'!$A:$AJ,MATCH(BI_UR_Low!$A11,CurrentHeader,0),FALSE) -> 40 | C11: 1 | D11: =B11*C11 -> 40 | E11: =VLOOKUP($B$3,'Data Proposed Rates'!$A:$AM,MATCH(BI_UR_Low!$A11,ProposedHeader,0),FALSE) -> 41.61 | F11: =C11 -> 1 | G11: =E11*F11 -> 41.61 | H11: =G11-D11 -> 1.61 | I11: =IF(ISERROR(H11/ABS(D11)),"N/A",(H11/ABS(D11))) -> 0.04025
A12: Distribution Volumetric Charge | B12: =VLOOKUP($B$3,'Data Current Rates'!$A:$AJ,MATCH(BI_UR_Low!$A12,CurrentHeader,0),FALSE) -> 0 | C12: =IF(B7="kWh",$B$4,$B$5) -> 340 | D12: =B12*C12 -> 0 | E12: =VLOOKUP($B$3,'Data Proposed Rates'!$A:$AM,MATCH(BI_UR_Low!$A12,ProposedHeader,0),FALSE) -> 0 | F12: =C12 -> 340 | G12: 0 | H12: 0 | I12: N/A
A13: RRRP Adjustment | B13: =IF($B$3="R2",VLOOKUP(A13,'Data Pass Through'!$A4:$C19,2,0),0)*-1 -> 0 | C13: 1 | D13: =B13*C13 -> 0 | E13: =IF($B$3="R2",VLOOKUP(A13,'Data Pass Through'!$A4:$C19,3,0),0)*-1 -> 0 | F13: 1 | G13: 0 | H13: 0 | I13: N/A
A14: DRP Adjustment | D14: =IF(OR($B$3="R1",$B$3="R2"),IF(SUM(D11:D13)>'Data Pass Through'!$B$16,-(SUM(D11:D13)-'Data Pass Through'!$B$16),0),0) -> 0 | G14: =IF(OR($B$3="R1",$B$3="R2"),IF(SUM(G11:G13)>'Data Pass Through'!$C$16,-(SUM(G11:G13)-'Data Pass Through'!$C$16),0),0) -> 0 | H14: 0 | I14: N/A
A15: Fixed Rate Riders | B15: =VLOOKUP($B$3,'Data Current Rates'!$A:$AJ,MATCH(BI_UR_Low!$A15,CurrentHeader,0),FALSE) -> -0.11 | C15: 1 | D15: =B15*C15 -> -0.11 | E15: =VLOOKUP($B$3,'Data Proposed Rates'!$A:$AM,MATCH(BI_UR_Low!$A15,ProposedHeader,0),FALSE) -> -0.11 | F15: 1 | G15: =E15*F15 -> -0.11 | H15: 0 | I15: 0
A16: Volumetric Rate Riders | B16: =VLOOKUP($B$3,'Data Current Rates'!$A:$AJ,MATCH(BI_UR_Low!$A16,CurrentHeader,0),FALSE) -> 0 | C16: =IF(B7="kWh",$B$4,$B$5) -> 340 | D16: =B16*C16 -> 0 | E16: =VLOOKUP($B$3,'Data Proposed Rates'!$A:$AM,MATCH(BI_UR_Low!$A16,ProposedHeader,0),FALSE) -> 0 | F16: 340 | G16: 0 | H16: 0 | I16: N/A
A17: Sub-Total A (excluding pass through) | D17: =SUM(D11:D16) -> 39.89 | G17: =SUM(G11:G16) -> 41.5 | H17: 1.61 | I17: 0.04036099273
A18: Line Losses on Cost of Power | B18: =VLOOKUP($B$3,'Data Billing Quantities'!$A:$O,MATCH(BI_UR_Low!$A33,'Data Billing Quantities'!$4:$4,0),FALSE)*$B33+VLOOKUP($B$3,'Data Billing Quantities'!$A:$O,MATCH(BI_UR_Low!$A34,'Data Billing Quantities'!$4:$4,0),FALSE)*$B34+VLOOKUP($B$3,'Data Billing Quantities'!$A:$O,MATCH(BI_UR_Low!$A35,'Data Billing Quantities'!$4:$4,0),FALSE)*$B35 -> 0.09986 | C18: =(B6*B4)-B4 -> 19.38 | D18: =B18*C18 -> 1.9352868 | E18: =VLOOKUP($B$3,'Data Billing Quantities'!$A:$O,MATCH(BI_UR_Low!$A33,'Data Billing Quantities'!$4:$4,0),FALSE)*$B33+VLOOKUP($B$3,'Data Billing Quantities'!$A:$O,MATCH(BI_UR_Low!$A34,'Data Billing Quantities'!$4:$4,0),FALSE)*$B34+VLOOKUP($B$3,'Data Billing Quantities'!$A:$O,MATCH(BI_UR_Low!$A35,'Data Billing Quantities'!$4:$4,0),FALSE)*$B35 -> 0.09986 | F18: =C18 -> 19.38 | G18: 1.9352868 | H18: 0 | I18: 0
A19: Total Deferral/Variance Account Rate Riders | B19: =VLOOKUP($B$3,'Data Current Rates'!$A:$AJ,MATCH(BI_UR_Low!$A19,CurrentHeader,0),FALSE) -> 0.0006 | C19: =IF(B7="kWh",$B$4,$B$5) -> 340 | D19: 0.204 | E19: =VLOOKUP($B$3,'Data Proposed Rates'!$A:$AM,MATCH(BI_UR_Low!$A19,ProposedHeader,0),FALSE) -> -0.0025 | F19: =C19 -> 340 | G19: -0.85 | H19: -1.054 | I19: -5.166666667
A20: CBR Class B Rate Riders | B20: =VLOOKUP($B$3,'Data Current Rates'!$A:$AJ,MATCH(BI_UR_Low!$A20,CurrentHeader,0),FALSE) -> -0.0006 | C20: =IF(B7="kWh",$B$4,$B$5) -> 340 | D20: -0.204 | E20: =VLOOKUP($B$3,'Data Proposed Rates'!$A:$AM,MATCH(BI_UR_Low!$A20,ProposedHeader,0),FALSE) -> -0.0005 | F20: 340 | G20: -0.17 | H20: 0.034 | I20: 0.1666666667
A21: GA Rate Riders | B21: =VLOOKUP($B$3,'Data Current Rates'!$A:$AJ,MATCH(BI_UR_Low!$A21,CurrentHeader,0),FALSE) -> 0 | C21: =IF(B7="kWh",$B$4,$B$5) -> 340 | D21: 0 | E21: =VLOOKUP($B$3,'Data Proposed Rates'!$A:$AM,MATCH(BI_UR_Low!$A21,ProposedHeader,0),FALSE) -> 0 | F21: 340 | G21: 0 | H21: 0 | I21: N/A
A22: Smart Meter Entity Charge (if applicable) | B22: =VLOOKUP($A22,'Data Pass Through'!$A:$D,2,FALSE) -> 0.42 | C22: 1 | D22: 0.42 | E22: =VLOOKUP($A22,'Data Pass Through'!$A:$D,2,FALSE) -> 0.42 | F22: 1 | G22: 0.42 | H22: 0 | I22: 0
A23: Additional Fixed Rate Riders | B23: =VLOOKUP($B$3,'Data Current Rates'!$A:$AJ,MATCH(BI_UR_Low!$A23,CurrentHeader,0),FALSE) -> 0 | C23: =IF(B9="kWh",$B$4,$B$5) -> 0 | D23: 0 | E23: =VLOOKUP($B$3,'Data Proposed Rates'!$A:$AM,MATCH(BI_UR_Low!$A23,ProposedHeader,0),FALSE) -> 0 | F23: 0 | G23: 0 | H23: 0 | I23: N/A
A24: Additional Volumetric Rate Riders | B24: =VLOOKUP($B$3,'Data Current Rates'!$A:$AJ,MATCH(BI_UR_Low!$A24,CurrentHeader,0),FALSE) -> 0 | C24: =IF(B10="kWh",$B$4,$B$5) -> 0 | D24: 0 | E24: =VLOOKUP($B$3,'Data Proposed Rates'!$A:$AM,MATCH(BI_UR_Low!$A24,ProposedHeader,0),FALSE) -> 0 | F24: 0 | G24: 0 | H24: 0 | I24: N/A
A25: Sub-Total B - Distribution (includes Sub-Total A) | D25: =SUM(INDIRECT("D17:D"&ROW()-1)) -> 42.2452868 | G25: =SUM(INDIRECT("G17:G"&ROW()-1)) -> 42.8352868 | H25: 0.59 | I25: 0.01396605503
A26: Retail Transmission Rate – Network Service Rate | B26: =VLOOKUP($B$3,'Data Current Rates'!$A:$AJ,MATCH(BI_UR_Low!$A26,CurrentHeader,0),FALSE) -> 0.0126 | C26: =IF(B7="kWh",$B$4*$B$6,$B$5) -> 359.38 | D26: =B26*C26 -> 4.528188 | E26: =VLOOKUP($B$3,'Data Proposed Rates'!$A:$AM,MATCH(BI_UR_Low!$A26,ProposedHeader,0),FALSE) -> 0.0137 | F26: 359.38 | G26: 4.923506 | H26: 0.395318 | I26: 0.0873015873
A27: Retail Transmission Rate – Line and Transformation Connection Service Rate | B27: =VLOOKUP($B$3,'Data Current Rates'!$A:$AJ,MATCH(BI_UR_Low!$A27,CurrentHeader,0),FALSE) -> 0.0093 | C27: =C26 -> 359.38 | D27: 3.342234 | E27: =VLOOKUP($B$3,'Data Proposed Rates'!$A:$AM,MATCH(BI_UR_Low!$A27,ProposedHeader,0),FALSE) -> 0.0098 | F27: 359.38 | G27: 3.521924 | H27: 0.17969 | I27: 0.05376344086
A28: Sub-Total C - Delivery (including Sub-Total B) | D28: =SUM(D25:D27) -> 50.1157088 | G28: =SUM(G25:G27) -> 51.2807168 | H28: 1.165008 | I28: 0.02324636382
A29: Wholesale Market Service Rate (WMS) – not ot including CBR | B29: =VLOOKUP($A29,'Data Pass Through'!$A:$D,2,FALSE) -> 0.0041 | C29: =$B$4*$B$6 -> 359.38 | D29: =B29*C29 -> 1.473458 | E29: =VLOOKUP($A29,'Data Pass Through'!$A:$D,3,FALSE) -> 0.0041 | F29: 359.38 | G29: 1.473458 | H29: 0 | I29: 0
A30: Capacity Based Recovery (CBR) – Applicable for Class B Customers | B30: =VLOOKUP($A30,'Data Pass Through'!$A:$D,2,FALSE) -> 0.0004 | C30: =$B$4*$B$6 -> 359.38 | D30: 0.143752 | E30: =VLOOKUP($A30,'Data Pass Through'!$A:$D,3,FALSE) -> 0.0004 | F30: 359.38 | G30: 0.143752 | H30: 0 | I30: 0
A31: Rural Rate Protection Charge | B31: =VLOOKUP($A31,'Data Pass Through'!$A:$D,2,FALSE) -> 0.0015 | C31: =$B$4*$B$6 -> 359.38 | D31: 0.53907 | E31: =VLOOKUP($A31,'Data Pass Through'!$A:$D,3,FALSE) -> 0.0015 | F31: 359.38 | G31: 0.53907 | H31: 0 | I31: 0
A32: Standard Supply Service – Administration Charge (if applicable) | B32: =VLOOKUP($A32,'Data Pass Through'!$A:$D,2,FALSE) -> 0.25 | C32: 1 | D32: 0.25 | E32: =VLOOKUP($A32,'Data Pass Through'!$A:$D,3,FALSE) -> 0.25 | F32: 1 | G32: 0.25 | H32: 0 | I32: 0
A33: TOU-Off Peak | B33: =VLOOKUP($A33,'Data Pass Through'!$A:$D,2,FALSE) -> 0.076 | C33: =B$4*VLOOKUP($B$3,'Data Billing Quantities'!$A:$O,MATCH($A33,'Data Billing Quantities'!$4:$4,0),FALSE) -> 214.2 | D33: 16.2792 | E33: =VLOOKUP($A33,'Data Pass Through'!$A:$D,3,FALSE) -> 0.076 | F33: 214.2 | G33: =E33*F33 -> 16.2792 | H33: 0 | I33: 0
A34: TOU-Mid Peak | B34: =VLOOKUP($A34,'Data Pass Through'!$A:$D,2,FALSE) -> 0.122 | C34: =B$4*VLOOKUP($B$3,'Data Billing Quantities'!$A:$O,MATCH($A34,'Data Billing Quantities'!$4:$4,0),FALSE) -> 61.2 | D34: 7.4664 | E34: =VLOOKUP($A34,'Data Pass Through'!$A:$D,3,FALSE) -> 0.122 | F34: 61.2 | G34: =E34*F34 -> 7.4664 | H34: 0 | I34: 0
A35: TOU-On Peak | B35: =VLOOKUP($A35,'Data Pass Through'!$A:$D,2,FALSE) -> 0.158 | C35: =B$4*VLOOKUP($B$3,'Data Billing Quantities'!$A:$O,MATCH($A35,'Data Billing Quantities'!$4:$4,0),FALSE) -> 64.6 | D35: 10.2068 | E35: =VLOOKUP($A35,'Data Pass Through'!$A:$D,3,FALSE) -> 0.158 | F35: 64.6 | G35: =E35*F35 -> 10.2068 | H35: 0 | I35: 0
A36: Total Bill on TOU (before Taxes) | D36: =SUM(D28:D35) -> 86.4743888 | G36: =SUM(G28:G35) -> 87.6393968 | H36: 1.165008 | I36: 0.0134722895
A37: HST | B37: 0.13 | D37: =D36*B37 -> 11.24167054 | E37: =B37 -> 0.13 | G37: =G36*E37 -> 11.39312158 | H37: 0.15145104 | I37: 0.0134722895
A38: Ontario Electricity Rebate (OER) | B38: =IF(($B$4*12)<250000,VLOOKUP($A38,'Data Pass Through'!$A$4:$C$19,2,0),0) -> -0.131 | D38: =D36*B38 -> -11.32814493 | E38: =IF(($B$4*12)<250000,VLOOKUP($A38,'Data Pass Through'!$A$4:$C$19,3,0),0) -> -0.131 | G38: =G36*E38 -> -11.48076098 | H38: -0.152616048 | I38: -0.0134722895
A39: Total Bill on TOU | D39: =SUM(D36:D38) -> 86.38791441 | G39: =SUM(G36:G38) -> 87.5517574 | H39: 1.163842992 | I39: 0.0134722895
A40: * Distribution rate protection applies to R1 and R2 customers

Sheet BI_UR_Typical
A1: 2025 Bill Impacts (Typical Consumption Level) - UR
A3: Rate Class | B3: =RIGHT(A1,LEN(A1)-FIND("- ",A1,1)-1) -> UR
A4: Monthly Consumption (kWh) | B4: =IF(COUNTIF(A1,"*Low*")>0,VLOOKUP(B3,'Data Billing Quantities'!$A:$Z,MATCH("Low kWh",'Data Billing Quantities'!4:4,0),FALSE),IF(COUNTIF(A1,"*Typical*")>0,VLOOKUP(B3,'Data Billing Quantities'!$A:$Z,MATCH("Typical kWh",'Data Billing Quantities'!4:4,0),FALSE),IF(COUNTIF(A1,"*Average*")>0,VLOOKUP(B3,'Data Billing Quantities'!$A:$Z,MATCH("Average kWh",'Data Billing Quantities'!4:4,0),FALSE),IF(COUNTIF(A1,"*High*")>0,VLOOKUP(B3,'Data Billing Quantities'!$A:$Z,MATCH("High kWh",'Data Billing Quantities'!4:4,0),FALSE),"error")))) -> 750
A5: Peak (kW) | B5: =IF(COUNTIF(A1,"*Low*")>0,VLOOKUP(B3,'Data Billing Quantities'!$A:$Z,MATCH("Low kW",'Data Billing Quantities'!4:4,0),FALSE),IF(COUNTIF(A1,"*Typical*")>0,VLOOKUP(B3,'Data Billing Quantities'!$A:$Z,MATCH("Typical kW",'Data Billing Quantities'!4:4,0),FALSE),IF(COUNTIF(A1,"*Average*")>0,VLOOKUP(B3,'Data Billing Quantities'!$A:$Z,MATCH("Average kW",'Data Billing Quantities'!4:4,0),FALSE),IF(COUNTIF(A1,"*High*")>0,VLOOKUP(B3,'Data Billing Quantities'!$A:$Z,MATCH("High kW",'Data Billing Quantities'!4:4,0),FALSE),"error")))) -> 0
A6: Loss factor | B6: =VLOOKUP(B3,'Data Billing Quantities'!A:D,MATCH(A6,'Data Billing Quantities'!4:4,0),FALSE) -> 1.057
A7: Charge determinant | B7: =VLOOKUP(B3,'Data Billing Quantities'!A:D,MATCH(A7,'Data Billing Quantities'!4:4,0),FALSE) -> kWh
B9: Current OEB-Approved | E9: Proposed | H9: Impact
B10: Rate ($) | C10: Volume | D10: Charge ($) | E10: Rate ($) | F10: Volume | G10: Charge ($) | H10: $ Change | I10: % Change
A11: Service Charge | B11: =VLOOKUP($B$3,'Data Current Rates'!$A:$AJ,MATCH(BI_UR_Typical!$A11,CurrentHeader,0),FALSE) -> 40 | C11: 1 | D11: =B11*C11 -> 40 | E11: =VLOOKUP($B$3,'Data Proposed Rates'!$A:$AM,MATCH(BI_UR_Typical!$A11,ProposedHeader,0),FALSE) -> 41.61 | F11: =C11 -> 1 | G11: =E11*F11 -> 41.61 | H11: =G11-D11 -> 1.61 | I11: =IF(ISERROR(H11/ABS(D11)),"N/A",(H11/ABS(D11))) -> 0.04025
A12: Distribution Volumetric Charge | B12: =VLOOKUP($B$3,'Data Current Rates'!$A:$AJ,MATCH(BI_UR_Typical!$A12,CurrentHeader,0),FALSE) -> 0 | C12: =IF(B7="kWh",$B$4,$B$5) -> 750 | D12: =B12*C12 -> 0 | E12: =VLOOKUP($B$3,'Data Proposed Rates'!$A:$AM,MATCH(BI_UR_Typical!$A12,ProposedHeader,0),FALSE) -> 0 | F12: =C12 -> 750 | G12: 0 | H12: 0 | I12: N/A
A13: RRRP Adjustment | B13: =IF($B$3="R2",VLOOKUP(A13,'Data Pass Through'!$A4:$C19,2,0),0)*-1 -> 0 | C13: 1 | D13: =B13*C13 -> 0 | E13: =IF($B$3="R2",VLOOKUP(A13,'Data Pass Through'!$A4:$C19,3,0),0)*-1 -> 0 | F13: 1 | G13: 0 | H13: 0 | I13: N/A
A14: DRP Adjustment | D14: =IF(OR($B$3="R1",$B$3="R2"),IF(SUM(D11:D13)>'Data Pass Through'!$B$16,-(SUM(D11:D13)-'Data Pass Through'!$B$16),0),0) -> 0 | G14: =IF(OR($B$3="R1",$B$3="R2"),IF(SUM(G11:G13)>'Data Pass Through'!$C$16,-(SUM(G11:G13)-'Data Pass Through'!$C$16),0),0) -> 0 | H14: 0 | I14: N/A
A15: Fixed Rate Riders | B15: =VLOOKUP($B$3,'Data Current Rates'!$A:$AJ,MATCH(BI_UR_Typical!$A15,CurrentHeader,0),FALSE) -> -0.11 | C15: 1 | D15: =B15*C15 -> -0.11 | E15: =VLOOKUP($B$3,'Data Proposed Rates'!$A:$AM,MATCH(BI_UR_Typical!$A15,ProposedHeader,0),FALSE) -> -0.11 | F15: 1 | G15: =E15*F15 -> -0.11 | H15: 0 | I15: 0
A16: Volumetric Rate Riders | B16: =VLOOKUP($B$3,'Data Current Rates'!$A:$AJ,MATCH(BI_UR_Typical!$A16,CurrentHeader,0),FALSE) -> 0 | C16: =IF(B7="kWh",$B$4,$B$5) -> 750 | D16: =B16*C16 -> 0 | E16: =VLOOKUP($B$3,'Data Proposed Rates'!$A:$AM,MATCH(BI_UR_Typical!$A16,ProposedHeader,0),FALSE) -> 0 | F16: 750 | G16: 0 | H16: 0 | I16: N/A
A17: Sub-Total A (excluding pass through) | D17: =SUM(D11:D16) -> 39.89 | G17: =SUM(G11:G16) -> 41.5 | H17: 1.61 | I17: 0.04036099273
A18: Line Losses on Cost of Power | B18: =VLOOKUP($B$3,'Data Billing Quantities'!$A:$O,MATCH(BI_UR_Typical!$A33,'Data Billing Quantities'!$4:$4,0),FALSE)*$B33+VLOOKUP($B$3,'Data Billing Quantities'!$A:$O,MATCH(BI_UR_Typical!$A34,'Data Billing Quantities'!$4:$4,0),FALSE)*$B34+VLOOKUP($B$3,'Data Billing Quantities'!$A:$O,MATCH(BI_UR_Typical!$A35,'Data Billing Quantities'!$4:$4,0),FALSE)*$B35 -> 0.09986 | C18: =(B6*B4)-B4 -> 42.75 | D18: =B18*C18 -> 4.269015 | E18: =VLOOKUP($B$3,'Data Billing Quantities'!$A:$O,MATCH(BI_UR_Typical!$A33,'Data Billing Quantities'!$4:$4,0),FALSE)*$B33+VLOOKUP($B$3,'Data Billing Quantities'!$A:$O,MATCH(BI_UR_Typical!$A34,'Data Billing Quantities'!$4:$4,0),FALSE)*$B34+VLOOKUP($B$3,'Data Billing Quantities'!$A:$O,MATCH(BI_UR_Typical!$A35,'Data Billing Quantities'!$4:$4,0),FALSE)*$B35 -> 0.09986 | F18: =C18 -> 42.75 | G18: 4.269015 | H18: 0 | I18: 0
A19: Total Deferral/Variance Account Rate Riders | B19: =VLOOKUP($B$3,'Data Current Rates'!$A:$AJ,MATCH(BI_UR_Typical!$A19,CurrentHeader,0),FALSE) -> 0.0006 | C19: =IF(B7="kWh",$B$4,$B$5) -> 750 | D19: 0.45 | E19: =VLOOKUP($B$3,'Data Proposed Rates'!$A:$AM,MATCH(BI_UR_Typical!$A19,ProposedHeader,0),FALSE) -> -0.0025 | F19: =C19 -> 750 | G19: -1.875 | H19: -2.325 | I19: -5.166666667
A20: CBR Class B Rate Riders | B20: =VLOOKUP($B$3,'Data Current Rates'!$A:$AJ,MATCH(BI_UR_Typical!$A20,CurrentHeader,0),FALSE) -> -0.0006 | C20: =IF(B7="kWh",$B$4,$B$5) -> 750 | D20: -0.45 | E20: =VLOOKUP($B$3,'Data Proposed Rates'!$A:$AM,MATCH(BI_UR_Typical!$A20,ProposedHeader,0),FALSE) -> -0.0005 | F20: 750 | G20: -0.375 | H20: 0.075 | I20: 0.1666666667
A21: GA Rate Riders | B21: =VLOOKUP($B$3,'Data Current Rates'!$A:$AJ,MATCH(BI_UR_Typical!$A21,CurrentHeader,0),FALSE) -> 0 | C21: =IF(B7="kWh",$B$4,$B$5) -> 750 | D21: 0 | E21: =VLOOKUP($B$3,'Data Proposed Rates'!$A:$AM,MATCH(BI_UR_Typical!$A21,ProposedHeader,0),FALSE) -> 0 | F21: 750 | G21: 0 | H21: 0 | I21: N/A
A22: Smart Meter Entity Charge (if applicable) | B22: =VLOOKUP($A22,'Data Pass Through'!$A:$D,2,FALSE) -> 0.42 | C22: 1 | D22: 0.42 | E22: =VLOOKUP($A22,'Data Pass Through'!$A:$D,2,FALSE) -> 0.42 | F22: 1 | G22: 0.42 | H22: 0 | I22: 0
A23: Additional Fixed Rate Riders | B23: =VLOOKUP($B$3,'Data Current Rates'!$A:$AJ,MATCH(BI_UR_Typical!$A23,CurrentHeader,0),FALSE) -> 0 | C23: =IF(B9="kWh",$B$4,$B$5) -> 0 | D23: 0 | E23: =VLOOKUP($B$3,'Data Proposed Rates'!$A:$AM,MATCH(BI_UR_Typical!$A23,ProposedHeader,0),FALSE) -> 0 | F23: 0 | G23: 0 | H23: 0 | I23: N/A
A24: Additional Volumetric Rate Riders | B24: =VLOOKUP($B$3,'Data Current Rates'!$A:$AJ,MATCH(BI_UR_Typical!$A24,CurrentHeader,0),FALSE) -> 0 | C24: =IF(B10="kWh",$B$4,$B$5) -> 0 | D24: 0 | E24: =VLOOKUP($B$3,'Data Proposed Rates'!$A:$AM,MATCH(BI_UR_Typical!$A24,ProposedHeader,0),FALSE) -> 0 | F24: 0 | G24: 0 | H24: 0 | I24: N/A
A25: Sub-Total B - Distribution (includes Sub-Total A) | D25: =SUM(INDIRECT("D17:D"&ROW()-1)) -> 44.579015 | G25: =SUM(INDIRECT("G17:G"&ROW()-1)) -> 43.939015 | H25: -0.64 | I25: -0.01435653076
A26: Retail Transmission Rate – Network Service Rate | B26: =VLOOKUP($B$3,'Data Current Rates'!$A:$AJ,MATCH(BI_UR_Typical!$A26,CurrentHeader,0),FALSE) -> 0.0126 | C26: =IF(B7="kWh",$B$4*$B$6,$B$5) -> 792.75 | D26: =B26*C26 -> 9.98865 | E26: =VLOOKUP($B$3,'Data Proposed Rates'!$A:$AM,MATCH(BI_UR_Typical!$A26,ProposedHeader,0),FALSE) -> 0.0137 | F26: 792.75 | G26: 10.860675 | H26: 0.872025 | I26: 0.0873015873
A27: Retail Transmission Rate – Line and Transformation Connection Service Rate | B27: =VLOOKUP($B$3,'Data Current Rates'!$A:$AJ,MATCH(BI_UR_Typical!$A27,CurrentHeader,0),FALSE) -> 0.0093 | C27: =C26 -> 792.75 | D27: 7.372575 | E27: =VLOOKUP($B$3,'Data Proposed Rates'!$A:$AM,MATCH(BI_UR_Typical!$A27,ProposedHeader,0),FALSE) -> 0.0098 | F27: 792.75 | G27: 7.76895 | H27: 0.396375 | I27: 0.05376344086
A28: Sub-Total C - Delivery (including Sub-Total B) | D28: =SUM(D25:D27) -> 61.94024 | G28: =SUM(G25:G27) -> 62.56864 | H28: 0.6284 | I28: 0.0101452626
A29: Wholesale Market Service Rate (WMS) – not ot including CBR | B29: =VLOOKUP($A29,'Data Pass Through'!$A:$D,2,FALSE) -> 0.0041 | C29: =$B$4*$B$6 -> 792.75 | D29: =B29*C29 -> 3.250275 | E29: =VLOOKUP($A29,'Data Pass Through'!$A:$D,3,FALSE) -> 0.0041 | F29: 792.75 | G29: 3.250275 | H29: 0 | I29: 0
A30: Capacity Based Recovery (CBR) – Applicable for Class B Customers | B30: =VLOOKUP($A30,'Data Pass Through'!$A:$D,2,FALSE) -> 0.0004 | C30: =$B$4*$B$6 -> 792.75 | D30: 0.3171 | E30: =VLOOKUP($A30,'Data Pass Through'!$A:$D,3,FALSE) -> 0.0004 | F30: 792.75 | G30: 0.3171 | H30: 0 | I30: 0
A31: Rural Rate Protection Charge | B31: =VLOOKUP($A31,'Data Pass Through'!$A:$D,2,FALSE) -> 0.0015 | C31: =$B$4*$B$6 -> 792.75 | D31: 1.189125 | E31: =VLOOKUP($A31,'Data Pass Through'!$A:$D,3,FALSE) -> 0.0015 | F31: 792.75 | G31: 1.189125 | H31: 0 | I31: 0
A32: Standard Supply Service – Administration Charge (if applicable) | B32: =VLOOKUP($A32,'Data Pass Through'!$A:$D,2,FALSE) -> 0.25 | C32: 1 | D32: 0.25 | E32: =VLOOKUP($A32,'Data Pass Through'!$A:$D,3,FALSE) -> 0.25 | F32: 1 | G32: 0.25 | H32: 0 | I32: 0
A33: TOU-Off Peak | B33: =VLOOKUP($A33,'Data Pass Through'!$A:$D,2,FALSE) -> 0.076 | C33: =B$4*VLOOKUP($B$3,'Data Billing Quantities'!$A:$O,MATCH($A33,'Data Billing Quantities'!$4:$4,0),FALSE) -> 472.5 | D33: 35.91 | E33: =VLOOKUP($A33,'Data Pass Through'!$A:$D,3,FALSE) -> 0.076 | F33: 472.5 | G33: =E33*F33 -> 35.91 | H33: 0 | I33: 0
A34: TOU-Mid Peak | B34: =VLOOKUP($A34,'Data Pass Through'!$A:$D,2,FALSE) -> 0.122 | C34: =B$4*VLOOKUP($B$3,'Data Billing Quantities'!$A:$O,MATCH($A34,'Data Billing Quantities'!$4:$4,0),FALSE) -> 135 | D34: 16.47 | E34: =VLOOKUP($A34,'Data Pass Through'!$A:$D,3,FALSE) -> 0.122 | F34: 135 | G34: =E34*F34 -> 16.47 | H34: 0 | I34: 0
A35: TOU-On Peak | B35: =VLOOKUP($A35,'Data Pass Through'!$A:$D,2,FALSE) -> 0.158 | C35: =B$4*VLOOKUP($B$3,'Data Billing Quantities'!$A:$O,MATCH($A35,'Data Billing Quantities'!$4:$4,0),FALSE) -> 142.5 | D35: 22.515 | E35: =VLOOKUP($A35,'Data Pass Through'!$A:$D,3,FALSE) -> 0.158 | F35: 142.5 | G35: =E35*F35 -> 22.515 | H35: 0 | I35: 0
A36: Total Bill on TOU (before Taxes) | D36: =SUM(D28:D35) -> 141.84174 | G36: =SUM(G28:G35) -> 142.47014 | H36: 0.6284 | I36: 0.004430289702
A37: HST | B37: 0.13 | D37: =D36*B37 -> 18.4394262 | E37: =B37 -> 0.13 | G37: =G36*E37 -> 18.5211182 | H37: 0.081692 | I37: 0.004430289702
A38: Ontario Electricity Rebate (OER) | B38: =IF(($B$4*12)<250000,VLOOKUP($A38,'Data Pass Through'!$A$4:$C$19,2,0),0) -> -0.131 | D38: =D36*B38 -> -18.58126794 | E38: =IF(($B$4*12)<250000,VLOOKUP($A38,'Data Pass Through'!$A$4:$C$19,3,0),0) -> -0.131 | G38: =G36*E38 -> -18.66358834 | H38: -0.0823204 | I38: -0.004430289702
A39: Total Bill on TOU | D39: =SUM(D36:D38) -> 141.6998983 | G39: =SUM(G36:G38) -> 142.3276699 | H39: 0.6277716 | I39: 0.004430289702
A40: * Distribution rate protection applies to R1 and R2 customers

Sheet BI_UR_Avg
A1: 2025 Bill Impacts (Average Consumption Level) - UR
A3: Rate Class | B3: =RIGHT(A1,LEN(A1)-FIND("- ",A1,1)-1) -> UR
A4: Monthly Consumption (kWh) | B4: =IF(COUNTIF(A1,"*Low*")>0,VLOOKUP(B3,'Data Billing Quantities'!$A:$Z,MATCH("Low kWh",'Data Billing Quantities'!4:4,0),FALSE),IF(COUNTIF(A1,"*Typical*")>0,VLOOKUP(B3,'Data Billing Quantities'!$A:$Z,MATCH("Typical kWh",'Data Billing Quantities'!4:4,0),FALSE),IF(COUNTIF(A1,"*Average*")>0,VLOOKUP(B3,'Data Billing Quantities'!$A:$Z,MATCH("Average kWh",'Data Billing Quantities'!4:4,0),FALSE),IF(COUNTIF(A1,"*High*")>0,VLOOKUP(B3,'Data Billing Quantities'!$A:$Z,MATCH("High kWh",'Data Billing Quantities'!4:4,0),FALSE),"error")))) -> 690
A5: Peak (kW) | B5: =IF(COUNTIF(A1,"*Low*")>0,VLOOKUP(B3,'Data Billing Quantities'!$A:$Z,MATCH("Low kW",'Data Billing Quantities'!4:4,0),FALSE),IF(COUNTIF(A1,"*Typical*")>0,VLOOKUP(B3,'Data Billing Quantities'!$A:$Z,MATCH("Typical kW",'Data Billing Quantities'!4:4,0),FALSE),IF(COUNTIF(A1,"*Average*")>0,VLOOKUP(B3,'Data Billing Quantities'!$A:$Z,MATCH("Average kW",'Data Billing Quantities'!4:4,0),FALSE),IF(COUNTIF(A1,"*High*")>0,VLOOKUP(B3,'Data Billing Quantities'!$A:$Z,MATCH("High kW",'Data Billing Quantities'!4:4,0),FALSE),"error")))) -> 0
A6: Loss factor | B6: =VLOOKUP(B3,'Data Billing Quantities'!A:D,MATCH(A6,'Data Billing Quantities'!4:4,0),FALSE) -> 1.057
A7: Charge determinant | B7: =VLOOKUP(B3,'Data Billing Quantities'!A:D,MATCH(A7,'Data Billing Quantities'!4:4,0),FALSE) -> kWh
B9: Current OEB-Approved | E9: Proposed | H9: Impact
B10: Rate ($) | C10: Volume | D10: Charge ($) | E10: Rate ($) | F10: Volume | G10: Charge ($) | H10: $ Change | I10: % Change
A11: Service Charge | B11: =VLOOKUP($B$3,'Data Current Rates'!$A:$AJ,MATCH(BI_UR_Avg!$A11,CurrentHeader,0),FALSE) -> 40 | C11: 1 | D11: =B11*C11 -> 40 | E11: =VLOOKUP($B$3,'Data Proposed Rates'!$A:$AM,MATCH(BI_UR_Avg!$A11,ProposedHeader,0),FALSE) -> 41.61 | F11: =C11 -> 1 | G11: =E11*F11 -> 41.61 | H11: =G11-D11 -> 1.61 | I11: =IF(ISERROR(H11/ABS(D11)),"N/A",(H11/ABS(D11))) -> 0.04025
A12: Distribution Volumetric Charge | B12: =VLOOKUP($B$3,'Data Current Rates'!$A:$AJ,MATCH(BI_UR_Avg!$A12,CurrentHeader,0),FALSE) -> 0 | C12: =IF(B7="kWh",$B$4,$B$5) -> 690 | D12: =B12*C12 -> 0 | E12: =VLOOKUP($B$3,'Data Proposed Rates'!$A:$AM,MATCH(BI_UR_Avg!$A12,ProposedHeader,0),FALSE) -> 0 | F12: =C12 -> 690 | G12: 0 | H12: 0 | I12: N/A
A13: RRRP Adjustment | B13: =IF($B$3="R2",VLOOKUP(A13,'Data Pass Through'!$A4:$C19,2,0),0)*-1 -> 0 | C13: 1 | D13: =B13*C13 -> 0 | E13: =IF($B$3="R2",VLOOKUP(A13,'Data Pass Through'!$A4:$C19,3,0),0)*-1 -> 0 | F13: 1 | G13: 0 | H13: 0 | I13: N/A
A14: DRP Adjustment | D14: =IF(OR($B$3="R1",$B$3="R2"),IF(SUM(D11:D13)>'Data Pass Through'!$B$16,-(SUM(D11:D13)-'Data Pass Through'!$B$16),0),0) -> 0 | G14: =IF(OR($B$3="R1",$B$3="R2"),IF(SUM(G11:G13)>'Data Pass Through'!$C$16,-(SUM(G11:G13)-'Data Pass Through'!$C$16),0),0) -> 0 | H14: 0 | I14: N/A
A15: Fixed Rate Riders | B15: =VLOOKUP($B$3,'Data Current Rates'!$A:$AJ,MATCH(BI_UR_Avg!$A15,CurrentHeader,0),FALSE) -> -0.11 | C15: 1 | D15: =B15*C15 -> -0.11 | E15: =VLOOKUP($B$3,'Data Proposed Rates'!$A:$AM,MATCH(BI_UR_Avg!$A15,ProposedHeader,0),FALSE) -> -0.11 | F15: 1 | G15: =E15*F15 -> -0.11 | H15: 0 | I15: 0
A16: Volumetric Rate Riders | B16: =VLOOKUP($B$3,'Data Current Rates'!$A:$AJ,MATCH(BI_UR_Avg!$A16,CurrentHeader,0),FALSE) -> 0 | C16: =IF(B7="kWh",$B$4,$B$5) -> 690 | D16: =B16*C16 -> 0 | E16: =VLOOKUP($B$3,'Data Proposed Rates'!$A:$AM,MATCH(BI_UR_Avg!$A16,ProposedHeader,0),FALSE) -> 0 | F16: 690 | G16: 0 | H16: 0 | I16: N/A
A17: Sub-Total A (excluding pass through) | D17: =SUM(D11:D16) -> 39.89 | G17: =SUM(G11:G16) -> 41.5 | H17: 1.61 | I17: 0.04036099273
A18: Line Losses on Cost of Power | B18: =VLOOKUP($B$3,'Data Billing Quantities'!$A:$O,MATCH(BI_UR_Avg!$A33,'Data Billing Quantities'!$4:$4,0),FALSE)*$B33+VLOOKUP($B$3,'Data Billing Quantities'!$A:$O,MATCH(BI_UR_Avg!$A34,'Data Billing Quantities'!$4:$4,0),FALSE)*$B34+VLOOKUP($B$3,'Data Billing Quantities'!$A:$O,MATCH(BI_UR_Avg!$A35,'Data Billing Quantities'!$4:$4,0),FALSE)*$B35 -> 0.09986 | C18: =(B6*B4)-B4 -> 39.33 | D18: =B18*C18 -> 3.9274938 | E18: =VLOOKUP($B$3,'Data Billing Quantities'!$A:$O,MATCH(BI_UR_Avg!$A33,'Data Billing Quantities'!$4:$4,0),FALSE)*$B33+VLOOKUP($B$3,'Data Billing Quantities'!$A:$O,MATCH(BI_UR_Avg!$A34,'Data Billing Quantities'!$4:$4,0),FALSE)*$B34+VLOOKUP($B$3,'Data Billing Quantities'!$A:$O,MATCH(BI_UR_Avg!$A35,'Data Billing Quantities'!$4:$4,0),FALSE)*$B35 -> 0.09986 | F18: =C18 -> 39.33 | G18: 3.9274938 | H18: 0 | I18: 0
A19: Total Deferral/Variance Account Rate Riders | B19: =VLOOKUP($B$3,'Data Current Rates'!$A:$AJ,MATCH(BI_UR_Avg!$A19,CurrentHeader,0),FALSE) -> 0.0006 | C19: =IF(B7="kWh",$B$4,$B$5) -> 690 | D19: 0.414 | E19: =VLOOKUP($B$3,'Data Proposed Rates'!$A:$AM,MATCH(BI_UR_Avg!$A19,ProposedHeader,0),FALSE) -> -0.0025 | F19: =C19 -> 690 | G19: -1.725 | H19: -2.139 | I19: -5.166666667
A20: CBR Class B Rate Riders | B20: =VLOOKUP($B$3,'Data Current Rates'!$A:$AJ,MATCH(BI_UR_Avg!$A20,CurrentHeader,0),FALSE) -> -0.0006 | C20: =IF(B7="kWh",$B$4,$B$5) -> 690 | D20: -0.414 | E20: =VLOOKUP($B$3,'Data Proposed Rates'!$A:$AM,MATCH(BI_UR_Avg!$A20,ProposedHeader,0),FALSE) -> -0.0005 | F20: 690 | G20: -0.345 | H20: 0.069 | I20: 0.1666666667
A21: GA Rate Riders | B21: =VLOOKUP($B$3,'Data Current Rates'!$A:$AJ,MATCH(BI_UR_Avg!$A21,CurrentHeader,0),FALSE) -> 0 | C21: =IF(B7="kWh",$B$4,$B$5) -> 690 | D21: 0 | E21: =VLOOKUP($B$3,'Data Proposed Rates'!$A:$AM,MATCH(BI_UR_Avg!$A21,ProposedHeader,0),FALSE) -> 0 | F21: 690 | G21: 0 | H21: 0 | I21: N/A
A22: Smart Meter Entity Charge (if applicable) | B22: =VLOOKUP($A22,'Data Pass Through'!$A:$D,2,FALSE) -> 0.42 | C22: 1 | D22: 0.42 | E22: =VLOOKUP($A22,'Data Pass Through'!$A:$D,2,FALSE) -> 0.42 | F22: 1 | G22: 0.42 | H22: 0 | I22: 0
A23: Additional Fixed Rate Riders | B23: =VLOOKUP($B$3,'Data Current Rates'!$A:$AJ,MATCH(BI_UR_Avg!$A23,CurrentHeader,0),FALSE) -> 0 | C23: =IF(B9="kWh",$B$4,$B$5) -> 0 | D23: 0 | E23: =VLOOKUP($B$3,'Data Proposed Rates'!$A:$AM,MATCH(BI_UR_Avg!$A23,ProposedHeader,0),FALSE) -> 0 | F23: 0 | G23: 0 | H23: 0 | I23: N/A
A24: Additional Volumetric Rate Riders | B24: =VLOOKUP($B$3,'Data Current Rates'!$A:$AJ,MATCH(BI_UR_Avg!$A24,CurrentHeader,0),FALSE) -> 0 | C24: =IF(B10="kWh",$B$4,$B$5) -> 0 | D24: 0 | E24: =VLOOKUP($B$3,'Data Proposed Rates'!$A:$AM,MATCH(BI_UR_Avg!$A24,ProposedHeader,0),FALSE) -> 0 | F24: 0 | G24: 0 | H24: 0 | I24: N/A
A25: Sub-Total B - Distribution (includes Sub-Total A) | D25: =SUM(INDIRECT("D17:D"&ROW()-1)) -> 44.2374938 | G25: =SUM(INDIRECT("G17:G"&ROW()-1)) -> 43.7774938 | H25: -0.46 | I25: -0.01039841909
A26: Retail Transmission Rate – Network Service Rate | B26: =VLOOKUP($B$3,'Data Current Rates'!$A:$AJ,MATCH(BI_UR_Avg!$A26,CurrentHeader,0),FALSE) -> 0.0126 | C26: =IF(B7="kWh",$B$4*$B$6,$B$5) -> 729.33 | D26: =B26*C26 -> 9.189558 | E26: =VLOOKUP($B$3,'Data Proposed Rates'!$A:$AM,MATCH(BI_UR_Avg!$A26,ProposedHeader,0),FALSE) -> 0.0137 | F26: 729.33 | G26: 9.991821 | H26: 0.802263 | I26: 0.0873015873
A27: Retail Transmission Rate – Line and Transformation Connection Service Rate | B27: =VLOOKUP($B$3,'Data Current Rates'!$A:$AJ,MATCH(BI_UR_Avg!$A27,CurrentHeader,0),FALSE) -> 0.0093 | C27: =C26 -> 729.33 | D27: 6.782769 | E27: =VLOOKUP($B$3,'Data Proposed Rates'!$A:$AM,MATCH(BI_UR_Avg!$A27,ProposedHeader,0),FALSE) -> 0.0098 | F27: 729.33 | G27: 7.147434 | H27: 0.364665 | I27: 0.05376344086
A28: Sub-Total C - Delivery (including Sub-Total B) | D28: =SUM(D25:D27) -> 60.2098208 | G28: =SUM(G25:G27) -> 60.9167488 | H28: 0.706928 | I28: 0.01174107464
A29: Wholesale Market Service Rate (WMS) – not ot including CBR | B29: =VLOOKUP($A29,'Data Pass Through'!$A:$D,2,FALSE) -> 0.0041 | C29: =$B$4*$B$6 -> 729.33 | D29: =B29*C29 -> 2.990253 | E29: =VLOOKUP($A29,'Data Pass Through'!$A:$D,3,FALSE) -> 0.0041 | F29: 729.33 | G29: 2.990253 | H29: 0 | I29: 0
A30: Capacity Based Recovery (CBR) – Applicable for Class B Customers | B30: =VLOOKUP($A30,'Data Pass Through'!$A:$D,2,FALSE) -> 0.0004 | C30: =$B$4*$B$6 -> 729.33 | D30: 0.291732 | E30: =VLOOKUP($A30,'Data Pass Through'!$A:$D,3,FALSE) -> 0.0004 | F30: 729.33 | G30: 0.291732 | H30: 0 | I30: 0
A31: Rural Rate Protection Charge | B31: =VLOOKUP($A31,'Data Pass Through'!$A:$D,2,FALSE) -> 0.0015 | C31: =$B$4*$B$6 -> 729.33 | D31: 1.093995 | E31: =VLOOKUP($A31,'Data Pass Through'!$A:$D,3,FALSE) -> 0.0015 | F31: 729.33 | G31: 1.093995 | H31: 0 | I31: 0
A32: Standard Supply Service – Administration Charge (if applicable) | B32: =VLOOKUP($A32,'Data Pass Through'!$A:$D,2,FALSE) -> 0.25 | C32: 1 | D32: 0.25 | E32: =VLOOKUP($A32,'Data Pass Through'!$A:$D,3,FALSE) -> 0.25 | F32: 1 | G32: 0.25 | H32: 0 | I32: 0
A33: TOU-Off Peak | B33: =VLOOKUP($A33,'Data Pass Through'!$A:$D,2,FALSE) -> 0.076 | C33: =B$4*VLOOKUP($B$3,'Data Billing Quantities'!$A:$O,MATCH($A33,'Data Billing Quantities'!$4:$4,0),FALSE) -> 434.7 | D33: 33.0372 | E33: =VLOOKUP($A33,'Data Pass Through'!$A:$D,3,FALSE) -> 0.076 | F33: 434.7 | G33: =E33*F33 -> 33.0372 | H33: 0 | I33: 0
A34: TOU-Mid Peak | B34: =VLOOKUP($A34,'Data Pass Through'!$A:$D,2,FALSE) -> 0.122 | C34: =B$4*VLOOKUP($B$3,'Data Billing Quantities'!$A:$O,MATCH($A34,'Data Billing Quantities'!$4:$4,0),FALSE) -> 124.2 | D34: 15.1524 | E34: =VLOOKUP($A34,'Data Pass Through'!$A:$D,3,FALSE) -> 0.122 | F34: 124.2 | G34: =E34*F34 -> 15.1524 | H34: 0 | I34: 0
A35: TOU-On Peak | B35: =VLOOKUP($A35,'Data Pass Through'!$A:$D,2,FALSE) -> 0.158 | C35: =B$4*VLOOKUP($B$3,'Data Billing Quantities'!$A:$O,MATCH($A35,'Data Billing Quantities'!$4:$4,0),FALSE) -> 131.1 | D35: 20.7138 | E35: =VLOOKUP($A35,'Data Pass Through'!$A:$D,3,FALSE) -> 0.158 | F35: 131.1 | G35: =E35*F35 -> 20.7138 | H35: 0 | I35: 0
A36: Total Bill on TOU (before Taxes) | D36: =SUM(D28:D35) -> 133.7392008 | G36: =SUM(G28:G35) -> 134.4461288 | H36: 0.706928 | I36: 0.005285869781
A37: HST | B37: 0.13 | D37: =D36*B37 -> 17.3860961 | E37: =B37 -> 0.13 | G37: =G36*E37 -> 17.47799674 | H37: 0.09190064 | I37: 0.005285869781
A38: Ontario Electricity Rebate (OER) | B38: =IF(($B$4*12)<250000,VLOOKUP($A38,'Data Pass Through'!$A$4:$C$19,2,0),0) -> -0.131 | D38: =D36*B38 -> -17.5198353 | E38: =IF(($B$4*12)<250000,VLOOKUP($A38,'Data Pass Through'!$A$4:$C$19,3,0),0) -> -0.131 | G38: =G36*E38 -> -17.61244287 | H38: -0.092607568 | I38: -0.005285869781
A39: Total Bill on TOU | D39: =SUM(D36:D38) -> 133.6054616 | G39: =SUM(G36:G38) -> 134.3116827 | H39: 0.706221072 | I39: 0.005285869781
A40: * Distribution rate protection applies to R1 and R2 customers

Sheet BI_UR_High
A1: 2025 Bill Impacts (High Consumption Level) - UR
A3: Rate Class | B3: =RIGHT(A1,LEN(A1)-FIND("- ",A1,1)-1) -> UR
A4: Monthly Consumption (kWh) | B4: =IF(COUNTIF(A1,"*Low*")>0,VLOOKUP(B3,'Data Billing Quantities'!$A:$Z,MATCH("Low kWh",'Data Billing Quantities'!4:4,0),FALSE),IF(COUNTIF(A1,"*Typical*")>0,VLOOKUP(B3,'Data Billing Quantities'!$A:$Z,MATCH("Typical kWh",'Data Billing Quantities'!4:4,0),FALSE),IF(COUNTIF(A1,"*Average*")>0,VLOOKUP(B3,'Data Billing Quantities'!$A:$Z,MATCH("Average kWh",'Data Billing Quantities'!4:4,0),FALSE),IF(COUNTIF(A1,"*High*")>0,VLOOKUP(B3,'Data Billing Quantities'!$A:$Z,MATCH("High kWh",'Data Billing Quantities'!4:4,0),FALSE),"error")))) -> 1260
A5: Peak (kW) | B5: =IF(COUNTIF(A1,"*Low*")>0,VLOOKUP(B3,'Data Billing Quantities'!$A:$Z,MATCH("Low kW",'Data Billing Quantities'!4:4,0),FALSE),IF(COUNTIF(A1,"*Typical*")>0,VLOOKUP(B3,'Data Billing Quantities'!$A:$Z,MATCH("Typical kW",'Data Billing Quantities'!4:4,0),FALSE),IF(COUNTIF(A1,"*Average*")>0,VLOOKUP(B3,'Data Billing Quantities'!$A:$Z,MATCH("Average kW",'Data Billing Quantities'!4:4,0),FALSE),IF(COUNTIF(A1,"*High*")>0,VLOOKUP(B3,'Data Billing Quantities'!$A:$Z,MATCH("High kW",'Data Billing Quantities'!4:4,0),FALSE),"error")))) -> 0
A6: Loss factor | B6: =VLOOKUP(B3,'Data Billing Quantities'!A:D,MATCH(A6,'Data Billing Quantities'!4:4,0),FALSE) -> 1.057
A7: Charge determinant | B7: =VLOOKUP(B3,'Data Billing Quantities'!A:D,MATCH(A7,'Data Billing Quantities'!4:4,0),FALSE) -> kWh
B9: Current OEB-Approved | E9: Proposed | H9: Impact
B10: Rate ($) | C10: Volume | D10: Charge ($) | E10: Rate ($) | F10: Volume | G10: Charge ($) | H10: $ Change | I10: % Change
A11: Service Charge | B11: =VLOOKUP($B$3,'Data Current Rates'!$A:$AJ,MATCH(BI_UR_High!$A11,CurrentHeader,0),FALSE) -> 40 | C11: 1 | D11: =B11*C11 -> 40 | E11: =VLOOKUP($B$3,'Data Proposed Rates'!$A:$AM,MATCH(BI_UR_High!$A11,ProposedHeader,0),FALSE) -> 41.61 | F11: =C11 -> 1 | G11: =E11*F11 -> 41.61 | H11: =G11-D11 -> 1.61 | I11: =IF(ISERROR(H11/ABS(D11)),"N/A",(H11/ABS(D11))) -> 0.04025
A12: Distribution Volumetric Charge | B12: =VLOOKUP($B$3,'Data Current Rates'!$A:$AJ,MATCH(BI_UR_High!$A12,CurrentHeader,0),FALSE) -> 0 | C12: =IF(B7="kWh",$B$4,$B$5) -> 1260 | D12: =B12*C12 -> 0 | E12: =VLOOKUP($B$3,'Data Proposed Rates'!$A:$AM,MATCH(BI_UR_High!$A12,ProposedHeader,0),FALSE) -> 0 | F12: =C12 -> 1260 | G12: 0 | H12: 0 | I12: N/A
A13: RRRP Adjustment | B13: =IF($B$3="R2",VLOOKUP(A13,'Data Pass Through'!$A4:$C19,2,0),0)*-1 -> 0 | C13: 1 | D13: =B13*C13 -> 0 | E13: =IF($B$3="R2",VLOOKUP(A13,'Data Pass Through'!$A4:$C19,3,0),0)*-1 -> 0 | F13: 1 | G13: 0 | H13: 0 | I13: N/A
A14: DRP Adjustment | D14: =IF(OR($B$3="R1",$B$3="R2"),IF(SUM(D11:D13)>'Data Pass Through'!$B$16,-(SUM(D11:D13)-'Data Pass Through'!$B$16),0),0) -> 0 | G14: =IF(OR($B$3="R1",$B$3="R2"),IF(SUM(G11:G13)>'Data Pass Through'!$C$16,-(SUM(G11:G13)-'Data Pass Through'!$C$16),0),0) -> 0 | H14: 0 | I14: N/A
A15: Fixed Rate Riders | B15: =VLOOKUP($B$3,'Data Current Rates'!$A:$AJ,MATCH(BI_UR_High!$A15,CurrentHeader,0),FALSE) -> -0.11 | C15: 1 | D15: =B15*C15 -> -0.11 | E15: =VLOOKUP($B$3,'Data Proposed Rates'!$A:$AM,MATCH(BI_UR_High!$A15,ProposedHeader,0),FALSE) -> -0.11 | F15: 1 | G15: =E15*F15 -> -0.11 | H15: 0 | I15: 0
A16: Volumetric Rate Riders | B16: =VLOOKUP($B$3,'Data Current Rates'!$A:$AJ,MATCH(BI_UR_High!$A16,CurrentHeader,0),FALSE) -> 0 | C16: =IF(B7="kWh",$B$4,$B$5) -> 1260 | D16: =B16*C16 -> 0 | E16: =VLOOKUP($B$3,'Data Proposed Rates'!$A:$AM,MATCH(BI_UR_High!$A16,ProposedHeader,0),FALSE) -> 0 | F16: 1260 | G16: 0 | H16: 0 | I16: N/A
A17: Sub-Total A (excluding pass through) | D17: =SUM(D11:D16) -> 39.89 | G17: =SUM(G11:G16) -> 41.5 | H17: 1.61 | I17: 0.04036099273
A18: Line Losses on Cost of Power | B18: =VLOOKUP($B$3,'Data Billing Quantities'!$A:$O,MATCH(BI_UR_High!$A33,'Data Billing Quantities'!$4:$4,0),FALSE)*$B33+VLOOKUP($B$3,'Data Billing Quantities'!$A:$O,MATCH(BI_UR_High!$A34,'Data Billing Quantities'!$4:$4,0),FALSE)*$B34+VLOOKUP($B$3,'Data Billing Quantities'!$A:$O,MATCH(BI_UR_High!$A35,'Data Billing Quantities'!$4:$4,0),FALSE)*$B35 -> 0.09986 | C18: =(B6*B4)-B4 -> 71.82 | D18: =B18*C18 -> 7.1719452 | E18: =VLOOKUP($B$3,'Data Billing Quantities'!$A:$O,MATCH(BI_UR_High!$A33,'Data Billing Quantities'!$4:$4,0),FALSE)*$B33+VLOOKUP($B$3,'Data Billing Quantities'!$A:$O,MATCH(BI_UR_High!$A34,'Data Billing Quantities'!$4:$4,0),FALSE)*$B34+VLOOKUP($B$3,'Data Billing Quantities'!$A:$O,MATCH(BI_UR_High!$A35,'Data Billing Quantities'!$4:$4,0),FALSE)*$B35 -> 0.09986 | F18: =C18 -> 71.82 | G18: 7.1719452 | H18: 0 | I18: 0
A19: Total Deferral/Variance Account Rate Riders | B19: =VLOOKUP($B$3,'Data Current Rates'!$A:$AJ,MATCH(BI_UR_High!$A19,CurrentHeader,0),FALSE) -> 0.0006 | C19: =IF(B7="kWh",$B$4,$B$5) -> 1260 | D19: 0.756 | E19: =VLOOKUP($B$3,'Data Proposed Rates'!$A:$AM,MATCH(BI_UR_High!$A19,ProposedHeader,0),FALSE) -> -0.0025 | F19: =C19 -> 1260 | G19: -3.15 | H19: -3.906 | I19: -5.166666667
A20: CBR Class B Rate Riders | B20: =VLOOKUP($B$3,'Data Current Rates'!$A:$AJ,MATCH(BI_UR_High!$A20,CurrentHeader,0),FALSE) -> -0.0006 | C20: =IF(B7="kWh",$B$4,$B$5) -> 1260 | D20: -0.756 | E20: =VLOOKUP($B$3,'Data Proposed Rates'!$A:$AM,MATCH(BI_UR_High!$A20,ProposedHeader,0),FALSE) -> -0.0005 | F20: 1260 | G20: -0.63 | H20: 0.126 | I20: 0.1666666667
A21: GA Rate Riders | B21: =VLOOKUP($B$3,'Data Current Rates'!$A:$AJ,MATCH(BI_UR_High!$A21,CurrentHeader,0),FALSE) -> 0 | C21: =IF(B7="kWh",$B$4,$B$5) -> 1260 | D21: 0 | E21: =VLOOKUP($B$3,'Data Proposed Rates'!$A:$AM,MATCH(BI_UR_High!$A21,ProposedHeader,0),FALSE) -> 0 | F21: 1260 | G21: 0 | H21: 0 | I21: N/A
A22: Smart Meter Entity Charge (if applicable) | B22: =VLOOKUP($A22,'Data Pass Through'!$A:$D,2,FALSE) -> 0.42 | C22: 1 | D22: 0.42 | E22: =VLOOKUP($A22,'Data Pass Through'!$A:$D,2,FALSE) -> 0.42 | F22: 1 | G22: 0.42 | H22: 0 | I22: 0
A23: Additional Fixed Rate Riders | B23: =VLOOKUP($B$3,'Data Current Rates'!$A:$AJ,MATCH(BI_UR_High!$A23,CurrentHeader,0),FALSE) -> 0 | C23: =IF(B9="kWh",$B$4,$B$5) -> 0 | D23: 0 | E23: =VLOOKUP($B$3,'Data Proposed Rates'!$A:$AM,MATCH(BI_UR_High!$A23,ProposedHeader,0),FALSE) -> 0 | F23: 0 | G23: 0 | H23: 0 | I23: N/A
A24: Additional Volumetric Rate Riders | B24: =VLOOKUP($B$3,'Data Current Rates'!$A:$AJ,MATCH(BI_UR_High!$A24,CurrentHeader,0),FALSE) -> 0 | C24: =IF(B10="kWh",$B$4,$B$5) -> 0 | D24: 0 | E24: =VLOOKUP($B$3,'Data Proposed Rates'!$A:$AM,MATCH(BI_UR_High!$A24,ProposedHeader,0),FALSE) -> 0 | F24: 0 | G24: 0 | H24: 0 | I24: N/A
A25: Sub-Total B - Distribution (includes Sub-Total A) | D25: =SUM(INDIRECT("D17:D"&ROW()-1)) -> 47.4819452 | G25: =SUM(INDIRECT("G17:G"&ROW()-1)) -> 45.3119452 | H25: -2.17 | I25: -0.04570158175
